Workbook

Sheet Final decision changes
A1: Cell | B1: Change (AER Final Decision)
A2: Global'!F83 | B2: Updated the inflation escalation for 2024-25 based on actual CPI data for December 2023 from the ABS.
A3: Global'!F69:J69 | B3: Substituted our final decision pre-tax real WACC.

Sheet Cover
C38: Notes:
C39: 1. | D39: All figures are GST exclusive unless otherwise stated
C40: 2. | D40: A long term contract is a minimum of 24 months

Sheet Inputs >>

Sheet Global
B1: Global Assumptions
C4: Timing
C6: Model start date | D6: Date | F6: =EOMONTH(DATE(F11-1,6,1),0) -> 2024-06-30
C7: Reglatory period length | D7: Years | F7: 5
C8: Current Year | D8: Years | F8: 2025
C10: Regulatory Period | F10: Current | G10: Previous
C11: Year 1 | D11: FY | F11: 2025 | G11: =G12-1 -> 2020
C12: Year 2 | D12: FY | F12: =F11+1 -> 2026 | G12: =G13-1 -> 2021
C13: Year 3 | D13: FY | F13: =F12+1 -> 2027 | G13: =G14-1 -> 2022
C14: Year 4 | D14: FY | F14: =F13+1 -> 2028 | G14: =G15-1 -> 2023
C15: Year 5 | D15: FY | F15: =F14+1 -> 2029 | G15: =RegYear-1 -> 2024
C17: WACC
F19: =TRANSPOSE(List_RegYear) -> 2025 | G19: 2026 | H19: 2027 | I19: 2028 | J19: 2029
C20: Cost of debt
C21: Nominal pre-tax cost of debt | D21: % p.a. | F21: 0.04627075053 | G21: 0.04724036093 | H21: 0.04864679577 | I21: 0.05009822056 | J21: 0.05177406058
C22: Real pre-tax cost of debt | D22: % p.a. | F22: 0.01777527058 | G22: 0.01871847337 | H22: 0.02008660356 | I22: 0.02149849838 | J22: 0.02312869642
C24: Nominal post-tax cost of debt | D24: % p.a. | F24: =F21*(1-F33*(1-F34)) -> 0.04047005445 | G24: =G21*(1-G33*(1-G34)) -> 0.0413181104 | H24: 0.04254822865 | I24: 0.04381769672 | J24: 0.04528344638
C25: Real post-tax cost of debt | D25: % p.a. | F25: =(1+F24)/(1+F83)-1 -> -4.788301533e-05 | G25: =(1+G24)/(1+G83)-1 -> 0.01295751701 | H25: =(1+H24)/(1+H83)-1 -> 0.01415413264 | I25: =(1+I24)/(1+I83)-1 -> 0.01538902638 | J25: =(1+J24)/(1+J83)-1 -> 0.01681485593
C27: Cost of equity
C28: Nominal post-tax cost of equity | D28: % p.a. | F28: 0.07670293 | G28: 0.07670293 | H28: 0.07670293 | I28: 0.07670293 | J28: 0.07670293
C29: Real post-tax cost of equity | D29: % p.a. | F29: 0.04737862103 | G29: 0.04737862103 | H29: 0.04737862103 | I29: 0.04737862103 | J29: 0.04737862103
C31: Tax & Dividend Imputation
C32: Effective tax rate for equity | D32: % | F32: 0.1612624484 | G32: 0.1612624484 | H32: 0.1612624484 | I32: 0.1612624484 | J32: 0.1612624484
C33: Effective tax rate for debt | D33: % | F33: 0.3020824337 | G33: 0.3020824337 | H33: 0.3020824337 | I33: 0.3020824337 | J33: 0.3020824337
C34: Utilisation of imputation credits | D34: % | F34: 0.585 | G34: 0.585 | H34: 0.585 | I34: 0.585 | J34: 0.585
C36: Leverage
C37: Debt | D37: % | F37: 0.6 | G37: 0.6 | H37: 0.6 | I37: 0.6 | J37: 0.6
C38: Equity | D38: % | F38: =1-F37 -> 0.4 | G38: =1-G37 -> 0.4 | H38: =1-H37 -> 0.4 | I38: =1-I37 -> 0.4 | J38: =1-J37 -> 0.4
C40: WACC
C41: Nominal vanilla WACC
C42: =C21 -> Nominal pre-tax cost of debt | D42: % | F42: =F21 -> 0.04627075053 | G42: =G21 -> 0.04724036093 | H42: =H21 -> 0.04864679577 | I42: =I21 -> 0.05009822056 | J42: =J21 -> 0.05177406058
C43: =C28 -> Nominal post-tax cost of equity | D43: % | F43: =F28 -> 0.07670293 | G43: =G28 -> 0.07670293 | H43: =H28 -> 0.07670293 | I43: =I28 -> 0.07670293 | J43: =J28 -> 0.07670293
C44: Nominal vanilla WACC | D44: % | F44: =F42*F$37+F43*F$38 -> 0.05844362232 | G44: =G42*G$37+G43*G$38 -> 0.05902538856 | H44: 0.05986924946 | I44: 0.06074010434 | J44: 0.06174560835
C46: Real vanilla WACC
C47: =C22 -> Real pre-tax cost of debt | D47: % | F47: =F22 -> 0.01777527058 | G47: =G22 -> 0.01871847337 | H47: =H22 -> 0.02008660356 | I47: =I22 -> 0.02149849838 | J47: =J22 -> 0.02312869642
C48: =C29 -> Real post-tax cost of equity | D48: % | F48: =F29 -> 0.04737862103 | G48: =G29 -> 0.04737862103 | H48: =H29 -> 0.04737862103 | I48: =I29 -> 0.04737862103 | J48: =J29 -> 0.04737862103
C49: Real vanilla WACC | D49: % | F49: =F47*F$37+F48*F$38 -> 0.02961661076 | G49: =G47*G$37+G48*G$38 -> 0.03018253243 | H49: 0.03100341055 | I49: 0.03185054744 | J49: 0.03282866627
C51: Post-tax nominal WACC
C52: =C24 -> Nominal post-tax cost of debt | D52: % | F52: =F24 -> 0.04047005445 | G52: =G24 -> 0.0413181104 | H52: =H24 -> 0.04254822865 | I52: =I24 -> 0.04381769672 | J52: =J24 -> 0.04528344638
C53: Nominal post-tax, post imputation, cost of equity | D53: % | F53: =F28 -> 0.07670293 | G53: =G28 -> 0.07670293 | H53: 0.07670293 | I53: 0.07670293 | J53: 0.07670293
C54: Post-tax nominal WACC | D54: % | F54: =F52*F$37+F53*F$38 -> 0.05496320467 | G54: =G52*G$37+G53*G$38 -> 0.05547203824 | H54: 0.05621010919 | I54: 0.05697179003 | J54: 0.05785123983
C56: Post-tax real WACC
C57: =C25 -> Real post-tax cost of debt | D57: % | F57: =F25 -> -4.788301533e-05 | G57: =G25 -> 0.01295751701 | H57: =H25 -> 0.01415413264 | I57: =I25 -> 0.01538902638 | J57: =J25 -> 0.01681485593
C58: Real post-tax, post imputation, cost of equity | D58: % | F58: =(1+F53)/(1+F83)-1 -> 0.03477401355 | G58: =(1+G53)/(1+G83)-1 -> 0.04737862103 | H58: 0.04737862103 | I58: 0.04737862103 | J58: 0.04737862103
C59: Post-tax real WACC | D59: % | F59: =F57*F$37+F58*F$38 -> 0.01388087561 | G59: =G57*G$37+G58*G$38 -> 0.02672595862 | H59: =H57*H$37+H58*H$38 -> 0.027443928 | I59: =I57*I$37+I58*I$38 -> 0.02818486424 | J59: =J57*J$37+J58*J$38 -> 0.02904036197
C61: Pre-tax nominal WACC
C62: =C21 -> Nominal pre-tax cost of debt | D62: % | F62: =F21 -> 0.04627075053 | G62: =G21 -> 0.04724036093 | H62: =H21 -> 0.04864679577 | I62: =I21 -> 0.05009822056 | J62: =J21 -> 0.05177406058
C63: Nominal pre-tax, post imputation, cost of equity | D63: % | F63: =F28*(1/(1-F32*(1-F34))) -> 0.08220436824 | G63: =G28*(1/(1-G32*(1-G34))) -> 0.08220436824 | H63: =H28*(1/(1-H32*(1-H34))) -> 0.08220436824 | I63: =I28*(1/(1-I32*(1-I34))) -> 0.08220436824 | J63: =J28*(1/(1-J32*(1-J34))) -> 0.08220436824
C64: Pre-tax nominal WACC | D64: % | F64: =F62*F$37+F63*F$38 -> 0.06064419762 | G64: =G62*G$37+G63*G$38 -> 0.06122596386 | H64: =H62*H$37+H63*H$38 -> 0.06206982476 | I64: =I62*I$37+I63*I$38 -> 0.06294067963 | J64: =J62*J$37+J63*J$38 -> 0.06394618364
C66: Pre-tax real WACC
C67: =C22 -> Real pre-tax cost of debt | D67: % | F67: =F22 -> 0.01777527058 | G67: =G22 -> 0.01871847337 | H67: =H22 -> 0.02008660356 | I67: =I22 -> 0.02149849838 | J67: =J22 -> 0.02312869642
C68: Real pre-tax, post imputation, cost of equity | D68: % | F68: =(1+F63)/(1+F83)-1 -> 0.04006121503 | G68: =(1+G63)/(1+G83)-1 -> 0.05273022605 | H68: 0.05273022605 | I68: 0.05273022605 | J68: 0.05273022605
C69: Pre-tax real WACC | D69: % | F69: 0.03525915455 | G69: 0.03550022748 | H69: 0.03599660461 | I69: 0.03651927633 | J69: 0.03717310863
C71: Summary
C72: Nominal vanilla WACC | D72: % | F72: =F$44 -> 0.05844362232 | G72: =G$44 -> 0.05902538856 | H72: =H$44 -> 0.05986924946 | I72: =I$44 -> 0.06074010434 | J72: =J$44 -> 0.06174560835
C73: Real vanilla WACC | D73: % | F73: =F$49 -> 0.02961661076 | G73: =G$49 -> 0.03018253243 | H73: =H$49 -> 0.03100341055 | I73: =I$49 -> 0.03185054744 | J73: =J$49 -> 0.03282866627
C74: Post-tax nominal WACC | D74: % | F74: =F$54 -> 0.05496320467 | G74: =G$54 -> 0.05547203824 | H74: =H$54 -> 0.05621010919 | I74: =I$54 -> 0.05697179003 | J74: =J$54 -> 0.05785123983
C75: Post-tax real WACC | D75: % | F75: =F$59 -> 0.01388087561 | G75: =G$59 -> 0.02672595862 | H75: =H$59 -> 0.027443928 | I75: =I$59 -> 0.02818486424 | J75: =J$59 -> 0.02904036197
C76: Pre-tax nominal WACC | D76: % | F76: =F$64 -> 0.06064419762 | G76: =G$64 -> 0.06122596386 | H76: =H$64 -> 0.06206982476 | I76: =I$64 -> 0.06294067963 | J76: =J$64 -> 0.06394618364
C77: Pre-tax real WACC | D77: % | F77: =F$69 -> 0.03525915455 | G77: =G$69 -> 0.03550022748 | H77: 0.03599660461 | I77: 0.03651927633 | J77: 0.03717310863
C79: Escalation
C81: Escalation rate
F82: =F$19 -> 2025 | G82: =G$19 -> 2026 | H82: =H$19 -> 2027 | I82: =I$19 -> 2028 | J82: =J$19 -> 2029
C83: CPI | D83: % p.a. | F83: 0.04051987768 | G83: 0.02799781128 | H83: 0.02799781128 | I83: 0.02799781128 | J83: 0.02799781128
C84: LPI | D84: % p.a. | F84: 0.01652827985 | G84: 0.01495766389 | H84: 0.006634271053 | I84: 0.005015929052 | J84: 0.007061266653
C85: Real capex | D85: % p.a. | F85: 0 | G85: 0 | H85: 0 | I85: 0 | J85: 0
C86: Real labour (capex) | D86: % p.a. | F86: =F84*0.2 -> 0.003305655969 | G86: =G84*0.2 -> 0.002991532779 | H86: =H84*0.2 -> 0.001326854211 | I86: =I84*0.2 -> 0.00100318581 | J86: =J84*0.2 -> 0.001412253331
C87: Real opex | D87: % p.a. | F87: =0.294*F84 -> 0.004859314275 | G87: =0.294*G84 -> 0.004397553185 | H87: =0.294*H84 -> 0.001950475689 | I87: =0.294*I84 -> 0.001474683141 | J87: =0.294*J84 -> 0.002076012396
C89: Starting index
C90: =C83 -> CPI | D90: index | F90: 1
C91: =C84 -> LPI | D91: index | F91: 1
C92: =C85 -> Real capex | D92: index | F92: 1
C93: =C86 -> Real labour (capex) | D93: index | F93: 1
C94: =C87 -> Real opex | D94: index | F94: 1
C97: Other
C99: Corporate Tax Rate | D99: % | F99: 0.3
C100: Utilisation of Imputation (Franking) Credits | D100: % | F100: 0.585
C102: Constants
C104: Months in a Year | D104: # | F104: 12
C105: Half | D105: # | F105: 0.5
C106: Million | D106: # | F106: 1000000
C107: Rounding | D107: # | F107: 4

Sheet Service
B1: Service Definitions
B5: Inputs
B7: Service Class | C7: Description | D7: Lamp Type | E7: Nominal Wattage | F7: Actual Wattage | G7: Rate Code | H7: Quantity | I7: Lamp Cost
B8: Minor | C8: NIGHTWATCH MINOR (F42) - FF1A | D8: MF | E8: 42 | F8: 46 | G8: FF1A | H8: 0
B9: Minor | C9: NIGHTWATCH MINOR (F2X14) - FF2A | D9: MF | E9: 28 | F9: 30 | G9: FF2A | H9: 0
B10: Small | C10: NIGHTWATCH SMALL (MH150) - FH1A | D10: MH | E10: 150 | F10: 168 | G10: FH1A | H10: 51
B11: Medium | C11: NIGHTWATCH MEDIUM (MH250) - FH2A | D11: MH | E11: 250 | F11: 268 | G11: FH2A | H11: 267
B12: Large | C12: NIGHTWATCH LARGE (MH400) - FH3A | D12: MH | E12: 400 | F12: 425 | G12: FH3A | H12: 643
B13: X-Large | C13: NIGHTWATCH X-LARGE (MH1000) - FH4A | D13: MH | E13: 1000 | F13: 1040 | G13: FH4A | H13: 358
B14: Minor | C14: NIGHTWATCH MINOR (L17) - FL1A | D14: LED | E14: 17 | F14: 17 | G14: FL1A | H14: 3
B15: Minor | C15: NIGHTWATCH MINOR (L18) - FL1B | D15: LED | E15: 18 | F15: 22 | G15: FL1B | H15: 0
B16: Small | C16: NIGHTWATCH SMALL (L75+) - FL2A | D16: LED | E16: 75 | F16: 79 | G16: FL2A | H16: 5
B17: Medium | C17: NIGHTWATCH MEDIUM (L100+) - FL3A | D17: LED | E17: 100 | F17: 106 | G17: FL3A | H17: 16
B18: Medium | C18: NIGHTWATCH MEDIUM (L150) - FL3B | D18: LED | E18: 150 | F18: 158 | G18: FL3B | H18: 16
B19: Large | C19: NIGHTWATCH LARGE (L150+) - FL4A | D19: LED | E19: 150 | F19: 158 | G19: FL4A | H19: 54
B20: Large | C20: NIGHTWATCH LARGE (L200) - FL4B | D20: LED | E20: 200 | F20: 220 | G20: FL4B | H20: 49
B21: X-Large | C21: NIGHTWATCH X-LARGE (L300+) - FL5A | D21: LED | E21: 300 | F21: 316 | G21: FL5A | H21: 37
B22: Minor | C22: NIGHTWATCH MINOR (M80) - FM1A | D22: MF | E22: 80 | F22: 96 | G22: FM1A | H22: 10
B23: Small | C23: NIGHTWATCH SMALL (S150) - FS1A | D23: HPS | E23: 150 | F23: 173 | G23: FS1A | H23: 18
B24: Medium | C24: NIGHTWATCH MEDIUM (S250) - FS2A | D24: HPS | E24: 250 | F24: 273 | G24: FS2A | H24: 164
B25: Large | C25: NIGHTWATCH LARGE (S400) - FS3A | D25: HPS | E25: 400 | F25: 440 | G25: FS3A | H25: 304
B26: Minor | C26: NIGHTWATCH MINOR (S100) - FS4A | D26: HPS | E26: 100 | F26: 120 | G26: FS4A | H26: 3
B27: Minor | C27: NIGHTWATCH MINOR (S70) - FS5A | D27: HPS | E27: 70 | F27: 86 | G27: FS5A | H27: 6

Sheet Capex
B1: Capex Inputs
C5: Summary labour rate values
C8: Derivation of labour cost per component
C11: Service | D11: Tariff | E11: Subtotal Asset Capex | F11: Subtotal Labour | G11: Luminaire | H11: Control Gear | I11: Louvre | J11: Lamp | K11: PE Cell | L11: Bracket | M11: Ancillary | N11: Labour | O11: Cust. contr. (installation charge) | P11: Notes
C12: NIGHTWATCH MINOR (F42) - FF1A | D12: FF1A | O12: 329.35
C13: NIGHTWATCH MINOR (F2X14) - FF2A | D13: FF2A | O13: 329.35
C14: NIGHTWATCH SMALL (MH150) - FH1A | D14: FH1A | O14: 329.35
C15: NIGHTWATCH MEDIUM (MH250) - FH2A | D15: FH2A | O15: 329.35
C16: NIGHTWATCH LARGE (MH400) - FH3A | D16: FH3A | O16: 329.35
C17: NIGHTWATCH X-LARGE (MH1000) - FH4A | D17: FH4A | O17: 329.35
C18: NIGHTWATCH MINOR (L17) - FL1A | D18: FL1A | O18: 329.35
C19: NIGHTWATCH MINOR (L18) - FL1B | D19: FL1B | O19: 329.35
C20: NIGHTWATCH SMALL (L75+) - FL2A | D20: FL2A | O20: 329.35
C21: NIGHTWATCH MEDIUM (L100+) - FL3A | D21: FL3A | O21: 329.35
C22: NIGHTWATCH MEDIUM (L150) - FL3B | D22: FL3B | O22: 329.35
C23: NIGHTWATCH LARGE (L150+) - FL4A | D23: FL4A | O23: 329.35
C24: NIGHTWATCH LARGE (L200) - FL4B | D24: FL4B | O24: 329.35
C25: NIGHTWATCH X-LARGE (L300+) - FL5A | D25: FL5A | O25: 329.35
C26: NIGHTWATCH MINOR (M80) - FM1A | D26: FM1A | O26: 329.35
C27: NIGHTWATCH SMALL (S150) - FS1A | D27: FS1A | O27: 329.35
C28: NIGHTWATCH MEDIUM (S250) - FS2A | D28: FS2A | O28: 329.35
C29: NIGHTWATCH LARGE (S400) - FS3A | D29: FS3A | O29: 329.35
C30: NIGHTWATCH MINOR (S100) - FS4A | D30: FS4A | O30: 329.35
C31: NIGHTWATCH MINOR (S70) - FS5A | D31: FS5A | O31: 329.35
D32: =Annuity!D43 -> 0
D33: =Annuity!D44 -> 0
D34: =Annuity!D45 -> 0
D35: =Annuity!D46 -> 0
D36: =Annuity!D47 -> 0
D37: =Annuity!D48 -> 0
D38: =Annuity!D49 -> 0
D39: =Annuity!D50 -> 0
D40: =Annuity!D51 -> 0
D41: =Annuity!D52 -> 0
D42: =Annuity!D53 -> 0
D43: =Annuity!D54 -> 0
D44: =Annuity!D55 -> 0
D45: =Annuity!D56 -> 0
D46: =Annuity!D57 -> 0
D47: =Annuity!D58 -> 0
D48: =Annuity!D59 -> 0
D49: =Annuity!D60 -> 0
D50: =Annuity!D61 -> 0
D51: =Annuity!D62 -> 0
D52: =Annuity!D63 -> 0
D53: =Annuity!D64 -> 0
D54: =Annuity!D65 -> 0
D55: =Annuity!D66 -> 0
D56: =Annuity!D67 -> 0
D57: =Annuity!D68 -> 0
D58: =Annuity!D69 -> 0
D59: =Annuity!D70 -> 0
D60: =Annuity!D71 -> 0
D61: =Annuity!D72 -> 0
D62: =Annuity!D73 -> 0
D63: =Annuity!D74 -> 0
D64: =Annuity!D75 -> 0
D65: =Annuity!D76 -> 0
D66: =Annuity!D77 -> 0
D67: =Annuity!D78 -> 0
D68: =Annuity!D79 -> 0
D69: =Annuity!D80 -> 0
D70: =Annuity!D81 -> 0
D71: =Annuity!D82 -> 0
D72: =Annuity!D83 -> 0
D73: =Annuity!D84 -> 0
D74: =Annuity!D85 -> 0
D75: =Annuity!D86 -> 0
D76: =Annuity!D87 -> 0
D77: =Annuity!D88 -> 0
D78: =Annuity!D89 -> 0
D79: =Annuity!D90 -> 0
D80: =Annuity!D91 -> 0
D81: =Annuity!D92 -> 0
D82: =Annuity!D93 -> 0
D83: =Annuity!D94 -> 0
D84: =Annuity!D95 -> 0
D85: =Annuity!D96 -> 0
D86: =Annuity!D97 -> 0
D87: =Annuity!D98 -> 0
D88: =Annuity!D99 -> 0
D89: =Annuity!D100 -> 0
D90: =Annuity!D101 -> 0
D91: =Annuity!D102 -> 0
D92: =Annuity!D103 -> 0
D93: =Annuity!D104 -> 0
D94: =Annuity!D105 -> 0
D95: =Annuity!D106 -> 0
D96: =Annuity!D107 -> 0
D97: =Annuity!D108 -> 0
D98: =Annuity!D109 -> 0
D99: =Annuity!D110 -> 0
D100: =Annuity!D111 -> 0
D101: =Annuity!D112 -> 0
D102: =Annuity!D113 -> 0
D103: =Annuity!D114 -> 0
D104: =Annuity!D115 -> 0
D105: =Annuity!D116 -> 0
D106: =Annuity!D117 -> 0
D107: =Annuity!D118 -> 0
D108: =Annuity!D119 -> 0
D109: =Annuity!D120 -> 0
D110: =Annuity!D121 -> 0
D111: =Annuity!D122 -> 0
D112: =Annuity!D123 -> 0
D113: =Annuity!D124 -> 0
D114: =Annuity!D125 -> 0
D115: =Annuity!D126 -> 0
D116: =Annuity!D127 -> 0
D117: =Annuity!D128 -> 0
D118: =Annuity!D129 -> 0
D119: =Annuity!D130 -> 0
D120: =Annuity!D131 -> 0
D121: =Annuity!D132 -> 0
D122: =Annuity!D133 -> 0
D123: =Annuity!D134 -> 0
D124: =Annuity!D135 -> 0
D125: =Annuity!D136 -> 0
D126: =Annuity!D137 -> 0
D127: =Annuity!D138 -> 0
D128: =Annuity!D139 -> 0
D129: =Annuity!D140 -> 0
D130: =Annuity!D141 -> Rate Code
D131: =Annuity!D142 -> FF1A
D132: =Annuity!D143 -> FF2A
D133: =Annuity!D144 -> FH1A
D134: =Annuity!D145 -> FH2A
D135: =Annuity!D146 -> FH3A
D136: =Annuity!D147 -> FH4A
D137: =Annuity!D148 -> FL1A
D138: =Annuity!D149 -> FL1B
D139: =Annuity!D150 -> FL2A
D140: =Annuity!D151 -> FL3A
D141: =Annuity!D152 -> FL3B
D142: =Annuity!D153 -> FL4A

Sheet Opex
B1: Opex Inputs
C5: Summary opex inputs
C8: Opex allocated per component group | D8: Cost (incl. OH)
C9: Minor
C10: Small
C11: Medium
C12: Large
C13: X-Large
C16: Derivation of Opex cost allocated to tariff rate
C19: Description | D19: Service Class | E19: Tariff Rate | F19: Opex per unit [$] | G19: Lamps [$]
C20: NIGHTWATCH MINOR (F42) - FF1A | D20: Minor | E20: FF1A
C21: NIGHTWATCH MINOR (F2X14) - FF2A | D21: Minor | E21: FF2A
C22: NIGHTWATCH SMALL (MH150) - FH1A | D22: Small | E22: FH1A
C23: NIGHTWATCH MEDIUM (MH250) - FH2A | D23: Medium | E23: FH2A
C24: NIGHTWATCH LARGE (MH400) - FH3A | D24: Large | E24: FH3A
C25: NIGHTWATCH X-LARGE (MH1000) - FH4A | D25: X-Large | E25: FH4A
C26: NIGHTWATCH MINOR (L17) - FL1A | D26: Minor | E26: FL1A | H26: N/A
C27: NIGHTWATCH MINOR (L18) - FL1B | D27: Minor | E27: FL1B | H27: N/A
C28: NIGHTWATCH SMALL (L75+) - FL2A | D28: Small | E28: FL2A | H28: N/A
C29: NIGHTWATCH MEDIUM (L100+) - FL3A | D29: Medium | E29: FL3A | H29: N/A
C30: NIGHTWATCH MEDIUM (L150) - FL3B | D30: Medium | E30: FL3B | H30: N/A
C31: NIGHTWATCH LARGE (L150+) - FL4A | D31: Large | E31: FL4A | H31: N/A
C32: NIGHTWATCH LARGE (L200) - FL4B | D32: Large | E32: FL4B | H32: N/A
C33: NIGHTWATCH X-LARGE (L300+) - FL5A | D33: X-Large | E33: FL5A | H33: N/A
C34: NIGHTWATCH MINOR (M80) - FM1A | D34: Minor | E34: FM1A
C35: NIGHTWATCH SMALL (S150) - FS1A | D35: Small | E35: FS1A
C36: NIGHTWATCH MEDIUM (S250) - FS2A | D36: Medium | E36: FS2A
C37: NIGHTWATCH LARGE (S400) - FS3A | D37: Large | E37: FS3A
C38: NIGHTWATCH MINOR (S100) - FS4A | D38: Minor | E38: FS4A
C39: NIGHTWATCH MINOR (S70) - FS5A | D39: Minor | E39: FS5A
C40: =#REF! ->  | F40: =INDEX(#REF!, MATCH(D40,#REF!, 0), 5) ->  | G40: =IFERROR(INDEX(#REF!, MATCH(D40,#REF!, 0), 6),0) -> 0
C41: =#REF! ->  | F41: =INDEX(#REF!, MATCH(D41,#REF!, 0), 5) ->  | G41: =IFERROR(INDEX(#REF!, MATCH(D41,#REF!, 0), 6),0) -> 0
C42: =#REF! ->  | F42: =INDEX(#REF!, MATCH(D42,#REF!, 0), 5) ->  | G42: =IFERROR(INDEX(#REF!, MATCH(D42,#REF!, 0), 6),0) -> 0
C43: =#REF! ->  | F43: =INDEX(#REF!, MATCH(D43,#REF!, 0), 5) ->  | G43: =IFERROR(INDEX(#REF!, MATCH(D43,#REF!, 0), 6),0) -> 0
C44: =#REF! ->  | F44: =INDEX(#REF!, MATCH(D44,#REF!, 0), 5) ->  | G44: =IFERROR(INDEX(#REF!, MATCH(D44,#REF!, 0), 6),0) -> 0
C45: =#REF! ->  | F45: =INDEX(#REF!, MATCH(D45,#REF!, 0), 5) ->  | G45: =IFERROR(INDEX(#REF!, MATCH(D45,#REF!, 0), 6),0) -> 0
C46: =#REF! ->  | F46: =INDEX(#REF!, MATCH(D46,#REF!, 0), 5) ->  | G46: =IFERROR(INDEX(#REF!, MATCH(D46,#REF!, 0), 6),0) -> 0
C47: =#REF! ->  | F47: =INDEX(#REF!, MATCH(D47,#REF!, 0), 5) ->  | G47: =IFERROR(INDEX(#REF!, MATCH(D47,#REF!, 0), 6),0) -> 0
C48: =#REF! ->  | F48: =INDEX(#REF!, MATCH(D48,#REF!, 0), 5) ->  | G48: =IFERROR(INDEX(#REF!, MATCH(D48,#REF!, 0), 6),0) -> 0
C49: =#REF! ->  | F49: =INDEX(#REF!, MATCH(D49,#REF!, 0), 5) ->  | G49: =IFERROR(INDEX(#REF!, MATCH(D49,#REF!, 0), 6),0) -> 0
C50: =#REF! ->  | F50: =INDEX(#REF!, MATCH(D50,#REF!, 0), 5) ->  | G50: =IFERROR(INDEX(#REF!, MATCH(D50,#REF!, 0), 6),0) -> 0
C51: =#REF! ->  | F51: =INDEX(#REF!, MATCH(D51,#REF!, 0), 5) ->  | G51: =IFERROR(INDEX(#REF!, MATCH(D51,#REF!, 0), 6),0) -> 0
C52: =#REF! ->  | F52: =INDEX(#REF!, MATCH(D52,#REF!, 0), 5) ->  | G52: =IFERROR(INDEX(#REF!, MATCH(D52,#REF!, 0), 6),0) -> 0
C53: =#REF! ->  | F53: =INDEX(#REF!, MATCH(D53,#REF!, 0), 5) ->  | G53: =IFERROR(INDEX(#REF!, MATCH(D53,#REF!, 0), 6),0) -> 0
C54: =#REF! ->  | F54: =INDEX(#REF!, MATCH(D54,#REF!, 0), 5) ->  | G54: =IFERROR(INDEX(#REF!, MATCH(D54,#REF!, 0), 6),0) -> 0
C55: =#REF! ->  | F55: =INDEX(#REF!, MATCH(D55,#REF!, 0), 5) ->  | G55: =IFERROR(INDEX(#REF!, MATCH(D55,#REF!, 0), 6),0) -> 0
C56: =#REF! ->  | F56: =INDEX(#REF!, MATCH(D56,#REF!, 0), 5) ->  | G56: =IFERROR(INDEX(#REF!, MATCH(D56,#REF!, 0), 6),0) -> 0
C57: =#REF! ->  | F57: =INDEX(#REF!, MATCH(D57,#REF!, 0), 5) ->  | G57: =IFERROR(INDEX(#REF!, MATCH(D57,#REF!, 0), 6),0) -> 0
C58: =#REF! ->  | F58: =INDEX(#REF!, MATCH(D58,#REF!, 0), 5) ->  | G58: =IFERROR(INDEX(#REF!, MATCH(D58,#REF!, 0), 6),0) -> 0
C59: =#REF! ->  | F59: =INDEX(#REF!, MATCH(D59,#REF!, 0), 5) ->  | G59: =IFERROR(INDEX(#REF!, MATCH(D59,#REF!, 0), 6),0) -> 0
C60: =#REF! ->  | F60: =INDEX(#REF!, MATCH(D60,#REF!, 0), 5) ->  | G60: =IFERROR(INDEX(#REF!, MATCH(D60,#REF!, 0), 6),0) -> 0
C61: =#REF! ->  | F61: =INDEX(#REF!, MATCH(D61,#REF!, 0), 5) ->  | G61: =IFERROR(INDEX(#REF!, MATCH(D61,#REF!, 0), 6),0) -> 0
C62: =#REF! ->  | F62: =INDEX(#REF!, MATCH(D62,#REF!, 0), 5) ->  | G62: =IFERROR(INDEX(#REF!, MATCH(D62,#REF!, 0), 6),0) -> 0
C63: =#REF! ->  | F63: =INDEX(#REF!, MATCH(D63,#REF!, 0), 5) ->  | G63: =IFERROR(INDEX(#REF!, MATCH(D63,#REF!, 0), 6),0) -> 0
C64: =#REF! ->  | F64: =INDEX(#REF!, MATCH(D64,#REF!, 0), 5) ->  | G64: =IFERROR(INDEX(#REF!, MATCH(D64,#REF!, 0), 6),0) -> 0
C65: =#REF! ->  | F65: =INDEX(#REF!, MATCH(D65,#REF!, 0), 5) ->  | G65: =IFERROR(INDEX(#REF!, MATCH(D65,#REF!, 0), 6),0) -> 0
C66: =#REF! ->  | F66: =INDEX(#REF!, MATCH(D66,#REF!, 0), 5) ->  | G66: =IFERROR(INDEX(#REF!, MATCH(D66,#REF!, 0), 6),0) -> 0
C67: =#REF! ->  | F67: =INDEX(#REF!, MATCH(D67,#REF!, 0), 5) ->  | G67: =IFERROR(INDEX(#REF!, MATCH(D67,#REF!, 0), 6),0) -> 0
C68: =#REF! ->  | F68: =INDEX(#REF!, MATCH(D68,#REF!, 0), 5) ->  | G68: =IFERROR(INDEX(#REF!, MATCH(D68,#REF!, 0), 6),0) -> 0
C69: =#REF! ->  | F69: =INDEX(#REF!, MATCH(D69,#REF!, 0), 5) ->  | G69: =IFERROR(INDEX(#REF!, MATCH(D69,#REF!, 0), 6),0) -> 0
C70: =#REF! ->  | F70: =INDEX(#REF!, MATCH(D70,#REF!, 0), 5) ->  | G70: =IFERROR(INDEX(#REF!, MATCH(D70,#REF!, 0), 6),0) -> 0
C71: =#REF! ->  | F71: =INDEX(#REF!, MATCH(D71,#REF!, 0), 5) ->  | G71: =IFERROR(INDEX(#REF!, MATCH(D71,#REF!, 0), 6),0) -> 0
C72: =#REF! ->  | F72: =INDEX(#REF!, MATCH(D72,#REF!, 0), 5) ->  | G72: =IFERROR(INDEX(#REF!, MATCH(D72,#REF!, 0), 6),0) -> 0
C73: =#REF! ->  | F73: =INDEX(#REF!, MATCH(D73,#REF!, 0), 5) ->  | G73: =IFERROR(INDEX(#REF!, MATCH(D73,#REF!, 0), 6),0) -> 0
C74: =#REF! ->  | F74: =INDEX(#REF!, MATCH(D74,#REF!, 0), 5) ->  | G74: =IFERROR(INDEX(#REF!, MATCH(D74,#REF!, 0), 6),0) -> 0
C75: =#REF! ->  | F75: =INDEX(#REF!, MATCH(D75,#REF!, 0), 5) ->  | G75: =IFERROR(INDEX(#REF!, MATCH(D75,#REF!, 0), 6),0) -> 0
C76: =#REF! ->  | F76: =INDEX(#REF!, MATCH(D76,#REF!, 0), 5) ->  | G76: =IFERROR(INDEX(#REF!, MATCH(D76,#REF!, 0), 6),0) -> 0
C77: =#REF! ->  | F77: =INDEX(#REF!, MATCH(D77,#REF!, 0), 5) ->  | G77: =IFERROR(INDEX(#REF!, MATCH(D77,#REF!, 0), 6),0) -> 0
C78: =#REF! ->  | F78: =INDEX(#REF!, MATCH(D78,#REF!, 0), 5) ->  | G78: =IFERROR(INDEX(#REF!, MATCH(D78,#REF!, 0), 6),0) -> 0
C79: =#REF! ->  | F79: =INDEX(#REF!, MATCH(D79,#REF!, 0), 5) ->  | G79: =IFERROR(INDEX(#REF!, MATCH(D79,#REF!, 0), 6),0) -> 0
C80: =#REF! ->  | F80: =INDEX(#REF!, MATCH(D80,#REF!, 0), 5) ->  | G80: =IFERROR(INDEX(#REF!, MATCH(D80,#REF!, 0), 6),0) -> 0
C81: =#REF! ->  | F81: =INDEX(#REF!, MATCH(D81,#REF!, 0), 5) ->  | G81: =IFERROR(INDEX(#REF!, MATCH(D81,#REF!, 0), 6),0) -> 0
C82: =#REF! ->  | F82: =INDEX(#REF!, MATCH(D82,#REF!, 0), 5) ->  | G82: =IFERROR(INDEX(#REF!, MATCH(D82,#REF!, 0), 6),0) -> 0
C83: =#REF! ->  | F83: =INDEX(#REF!, MATCH(D83,#REF!, 0), 5) ->  | G83: =IFERROR(INDEX(#REF!, MATCH(D83,#REF!, 0), 6),0) -> 0
C84: =#REF! ->  | F84: =INDEX(#REF!, MATCH(D84,#REF!, 0), 5) ->  | G84: =IFERROR(INDEX(#REF!, MATCH(D84,#REF!, 0), 6),0) -> 0
C85: =#REF! ->  | F85: =INDEX(#REF!, MATCH(D85,#REF!, 0), 5) ->  | G85: =IFERROR(INDEX(#REF!, MATCH(D85,#REF!, 0), 6),0) -> 0
C86: =#REF! ->  | F86: =INDEX(#REF!, MATCH(D86,#REF!, 0), 5) ->  | G86: =IFERROR(INDEX(#REF!, MATCH(D86,#REF!, 0), 6),0) -> 0
C87: =#REF! ->  | F87: =INDEX(#REF!, MATCH(D87,#REF!, 0), 5) ->  | G87: =IFERROR(INDEX(#REF!, MATCH(D87,#REF!, 0), 6),0) -> 0
C88: =#REF! ->  | F88: =INDEX(#REF!, MATCH(D88,#REF!, 0), 5) ->  | G88: =IFERROR(INDEX(#REF!, MATCH(D88,#REF!, 0), 6),0) -> 0
C89: =#REF! ->  | F89: =INDEX(#REF!, MATCH(D89,#REF!, 0), 5) ->  | G89: =IFERROR(INDEX(#REF!, MATCH(D89,#REF!, 0), 6),0) -> 0
C90: =#REF! ->  | F90: =INDEX(#REF!, MATCH(D90,#REF!, 0), 5) ->  | G90: =IFERROR(INDEX(#REF!, MATCH(D90,#REF!, 0), 6),0) -> 0
C91: =#REF! ->  | F91: =INDEX(#REF!, MATCH(D91,#REF!, 0), 5) ->  | G91: =IFERROR(INDEX(#REF!, MATCH(D91,#REF!, 0), 6),0) -> 0
C92: =#REF! ->  | F92: =INDEX(#REF!, MATCH(D92,#REF!, 0), 5) ->  | G92: =IFERROR(INDEX(#REF!, MATCH(D92,#REF!, 0), 6),0) -> 0
C93: =#REF! ->  | F93: =INDEX(#REF!, MATCH(D93,#REF!, 0), 5) ->  | G93: =IFERROR(INDEX(#REF!, MATCH(D93,#REF!, 0), 6),0) -> 0
C94: =#REF! ->  | F94: =INDEX(#REF!, MATCH(D94,#REF!, 0), 5) ->  | G94: =IFERROR(INDEX(#REF!, MATCH(D94,#REF!, 0), 6),0) -> 0
C95: =#REF! ->  | F95: =INDEX(#REF!, MATCH(D95,#REF!, 0), 5) ->  | G95: =IFERROR(INDEX(#REF!, MATCH(D95,#REF!, 0), 6),0) -> 0
C96: =#REF! ->  | F96: =INDEX(#REF!, MATCH(D96,#REF!, 0), 5) ->  | G96: =IFERROR(INDEX(#REF!, MATCH(D96,#REF!, 0), 6),0) -> 0
C97: =#REF! ->  | F97: =INDEX(#REF!, MATCH(D97,#REF!, 0), 5) ->  | G97: =IFERROR(INDEX(#REF!, MATCH(D97,#REF!, 0), 6),0) -> 0
C98: =#REF! ->  | F98: =INDEX(#REF!, MATCH(D98,#REF!, 0), 5) ->  | G98: =IFERROR(INDEX(#REF!, MATCH(D98,#REF!, 0), 6),0) -> 0
C99: =#REF! ->  | F99: =INDEX(#REF!, MATCH(D99,#REF!, 0), 5) ->  | G99: =IFERROR(INDEX(#REF!, MATCH(D99,#REF!, 0), 6),0) -> 0
C100: =#REF! ->  | F100: =INDEX(#REF!, MATCH(D100,#REF!, 0), 5) ->  | G100: =IFERROR(INDEX(#REF!, MATCH(D100,#REF!, 0), 6),0) -> 0
C101: =#REF! ->  | F101: =INDEX(#REF!, MATCH(D101,#REF!, 0), 5) ->  | G101: =IFERROR(INDEX(#REF!, MATCH(D101,#REF!, 0), 6),0) -> 0
C102: =#REF! ->  | F102: =INDEX(#REF!, MATCH(D102,#REF!, 0), 5) ->  | G102: =IFERROR(INDEX(#REF!, MATCH(D102,#REF!, 0), 6),0) -> 0
C103: =#REF! ->  | F103: =INDEX(#REF!, MATCH(D103,#REF!, 0), 5) ->  | G103: =IFERROR(INDEX(#REF!, MATCH(D103,#REF!, 0), 6),0) -> 0
C104: =#REF! ->  | F104: =INDEX(#REF!, MATCH(D104,#REF!, 0), 5) ->  | G104: =IFERROR(INDEX(#REF!, MATCH(D104,#REF!, 0), 6),0) -> 0
C105: =#REF! ->  | F105: =INDEX(#REF!, MATCH(D105,#REF!, 0), 5) ->  | G105: =IFERROR(INDEX(#REF!, MATCH(D105,#REF!, 0), 6),0) -> 0
C106: =#REF! ->  | F106: =INDEX(#REF!, MATCH(D106,#REF!, 0), 5) ->  | G106: =IFERROR(INDEX(#REF!, MATCH(D106,#REF!, 0), 6),0) -> 0
C107: =#REF! ->  | F107: =INDEX(#REF!, MATCH(D107,#REF!, 0), 5) ->  | G107: =IFERROR(INDEX(#REF!, MATCH(D107,#REF!, 0), 6),0) -> 0
C108: =#REF! ->  | F108: =INDEX(#REF!, MATCH(D108,#REF!, 0), 5) ->  | G108: =IFERROR(INDEX(#REF!, MATCH(D108,#REF!, 0), 6),0) -> 0
C109: =#REF! ->  | F109: =INDEX(#REF!, MATCH(D109,#REF!, 0), 5) ->  | G109: =IFERROR(INDEX(#REF!, MATCH(D109,#REF!, 0), 6),0) -> 0
C110: =#REF! ->  | F110: =INDEX(#REF!, MATCH(D110,#REF!, 0), 5) ->  | G110: =IFERROR(INDEX(#REF!, MATCH(D110,#REF!, 0), 6),0) -> 0
C111: =#REF! ->  | F111: =INDEX(#REF!, MATCH(D111,#REF!, 0), 5) ->  | G111: =IFERROR(INDEX(#REF!, MATCH(D111,#REF!, 0), 6),0) -> 0
C112: =#REF! ->  | F112: =INDEX(#REF!, MATCH(D112,#REF!, 0), 5) ->  | G112: =IFERROR(INDEX(#REF!, MATCH(D112,#REF!, 0), 6),0) -> 0
C113: =#REF! ->  | F113: =INDEX(#REF!, MATCH(D113,#REF!, 0), 5) ->  | G113: =IFERROR(INDEX(#REF!, MATCH(D113,#REF!, 0), 6),0) -> 0
C114: =#REF! ->  | F114: =INDEX(#REF!, MATCH(D114,#REF!, 0), 5) ->  | G114: =IFERROR(INDEX(#REF!, MATCH(D114,#REF!, 0), 6),0) -> 0
C115: =#REF! ->  | F115: =INDEX(#REF!, MATCH(D115,#REF!, 0), 5) ->  | G115: =IFERROR(INDEX(#REF!, MATCH(D115,#REF!, 0), 6),0) -> 0
C116: =#REF! ->  | F116: =INDEX(#REF!, MATCH(D116,#REF!, 0), 5) ->  | G116: =IFERROR(INDEX(#REF!, MATCH(D116,#REF!, 0), 6),0) -> 0
C117: =#REF! ->  | F117: =INDEX(#REF!, MATCH(D117,#REF!, 0), 5) ->  | G117: =IFERROR(INDEX(#REF!, MATCH(D117,#REF!, 0), 6),0) -> 0
C118: =#REF! ->  | F118: =INDEX(#REF!, MATCH(D118,#REF!, 0), 5) ->  | G118: =IFERROR(INDEX(#REF!, MATCH(D118,#REF!, 0), 6),0) -> 0
C119: =#REF! ->  | F119: =INDEX(#REF!, MATCH(D119,#REF!, 0), 5) ->  | G119: =IFERROR(INDEX(#REF!, MATCH(D119,#REF!, 0), 6),0) -> 0
C120: =#REF! ->  | F120: =INDEX(#REF!, MATCH(D120,#REF!, 0), 5) ->  | G120: =IFERROR(INDEX(#REF!, MATCH(D120,#REF!, 0), 6),0) -> 0
C121: =#REF! ->  | F121: =INDEX(#REF!, MATCH(D121,#REF!, 0), 5) ->  | G121: =IFERROR(INDEX(#REF!, MATCH(D121,#REF!, 0), 6),0) -> 0
C122: =#REF! ->  | F122: =INDEX(#REF!, MATCH(D122,#REF!, 0), 5) ->  | G122: =IFERROR(INDEX(#REF!, MATCH(D122,#REF!, 0), 6),0) -> 0
C123: =#REF! ->  | F123: =INDEX(#REF!, MATCH(D123,#REF!, 0), 5) ->  | G123: =IFERROR(INDEX(#REF!, MATCH(D123,#REF!, 0), 6),0) -> 0
C124: =#REF! ->  | F124: =INDEX(#REF!, MATCH(D124,#REF!, 0), 5) ->  | G124: =IFERROR(INDEX(#REF!, MATCH(D124,#REF!, 0), 6),0) -> 0
C125: =#REF! ->  | F125: =INDEX(#REF!, MATCH(D125,#REF!, 0), 5) ->  | G125: =IFERROR(INDEX(#REF!, MATCH(D125,#REF!, 0), 6),0) -> 0
C126: =#REF! ->  | F126: =INDEX(#REF!, MATCH(D126,#REF!, 0), 5) ->  | G126: =IFERROR(INDEX(#REF!, MATCH(D126,#REF!, 0), 6),0) -> 0
C127: =#REF! ->  | F127: =INDEX(#REF!, MATCH(D127,#REF!, 0), 5) ->  | G127: =IFERROR(INDEX(#REF!, MATCH(D127,#REF!, 0), 6),0) -> 0

Sheet Calcs >>

Sheet Nuos
B1: NUOS Cost Inputs
C2: Inputs required for calculating the annuity revenue requirement
C5: ="Annual Network and Energy Cost" & " " &RegYear-1 -> Annual Network and Energy Cost 2024
E8: New
C9: Base energy charge | D9: $/kWh
C10: Base NUOS charge | D10: $/kWh
C11: Annual Service Hours | D11: h
C13: Annual kWh = Actual Wattage x Annual Service Hours (4,357) / 1,000
C15: Descr | D15: Rate | E15: Total | F15: Energy | G15: Network | H15: Spare | I15: Spare | J15: Spare | K15: Spare | L15: Spare | M15: Spare | N15: Spare | O15: Spare
C16: NIGHTWATCH MINOR (F42) - FF1A | D16: FF1A | E16: =SUM(F16:G16) -> 63.90774057 | F16: 47.53927583 | G16: 16.36846474
C17: NIGHTWATCH MINOR (F2X14) - FF2A | D17: FF2A | E17: =SUM(F17:G17) -> 41.67896124 | F17: 31.00387554 | G17: 10.6750857
C18: NIGHTWATCH SMALL (MH150) - FH1A | D18: FH1A | E18: 233.4021829 | F18: 173.621703 | G18: 59.78047992
C19: NIGHTWATCH MEDIUM (MH250) - FH2A | D19: FH2A | E19: 372.3320537 | F19: 276.9679548 | G19: 95.36409892
C20: NIGHTWATCH LARGE (MH400) - FH3A | D20: FH3A | E20: 590.4519509 | F20: 439.2215701 | G20: 151.2303807
C21: NIGHTWATCH X-LARGE (MH1000) - FH4A | D21: FH4A | E21: 1444.870656 | F21: 1074.801019 | G21: 370.0696376
C22: NIGHTWATCH MINOR (L17) - FL1A | D22: FL1A | E22: 23.61807804 | F22: 17.56886281 | G22: 6.04921523
C23: NIGHTWATCH MINOR (L18) - FL1B | D23: FL1B | E23: 30.56457158 | F23: 22.7361754 | G23: 7.82839618
C24: NIGHTWATCH SMALL (L75+) - FL2A | D24: FL2A | E24: 109.7545979 | F24: 81.64353892 | G24: 28.11105901
C25: NIGHTWATCH MEDIUM (L100+) - FL3A | D25: FL3A | E25: 147.265663 | F25: 109.5470269 | G25: 37.71863614
C26: NIGHTWATCH MEDIUM (L150) - FL3B | D26: FL3B | E26: 219.5091959 | F26: 163.2870778 | G26: 56.22211802
C27: NIGHTWATCH LARGE (L150+) - FL4A | D27: FL4A | E27: 219.5091959 | F27: 163.2870778 | G27: 56.22211802
C28: NIGHTWATCH LARGE (L200) - FL4B | D28: FL4B | E28: 305.6457158 | F28: 227.361754 | G28: 78.2839618
C29: NIGHTWATCH X-LARGE (L300+) - FL5A | D29: FL5A | E29: 439.0183917 | F29: 326.5741557 | G29: 112.444236
C30: NIGHTWATCH MINOR (M80) - FM1A | D30: FM1A | E30: 133.372676 | F30: 99.21240173 | G30: 34.16027424
C31: NIGHTWATCH SMALL (S150) - FS1A | D31: FS1A | E31: 240.3486765 | F31: 178.7890156 | G31: 61.55966087
C32: NIGHTWATCH MEDIUM (S250) - FS2A | D32: FS2A | E32: 379.2785473 | F32: 282.1352674 | G32: 97.14327987
C33: NIGHTWATCH LARGE (S400) - FS3A | D33: FS3A | E33: 611.2914315 | F33: 454.7235079 | G33: 156.5679236
C34: NIGHTWATCH MINOR (S100) - FS4A | D34: FS4A | E34: 166.715845 | F34: 124.0155022 | G34: 42.7003428
C35: NIGHTWATCH MINOR (S70) - FS5A | D35: FS5A | E35: 119.4796889 | F35: 88.87777655 | G35: 30.60191234

Sheet Annuity
B1: Annuity Revenue Inputs
C2: Inputs required for calculating the annuity revenue requirement
C5: ="Capex " & "- nominal " & RegYear-1 -> Capex - nominal 2024
C7: Index for de-escalation | E7: Name | F7: Reference
C8: Asset value | D8: Selection | E8: CPI | F8: =MATCH(E8,List_Escalation,0) -> 1
C9: Labour | D9: Selection | E9: LPI | F9: =MATCH(E9,List_Escalation,0) -> 2
C16: Real Escalation Index
C17: Capital | D17: Selection | E17: Real capex
C18: Labour | D18: Selection | E18: Real labour (capex)
C19: Opex | D19: Selection | E19: Real opex
E21: Useful life (years) | H21: Nominal ($ / Component) | K21: ="Real ($ / Component) " & "- nominal " & RegYear -> Real ($ / Component) - nominal 2025
C22: Service | D22: Rate Code | E22: Asset | F22: =I22 -> Labour | H22: asset value | I22: Labour | K22: Asset value | L22: Labour
B23: =IF(C23="Spare",TRUE,0) -> 0 | C23: NIGHTWATCH MINOR (F42) - FF1A | D23: FF1A | E23: 5 | F23: =E23 -> 5 | G23: $ / Component
B24: 0 | C24: NIGHTWATCH MINOR (F2X14) - FF2A | D24: FF2A | E24: 5 | F24: =E24 -> 5 | G24: $ / Component
B25: 0 | C25: NIGHTWATCH SMALL (MH150) - FH1A | D25: FH1A | E25: 5 | F25: 5 | G25: $ / Component
B26: 0 | C26: NIGHTWATCH MEDIUM (MH250) - FH2A | D26: FH2A | E26: 5 | F26: 5 | G26: $ / Component
B27: 0 | C27: NIGHTWATCH LARGE (MH400) - FH3A | D27: FH3A | E27: 5 | F27: 5 | G27: $ / Component
B28: 0 | C28: NIGHTWATCH X-LARGE (MH1000) - FH4A | D28: FH4A | E28: 5 | F28: 5 | G28: $ / Component
B29: 0 | C29: NIGHTWATCH MINOR (L17) - FL1A | D29: FL1A | E29: 5 | F29: 5 | G29: $ / Component
B30: 0 | C30: NIGHTWATCH MINOR (L18) - FL1B | D30: FL1B | E30: 5 | F30: 5 | G30: $ / Component
B31: 0 | C31: NIGHTWATCH SMALL (L75+) - FL2A | D31: FL2A | E31: 5 | F31: =E31 -> 5 | G31: $ / Component
B32: 0 | C32: NIGHTWATCH MEDIUM (L100+) - FL3A | D32: FL3A | E32: 5 | F32: 5 | G32: $ / Component
B33: 0 | C33: NIGHTWATCH MEDIUM (L150) - FL3B | D33: FL3B | E33: 5 | F33: 5 | G33: $ / Component
B34: 0 | C34: NIGHTWATCH LARGE (L150+) - FL4A | D34: FL4A | E34: 5 | F34: 5 | G34: $ / Component
B35: 0 | C35: NIGHTWATCH LARGE (L200) - FL4B | D35: FL4B | E35: 5 | F35: 5 | G35: $ / Component
B36: 0 | C36: NIGHTWATCH X-LARGE (L300+) - FL5A | D36: FL5A | E36: 5 | F36: 5 | G36: $ / Component
B37: 0 | C37: NIGHTWATCH MINOR (M80) - FM1A | D37: FM1A | E37: 5 | F37: 5 | G37: $ / Component
B38: 0 | C38: NIGHTWATCH SMALL (S150) - FS1A | D38: FS1A | E38: 5 | F38: =E38 -> 5 | G38: $ / Component
B39: 0 | C39: NIGHTWATCH MEDIUM (S250) - FS2A | D39: FS2A | E39: 5 | F39: 5 | G39: $ / Component
B40: 0 | C40: NIGHTWATCH LARGE (S400) - FS3A | D40: FS3A | E40: 5 | F40: 5 | G40: $ / Component
B41: 0 | C41: NIGHTWATCH MINOR (S100) - FS4A | D41: FS4A | E41: 5 | F41: 5 | G41: $ / Component
B42: =IF(C42="Spare",TRUE,0) -> 0 | C42: NIGHTWATCH MINOR (S70) - FS5A | D42: FS5A | E42: 5 | F42: 5 | G42: $ / Component
B43: TRUE | C43: Spare | G43: $ / Component | K43: =H43 -> 0 | L43: =I43 -> 0
B44: TRUE | C44: Spare | G44: $ / Component | K44: 0 | L44: 0
B45: TRUE | C45: Spare | G45: $ / Component | K45: 0 | L45: 0
B46: TRUE | C46: Spare | G46: $ / Component | K46: 0 | L46: 0
B47: TRUE | C47: Spare | G47: $ / Component | K47: 0 | L47: 0
B48: TRUE | C48: Spare | G48: $ / Component | K48: 0 | L48: 0
B49: TRUE | C49: Spare | G49: $ / Component | K49: 0 | L49: 0
B50: TRUE | C50: Spare | G50: $ / Component | K50: 0 | L50: 0
B51: TRUE | C51: Spare | G51: $ / Component | K51: 0 | L51: 0
B52: TRUE | C52: Spare | G52: $ / Component | K52: 0 | L52: 0
B53: TRUE | C53: Spare | G53: $ / Component | K53: 0 | L53: 0
B54: TRUE | C54: Spare | G54: $ / Component | K54: 0 | L54: 0
B55: TRUE | C55: Spare | G55: $ / Component | K55: 0 | L55: 0
B56: TRUE | C56: Spare | G56: $ / Component | K56: 0 | L56: 0
B57: TRUE | C57: Spare | G57: $ / Component | K57: 0 | L57: 0
B58: TRUE | C58: Spare | G58: $ / Component | K58: 0 | L58: 0
B59: TRUE | C59: Spare | G59: $ / Component | K59: 0 | L59: 0
B60: TRUE | C60: Spare | G60: $ / Component | K60: 0 | L60: 0
B61: TRUE | C61: Spare | G61: $ / Component | K61: 0 | L61: 0
B62: TRUE | C62: Spare | G62: $ / Component | K62: 0 | L62: 0
B63: TRUE | C63: Spare | G63: $ / Component | K63: 0 | L63: 0
B64: TRUE | C64: Spare | G64: $ / Component | K64: 0 | L64: 0
B65: TRUE | C65: Spare | G65: $ / Component | K65: 0 | L65: 0
B66: TRUE | C66: Spare | G66: $ / Component | K66: 0 | L66: 0
B67: TRUE | C67: Spare | G67: $ / Component | K67: 0 | L67: 0
B68: TRUE | C68: Spare | G68: $ / Component | K68: 0 | L68: 0
B69: TRUE | C69: Spare | G69: $ / Component | K69: 0 | L69: 0
B70: TRUE | C70: Spare | G70: $ / Component | K70: 0 | L70: 0
B71: TRUE | C71: Spare | G71: $ / Component | K71: 0 | L71: 0
B72: TRUE | C72: Spare | G72: $ / Component | K72: 0 | L72: 0
B73: TRUE | C73: Spare | G73: $ / Component | K73: 0 | L73: 0
B74: TRUE | C74: Spare | G74: $ / Component | K74: 0 | L74: 0
B75: TRUE | C75: Spare | G75: $ / Component | K75: 0 | L75: 0
B76: TRUE | C76: Spare | G76: $ / Component | K76: 0 | L76: 0
B77: TRUE | C77: Spare | G77: $ / Component | K77: 0 | L77: 0
B78: TRUE | C78: Spare | G78: $ / Component | K78: 0 | L78: 0
B79: TRUE | C79: Spare | G79: $ / Component | K79: 0 | L79: 0
B80: TRUE | C80: Spare | G80: $ / Component | K80: 0 | L80: 0
B81: TRUE | C81: Spare | G81: $ / Component | K81: 0 | L81: 0
B82: TRUE | C82: Spare | G82: $ / Component | K82: 0 | L82: 0
B83: TRUE | C83: Spare | G83: $ / Component | K83: 0 | L83: 0
B84: TRUE | C84: Spare | G84: $ / Component | K84: 0 | L84: 0
B85: TRUE | C85: Spare | G85: $ / Component | K85: 0 | L85: 0
B86: TRUE | C86: Spare | G86: $ / Component | K86: 0 | L86: 0
B87: TRUE | C87: Spare | G87: $ / Component | K87: 0 | L87: 0
B88: TRUE | C88: Spare | G88: $ / Component | K88: 0 | L88: 0
B89: TRUE | C89: Spare | G89: $ / Component | K89: 0 | L89: 0
B90: TRUE | C90: Spare | G90: $ / Component | K90: 0 | L90: 0
B91: TRUE | C91: Spare | G91: $ / Component | K91: 0 | L91: 0
B92: TRUE | C92: Spare | G92: $ / Component | K92: 0 | L92: 0
B93: TRUE | C93: Spare | G93: $ / Component | K93: 0 | L93: 0
B94: TRUE | C94: Spare | G94: $ / Component | K94: 0 | L94: 0
B95: TRUE | C95: Spare | G95: $ / Component | K95: 0 | L95: 0
B96: TRUE | C96: Spare | G96: $ / Component | K96: =H96 -> 0 | L96: =I96 -> 0
B97: TRUE | C97: Spare | G97: $ / Component | K97: 0 | L97: 0
B98: TRUE | C98: Spare | G98: $ / Component | K98: 0 | L98: 0
B99: TRUE | C99: Spare | G99: $ / Component | K99: 0 | L99: 0
B100: TRUE | C100: Spare | G100: $ / Component | K100: 0 | L100: 0
B101: =IF(C101="Spare",TRUE,0) -> TRUE | C101: Spare | G101: $ / Component | K101: 0 | L101: 0
B102: TRUE | C102: Spare | G102: $ / Component | K102: 0 | L102: 0
B103: TRUE | C103: Spare | G103: $ / Component | K103: 0 | L103: 0
B104: TRUE | C104: Spare | G104: $ / Component | K104: 0 | L104: 0
B105: TRUE | C105: Spare | G105: $ / Component | K105: 0 | L105: 0
B106: TRUE | C106: Spare | G106: $ / Component | K106: 0 | L106: 0
B107: TRUE | C107: Spare | G107: $ / Component | K107: 0 | L107: 0
B108: TRUE | C108: Spare | G108: $ / Component | K108: 0 | L108: 0
B109: TRUE | C109: Spare | G109: $ / Component | K109: 0 | L109: 0
B110: TRUE | C110: Spare | G110: $ / Component | K110: 0 | L110: 0
B111: TRUE | C111: Spare | G111: $ / Component | K111: 0 | L111: 0
B112: TRUE | C112: Spare | G112: $ / Component | K112: 0 | L112: 0
B113: TRUE | C113: Spare | G113: $ / Component | K113: 0 | L113: 0
B114: TRUE | C114: Spare | G114: $ / Component | K114: 0 | L114: 0
B115: TRUE | C115: Spare | G115: $ / Component | K115: 0 | L115: 0
B116: TRUE | C116: Spare | G116: $ / Component | K116: 0 | L116: 0
B117: TRUE | C117: Spare | G117: $ / Component | K117: 0 | L117: 0
B118: TRUE | C118: Spare | G118: $ / Component | K118: 0 | L118: 0
B119: TRUE | C119: Spare | G119: $ / Component | K119: 0 | L119: 0
B120: TRUE | C120: Spare | G120: $ / Component | K120: 0 | L120: 0
B121: TRUE | C121: Spare | G121: $ / Component | K121: 0 | L121: 0
B122: TRUE | C122: Spare | G122: $ / Component | K122: 0 | L122: 0
B123: TRUE | C123: Spare | G123: $ / Component | K123: 0 | L123: 0
B124: TRUE | C124: Spare | G124: $ / Component | K124: 0 | L124: 0
B125: TRUE | C125: Spare | G125: $ / Component | K125: 0 | L125: 0
B126: TRUE | C126: Spare | G126: $ / Component | K126: 0 | L126: 0
B127: TRUE | C127: Spare | G127: $ / Component | K127: 0 | L127: 0
B128: TRUE | C128: Spare | G128: $ / Component | K128: 0 | L128: 0
B129: TRUE | C129: Spare | G129: $ / Component | K129: 0 | L129: 0
B130: TRUE | C130: Spare | G130: $ / Component | K130: 0 | L130: 0
B131: TRUE | C131: Spare | G131: $ / Component | K131: 0 | L131: 0
B132: TRUE | C132: Spare | G132: $ / Component | K132: 0 | L132: 0
B133: TRUE | C133: Spare | G133: $ / Component | K133: 0 | L133: 0
B134: TRUE | C134: Spare | G134: $ / Component | K134: 0 | L134: 0
B135: TRUE | C135: Spare | G135: $ / Component | K135: 0 | L135: 0
XFD136: =#REF!*#REF! -> 
C137: ="Opex " & "- real " & RegYear-1 -> Opex - real 2024
C139: Operating Expenses
C141: Service | D141: Rate Code | F141: Total | G141: Overheads | H141: NUOS | I141: Spare | J141: Spare | K141: Spare | L141: Spare | M141: Spare | N141: Spare
B142: =IF(C142="Spare",TRUE,0) -> 0 | C142: NIGHTWATCH MINOR (F42) - FF1A | D142: FF1A | E142: $ p.a. / Component | F142: 341.3176646
B143: 0 | C143: NIGHTWATCH MINOR (F2X14) - FF2A | D143: FF2A | E143: $ p.a. / Component | F143: 319.0888853
B144: 0 | C144: NIGHTWATCH SMALL (MH150) - FH1A | D144: FH1A | E144: $ p.a. / Component | F144: 510.812107
B145: 0 | C145: NIGHTWATCH MEDIUM (MH250) - FH2A | D145: FH2A | E145: $ p.a. / Component | F145: 704.4501803
B146: 0 | C146: NIGHTWATCH LARGE (MH400) - FH3A | D146: FH3A | E146: $ p.a. / Component | F146: 1031.986482
B147: 0 | C147: NIGHTWATCH X-LARGE (MH1000) - FH4A | D147: FH4A | E147: $ p.a. / Component | F147: 1886.405188
B148: 0 | C148: NIGHTWATCH MINOR (L17) - FL1A | D148: FL1A | E148: $ p.a. / Component | F148: 301.0280021
B149: 0 | C149: NIGHTWATCH MINOR (L18) - FL1B | D149: FL1B | E149: $ p.a. / Component | F149: 307.9744956
C150: NIGHTWATCH SMALL (L75+) - FL2A | D150: FL2A | E150: $ p.a. / Component | F150: 387.164522
C151: NIGHTWATCH MEDIUM (L100+) - FL3A | D151: FL3A | E151: $ p.a. / Component | F151: 479.3837896
C152: NIGHTWATCH MEDIUM (L150) - FL3B | D152: FL3B | E152: $ p.a. / Component | F152: 551.6273224
C153: NIGHTWATCH LARGE (L150+) - FL4A | D153: FL4A | E153: $ p.a. / Component | F153: 661.0437274
C154: NIGHTWATCH LARGE (L200) - FL4B | D154: FL4B | E154: $ p.a. / Component | F154: 747.1802473
C155: NIGHTWATCH X-LARGE (L300+) - FL5A | D155: FL5A | E155: $ p.a. / Component | F155: 880.5529232
C156: NIGHTWATCH MINOR (M80) - FM1A | D156: FM1A | E156: $ p.a. / Component | F156: 410.7826
B157: =IF(C157="Spare",TRUE,0) -> 0 | C157: NIGHTWATCH SMALL (S150) - FS1A | D157: FS1A | E157: $ p.a. / Component | F157: 517.7586005
B158: 0 | C158: NIGHTWATCH MEDIUM (S250) - FS2A | D158: FS2A | E158: $ p.a. / Component | F158: 711.3966738
B159: 0 | C159: NIGHTWATCH LARGE (S400) - FS3A | D159: FS3A | E159: $ p.a. / Component | F159: 1052.825963
B160: 0 | C160: NIGHTWATCH MINOR (S100) - FS4A | D160: FS4A | E160: $ p.a. / Component | F160: 444.125769
B161: 0 | C161: NIGHTWATCH MINOR (S70) - FS5A | D161: FS5A | E161: $ p.a. / Component | F161: 396.8896129
B162: TRUE | C162: =C43 -> Spare | D162: $ p.a. / Component | F162: =SUM(G162:R162) -> 0
B163: TRUE | C163: Spare | D163: $ p.a. / Component | F163: 0
B164: TRUE | C164: Spare | D164: $ p.a. / Component | F164: 0
B165: TRUE | C165: Spare | D165: $ p.a. / Component | F165: 0
B166: TRUE | C166: Spare | D166: $ p.a. / Component | F166: 0
B167: TRUE | C167: Spare | D167: $ p.a. / Component | F167: 0
B168: TRUE | C168: Spare | D168: $ p.a. / Component | F168: 0
B169: TRUE | C169: Spare | D169: $ p.a. / Component | F169: 0
B170: =IF(C170="Spare",TRUE,0) -> TRUE | C170: Spare | D170: $ p.a. / Component | F170: =SUM(G170:R170) -> 0
B171: TRUE | C171: Spare | D171: $ p.a. / Component | F171: 0
B172: TRUE | C172: Spare | D172: $ p.a. / Component | F172: 0
B173: TRUE | C173: Spare | D173: $ p.a. / Component | F173: 0
B174: TRUE | C174: Spare | D174: $ p.a. / Component | F174: 0
B175: TRUE | C175: Spare | D175: $ p.a. / Component | F175: 0
B176: TRUE | C176: Spare | D176: $ p.a. / Component | F176: 0
B177: TRUE | C177: Spare | D177: $ p.a. / Component | F177: 0
B178: TRUE | C178: Spare | D178: $ p.a. / Component | F178: 0
B179: TRUE | C179: Spare | D179: $ p.a. / Component | F179: 0
B180: TRUE | C180: Spare | D180: $ p.a. / Component | F180: 0
B181: TRUE | C181: Spare | D181: $ p.a. / Component | F181: 0
B182: TRUE | C182: Spare | D182: $ p.a. / Component | F182: 0
B183: TRUE | C183: Spare | D183: $ p.a. / Component | F183: 0
B184: TRUE | C184: Spare | D184: $ p.a. / Component | F184: 0
B185: TRUE | C185: Spare | D185: $ p.a. / Component | F185: 0
B186: TRUE | C186: Spare | D186: $ p.a. / Component | F186: 0
B187: TRUE | C187: Spare | D187: $ p.a. / Component | F187: 0
B188: TRUE | C188: Spare | D188: $ p.a. / Component | F188: 0
B189: TRUE | C189: Spare | D189: $ p.a. / Component | F189: 0
B190: TRUE | C190: Spare | D190: $ p.a. / Component | F190: 0
B191: TRUE | C191: Spare | D191: $ p.a. / Component | F191: 0
B192: TRUE | C192: Spare | D192: $ p.a. / Component | F192: 0
B193: TRUE | C193: Spare | D193: $ p.a. / Component | F193: 0
B194: TRUE | C194: =C75 -> Spare | D194: $ p.a. / Component | F194: 0
B195: TRUE | C195: Spare | D195: $ p.a. / Component | F195: 0
B196: TRUE | C196: Spare | D196: $ p.a. / Component | F196: 0
B197: TRUE | C197: Spare | D197: $ p.a. / Component | F197: 0
B198: TRUE | C198: Spare | D198: $ p.a. / Component | F198: 0
B199: TRUE | C199: Spare | D199: $ p.a. / Component | F199: 0
B200: TRUE | C200: Spare | D200: $ p.a. / Component | F200: 0
B201: TRUE | C201: Spare | D201: $ p.a. / Component | F201: 0
B202: TRUE | C202: Spare | D202: $ p.a. / Component | F202: 0
B203: TRUE | C203: Spare | D203: $ p.a. / Component | F203: 0
B204: TRUE | C204: Spare | D204: $ p.a. / Component | F204: 0
B205: TRUE | C205: Spare | D205: $ p.a. / Component | F205: 0
B206: TRUE | C206: Spare | D206: $ p.a. / Component | F206: 0
B207: TRUE | C207: Spare | D207: $ p.a. / Component | F207: 0
B208: TRUE | C208: Spare | D208: $ p.a. / Component | F208: 0
B209: TRUE | C209: Spare | D209: $ p.a. / Component | F209: 0
B210: TRUE | C210: Spare | D210: $ p.a. / Component | F210: 0
B211: TRUE | C211: Spare | D211: $ p.a. / Component | F211: 0
B212: TRUE | C212: Spare | D212: $ p.a. / Component | F212: 0
... 42 more rows

Sheet CalcAnnual
C1: Calculations
K2: =REG_Timing!K2 -> 2025 | L2: =REG_Timing!L2 -> 2026 | M2: =REG_Timing!M2 -> 2027 | N2: =REG_Timing!N2 -> 2028 | O2: =REG_Timing!O2 -> 2029
C4: Timing
C6: Year | D6: # | K6: =REG_Timing!K6 -> 1 | L6: =REG_Timing!L6 -> 2 | M6: =REG_Timing!M6 -> 3 | N6: =REG_Timing!N6 -> 4 | O6: =REG_Timing!O6 -> 5
C8: =Global!C77 -> Pre-tax real WACC | D8: % | K8: =Global!F77 -> 0.03525915455 | L8: =Global!G77 -> 0.03550022748 | M8: =Global!H77 -> 0.03599660461 | N8: =Global!I77 -> 0.03651927633 | O8: =Global!J77 -> 0.03717310863
C10: Capex
C12: Capital
C14: Adjustment for volume growth | D14: % | E14: =Annuity!$E$12 -> 0
C15: Real escalation index | D15: % | E15: =Annuity!$E$17 -> Real capex | K15: =INDEX(REG_Timing!K18:K22,MATCH($E15,List_Escalation,0)) -> 1 | L15: =INDEX(REG_Timing!L18:L22,MATCH($E15,List_Escalation,0)) -> 1 | M15: =INDEX(REG_Timing!M18:M22,MATCH($E15,List_Escalation,0)) -> 1 | N15: =INDEX(REG_Timing!N18:N22,MATCH($E15,List_Escalation,0)) -> 1 | O15: =INDEX(REG_Timing!O18:O22,MATCH($E15,List_Escalation,0)) -> 1
E17: Asset Value | F17: Useful life
B18: =IF(C18="Spare",TRUE,0) -> 0 | C18: =Annuity!C23 -> NIGHTWATCH MINOR (F42) - FF1A | D18: $ / Component | F18: =Annuity!E23 -> 5
B19: 0 | C19: =Annuity!C24 -> NIGHTWATCH MINOR (F2X14) - FF2A | D19: $ / Component | F19: =Annuity!E24 -> 5
B20: 0 | C20: =Annuity!C25 -> NIGHTWATCH SMALL (MH150) - FH1A | D20: $ / Component | F20: =Annuity!E25 -> 5
B21: 0 | C21: =Annuity!C26 -> NIGHTWATCH MEDIUM (MH250) - FH2A | D21: $ / Component | F21: =Annuity!E26 -> 5
B22: 0 | C22: =Annuity!C27 -> NIGHTWATCH LARGE (MH400) - FH3A | D22: $ / Component | F22: =Annuity!E27 -> 5
B23: 0 | C23: =Annuity!C28 -> NIGHTWATCH X-LARGE (MH1000) - FH4A | D23: $ / Component | F23: =Annuity!E28 -> 5
B24: 0 | C24: =Annuity!C29 -> NIGHTWATCH MINOR (L17) - FL1A | D24: $ / Component | F24: =Annuity!E29 -> 5
B25: 0 | C25: =Annuity!C30 -> NIGHTWATCH MINOR (L18) - FL1B | D25: $ / Component | F25: =Annuity!E30 -> 5
B26: 0 | C26: =Annuity!C31 -> NIGHTWATCH SMALL (L75+) - FL2A | D26: $ / Component | F26: =Annuity!E31 -> 5
B27: 0 | C27: =Annuity!C32 -> NIGHTWATCH MEDIUM (L100+) - FL3A | D27: $ / Component | F27: =Annuity!E32 -> 5
B28: 0 | C28: =Annuity!C33 -> NIGHTWATCH MEDIUM (L150) - FL3B | D28: $ / Component | F28: =Annuity!E33 -> 5
B29: 0 | C29: =Annuity!C34 -> NIGHTWATCH LARGE (L150+) - FL4A | D29: $ / Component | F29: =Annuity!E34 -> 5
B30: 0 | C30: =Annuity!C35 -> NIGHTWATCH LARGE (L200) - FL4B | D30: $ / Component | F30: =Annuity!E35 -> 5
B31: 0 | C31: =Annuity!C36 -> NIGHTWATCH X-LARGE (L300+) - FL5A | D31: $ / Component | F31: =Annuity!E36 -> 5
B32: 0 | C32: =Annuity!C37 -> NIGHTWATCH MINOR (M80) - FM1A | D32: $ / Component | F32: =Annuity!E37 -> 5
B33: 0 | C33: =Annuity!C38 -> NIGHTWATCH SMALL (S150) - FS1A | D33: $ / Component | F33: =Annuity!E38 -> 5
B34: 0 | C34: =Annuity!C39 -> NIGHTWATCH MEDIUM (S250) - FS2A | D34: $ / Component | F34: =Annuity!E39 -> 5
B35: 0 | C35: =Annuity!C40 -> NIGHTWATCH LARGE (S400) - FS3A | D35: $ / Component | F35: =Annuity!E40 -> 5
B36: 0 | C36: =Annuity!C41 -> NIGHTWATCH MINOR (S100) - FS4A | D36: $ / Component | F36: =Annuity!E41 -> 5
B37: 0 | C37: =Annuity!C42 -> NIGHTWATCH MINOR (S70) - FS5A | D37: $ / Component | F37: =Annuity!E42 -> 5
B38: TRUE | C38: =Annuity!C44 -> Spare | D38: $ / Component | E38: =Annuity!K44*(1+$E$14) -> 0 | F38: =Annuity!E44 -> 0 | K38: =-IF($F38=0,0,PMT(K$8,$F38,$E38*K$15,0)) -> 0 | L38: 0 | M38: 0 | N38: 0 | O38: 0
B39: TRUE | C39: =Annuity!C45 -> Spare | D39: $ / Component | E39: =Annuity!K45*(1+$E$14) -> 0 | F39: =Annuity!E45 -> 0 | K39: 0 | L39: 0 | M39: 0 | N39: 0 | O39: 0
B40: TRUE | C40: =Annuity!C46 -> Spare | D40: $ / Component | E40: =Annuity!K46*(1+$E$14) -> 0 | F40: =Annuity!E46 -> 0 | K40: 0 | L40: 0 | M40: 0 | N40: 0 | O40: 0
B41: TRUE | C41: =Annuity!C47 -> Spare | D41: $ / Component | E41: =Annuity!K47*(1+$E$14) -> 0 | F41: =Annuity!E47 -> 0 | K41: 0 | L41: 0 | M41: 0 | N41: 0 | O41: 0
B42: TRUE | C42: =Annuity!C48 -> Spare | D42: $ / Component | E42: =Annuity!K48*(1+$E$14) -> 0 | F42: =Annuity!E48 -> 0 | K42: 0 | L42: 0 | M42: 0 | N42: 0 | O42: 0
B43: TRUE | C43: =Annuity!C49 -> Spare | D43: $ / Component | E43: =Annuity!K49*(1+$E$14) -> 0 | F43: =Annuity!E49 -> 0 | K43: 0 | L43: 0 | M43: 0 | N43: 0 | O43: 0
B44: TRUE | C44: =Annuity!C50 -> Spare | D44: $ / Component | E44: =Annuity!K50*(1+$E$14) -> 0 | F44: =Annuity!E50 -> 0 | K44: 0 | L44: 0 | M44: 0 | N44: 0 | O44: 0
B45: =IF(C45="Spare",TRUE,0) -> TRUE | C45: =Annuity!C51 -> Spare | D45: $ / Component | E45: =Annuity!K51*(1+$E$14) -> 0 | F45: =Annuity!E51 -> 0 | K45: =-IF($F45=0,0,PMT(K$8,$F45,$E45*K$15,0)) -> 0 | L45: 0 | M45: 0 | N45: 0 | O45: 0
B46: TRUE | C46: =Annuity!C52 -> Spare | D46: $ / Component | E46: =Annuity!K52*(1+$E$14) -> 0 | F46: =Annuity!E52 -> 0 | K46: 0 | L46: 0 | M46: 0 | N46: 0 | O46: 0
B47: TRUE | C47: =Annuity!C53 -> Spare | D47: $ / Component | E47: =Annuity!K53*(1+$E$14) -> 0 | F47: =Annuity!E53 -> 0 | K47: 0 | L47: 0 | M47: 0 | N47: 0 | O47: 0
B48: TRUE | C48: =Annuity!C54 -> Spare | D48: $ / Component | E48: =Annuity!K54*(1+$E$14) -> 0 | F48: =Annuity!E54 -> 0 | K48: 0 | L48: 0 | M48: 0 | N48: 0 | O48: 0
B49: TRUE | C49: =Annuity!C55 -> Spare | D49: $ / Component | E49: =Annuity!K55*(1+$E$14) -> 0 | F49: =Annuity!E55 -> 0 | K49: 0 | L49: 0 | M49: 0 | N49: 0 | O49: 0
B50: TRUE | C50: =Annuity!C56 -> Spare | D50: $ / Component | E50: =Annuity!K56*(1+$E$14) -> 0 | F50: =Annuity!E56 -> 0 | K50: 0 | L50: 0 | M50: 0 | N50: 0 | O50: 0
B51: TRUE | C51: =Annuity!C57 -> Spare | D51: $ / Component | E51: =Annuity!K57*(1+$E$14) -> 0 | F51: =Annuity!E57 -> 0 | K51: 0 | L51: 0 | M51: 0 | N51: 0 | O51: 0
B52: TRUE | C52: =Annuity!C58 -> Spare | D52: $ / Component | E52: =Annuity!K58*(1+$E$14) -> 0 | F52: =Annuity!E58 -> 0 | K52: 0 | L52: 0 | M52: 0 | N52: 0 | O52: 0
B53: TRUE | C53: =Annuity!C59 -> Spare | D53: $ / Component | E53: =Annuity!K59*(1+$E$14) -> 0 | F53: =Annuity!E59 -> 0 | K53: 0 | L53: 0 | M53: 0 | N53: 0 | O53: 0
B54: TRUE | C54: =Annuity!C60 -> Spare | D54: $ / Component | E54: =Annuity!K60*(1+$E$14) -> 0 | F54: =Annuity!E60 -> 0 | K54: 0 | L54: 0 | M54: 0 | N54: 0 | O54: 0
B55: TRUE | C55: =Annuity!C61 -> Spare | D55: $ / Component | E55: =Annuity!K61*(1+$E$14) -> 0 | F55: =Annuity!E61 -> 0 | K55: 0 | L55: 0 | M55: 0 | N55: 0 | O55: 0
B56: TRUE | C56: =Annuity!C62 -> Spare | D56: $ / Component | E56: =Annuity!K62*(1+$E$14) -> 0 | F56: =Annuity!E62 -> 0 | K56: 0 | L56: 0 | M56: 0 | N56: 0 | O56: 0
B57: TRUE | C57: =Annuity!C63 -> Spare | D57: $ / Component | E57: =Annuity!K63*(1+$E$14) -> 0 | F57: =Annuity!E63 -> 0 | K57: 0 | L57: 0 | M57: 0 | N57: 0 | O57: 0
B58: TRUE | C58: =Annuity!C64 -> Spare | D58: $ / Component | E58: =Annuity!K64*(1+$E$14) -> 0 | F58: =Annuity!E64 -> 0 | K58: 0 | L58: 0 | M58: 0 | N58: 0 | O58: 0
B59: TRUE | C59: =Annuity!C65 -> Spare | D59: $ / Component | E59: =Annuity!K65*(1+$E$14) -> 0 | F59: =Annuity!E65 -> 0 | K59: 0 | L59: 0 | M59: 0 | N59: 0 | O59: 0
B60: TRUE | C60: =Annuity!C66 -> Spare | D60: $ / Component | E60: =Annuity!K66*(1+$E$14) -> 0 | F60: =Annuity!E66 -> 0 | K60: 0 | L60: 0 | M60: 0 | N60: 0 | O60: 0
B61: TRUE | C61: =Annuity!C67 -> Spare | D61: $ / Component | E61: =Annuity!K67*(1+$E$14) -> 0 | F61: =Annuity!E67 -> 0 | K61: 0 | L61: 0 | M61: 0 | N61: 0 | O61: 0
B62: TRUE | C62: =Annuity!C68 -> Spare | D62: $ / Component | E62: =Annuity!K68*(1+$E$14) -> 0 | F62: =Annuity!E68 -> 0 | K62: 0 | L62: 0 | M62: 0 | N62: 0 | O62: 0
B63: TRUE | C63: =Annuity!C69 -> Spare | D63: $ / Component | E63: =Annuity!K69*(1+$E$14) -> 0 | F63: =Annuity!E69 -> 0 | K63: 0 | L63: 0 | M63: 0 | N63: 0 | O63: 0
B64: TRUE | C64: =Annuity!C70 -> Spare | D64: $ / Component | E64: =Annuity!K70*(1+$E$14) -> 0 | F64: =Annuity!E70 -> 0 | K64: 0 | L64: 0 | M64: 0 | N64: 0 | O64: 0
B65: TRUE | C65: =Annuity!C71 -> Spare | D65: $ / Component | E65: =Annuity!K71*(1+$E$14) -> 0 | F65: =Annuity!E71 -> 0 | K65: 0 | L65: 0 | M65: 0 | N65: 0 | O65: 0
B66: TRUE | C66: =Annuity!C72 -> Spare | D66: $ / Component | E66: =Annuity!K72*(1+$E$14) -> 0 | F66: =Annuity!E72 -> 0 | K66: 0 | L66: 0 | M66: 0 | N66: 0 | O66: 0
B67: TRUE | C67: =Annuity!C73 -> Spare | D67: $ / Component | E67: =Annuity!K73*(1+$E$14) -> 0 | F67: =Annuity!E73 -> 0 | K67: 0 | L67: 0 | M67: 0 | N67: 0 | O67: 0
B68: TRUE | C68: =Annuity!C74 -> Spare | D68: $ / Component | E68: =Annuity!K74*(1+$E$14) -> 0 | F68: =Annuity!E74 -> 0 | K68: 0 | L68: 0 | M68: 0 | N68: 0 | O68: 0
B69: TRUE | C69: =Annuity!C75 -> Spare | D69: $ / Component | E69: =Annuity!K75*(1+$E$14) -> 0 | F69: =Annuity!E75 -> 0 | K69: 0 | L69: 0 | M69: 0 | N69: 0 | O69: 0
B70: TRUE | C70: =Annuity!C76 -> Spare | D70: $ / Component | E70: =Annuity!K76*(1+$E$14) -> 0 | F70: =Annuity!E76 -> 0 | K70: 0 | L70: 0 | M70: 0 | N70: 0 | O70: 0
B71: TRUE | C71: =Annuity!C77 -> Spare | D71: $ / Component | E71: =Annuity!K77*(1+$E$14) -> 0 | F71: =Annuity!E77 -> 0 | K71: 0 | L71: 0 | M71: 0 | N71: 0 | O71: 0
B72: TRUE | C72: =Annuity!C78 -> Spare | D72: $ / Component | E72: =Annuity!K78*(1+$E$14) -> 0 | F72: =Annuity!E78 -> 0 | K72: 0 | L72: 0 | M72: 0 | N72: 0 | O72: 0
B73: TRUE | C73: =Annuity!C79 -> Spare | D73: $ / Component | E73: =Annuity!K79*(1+$E$14) -> 0 | F73: =Annuity!E79 -> 0 | K73: 0 | L73: 0 | M73: 0 | N73: 0 | O73: 0
B74: TRUE | C74: =Annuity!C80 -> Spare | D74: $ / Component | E74: =Annuity!K80*(1+$E$14) -> 0 | F74: =Annuity!E80 -> 0 | K74: 0 | L74: 0 | M74: 0 | N74: 0 | O74: 0
B75: TRUE | C75: =Annuity!C81 -> Spare | D75: $ / Component | E75: =Annuity!K81*(1+$E$14) -> 0 | F75: =Annuity!E81 -> 0 | K75: 0 | L75: 0 | M75: 0 | N75: 0 | O75: 0
B76: TRUE | C76: =Annuity!C82 -> Spare | D76: $ / Component | E76: =Annuity!K82*(1+$E$14) -> 0 | F76: =Annuity!E82 -> 0 | K76: 0 | L76: 0 | M76: 0 | N76: 0 | O76: 0
B77: TRUE | C77: =Annuity!C83 -> Spare | D77: $ / Component | E77: =Annuity!K83*(1+$E$14) -> 0 | F77: =Annuity!E83 -> 0 | K77: =-IF($F77=0,0,PMT(K$8,$F77,$E77*K$15,0)) -> 0 | L77: 0 | M77: 0 | N77: 0 | O77: 0
B78: TRUE | C78: =Annuity!C84 -> Spare | D78: $ / Component | E78: =Annuity!K84*(1+$E$14) -> 0 | F78: =Annuity!E84 -> 0 | K78: 0 | L78: 0 | M78: 0 | N78: 0 | O78: 0
B79: TRUE | C79: =Annuity!C85 -> Spare | D79: $ / Component | E79: =Annuity!K85*(1+$E$14) -> 0 | F79: =Annuity!E85 -> 0 | K79: 0 | L79: 0 | M79: 0 | N79: 0 | O79: 0
B80: TRUE | C80: =Annuity!C86 -> Spare | D80: $ / Component | E80: =Annuity!K86*(1+$E$14) -> 0 | F80: =Annuity!E86 -> 0 | K80: 0 | L80: 0 | M80: 0 | N80: 0 | O80: 0
B81: TRUE | C81: =Annuity!C87 -> Spare | D81: $ / Component | E81: =Annuity!K87*(1+$E$14) -> 0 | F81: =Annuity!E87 -> 0 | K81: 0 | L81: 0 | M81: 0 | N81: 0 | O81: 0
B82: TRUE | C82: =Annuity!C88 -> Spare | D82: $ / Component | E82: =Annuity!K88*(1+$E$14) -> 0 | F82: =Annuity!E88 -> 0 | K82: 0 | L82: 0 | M82: 0 | N82: 0 | O82: 0
B83: TRUE | C83: =Annuity!C89 -> Spare | D83: $ / Component | E83: =Annuity!K89*(1+$E$14) -> 0 | F83: =Annuity!E89 -> 0 | K83: 0 | L83: 0 | M83: 0 | N83: 0 | O83: 0
B84: TRUE | C84: =Annuity!C90 -> Spare | D84: $ / Component | E84: =Annuity!K90*(1+$E$14) -> 0 | F84: =Annuity!E90 -> 0 | K84: 0 | L84: 0 | M84: 0 | N84: 0 | O84: 0
B85: TRUE | C85: =Annuity!C91 -> Spare | D85: $ / Component | E85: =Annuity!K91*(1+$E$14) -> 0 | F85: =Annuity!E91 -> 0 | K85: 0 | L85: 0 | M85: 0 | N85: 0 | O85: 0
B86: TRUE | C86: =Annuity!C92 -> Spare | D86: $ / Component | E86: =Annuity!K92*(1+$E$14) -> 0 | F86: =Annuity!E92 -> 0 | K86: 0 | L86: 0 | M86: 0 | N86: 0 | O86: 0
B87: TRUE | C87: =Annuity!C93 -> Spare | D87: $ / Component | E87: =Annuity!K93*(1+$E$14) -> 0 | F87: =Annuity!E93 -> 0 | K87: 0 | L87: 0 | M87: 0 | N87: 0 | O87: 0
B88: TRUE | C88: =Annuity!C94 -> Spare | D88: $ / Component | E88: =Annuity!K94*(1+$E$14) -> 0 | F88: =Annuity!E94 -> 0 | K88: 0 | L88: 0 | M88: 0 | N88: 0 | O88: 0
B89: TRUE | C89: =Annuity!C95 -> Spare | D89: $ / Component | E89: =Annuity!K95*(1+$E$14) -> 0 | F89: =Annuity!E95 -> 0 | K89: 0 | L89: 0 | M89: 0 | N89: 0 | O89: 0
B90: TRUE | C90: =Annuity!C96 -> Spare | D90: $ / Component | E90: =Annuity!K96*(1+$E$14) -> 0 | F90: =Annuity!E96 -> 0 | K90: 0 | L90: 0 | M90: 0 | N90: 0 | O90: 0
B91: TRUE | C91: =Annuity!C97 -> Spare | D91: $ / Component | E91: =Annuity!K97*(1+$E$14) -> 0 | F91: =Annuity!E97 -> 0 | K91: 0 | L91: 0 | M91: 0 | N91: 0 | O91: 0
B92: TRUE | C92: =Annuity!C98 -> Spare | D92: $ / Component | E92: =Annuity!K98*(1+$E$14) -> 0 | F92: =Annuity!E98 -> 0 | K92: 0 | L92: 0 | M92: 0 | N92: 0 | O92: 0
B93: TRUE | C93: =Annuity!C99 -> Spare | D93: $ / Component | E93: =Annuity!K99*(1+$E$14) -> 0 | F93: =Annuity!E99 -> 0 | K93: 0 | L93: 0 | M93: 0 | N93: 0 | O93: 0
B94: TRUE | C94: =Annuity!C100 -> Spare | D94: $ / Component | E94: =Annuity!K100*(1+$E$14) -> 0 | F94: =Annuity!E100 -> 0 | K94: 0 | L94: 0 | M94: 0 | N94: 0 | O94: 0
B95: TRUE | C95: =Annuity!C101 -> Spare | D95: $ / Component | E95: =Annuity!K101*(1+$E$14) -> 0 | F95: =Annuity!E101 -> 0 | K95: 0 | L95: 0 | M95: 0 | N95: 0 | O95: 0
B96: TRUE | C96: =Annuity!C102 -> Spare | D96: $ / Component | E96: =Annuity!K102*(1+$E$14) -> 0 | F96: =Annuity!E102 -> 0 | K96: 0 | L96: 0 | M96: 0 | N96: 0 | O96: 0
B97: TRUE | C97: =Annuity!C103 -> Spare | D97: $ / Component | E97: =Annuity!K103*(1+$E$14) -> 0 | F97: =Annuity!E103 -> 0 | K97: 0 | L97: 0 | M97: 0 | N97: 0 | O97: 0
B98: TRUE | C98: =Annuity!C104 -> Spare | D98: $ / Component | E98: =Annuity!K104*(1+$E$14) -> 0 | F98: =Annuity!E104 -> 0 | K98: 0 | L98: 0 | M98: 0 | N98: 0 | O98: 0
B99: TRUE | C99: =Annuity!C105 -> Spare | D99: $ / Component | E99: =Annuity!K105*(1+$E$14) -> 0 | F99: =Annuity!E105 -> 0 | K99: 0 | L99: 0 | M99: 0 | N99: 0 | O99: 0
B100: TRUE | C100: =Annuity!C106 -> Spare | D100: $ / Component | E100: =Annuity!K106*(1+$E$14) -> 0 | F100: =Annuity!E106 -> 0 | K100: 0 | L100: 0 | M100: 0 | N100: 0 | O100: 0
B101: TRUE | C101: =Annuity!C107 -> Spare | D101: $ / Component | E101: =Annuity!K107*(1+$E$14) -> 0 | F101: =Annuity!E107 -> 0 | K101: 0 | L101: 0 | M101: 0 | N101: 0 | O101: 0
B102: TRUE | C102: =Annuity!C108 -> Spare | D102: $ / Component | E102: =Annuity!K108*(1+$E$14) -> 0 | F102: =Annuity!E108 -> 0 | K102: 0 | L102: 0 | M102: 0 | N102: 0 | O102: 0
B103: TRUE | C103: =Annuity!C109 -> Spare | D103: $ / Component | E103: =Annuity!K109*(1+$E$14) -> 0 | F103: =Annuity!E109 -> 0 | K103: 0 | L103: 0 | M103: 0 | N103: 0 | O103: 0
B104: TRUE | C104: =Annuity!C110 -> Spare | D104: $ / Component | E104: =Annuity!K110*(1+$E$14) -> 0 | F104: =Annuity!E110 -> 0 | K104: 0 | L104: 0 | M104: 0 | N104: 0 | O104: 0
B105: TRUE | C105: =Annuity!C111 -> Spare | D105: $ / Component | E105: =Annuity!K111*(1+$E$14) -> 0 | F105: =Annuity!E111 -> 0 | K105: 0 | L105: 0 | M105: 0 | N105: 0 | O105: 0
B106: TRUE | C106: =Annuity!C112 -> Spare | D106: $ / Component | E106: =Annuity!K112*(1+$E$14) -> 0 | F106: =Annuity!E112 -> 0 | K106: 0 | L106: 0 | M106: 0 | N106: 0 | O106: 0
B107: TRUE | C107: =Annuity!C113 -> Spare | D107: $ / Component | E107: =Annuity!K113*(1+$E$14) -> 0 | F107: =Annuity!E113 -> 0 | K107: 0 | L107: 0 | M107: 0 | N107: 0 | O107: 0
B108: TRUE | C108: =Annuity!C114 -> Spare | D108: $ / Component | E108: =Annuity!K114*(1+$E$14) -> 0 | F108: =Annuity!E114 -> 0 | K108: 0 | L108: 0 | M108: 0 | N108: 0 | O108: 0
B109: =IF(C109="Spare",TRUE,0) -> TRUE | C109: =Annuity!C115 -> Spare | D109: $ / Component | E109: =Annuity!K115*(1+$E$14) -> 0 | F109: =Annuity!E115 -> 0 | K109: =-IF($F109=0,0,PMT(K$8,$F109,$E109*K$15,0)) -> 0 | L109: 0 | M109: 0 | N109: 0 | O109: 0
B110: TRUE | C110: =Annuity!C116 -> Spare | D110: $ / Component | E110: =Annuity!K116*(1+$E$14) -> 0 | F110: =Annuity!E116 -> 0 | K110: 0 | L110: 0 | M110: 0 | N110: 0 | O110: 0
B111: TRUE | C111: =Annuity!C117 -> Spare | D111: $ / Component | E111: =Annuity!K117*(1+$E$14) -> 0 | F111: =Annuity!E117 -> 0 | K111: 0 | L111: 0 | M111: 0 | N111: 0 | O111: 0
B112: TRUE | C112: =Annuity!C118 -> Spare | D112: $ / Component | E112: =Annuity!K118*(1+$E$14) -> 0 | F112: =Annuity!E118 -> 0 | K112: 0 | L112: 0 | M112: 0 | N112: 0 | O112: 0
B113: TRUE | C113: =Annuity!C119 -> Spare | D113: $ / Component | E113: =Annuity!K119*(1+$E$14) -> 0 | F113: =Annuity!E119 -> 0 | K113: 0 | L113: 0 | M113: 0 | N113: 0 | O113: 0
B114: TRUE | C114: =Annuity!C120 -> Spare | D114: $ / Component | E114: =Annuity!K120*(1+$E$14) -> 0 | F114: =Annuity!E120 -> 0 | K114: 0 | L114: 0 | M114: 0 | N114: 0 | O114: 0
B115: TRUE | C115: =Annuity!C121 -> Spare | D115: $ / Component | E115: =Annuity!K121*(1+$E$14) -> 0 | F115: =Annuity!E121 -> 0 | K115: 0 | L115: 0 | M115: 0 | N115: 0 | O115: 0
B116: TRUE | C116: =Annuity!C122 -> Spare | D116: $ / Component | E116: =Annuity!K122*(1+$E$14) -> 0 | F116: =Annuity!E122 -> 0 | K116: 0 | L116: 0 | M116: 0 | N116: 0 | O116: 0
B117: TRUE | C117: =Annuity!C123 -> Spare | D117: $ / Component | E117: =Annuity!K123*(1+$E$14) -> 0 | F117: =Annuity!E123 -> 0 | K117: 0 | L117: 0 | M117: 0 | N117: 0 | O117: 0
B118: TRUE | C118: =Annuity!C124 -> Spare | D118: $ / Component | E118: =Annuity!K124*(1+$E$14) -> 0 | F118: =Annuity!E124 -> 0 | K118: 0 | L118: 0 | M118: 0 | N118: 0 | O118: 0
B119: TRUE | C119: =Annuity!C125 -> Spare | D119: $ / Component | E119: =Annuity!K125*(1+$E$14) -> 0 | F119: =Annuity!E125 -> 0 | K119: 0 | L119: 0 | M119: 0 | N119: 0 | O119: 0
B120: TRUE | C120: =Annuity!C126 -> Spare | D120: $ / Component | E120: =Annuity!K126*(1+$E$14) -> 0 | F120: =Annuity!E126 -> 0 | K120: 0 | L120: 0 | M120: 0 | N120: 0 | O120: 0
B121: TRUE | C121: =Annuity!C127 -> Spare | D121: $ / Component | E121: =Annuity!K127*(1+$E$14) -> 0 | F121: =Annuity!E127 -> 0 | K121: 0 | L121: 0 | M121: 0 | N121: 0 | O121: 0
B122: TRUE | C122: =Annuity!C128 -> Spare | D122: $ / Component | E122: =Annuity!K128*(1+$E$14) -> 0 | F122: =Annuity!E128 -> 0 | K122: 0 | L122: 0 | M122: 0 | N122: 0 | O122: 0
B123: TRUE | C123: =Annuity!C129 -> Spare | D123: $ / Component | E123: =Annuity!K129*(1+$E$14) -> 0 | F123: =Annuity!E129 -> 0 | K123: 0 | L123: 0 | M123: 0 | N123: 0 | O123: 0
B124: TRUE | C124: =Annuity!C130 -> Spare | D124: $ / Component | E124: =Annuity!K130*(1+$E$14) -> 0 | F124: =Annuity!E130 -> 0 | K124: 0 | L124: 0 | M124: 0 | N124: 0 | O124: 0
B125: TRUE | C125: =Annuity!C131 -> Spare | D125: $ / Component | E125: =Annuity!K131*(1+$E$14) -> 0 | F125: =Annuity!E131 -> 0 | K125: 0 | L125: 0 | M125: 0 | N125: 0 | O125: 0
B126: TRUE | C126: =Annuity!C132 -> Spare | D126: $ / Component | E126: =Annuity!K132*(1+$E$14) -> 0 | F126: =Annuity!E132 -> 0 | K126: 0 | L126: 0 | M126: 0 | N126: 0 | O126: 0
B127: TRUE | C127: =Annuity!C133 -> Spare | D127: $ / Component | E127: =Annuity!K133*(1+$E$14) -> 0 | F127: =Annuity!E133 -> 0 | K127: 0 | L127: 0 | M127: 0 | N127: 0 | O127: 0
B128: TRUE | C128: =Annuity!C134 -> Spare | D128: $ / Component | E128: =Annuity!K134*(1+$E$14) -> 0 | F128: =Annuity!E134 -> 0 | K128: 0 | L128: 0 | M128: 0 | N128: 0 | O128: 0
B129: TRUE | C129: =Annuity!C135 -> Spare | D129: $ / Component | E129: =Annuity!K135*(1+$E$14) -> 0 | F129: =Annuity!E135 -> 0 | K129: 0 | L129: 0 | M129: 0 | N129: 0 | O129: 0
C131: Labour
C133: Adjustment for volume growth | D133: % | E133: =Annuity!$E$13 -> 0
C134: Real escalation index | D134: % | E134: =Annuity!$E$18 -> Real labour (capex) | K134: =INDEX(REG_Timing!$K$18:$K$22,MATCH($E134,List_Escalation,0)) -> 1 | L134: =INDEX(REG_Timing!$L$18:$L$22,MATCH($E134,List_Escalation,0)) -> 1.002991533 | M134: =INDEX(REG_Timing!$M$18:$M$22,MATCH($E134,List_Escalation,0)) -> 1.004322356 | N134: =INDEX(REG_Timing!$N$18:$N$22,MATCH($E134,List_Escalation,0)) -> 1.005329878 | O134: =INDEX(REG_Timing!$O$18:$O$22,MATCH($E134,List_Escalation,0)) -> 1.006749659
E136: Cost | F136: Useful life
B137: =IF(C137="Spare",TRUE,0) -> 0 | C137: =Annuity!C23 -> NIGHTWATCH MINOR (F42) - FF1A | D137: $ / Component | F137: =Annuity!F23 -> 5
B138: 0 | C138: =Annuity!C24 -> NIGHTWATCH MINOR (F2X14) - FF2A | D138: $ / Component | F138: =Annuity!F24 -> 5
B139: 0 | C139: =Annuity!C25 -> NIGHTWATCH SMALL (MH150) - FH1A | D139: $ / Component | F139: =Annuity!F25 -> 5
B140: 0 | C140: =Annuity!C26 -> NIGHTWATCH MEDIUM (MH250) - FH2A | D140: $ / Component | F140: =Annuity!F26 -> 5
B141: 0 | C141: =Annuity!C27 -> NIGHTWATCH LARGE (MH400) - FH3A | D141: $ / Component | F141: =Annuity!F27 -> 5
B142: 0 | C142: =Annuity!C28 -> NIGHTWATCH X-LARGE (MH1000) - FH4A | D142: $ / Component | F142: =Annuity!F28 -> 5
B143: 0 | C143: =Annuity!C29 -> NIGHTWATCH MINOR (L17) - FL1A | D143: $ / Component | F143: =Annuity!F29 -> 5
B144: 0 | C144: =Annuity!C30 -> NIGHTWATCH MINOR (L18) - FL1B | D144: $ / Component | F144: =Annuity!F30 -> 5
B145: 0 | C145: =Annuity!C31 -> NIGHTWATCH SMALL (L75+) - FL2A | D145: $ / Component | F145: =Annuity!F31 -> 5
B146: 0 | C146: =Annuity!C32 -> NIGHTWATCH MEDIUM (L100+) - FL3A | D146: $ / Component | F146: =Annuity!F32 -> 5
B147: 0 | C147: =Annuity!C33 -> NIGHTWATCH MEDIUM (L150) - FL3B | D147: $ / Component | F147: =Annuity!F33 -> 5
B148: 0 | C148: =Annuity!C34 -> NIGHTWATCH LARGE (L150+) - FL4A | D148: $ / Component | F148: =Annuity!F34 -> 5
B149: 0 | C149: =Annuity!C35 -> NIGHTWATCH LARGE (L200) - FL4B | D149: $ / Component | F149: =Annuity!F35 -> 5
B150: 0 | C150: =Annuity!C36 -> NIGHTWATCH X-LARGE (L300+) - FL5A | D150: $ / Component | F150: =Annuity!F36 -> 5
B151: 0 | C151: =Annuity!C37 -> NIGHTWATCH MINOR (M80) - FM1A | D151: $ / Component | F151: =Annuity!F37 -> 5
B152: 0 | C152: =Annuity!C38 -> NIGHTWATCH SMALL (S150) - FS1A | D152: $ / Component | F152: =Annuity!F38 -> 5
B153: 0 | C153: =Annuity!C39 -> NIGHTWATCH MEDIUM (S250) - FS2A | D153: $ / Component | F153: =Annuity!F39 -> 5
B154: 0 | C154: =Annuity!C40 -> NIGHTWATCH LARGE (S400) - FS3A | D154: $ / Component | F154: =Annuity!F40 -> 5
B155: 0 | C155: =Annuity!C41 -> NIGHTWATCH MINOR (S100) - FS4A | D155: $ / Component | F155: =Annuity!F41 -> 5
B156: 0 | C156: =Annuity!C42 -> NIGHTWATCH MINOR (S70) - FS5A | D156: $ / Component | F156: =Annuity!F42 -> 5
B157: TRUE | C157: =Annuity!C44 -> Spare | D157: $ / Component | E157: =Annuity!L44*(1+$E$133) -> 0 | F157: =Annuity!F44 -> 0 | K157: =-IF($F38=0,0,PMT(K$8,$F38,$E157*K$134,0)) -> 0 | L157: 0 | M157: 0 | N157: 0 | O157: 0
B158: TRUE | C158: =Annuity!C45 -> Spare | D158: $ / Component | E158: =Annuity!L45*(1+$E$133) -> 0 | F158: =Annuity!F45 -> 0 | K158: 0 | L158: 0 | M158: 0 | N158: 0 | O158: 0
B159: TRUE | C159: =Annuity!C46 -> Spare | D159: $ / Component | E159: =Annuity!L46*(1+$E$133) -> 0 | F159: =Annuity!F46 -> 0 | K159: 0 | L159: 0 | M159: 0 | N159: 0 | O159: 0
B160: TRUE | C160: =Annuity!C47 -> Spare | D160: $ / Component | E160: =Annuity!L47*(1+$E$133) -> 0 | F160: =Annuity!F47 -> 0 | K160: 0 | L160: 0 | M160: 0 | N160: 0 | O160: 0
B161: TRUE | C161: =Annuity!C48 -> Spare | D161: $ / Component | E161: =Annuity!L48*(1+$E$133) -> 0 | F161: =Annuity!F48 -> 0 | K161: 0 | L161: 0 | M161: 0 | N161: 0 | O161: 0
B162: TRUE | C162: =Annuity!C49 -> Spare | D162: $ / Component | E162: =Annuity!L49*(1+$E$133) -> 0 | F162: =Annuity!F49 -> 0 | K162: 0 | L162: 0 | M162: 0 | N162: 0 | O162: 0
B163: TRUE | C163: =Annuity!C50 -> Spare | D163: $ / Component | E163: =Annuity!L50*(1+$E$133) -> 0 | F163: =Annuity!F50 -> 0 | K163: 0 | L163: 0 | M163: 0 | N163: 0 | O163: 0
B164: =IF(C164="Spare",TRUE,0) -> TRUE | C164: =Annuity!C51 -> Spare | D164: $ / Component | E164: =Annuity!L51*(1+$E$133) -> 0 | F164: =Annuity!F51 -> 0 | K164: 0 | L164: 0 | M164: 0 | N164: 0 | O164: 0
B165: TRUE | C165: =Annuity!C52 -> Spare | D165: $ / Component | E165: =Annuity!L52*(1+$E$133) -> 0 | F165: =Annuity!F52 -> 0 | K165: 0 | L165: 0 | M165: 0 | N165: 0 | O165: 0
B166: TRUE | C166: =Annuity!C53 -> Spare | D166: $ / Component | E166: =Annuity!L53*(1+$E$133) -> 0 | F166: =Annuity!F53 -> 0 | K166: 0 | L166: 0 | M166: 0 | N166: 0 | O166: 0
B167: TRUE | C167: =Annuity!C54 -> Spare | D167: $ / Component | E167: =Annuity!L54*(1+$E$133) -> 0 | F167: =Annuity!F54 -> 0 | K167: =-IF($F48=0,0,PMT(K$8,$F48,$E167*K$134,0)) -> 0 | L167: 0 | M167: 0 | N167: 0 | O167: 0
B168: TRUE | C168: =Annuity!C55 -> Spare | D168: $ / Component | E168: =Annuity!L55*(1+$E$133) -> 0 | F168: =Annuity!F55 -> 0 | K168: 0 | L168: 0 | M168: 0 | N168: 0 | O168: 0
B169: TRUE | C169: =Annuity!C56 -> Spare | D169: $ / Component | E169: =Annuity!L56*(1+$E$133) -> 0 | F169: =Annuity!F56 -> 0 | K169: 0 | L169: 0 | M169: 0 | N169: 0 | O169: 0
B170: TRUE | C170: =Annuity!C57 -> Spare | D170: $ / Component | E170: =Annuity!L57*(1+$E$133) -> 0 | F170: =Annuity!F57 -> 0 | K170: 0 | L170: 0 | M170: 0 | N170: 0 | O170: 0
B171: TRUE | C171: =Annuity!C58 -> Spare | D171: $ / Component | E171: =Annuity!L58*(1+$E$133) -> 0 | F171: =Annuity!F58 -> 0 | K171: 0 | L171: 0 | M171: 0 | N171: 0 | O171: 0
B172: TRUE | C172: =Annuity!C59 -> Spare | D172: $ / Component | E172: =Annuity!L59*(1+$E$133) -> 0 | F172: =Annuity!F59 -> 0 | K172: 0 | L172: 0 | M172: 0 | N172: 0 | O172: 0
B173: TRUE | C173: =Annuity!C60 -> Spare | D173: $ / Component | E173: =Annuity!L60*(1+$E$133) -> 0 | F173: =Annuity!F60 -> 0 | K173: 0 | L173: 0 | M173: 0 | N173: 0 | O173: 0
B174: TRUE | C174: =Annuity!C61 -> Spare | D174: $ / Component | E174: =Annuity!L61*(1+$E$133) -> 0 | F174: =Annuity!F61 -> 0 | K174: 0 | L174: 0 | M174: 0 | N174: 0 | O174: 0
B175: TRUE | C175: =Annuity!C62 -> Spare | D175: $ / Component | E175: =Annuity!L62*(1+$E$133) -> 0 | F175: =Annuity!F62 -> 0 | K175: 0 | L175: 0 | M175: 0 | N175: 0 | O175: 0
B176: TRUE | C176: =Annuity!C63 -> Spare | D176: $ / Component | E176: =Annuity!L63*(1+$E$133) -> 0 | F176: =Annuity!F63 -> 0 | K176: 0 | L176: 0 | M176: 0 | N176: 0 | O176: 0
B177: TRUE | C177: =Annuity!C64 -> Spare | D177: $ / Component | E177: =Annuity!L64*(1+$E$133) -> 0 | F177: =Annuity!F64 -> 0 | K177: =-IF($F58=0,0,PMT(K$8,$F58,$E177*K$134,0)) -> 0 | L177: 0 | M177: 0 | N177: 0 | O177: 0
B178: TRUE | C178: =Annuity!C65 -> Spare | D178: $ / Component | E178: =Annuity!L65*(1+$E$133) -> 0 | F178: =Annuity!F65 -> 0 | K178: 0 | L178: 0 | M178: 0 | N178: 0 | O178: 0
B179: TRUE | C179: =Annuity!C66 -> Spare | D179: $ / Component | E179: =Annuity!L66*(1+$E$133) -> 0 | F179: =Annuity!F66 -> 0 | K179: 0 | L179: 0 | M179: 0 | N179: 0 | O179: 0
B180: TRUE | C180: =Annuity!C67 -> Spare | D180: $ / Component | E180: =Annuity!L67*(1+$E$133) -> 0 | F180: =Annuity!F67 -> 0 | K180: 0 | L180: 0 | M180: 0 | N180: 0 | O180: 0
B181: TRUE | C181: =Annuity!C68 -> Spare | D181: $ / Component | E181: =Annuity!L68*(1+$E$133) -> 0 | F181: =Annuity!F68 -> 0 | K181: 0 | L181: 0 | M181: 0 | N181: 0 | O181: 0
B182: TRUE | C182: =Annuity!C69 -> Spare | D182: $ / Component | E182: =Annuity!L69*(1+$E$133) -> 0 | F182: =Annuity!F69 -> 0 | K182: 0 | L182: 0 | M182: 0 | N182: 0 | O182: 0
B183: TRUE | C183: =Annuity!C70 -> Spare | D183: $ / Component | E183: =Annuity!L70*(1+$E$133) -> 0 | F183: =Annuity!F70 -> 0 | K183: 0 | L183: 0 | M183: 0 | N183: 0 | O183: 0
B184: TRUE | C184: =Annuity!C71 -> Spare | D184: $ / Component | E184: =Annuity!L71*(1+$E$133) -> 0 | F184: =Annuity!F71 -> 0 | K184: 0 | L184: 0 | M184: 0 | N184: 0 | O184: 0
B185: TRUE | C185: =Annuity!C72 -> Spare | D185: $ / Component | E185: =Annuity!L72*(1+$E$133) -> 0 | F185: =Annuity!F72 -> 0 | K185: 0 | L185: 0 | M185: 0 | N185: 0 | O185: 0
B186: TRUE | C186: =Annuity!C73 -> Spare | D186: $ / Component | E186: =Annuity!L73*(1+$E$133) -> 0 | F186: =Annuity!F73 -> 0 | K186: 0 | L186: 0 | M186: 0 | N186: 0 | O186: 0
B187: TRUE | C187: =Annuity!C74 -> Spare | D187: $ / Component | E187: =Annuity!L74*(1+$E$133) -> 0 | F187: =Annuity!F74 -> 0 | K187: =-IF($F68=0,0,PMT(K$8,$F68,$E187*K$134,0)) -> 0 | L187: 0 | M187: 0 | N187: 0 | O187: 0
B188: TRUE | C188: =Annuity!C75 -> Spare | D188: $ / Component | E188: =Annuity!L75*(1+$E$133) -> 0 | F188: =Annuity!F75 -> 0 | K188: 0 | L188: 0 | M188: 0 | N188: 0 | O188: 0
B189: TRUE | C189: =Annuity!C76 -> Spare | D189: $ / Component | E189: =Annuity!L76*(1+$E$133) -> 0 | F189: =Annuity!F76 -> 0 | K189: 0 | L189: 0 | M189: 0 | N189: 0 | O189: 0
B190: TRUE | C190: =Annuity!C77 -> Spare | D190: $ / Component | E190: =Annuity!L77*(1+$E$133) -> 0 | F190: =Annuity!F77 -> 0 | K190: 0 | L190: 0 | M190: 0 | N190: 0 | O190: 0
B191: TRUE | C191: =Annuity!C78 -> Spare | D191: $ / Component | E191: =Annuity!L78*(1+$E$133) -> 0 | F191: =Annuity!F78 -> 0 | K191: 0 | L191: 0 | M191: 0 | N191: 0 | O191: 0
B192: TRUE | C192: =Annuity!C79 -> Spare | D192: $ / Component | E192: =Annuity!L79*(1+$E$133) -> 0 | F192: =Annuity!F79 -> 0 | K192: 0 | L192: 0 | M192: 0 | N192: 0 | O192: 0
B193: TRUE | C193: =Annuity!C80 -> Spare | D193: $ / Component | E193: =Annuity!L80*(1+$E$133) -> 0 | F193: =Annuity!F80 -> 0 | K193: 0 | L193: 0 | M193: 0 | N193: 0 | O193: 0
B194: TRUE | C194: =Annuity!C81 -> Spare | D194: $ / Component | E194: =Annuity!L81*(1+$E$133) -> 0 | F194: =Annuity!F81 -> 0 | K194: 0 | L194: 0 | M194: 0 | N194: 0 | O194: 0
B195: TRUE | C195: =Annuity!C82 -> Spare | D195: $ / Component | E195: =Annuity!L82*(1+$E$133) -> 0 | F195: =Annuity!F82 -> 0 | K195: 0 | L195: 0 | M195: 0 | N195: 0 | O195: 0
B196: TRUE | C196: =Annuity!C83 -> Spare | D196: $ / Component | E196: =Annuity!L83*(1+$E$133) -> 0 | F196: =Annuity!F83 -> 0 | K196: 0 | L196: 0 | M196: 0 | N196: 0 | O196: 0
B197: TRUE | C197: =Annuity!C84 -> Spare | D197: $ / Component | E197: =Annuity!L84*(1+$E$133) -> 0 | F197: =Annuity!F84 -> 0 | K197: =-IF($F78=0,0,PMT(K$8,$F78,$E197*K$134,0)) -> 0 | L197: 0 | M197: 0 | N197: 0 | O197: 0
B198: TRUE | C198: =Annuity!C85 -> Spare | D198: $ / Component | E198: =Annuity!L85*(1+$E$133) -> 0 | F198: =Annuity!F85 -> 0 | K198: 0 | L198: 0 | M198: 0 | N198: 0 | O198: 0
B199: TRUE | C199: =Annuity!C86 -> Spare | D199: $ / Component | E199: =Annuity!L86*(1+$E$133) -> 0 | F199: =Annuity!F86 -> 0 | K199: 0 | L199: 0 | M199: 0 | N199: 0 | O199: 0
B200: TRUE | C200: =Annuity!C87 -> Spare | D200: $ / Component | E200: =Annuity!L87*(1+$E$133) -> 0 | F200: =Annuity!F87 -> 0 | K200: 0 | L200: 0 | M200: 0 | N200: 0 | O200: 0
B201: TRUE | C201: =Annuity!C88 -> Spare | D201: $ / Component | E201: =Annuity!L88*(1+$E$133) -> 0 | F201: =Annuity!F88 -> 0 | K201: 0 | L201: 0 | M201: 0 | N201: 0 | O201: 0
B202: TRUE | C202: =Annuity!C89 -> Spare | D202: $ / Component | E202: =Annuity!L89*(1+$E$133) -> 0 | F202: =Annuity!F89 -> 0 | K202: 0 | L202: 0 | M202: 0 | N202: 0 | O202: 0
B203: TRUE | C203: =Annuity!C90 -> Spare | D203: $ / Component | E203: =Annuity!L90*(1+$E$133) -> 0 | F203: =Annuity!F90 -> 0 | K203: 0 | L203: 0 | M203: 0 | N203: 0 | O203: 0
B204: TRUE | C204: =Annuity!C91 -> Spare | D204: $ / Component | E204: =Annuity!L91*(1+$E$133) -> 0 | F204: =Annuity!F91 -> 0 | K204: 0 | L204: 0 | M204: 0 | N204: 0 | O204: 0
B205: TRUE | C205: =Annuity!C92 -> Spare | D205: $ / Component | E205: =Annuity!L92*(1+$E$133) -> 0 | F205: =Annuity!F92 -> 0 | K205: 0 | L205: 0 | M205: 0 | N205: 0 | O205: 0
B206: TRUE | C206: =Annuity!C93 -> Spare | D206: $ / Component | E206: =Annuity!L93*(1+$E$133) -> 0 | F206: =Annuity!F93 -> 0 | K206: 0 | L206: 0 | M206: 0 | N206: 0 | O206: 0
B207: TRUE | C207: =Annuity!C94 -> Spare | D207: $ / Component | E207: =Annuity!L94*(1+$E$133) -> 0 | F207: =Annuity!F94 -> 0 | K207: =-IF($F88=0,0,PMT(K$8,$F88,$E207*K$134,0)) -> 0 | L207: 0 | M207: 0 | N207: 0 | O207: 0
B208: TRUE | C208: =Annuity!C95 -> Spare | D208: $ / Component | E208: =Annuity!L95*(1+$E$133) -> 0 | F208: =Annuity!F95 -> 0 | K208: 0 | L208: 0 | M208: 0 | N208: 0 | O208: 0
B209: TRUE | C209: =Annuity!C96 -> Spare | D209: $ / Component | E209: =Annuity!L96*(1+$E$133) -> 0 | F209: =Annuity!F96 -> 0 | K209: 0 | L209: 0 | M209: 0 | N209: 0 | O209: 0
B210: TRUE | C210: =Annuity!C97 -> Spare | D210: $ / Component | E210: =Annuity!L97*(1+$E$133) -> 0 | F210: =Annuity!F97 -> 0 | K210: 0 | L210: 0 | M210: 0 | N210: 0 | O210: 0
... 152 more rows

Sheet CalcRecovery
C1: Capital recovery tariff charges
K2: 1 | L2: 2 | M2: 3 | N2: 4 | O2: 5 | P2: 6 | Q2: 7 | R2: 8 | S2: 9 | T2: 10 | U2: 11 | V2: 12 | W2: 13 | X2: 14 | Y2: 15 | Z2: 16 | AA2: 17 | AB2: 18 | AC2: 19 | AD2: 20 | AE2: 21 | AF2: 22 | AG2: 23 | AH2: 24 | AI2: 25
C4: Timing
C6: =Global!C77 -> Pre-tax real WACC | K6: =INDEX(Global!$F$77:$J$77,,MIN(K$2,RegDur)) -> 0.03525915455 | L6: =INDEX(Global!$F$77:$J$77,,MIN(L$2,RegDur)) -> 0.03550022748 | M6: =INDEX(Global!$F$77:$J$77,,MIN(M$2,RegDur)) -> 0.03599660461 | N6: =INDEX(Global!$F$77:$J$77,,MIN(N$2,RegDur)) -> 0.03651927633 | O6: =INDEX(Global!$F$77:$J$77,,MIN(O$2,RegDur)) -> 0.03717310863 | P6: =INDEX(Global!$F$77:$J$77,,MIN(P$2,RegDur)) -> 0.03717310863 | Q6: =INDEX(Global!$F$77:$J$77,,MIN(Q$2,RegDur)) -> 0.03717310863 | R6: =INDEX(Global!$F$77:$J$77,,MIN(R$2,RegDur)) -> 0.03717310863 | S6: =INDEX(Global!$F$77:$J$77,,MIN(S$2,RegDur)) -> 0.03717310863 | T6: =INDEX(Global!$F$77:$J$77,,MIN(T$2,RegDur)) -> 0.03717310863 | U6: =INDEX(Global!$F$77:$J$77,,MIN(U$2,RegDur)) -> 0.03717310863 | V6: =INDEX(Global!$F$77:$J$77,,MIN(V$2,RegDur)) -> 0.03717310863 | W6: =INDEX(Global!$F$77:$J$77,,MIN(W$2,RegDur)) -> 0.03717310863 | X6: =INDEX(Global!$F$77:$J$77,,MIN(X$2,RegDur)) -> 0.03717310863 | Y6: =INDEX(Global!$F$77:$J$77,,MIN(Y$2,RegDur)) -> 0.03717310863 | Z6: =INDEX(Global!$F$77:$J$77,,MIN(Z$2,RegDur)) -> 0.03717310863 | AA6: =INDEX(Global!$F$77:$J$77,,MIN(AA$2,RegDur)) -> 0.03717310863 | AB6: =INDEX(Global!$F$77:$J$77,,MIN(AB$2,RegDur)) -> 0.03717310863 | AC6: =INDEX(Global!$F$77:$J$77,,MIN(AC$2,RegDur)) -> 0.03717310863 | AD6: =INDEX(Global!$F$77:$J$77,,MIN(AD$2,RegDur)) -> 0.03717310863 | AE6: =INDEX(Global!$F$77:$J$77,,MIN(AE$2,RegDur)) -> 0.03717310863 | AF6: =INDEX(Global!$F$77:$J$77,,MIN(AF$2,RegDur)) -> 0.03717310863 | AG6: =INDEX(Global!$F$77:$J$77,,MIN(AG$2,RegDur)) -> 0.03717310863 | AH6: =INDEX(Global!$F$77:$J$77,,MIN(AH$2,RegDur)) -> 0.03717310863 | AI6: =INDEX(Global!$F$77:$J$77,,MIN(AI$2,RegDur)) -> 0.03717310863
C7: Discount index | J7: 1 | K7: =J7*(1-K6) -> 0.9647408455 | L7: =K7*(1-L6) -> 0.930492326 | M7: 0.8969977616 | N7: 0.8642400525 | O7: 0.8321135632 | P7: 0.8011813153 | Q7: 0.7713989152 | R7: 0.7427236195 | S7: 0.7151142738 | T7: 0.6885312532 | U7: 0.6629364061 | V7: 0.6382929991 | W7: 0.6145656641 | X7: 0.5917203479 | Y7: 0.5697242631 | Z7: 0.5485458412 | AA7: 0.528154687 | AB7: 0.5085215355 | AC7: 0.4896182092 | AD7: 0.4714175783 | AE7: 0.4538935215 | AF7: 0.4370208883 | AG7: 0.4207754634 | AH7: 0.4051339313 | AI7: 0.3900738437
C9: Real
C11: Annuities
B13: =IF(C13="Spare",TRUE,0) -> 0 | C13: =Annuity!C23 -> NIGHTWATCH MINOR (F42) - FF1A | D13: =Annuity!D23 -> FF1A | F13: $ / Component | K13: 169.2843145 | L13: 169.8291797 | M13: 170.347214 | N13: 170.8494014 | O13: 171.4538069 | P13: 0 | Q13: 0 | R13: 0 | S13: 0 | T13: 0 | U13: 0 | V13: 0 | W13: 0 | X13: 0 | Y13: 0 | Z13: 0 | AA13: 0 | AB13: 0 | AC13: 0 | AD13: 0 | AE13: 0 | AF13: 0 | AG13: 0 | AH13: 0 | AI13: 0
B14: 0 | C14: =Annuity!C24 -> NIGHTWATCH MINOR (F2X14) - FF2A | D14: =Annuity!D24 -> FF2A | F14: $ / Component | K14: 188.254688 | L14: 188.8301292 | M14: 189.3925521 | N14: 189.9405944 | O14: 190.5980032 | P14: 0 | Q14: 0 | R14: 0 | S14: 0 | T14: 0 | U14: 0 | V14: 0 | W14: 0 | X14: 0 | Y14: 0 | Z14: 0 | AA14: 0 | AB14: 0 | AC14: 0 | AD14: 0 | AE14: 0 | AF14: 0 | AG14: 0 | AH14: 0 | AI14: 0
B15: 0 | C15: =Annuity!C25 -> NIGHTWATCH SMALL (MH150) - FH1A | D15: =Annuity!D25 -> FH1A | F15: $ / Component | K15: 259.9037941 | L15: 260.5947181 | M15: 261.3247918 | N15: 262.0460231 | O15: 262.9036202 | P15: 0 | Q15: 0 | R15: 0 | S15: 0 | T15: 0 | U15: 0 | V15: 0 | W15: 0 | X15: 0 | Y15: 0 | Z15: 0 | AA15: 0 | AB15: 0 | AC15: 0 | AD15: 0 | AE15: 0 | AF15: 0 | AG15: 0 | AH15: 0 | AI15: 0
B16: 0 | C16: =Annuity!C26 -> NIGHTWATCH MEDIUM (MH250) - FH2A | D16: =Annuity!D26 -> FH2A | F16: $ / Component | K16: 255.7293843 | L16: 256.41358 | M16: 257.1338861 | N16: 257.8450271 | O16: 258.6909609 | P16: 0 | Q16: 0 | R16: 0 | S16: 0 | T16: 0 | U16: 0 | V16: 0 | W16: 0 | X16: 0 | Y16: 0 | Z16: 0 | AA16: 0 | AB16: 0 | AC16: 0 | AD16: 0 | AE16: 0 | AF16: 0 | AG16: 0 | AH16: 0 | AI16: 0
B17: 0 | C17: =Annuity!C27 -> NIGHTWATCH LARGE (MH400) - FH3A | D17: =Annuity!D27 -> FH3A | F17: $ / Component | K17: 261.5758771 | L17: 262.2694961 | M17: 263.0034823 | N17: 263.7287554 | O17: 264.5910243 | P17: 0 | Q17: 0 | R17: 0 | S17: 0 | T17: 0 | U17: 0 | V17: 0 | W17: 0 | X17: 0 | Y17: 0 | Z17: 0 | AA17: 0 | AB17: 0 | AC17: 0 | AD17: 0 | AE17: 0 | AF17: 0 | AG17: 0 | AH17: 0 | AI17: 0
B18: 0 | C18: =Annuity!C28 -> NIGHTWATCH X-LARGE (MH1000) - FH4A | D18: =Annuity!D28 -> FH4A | F18: $ / Component | K18: 311.0866965 | L18: 311.8601162 | M18: 312.7099522 | N18: 313.554902 | O18: 314.5555045 | P18: 0 | Q18: 0 | R18: 0 | S18: 0 | T18: 0 | U18: 0 | V18: 0 | W18: 0 | X18: 0 | Y18: 0 | Z18: 0 | AA18: 0 | AB18: 0 | AC18: 0 | AD18: 0 | AE18: 0 | AF18: 0 | AG18: 0 | AH18: 0 | AI18: 0
B19: 0 | C19: =Annuity!C29 -> NIGHTWATCH MINOR (L17) - FL1A | D19: =Annuity!D29 -> FL1A | F19: $ / Component | K19: 172.4893336 | L19: 173.0393645 | M19: 173.5648982 | N19: 174.0748328 | O19: 174.6881931 | P19: 0 | Q19: 0 | R19: 0 | S19: 0 | T19: 0 | U19: 0 | V19: 0 | W19: 0 | X19: 0 | Y19: 0 | Z19: 0 | AA19: 0 | AB19: 0 | AC19: 0 | AD19: 0 | AE19: 0 | AF19: 0 | AG19: 0 | AH19: 0 | AI19: 0
B20: 0 | C20: =Annuity!C30 -> NIGHTWATCH MINOR (L18) - FL1B | D20: =Annuity!D30 -> FL1B | F20: $ / Component | K20: 172.4893336 | L20: 173.0393645 | M20: 173.5648982 | N20: 174.0748328 | O20: 174.6881931 | P20: 0 | Q20: 0 | R20: 0 | S20: 0 | T20: 0 | U20: 0 | V20: 0 | W20: 0 | X20: 0 | Y20: 0 | Z20: 0 | AA20: 0 | AB20: 0 | AC20: 0 | AD20: 0 | AE20: 0 | AF20: 0 | AG20: 0 | AH20: 0 | AI20: 0
B21: 0 | C21: =Annuity!C31 -> NIGHTWATCH SMALL (L75+) - FL2A | D21: =Annuity!D31 -> FL2A | F21: $ / Component | K21: 220.4927273 | L21: 221.1201292 | M21: 221.7579854 | N21: 222.383953 | O21: 223.1314352 | P21: 0 | Q21: 0 | R21: 0 | S21: 0 | T21: 0 | U21: 0 | V21: 0 | W21: 0 | X21: 0 | Y21: 0 | Z21: 0 | AA21: 0 | AB21: 0 | AC21: 0 | AD21: 0 | AE21: 0 | AF21: 0 | AG21: 0 | AH21: 0 | AI21: 0
B22: 0 | C22: =Annuity!C32 -> NIGHTWATCH MEDIUM (L100+) - FL3A | D22: =Annuity!D32 -> FL3A | F22: $ / Component | K22: 236.0980626 | L22: 236.7506169 | M22: 237.4249879 | N22: 238.0886764 | O22: 238.8797601 | P22: 0 | Q22: 0 | R22: 0 | S22: 0 | T22: 0 | U22: 0 | V22: 0 | W22: 0 | X22: 0 | Y22: 0 | Z22: 0 | AA22: 0 | AB22: 0 | AC22: 0 | AD22: 0 | AE22: 0 | AF22: 0 | AG22: 0 | AH22: 0 | AI22: 0
B23: 0 | C23: =Annuity!C33 -> NIGHTWATCH MEDIUM (L150) - FL3B | D23: =Annuity!D33 -> FL3B | F23: $ / Component | K23: 226.2905187 | L23: 226.9272654 | M23: 227.5786878 | N23: 228.2186697 | O23: 228.982351 | P23: 0 | Q23: 0 | R23: 0 | S23: 0 | T23: 0 | U23: 0 | V23: 0 | W23: 0 | X23: 0 | Y23: 0 | Z23: 0 | AA23: 0 | AB23: 0 | AC23: 0 | AD23: 0 | AE23: 0 | AF23: 0 | AG23: 0 | AH23: 0 | AI23: 0
B24: 0 | C24: =Annuity!C34 -> NIGHTWATCH LARGE (L150+) - FL4A | D24: =Annuity!D34 -> FL4A | F24: $ / Component | K24: 237.8861015 | L24: 238.5415377 | M24: 239.2200925 | N24: 239.888103 | O24: 240.6841825 | P24: 0 | Q24: 0 | R24: 0 | S24: 0 | T24: 0 | U24: 0 | V24: 0 | W24: 0 | X24: 0 | Y24: 0 | Z24: 0 | AA24: 0 | AB24: 0 | AC24: 0 | AD24: 0 | AE24: 0 | AF24: 0 | AG24: 0 | AH24: 0 | AI24: 0
B25: 0 | C25: =Annuity!C35 -> NIGHTWATCH LARGE (L200) - FL4B | D25: =Annuity!D35 -> FL4B | F25: $ / Component | K25: 237.8861015 | L25: 238.5415377 | M25: 239.2200925 | N25: 239.888103 | O25: 240.6841825 | P25: 0 | Q25: 0 | R25: 0 | S25: 0 | T25: 0 | U25: 0 | V25: 0 | W25: 0 | X25: 0 | Y25: 0 | Z25: 0 | AA25: 0 | AB25: 0 | AC25: 0 | AD25: 0 | AE25: 0 | AF25: 0 | AG25: 0 | AH25: 0 | AI25: 0
B26: 0 | C26: =Annuity!C36 -> NIGHTWATCH X-LARGE (L300+) - FL5A | D26: =Annuity!D36 -> FL5A | F26: $ / Component | K26: 312.508315 | L26: 313.284026 | M26: 314.1371884 | N26: 314.9855745 | O26: 315.9901491 | P26: 0 | Q26: 0 | R26: 0 | S26: 0 | T26: 0 | U26: 0 | V26: 0 | W26: 0 | X26: 0 | Y26: 0 | Z26: 0 | AA26: 0 | AB26: 0 | AC26: 0 | AD26: 0 | AE26: 0 | AF26: 0 | AG26: 0 | AH26: 0 | AI26: 0
B27: 0 | C27: =Annuity!C37 -> NIGHTWATCH MINOR (M80) - FM1A | D27: =Annuity!D37 -> FM1A | F27: $ / Component | K27: 153.6697027 | L27: 154.1894005 | M27: 154.6708984 | N27: 155.1353424 | O27: 155.6961206 | P27: 0 | Q27: 0 | R27: 0 | S27: 0 | T27: 0 | U27: 0 | V27: 0 | W27: 0 | X27: 0 | Y27: 0 | Z27: 0 | AA27: 0 | AB27: 0 | AC27: 0 | AD27: 0 | AE27: 0 | AF27: 0 | AG27: 0 | AH27: 0 | AI27: 0
B28: 0 | C28: =Annuity!C38 -> NIGHTWATCH SMALL (S150) - FS1A | D28: =Annuity!D38 -> FS1A | F28: $ / Component | K28: 251.5317833 | L28: 252.2092134 | M28: 252.9196976 | N28: 253.6206922 | O28: 254.4548978 | P28: 0 | Q28: 0 | R28: 0 | S28: 0 | T28: 0 | U28: 0 | V28: 0 | W28: 0 | X28: 0 | Y28: 0 | Z28: 0 | AA28: 0 | AB28: 0 | AC28: 0 | AD28: 0 | AE28: 0 | AF28: 0 | AG28: 0 | AH28: 0 | AI28: 0
B29: 0 | C29: =Annuity!C39 -> NIGHTWATCH MEDIUM (S250) - FS2A | D29: =Annuity!D39 -> FS2A | F29: $ / Component | K29: 252.9673164 | L29: 253.6470603 | M29: 254.3609035 | N29: 255.0653681 | O29: 255.9035846 | P29: 0 | Q29: 0 | R29: 0 | S29: 0 | T29: 0 | U29: 0 | V29: 0 | W29: 0 | X29: 0 | Y29: 0 | Z29: 0 | AA29: 0 | AB29: 0 | AC29: 0 | AD29: 0 | AE29: 0 | AF29: 0 | AG29: 0 | AH29: 0 | AI29: 0
B30: 0 | C30: =Annuity!C40 -> NIGHTWATCH LARGE (S400) - FS3A | D30: =Annuity!D40 -> FS3A | F30: $ / Component | K30: 259.3356105 | L30: 260.0256187 | M30: 260.7543629 | N30: 261.4742209 | O30: 262.3302305 | P30: 0 | Q30: 0 | R30: 0 | S30: 0 | T30: 0 | U30: 0 | V30: 0 | W30: 0 | X30: 0 | Y30: 0 | Z30: 0 | AA30: 0 | AB30: 0 | AC30: 0 | AD30: 0 | AE30: 0 | AF30: 0 | AG30: 0 | AH30: 0 | AI30: 0
B31: 0 | C31: =Annuity!C41 -> NIGHTWATCH MINOR (S100) - FS4A | D31: =Annuity!D41 -> FS4A | F31: $ / Component | K31: 196.9536942 | L31: 197.5431563 | M31: 198.1259339 | N31: 198.6950033 | O31: 199.3767173 | P31: 0 | Q31: 0 | R31: 0 | S31: 0 | T31: 0 | U31: 0 | V31: 0 | W31: 0 | X31: 0 | Y31: 0 | Z31: 0 | AA31: 0 | AB31: 0 | AC31: 0 | AD31: 0 | AE31: 0 | AF31: 0 | AG31: 0 | AH31: 0 | AI31: 0
B32: 0 | C32: =Annuity!C42 -> NIGHTWATCH MINOR (S70) - FS5A | D32: =Annuity!D42 -> FS5A | F32: $ / Component | K32: 169.8687319 | L32: 170.414539 | M32: 170.9339408 | N32: 171.4375408 | O32: 172.0435792 | P32: 0 | Q32: 0 | R32: 0 | S32: 0 | T32: 0 | U32: 0 | V32: 0 | W32: 0 | X32: 0 | Y32: 0 | Z32: 0 | AA32: 0 | AB32: 0 | AC32: 0 | AD32: 0 | AE32: 0 | AF32: 0 | AG32: 0 | AH32: 0 | AI32: 0
B33: TRUE | C33: =Annuity!C93 -> Spare | F33: $ / Component | K33: =IF(K$2<=Annuity!$E93,INDEX(CalcAnnual!#REF!,,MIN(K$2,RegDur)),0) -> 0 | L33: =IF(L$2<=Annuity!$E93,INDEX(CalcAnnual!#REF!,,MIN(L$2,RegDur)),0) -> 0 | M33: =IF(M$2<=Annuity!$E93,INDEX(CalcAnnual!#REF!,,MIN(M$2,RegDur)),0) -> 0 | N33: =IF(N$2<=Annuity!$E93,INDEX(CalcAnnual!#REF!,,MIN(N$2,RegDur)),0) -> 0 | O33: =IF(O$2<=Annuity!$E93,INDEX(CalcAnnual!#REF!,,MIN(O$2,RegDur)),0) -> 0 | P33: =IF(P$2<=Annuity!$E93,INDEX(CalcAnnual!#REF!,,MIN(P$2,RegDur)),0) -> 0 | Q33: =IF(Q$2<=Annuity!$E93,INDEX(CalcAnnual!#REF!,,MIN(Q$2,RegDur)),0) -> 0 | R33: =IF(R$2<=Annuity!$E93,INDEX(CalcAnnual!#REF!,,MIN(R$2,RegDur)),0) -> 0 | S33: =IF(S$2<=Annuity!$E93,INDEX(CalcAnnual!#REF!,,MIN(S$2,RegDur)),0) -> 0 | T33: =IF(T$2<=Annuity!$E93,INDEX(CalcAnnual!#REF!,,MIN(T$2,RegDur)),0) -> 0 | U33: =IF(U$2<=Annuity!$E93,INDEX(CalcAnnual!#REF!,,MIN(U$2,RegDur)),0) -> 0 | V33: =IF(V$2<=Annuity!$E93,INDEX(CalcAnnual!#REF!,,MIN(V$2,RegDur)),0) -> 0 | W33: =IF(W$2<=Annuity!$E93,INDEX(CalcAnnual!#REF!,,MIN(W$2,RegDur)),0) -> 0 | X33: =IF(X$2<=Annuity!$E93,INDEX(CalcAnnual!#REF!,,MIN(X$2,RegDur)),0) -> 0 | Y33: =IF(Y$2<=Annuity!$E93,INDEX(CalcAnnual!#REF!,,MIN(Y$2,RegDur)),0) -> 0 | Z33: =IF(Z$2<=Annuity!$E93,INDEX(CalcAnnual!#REF!,,MIN(Z$2,RegDur)),0) -> 0 | AA33: =IF(AA$2<=Annuity!$E93,INDEX(CalcAnnual!#REF!,,MIN(AA$2,RegDur)),0) -> 0 | AB33: =IF(AB$2<=Annuity!$E93,INDEX(CalcAnnual!#REF!,,MIN(AB$2,RegDur)),0) -> 0 | AC33: =IF(AC$2<=Annuity!$E93,INDEX(CalcAnnual!#REF!,,MIN(AC$2,RegDur)),0) -> 0 | AD33: =IF(AD$2<=Annuity!$E93,INDEX(CalcAnnual!#REF!,,MIN(AD$2,RegDur)),0) -> 0 | AE33: =IF(AE$2<=Annuity!$E93,INDEX(CalcAnnual!#REF!,,MIN(AE$2,RegDur)),0) -> 0 | AF33: =IF(AF$2<=Annuity!$E93,INDEX(CalcAnnual!#REF!,,MIN(AF$2,RegDur)),0) -> 0 | AG33: =IF(AG$2<=Annuity!$E93,INDEX(CalcAnnual!#REF!,,MIN(AG$2,RegDur)),0) -> 0 | AH33: =IF(AH$2<=Annuity!$E93,INDEX(CalcAnnual!#REF!,,MIN(AH$2,RegDur)),0) -> 0 | AI33: =IF(AI$2<=Annuity!$E93,INDEX(CalcAnnual!#REF!,,MIN(AI$2,RegDur)),0) -> 0
B34: TRUE | C34: =Annuity!C94 -> Spare | F34: $ / Component | K34: =IF(K$2<=Annuity!$E94,INDEX(CalcAnnual!#REF!,,MIN(K$2,RegDur)),0) -> 0 | L34: =IF(L$2<=Annuity!$E94,INDEX(CalcAnnual!#REF!,,MIN(L$2,RegDur)),0) -> 0 | M34: =IF(M$2<=Annuity!$E94,INDEX(CalcAnnual!#REF!,,MIN(M$2,RegDur)),0) -> 0 | N34: =IF(N$2<=Annuity!$E94,INDEX(CalcAnnual!#REF!,,MIN(N$2,RegDur)),0) -> 0 | O34: =IF(O$2<=Annuity!$E94,INDEX(CalcAnnual!#REF!,,MIN(O$2,RegDur)),0) -> 0 | P34: =IF(P$2<=Annuity!$E94,INDEX(CalcAnnual!#REF!,,MIN(P$2,RegDur)),0) -> 0 | Q34: =IF(Q$2<=Annuity!$E94,INDEX(CalcAnnual!#REF!,,MIN(Q$2,RegDur)),0) -> 0 | R34: =IF(R$2<=Annuity!$E94,INDEX(CalcAnnual!#REF!,,MIN(R$2,RegDur)),0) -> 0 | S34: =IF(S$2<=Annuity!$E94,INDEX(CalcAnnual!#REF!,,MIN(S$2,RegDur)),0) -> 0 | T34: =IF(T$2<=Annuity!$E94,INDEX(CalcAnnual!#REF!,,MIN(T$2,RegDur)),0) -> 0 | U34: =IF(U$2<=Annuity!$E94,INDEX(CalcAnnual!#REF!,,MIN(U$2,RegDur)),0) -> 0 | V34: =IF(V$2<=Annuity!$E94,INDEX(CalcAnnual!#REF!,,MIN(V$2,RegDur)),0) -> 0 | W34: =IF(W$2<=Annuity!$E94,INDEX(CalcAnnual!#REF!,,MIN(W$2,RegDur)),0) -> 0 | X34: =IF(X$2<=Annuity!$E94,INDEX(CalcAnnual!#REF!,,MIN(X$2,RegDur)),0) -> 0 | Y34: =IF(Y$2<=Annuity!$E94,INDEX(CalcAnnual!#REF!,,MIN(Y$2,RegDur)),0) -> 0 | Z34: =IF(Z$2<=Annuity!$E94,INDEX(CalcAnnual!#REF!,,MIN(Z$2,RegDur)),0) -> 0 | AA34: =IF(AA$2<=Annuity!$E94,INDEX(CalcAnnual!#REF!,,MIN(AA$2,RegDur)),0) -> 0 | AB34: =IF(AB$2<=Annuity!$E94,INDEX(CalcAnnual!#REF!,,MIN(AB$2,RegDur)),0) -> 0 | AC34: =IF(AC$2<=Annuity!$E94,INDEX(CalcAnnual!#REF!,,MIN(AC$2,RegDur)),0) -> 0 | AD34: =IF(AD$2<=Annuity!$E94,INDEX(CalcAnnual!#REF!,,MIN(AD$2,RegDur)),0) -> 0 | AE34: =IF(AE$2<=Annuity!$E94,INDEX(CalcAnnual!#REF!,,MIN(AE$2,RegDur)),0) -> 0 | AF34: =IF(AF$2<=Annuity!$E94,INDEX(CalcAnnual!#REF!,,MIN(AF$2,RegDur)),0) -> 0 | AG34: =IF(AG$2<=Annuity!$E94,INDEX(CalcAnnual!#REF!,,MIN(AG$2,RegDur)),0) -> 0 | AH34: =IF(AH$2<=Annuity!$E94,INDEX(CalcAnnual!#REF!,,MIN(AH$2,RegDur)),0) -> 0 | AI34: =IF(AI$2<=Annuity!$E94,INDEX(CalcAnnual!#REF!,,MIN(AI$2,RegDur)),0) -> 0
B35: TRUE | C35: =Annuity!C95 -> Spare | F35: $ / Component | K35: =IF(K$2<=Annuity!$E95,INDEX(CalcAnnual!#REF!,,MIN(K$2,RegDur)),0) -> 0 | L35: =IF(L$2<=Annuity!$E95,INDEX(CalcAnnual!#REF!,,MIN(L$2,RegDur)),0) -> 0 | M35: =IF(M$2<=Annuity!$E95,INDEX(CalcAnnual!#REF!,,MIN(M$2,RegDur)),0) -> 0 | N35: =IF(N$2<=Annuity!$E95,INDEX(CalcAnnual!#REF!,,MIN(N$2,RegDur)),0) -> 0 | O35: =IF(O$2<=Annuity!$E95,INDEX(CalcAnnual!#REF!,,MIN(O$2,RegDur)),0) -> 0 | P35: =IF(P$2<=Annuity!$E95,INDEX(CalcAnnual!#REF!,,MIN(P$2,RegDur)),0) -> 0 | Q35: =IF(Q$2<=Annuity!$E95,INDEX(CalcAnnual!#REF!,,MIN(Q$2,RegDur)),0) -> 0 | R35: =IF(R$2<=Annuity!$E95,INDEX(CalcAnnual!#REF!,,MIN(R$2,RegDur)),0) -> 0 | S35: =IF(S$2<=Annuity!$E95,INDEX(CalcAnnual!#REF!,,MIN(S$2,RegDur)),0) -> 0 | T35: =IF(T$2<=Annuity!$E95,INDEX(CalcAnnual!#REF!,,MIN(T$2,RegDur)),0) -> 0 | U35: =IF(U$2<=Annuity!$E95,INDEX(CalcAnnual!#REF!,,MIN(U$2,RegDur)),0) -> 0 | V35: =IF(V$2<=Annuity!$E95,INDEX(CalcAnnual!#REF!,,MIN(V$2,RegDur)),0) -> 0 | W35: =IF(W$2<=Annuity!$E95,INDEX(CalcAnnual!#REF!,,MIN(W$2,RegDur)),0) -> 0 | X35: =IF(X$2<=Annuity!$E95,INDEX(CalcAnnual!#REF!,,MIN(X$2,RegDur)),0) -> 0 | Y35: =IF(Y$2<=Annuity!$E95,INDEX(CalcAnnual!#REF!,,MIN(Y$2,RegDur)),0) -> 0 | Z35: =IF(Z$2<=Annuity!$E95,INDEX(CalcAnnual!#REF!,,MIN(Z$2,RegDur)),0) -> 0 | AA35: =IF(AA$2<=Annuity!$E95,INDEX(CalcAnnual!#REF!,,MIN(AA$2,RegDur)),0) -> 0 | AB35: =IF(AB$2<=Annuity!$E95,INDEX(CalcAnnual!#REF!,,MIN(AB$2,RegDur)),0) -> 0 | AC35: =IF(AC$2<=Annuity!$E95,INDEX(CalcAnnual!#REF!,,MIN(AC$2,RegDur)),0) -> 0 | AD35: =IF(AD$2<=Annuity!$E95,INDEX(CalcAnnual!#REF!,,MIN(AD$2,RegDur)),0) -> 0 | AE35: =IF(AE$2<=Annuity!$E95,INDEX(CalcAnnual!#REF!,,MIN(AE$2,RegDur)),0) -> 0 | AF35: =IF(AF$2<=Annuity!$E95,INDEX(CalcAnnual!#REF!,,MIN(AF$2,RegDur)),0) -> 0 | AG35: =IF(AG$2<=Annuity!$E95,INDEX(CalcAnnual!#REF!,,MIN(AG$2,RegDur)),0) -> 0 | AH35: =IF(AH$2<=Annuity!$E95,INDEX(CalcAnnual!#REF!,,MIN(AH$2,RegDur)),0) -> 0 | AI35: =IF(AI$2<=Annuity!$E95,INDEX(CalcAnnual!#REF!,,MIN(AI$2,RegDur)),0) -> 0
B36: TRUE | C36: =Annuity!C96 -> Spare | F36: $ / Component | K36: =IF(K$2<=Annuity!$E96,INDEX(CalcAnnual!#REF!,,MIN(K$2,RegDur)),0) -> 0 | L36: =IF(L$2<=Annuity!$E96,INDEX(CalcAnnual!#REF!,,MIN(L$2,RegDur)),0) -> 0 | M36: =IF(M$2<=Annuity!$E96,INDEX(CalcAnnual!#REF!,,MIN(M$2,RegDur)),0) -> 0 | N36: =IF(N$2<=Annuity!$E96,INDEX(CalcAnnual!#REF!,,MIN(N$2,RegDur)),0) -> 0 | O36: =IF(O$2<=Annuity!$E96,INDEX(CalcAnnual!#REF!,,MIN(O$2,RegDur)),0) -> 0 | P36: =IF(P$2<=Annuity!$E96,INDEX(CalcAnnual!#REF!,,MIN(P$2,RegDur)),0) -> 0 | Q36: =IF(Q$2<=Annuity!$E96,INDEX(CalcAnnual!#REF!,,MIN(Q$2,RegDur)),0) -> 0 | R36: =IF(R$2<=Annuity!$E96,INDEX(CalcAnnual!#REF!,,MIN(R$2,RegDur)),0) -> 0 | S36: =IF(S$2<=Annuity!$E96,INDEX(CalcAnnual!#REF!,,MIN(S$2,RegDur)),0) -> 0 | T36: =IF(T$2<=Annuity!$E96,INDEX(CalcAnnual!#REF!,,MIN(T$2,RegDur)),0) -> 0 | U36: =IF(U$2<=Annuity!$E96,INDEX(CalcAnnual!#REF!,,MIN(U$2,RegDur)),0) -> 0 | V36: =IF(V$2<=Annuity!$E96,INDEX(CalcAnnual!#REF!,,MIN(V$2,RegDur)),0) -> 0 | W36: =IF(W$2<=Annuity!$E96,INDEX(CalcAnnual!#REF!,,MIN(W$2,RegDur)),0) -> 0 | X36: =IF(X$2<=Annuity!$E96,INDEX(CalcAnnual!#REF!,,MIN(X$2,RegDur)),0) -> 0 | Y36: =IF(Y$2<=Annuity!$E96,INDEX(CalcAnnual!#REF!,,MIN(Y$2,RegDur)),0) -> 0 | Z36: =IF(Z$2<=Annuity!$E96,INDEX(CalcAnnual!#REF!,,MIN(Z$2,RegDur)),0) -> 0 | AA36: =IF(AA$2<=Annuity!$E96,INDEX(CalcAnnual!#REF!,,MIN(AA$2,RegDur)),0) -> 0 | AB36: =IF(AB$2<=Annuity!$E96,INDEX(CalcAnnual!#REF!,,MIN(AB$2,RegDur)),0) -> 0 | AC36: =IF(AC$2<=Annuity!$E96,INDEX(CalcAnnual!#REF!,,MIN(AC$2,RegDur)),0) -> 0 | AD36: =IF(AD$2<=Annuity!$E96,INDEX(CalcAnnual!#REF!,,MIN(AD$2,RegDur)),0) -> 0 | AE36: =IF(AE$2<=Annuity!$E96,INDEX(CalcAnnual!#REF!,,MIN(AE$2,RegDur)),0) -> 0 | AF36: =IF(AF$2<=Annuity!$E96,INDEX(CalcAnnual!#REF!,,MIN(AF$2,RegDur)),0) -> 0 | AG36: =IF(AG$2<=Annuity!$E96,INDEX(CalcAnnual!#REF!,,MIN(AG$2,RegDur)),0) -> 0 | AH36: =IF(AH$2<=Annuity!$E96,INDEX(CalcAnnual!#REF!,,MIN(AH$2,RegDur)),0) -> 0 | AI36: =IF(AI$2<=Annuity!$E96,INDEX(CalcAnnual!#REF!,,MIN(AI$2,RegDur)),0) -> 0
B37: TRUE | C37: =Annuity!C97 -> Spare | F37: $ / Component | K37: =IF(K$2<=Annuity!$E97,INDEX(CalcAnnual!#REF!,,MIN(K$2,RegDur)),0) -> 0 | L37: =IF(L$2<=Annuity!$E97,INDEX(CalcAnnual!#REF!,,MIN(L$2,RegDur)),0) -> 0 | M37: =IF(M$2<=Annuity!$E97,INDEX(CalcAnnual!#REF!,,MIN(M$2,RegDur)),0) -> 0 | N37: =IF(N$2<=Annuity!$E97,INDEX(CalcAnnual!#REF!,,MIN(N$2,RegDur)),0) -> 0 | O37: =IF(O$2<=Annuity!$E97,INDEX(CalcAnnual!#REF!,,MIN(O$2,RegDur)),0) -> 0 | P37: =IF(P$2<=Annuity!$E97,INDEX(CalcAnnual!#REF!,,MIN(P$2,RegDur)),0) -> 0 | Q37: =IF(Q$2<=Annuity!$E97,INDEX(CalcAnnual!#REF!,,MIN(Q$2,RegDur)),0) -> 0 | R37: =IF(R$2<=Annuity!$E97,INDEX(CalcAnnual!#REF!,,MIN(R$2,RegDur)),0) -> 0 | S37: =IF(S$2<=Annuity!$E97,INDEX(CalcAnnual!#REF!,,MIN(S$2,RegDur)),0) -> 0 | T37: =IF(T$2<=Annuity!$E97,INDEX(CalcAnnual!#REF!,,MIN(T$2,RegDur)),0) -> 0 | U37: =IF(U$2<=Annuity!$E97,INDEX(CalcAnnual!#REF!,,MIN(U$2,RegDur)),0) -> 0 | V37: =IF(V$2<=Annuity!$E97,INDEX(CalcAnnual!#REF!,,MIN(V$2,RegDur)),0) -> 0 | W37: =IF(W$2<=Annuity!$E97,INDEX(CalcAnnual!#REF!,,MIN(W$2,RegDur)),0) -> 0 | X37: =IF(X$2<=Annuity!$E97,INDEX(CalcAnnual!#REF!,,MIN(X$2,RegDur)),0) -> 0 | Y37: =IF(Y$2<=Annuity!$E97,INDEX(CalcAnnual!#REF!,,MIN(Y$2,RegDur)),0) -> 0 | Z37: =IF(Z$2<=Annuity!$E97,INDEX(CalcAnnual!#REF!,,MIN(Z$2,RegDur)),0) -> 0 | AA37: =IF(AA$2<=Annuity!$E97,INDEX(CalcAnnual!#REF!,,MIN(AA$2,RegDur)),0) -> 0 | AB37: =IF(AB$2<=Annuity!$E97,INDEX(CalcAnnual!#REF!,,MIN(AB$2,RegDur)),0) -> 0 | AC37: =IF(AC$2<=Annuity!$E97,INDEX(CalcAnnual!#REF!,,MIN(AC$2,RegDur)),0) -> 0 | AD37: =IF(AD$2<=Annuity!$E97,INDEX(CalcAnnual!#REF!,,MIN(AD$2,RegDur)),0) -> 0 | AE37: =IF(AE$2<=Annuity!$E97,INDEX(CalcAnnual!#REF!,,MIN(AE$2,RegDur)),0) -> 0 | AF37: =IF(AF$2<=Annuity!$E97,INDEX(CalcAnnual!#REF!,,MIN(AF$2,RegDur)),0) -> 0 | AG37: =IF(AG$2<=Annuity!$E97,INDEX(CalcAnnual!#REF!,,MIN(AG$2,RegDur)),0) -> 0 | AH37: =IF(AH$2<=Annuity!$E97,INDEX(CalcAnnual!#REF!,,MIN(AH$2,RegDur)),0) -> 0 | AI37: =IF(AI$2<=Annuity!$E97,INDEX(CalcAnnual!#REF!,,MIN(AI$2,RegDur)),0) -> 0
B38: TRUE | C38: =Annuity!C98 -> Spare | F38: $ / Component | K38: =IF(K$2<=Annuity!$E98,INDEX(CalcAnnual!#REF!,,MIN(K$2,RegDur)),0) -> 0 | L38: =IF(L$2<=Annuity!$E98,INDEX(CalcAnnual!#REF!,,MIN(L$2,RegDur)),0) -> 0 | M38: =IF(M$2<=Annuity!$E98,INDEX(CalcAnnual!#REF!,,MIN(M$2,RegDur)),0) -> 0 | N38: =IF(N$2<=Annuity!$E98,INDEX(CalcAnnual!#REF!,,MIN(N$2,RegDur)),0) -> 0 | O38: =IF(O$2<=Annuity!$E98,INDEX(CalcAnnual!#REF!,,MIN(O$2,RegDur)),0) -> 0 | P38: =IF(P$2<=Annuity!$E98,INDEX(CalcAnnual!#REF!,,MIN(P$2,RegDur)),0) -> 0 | Q38: =IF(Q$2<=Annuity!$E98,INDEX(CalcAnnual!#REF!,,MIN(Q$2,RegDur)),0) -> 0 | R38: =IF(R$2<=Annuity!$E98,INDEX(CalcAnnual!#REF!,,MIN(R$2,RegDur)),0) -> 0 | S38: =IF(S$2<=Annuity!$E98,INDEX(CalcAnnual!#REF!,,MIN(S$2,RegDur)),0) -> 0 | T38: =IF(T$2<=Annuity!$E98,INDEX(CalcAnnual!#REF!,,MIN(T$2,RegDur)),0) -> 0 | U38: =IF(U$2<=Annuity!$E98,INDEX(CalcAnnual!#REF!,,MIN(U$2,RegDur)),0) -> 0 | V38: =IF(V$2<=Annuity!$E98,INDEX(CalcAnnual!#REF!,,MIN(V$2,RegDur)),0) -> 0 | W38: =IF(W$2<=Annuity!$E98,INDEX(CalcAnnual!#REF!,,MIN(W$2,RegDur)),0) -> 0 | X38: =IF(X$2<=Annuity!$E98,INDEX(CalcAnnual!#REF!,,MIN(X$2,RegDur)),0) -> 0 | Y38: =IF(Y$2<=Annuity!$E98,INDEX(CalcAnnual!#REF!,,MIN(Y$2,RegDur)),0) -> 0 | Z38: =IF(Z$2<=Annuity!$E98,INDEX(CalcAnnual!#REF!,,MIN(Z$2,RegDur)),0) -> 0 | AA38: =IF(AA$2<=Annuity!$E98,INDEX(CalcAnnual!#REF!,,MIN(AA$2,RegDur)),0) -> 0 | AB38: =IF(AB$2<=Annuity!$E98,INDEX(CalcAnnual!#REF!,,MIN(AB$2,RegDur)),0) -> 0 | AC38: =IF(AC$2<=Annuity!$E98,INDEX(CalcAnnual!#REF!,,MIN(AC$2,RegDur)),0) -> 0 | AD38: =IF(AD$2<=Annuity!$E98,INDEX(CalcAnnual!#REF!,,MIN(AD$2,RegDur)),0) -> 0 | AE38: =IF(AE$2<=Annuity!$E98,INDEX(CalcAnnual!#REF!,,MIN(AE$2,RegDur)),0) -> 0 | AF38: =IF(AF$2<=Annuity!$E98,INDEX(CalcAnnual!#REF!,,MIN(AF$2,RegDur)),0) -> 0 | AG38: =IF(AG$2<=Annuity!$E98,INDEX(CalcAnnual!#REF!,,MIN(AG$2,RegDur)),0) -> 0 | AH38: =IF(AH$2<=Annuity!$E98,INDEX(CalcAnnual!#REF!,,MIN(AH$2,RegDur)),0) -> 0 | AI38: =IF(AI$2<=Annuity!$E98,INDEX(CalcAnnual!#REF!,,MIN(AI$2,RegDur)),0) -> 0
B39: TRUE | C39: =Annuity!C99 -> Spare | F39: $ / Component | K39: =IF(K$2<=Annuity!$E99,INDEX(CalcAnnual!#REF!,,MIN(K$2,RegDur)),0) -> 0 | L39: =IF(L$2<=Annuity!$E99,INDEX(CalcAnnual!#REF!,,MIN(L$2,RegDur)),0) -> 0 | M39: =IF(M$2<=Annuity!$E99,INDEX(CalcAnnual!#REF!,,MIN(M$2,RegDur)),0) -> 0 | N39: =IF(N$2<=Annuity!$E99,INDEX(CalcAnnual!#REF!,,MIN(N$2,RegDur)),0) -> 0 | O39: =IF(O$2<=Annuity!$E99,INDEX(CalcAnnual!#REF!,,MIN(O$2,RegDur)),0) -> 0 | P39: =IF(P$2<=Annuity!$E99,INDEX(CalcAnnual!#REF!,,MIN(P$2,RegDur)),0) -> 0 | Q39: =IF(Q$2<=Annuity!$E99,INDEX(CalcAnnual!#REF!,,MIN(Q$2,RegDur)),0) -> 0 | R39: =IF(R$2<=Annuity!$E99,INDEX(CalcAnnual!#REF!,,MIN(R$2,RegDur)),0) -> 0 | S39: =IF(S$2<=Annuity!$E99,INDEX(CalcAnnual!#REF!,,MIN(S$2,RegDur)),0) -> 0 | T39: =IF(T$2<=Annuity!$E99,INDEX(CalcAnnual!#REF!,,MIN(T$2,RegDur)),0) -> 0 | U39: =IF(U$2<=Annuity!$E99,INDEX(CalcAnnual!#REF!,,MIN(U$2,RegDur)),0) -> 0 | V39: =IF(V$2<=Annuity!$E99,INDEX(CalcAnnual!#REF!,,MIN(V$2,RegDur)),0) -> 0 | W39: =IF(W$2<=Annuity!$E99,INDEX(CalcAnnual!#REF!,,MIN(W$2,RegDur)),0) -> 0 | X39: =IF(X$2<=Annuity!$E99,INDEX(CalcAnnual!#REF!,,MIN(X$2,RegDur)),0) -> 0 | Y39: =IF(Y$2<=Annuity!$E99,INDEX(CalcAnnual!#REF!,,MIN(Y$2,RegDur)),0) -> 0 | Z39: =IF(Z$2<=Annuity!$E99,INDEX(CalcAnnual!#REF!,,MIN(Z$2,RegDur)),0) -> 0 | AA39: =IF(AA$2<=Annuity!$E99,INDEX(CalcAnnual!#REF!,,MIN(AA$2,RegDur)),0) -> 0 | AB39: =IF(AB$2<=Annuity!$E99,INDEX(CalcAnnual!#REF!,,MIN(AB$2,RegDur)),0) -> 0 | AC39: =IF(AC$2<=Annuity!$E99,INDEX(CalcAnnual!#REF!,,MIN(AC$2,RegDur)),0) -> 0 | AD39: =IF(AD$2<=Annuity!$E99,INDEX(CalcAnnual!#REF!,,MIN(AD$2,RegDur)),0) -> 0 | AE39: =IF(AE$2<=Annuity!$E99,INDEX(CalcAnnual!#REF!,,MIN(AE$2,RegDur)),0) -> 0 | AF39: =IF(AF$2<=Annuity!$E99,INDEX(CalcAnnual!#REF!,,MIN(AF$2,RegDur)),0) -> 0 | AG39: =IF(AG$2<=Annuity!$E99,INDEX(CalcAnnual!#REF!,,MIN(AG$2,RegDur)),0) -> 0 | AH39: =IF(AH$2<=Annuity!$E99,INDEX(CalcAnnual!#REF!,,MIN(AH$2,RegDur)),0) -> 0 | AI39: =IF(AI$2<=Annuity!$E99,INDEX(CalcAnnual!#REF!,,MIN(AI$2,RegDur)),0) -> 0
B40: =IF(C40="Spare",TRUE,0) -> TRUE | C40: =Annuity!C100 -> Spare | F40: $ / Component | K40: =IF(K$2<=Annuity!$E100,INDEX(CalcAnnual!#REF!,,MIN(K$2,RegDur)),0) -> 0 | L40: =IF(L$2<=Annuity!$E100,INDEX(CalcAnnual!#REF!,,MIN(L$2,RegDur)),0) -> 0 | M40: =IF(M$2<=Annuity!$E100,INDEX(CalcAnnual!#REF!,,MIN(M$2,RegDur)),0) -> 0 | N40: =IF(N$2<=Annuity!$E100,INDEX(CalcAnnual!#REF!,,MIN(N$2,RegDur)),0) -> 0 | O40: =IF(O$2<=Annuity!$E100,INDEX(CalcAnnual!#REF!,,MIN(O$2,RegDur)),0) -> 0 | P40: =IF(P$2<=Annuity!$E100,INDEX(CalcAnnual!#REF!,,MIN(P$2,RegDur)),0) -> 0 | Q40: =IF(Q$2<=Annuity!$E100,INDEX(CalcAnnual!#REF!,,MIN(Q$2,RegDur)),0) -> 0 | R40: =IF(R$2<=Annuity!$E100,INDEX(CalcAnnual!#REF!,,MIN(R$2,RegDur)),0) -> 0 | S40: =IF(S$2<=Annuity!$E100,INDEX(CalcAnnual!#REF!,,MIN(S$2,RegDur)),0) -> 0 | T40: =IF(T$2<=Annuity!$E100,INDEX(CalcAnnual!#REF!,,MIN(T$2,RegDur)),0) -> 0 | U40: =IF(U$2<=Annuity!$E100,INDEX(CalcAnnual!#REF!,,MIN(U$2,RegDur)),0) -> 0 | V40: =IF(V$2<=Annuity!$E100,INDEX(CalcAnnual!#REF!,,MIN(V$2,RegDur)),0) -> 0 | W40: =IF(W$2<=Annuity!$E100,INDEX(CalcAnnual!#REF!,,MIN(W$2,RegDur)),0) -> 0 | X40: =IF(X$2<=Annuity!$E100,INDEX(CalcAnnual!#REF!,,MIN(X$2,RegDur)),0) -> 0 | Y40: =IF(Y$2<=Annuity!$E100,INDEX(CalcAnnual!#REF!,,MIN(Y$2,RegDur)),0) -> 0 | Z40: =IF(Z$2<=Annuity!$E100,INDEX(CalcAnnual!#REF!,,MIN(Z$2,RegDur)),0) -> 0 | AA40: =IF(AA$2<=Annuity!$E100,INDEX(CalcAnnual!#REF!,,MIN(AA$2,RegDur)),0) -> 0 | AB40: =IF(AB$2<=Annuity!$E100,INDEX(CalcAnnual!#REF!,,MIN(AB$2,RegDur)),0) -> 0 | AC40: =IF(AC$2<=Annuity!$E100,INDEX(CalcAnnual!#REF!,,MIN(AC$2,RegDur)),0) -> 0 | AD40: =IF(AD$2<=Annuity!$E100,INDEX(CalcAnnual!#REF!,,MIN(AD$2,RegDur)),0) -> 0 | AE40: =IF(AE$2<=Annuity!$E100,INDEX(CalcAnnual!#REF!,,MIN(AE$2,RegDur)),0) -> 0 | AF40: =IF(AF$2<=Annuity!$E100,INDEX(CalcAnnual!#REF!,,MIN(AF$2,RegDur)),0) -> 0 | AG40: =IF(AG$2<=Annuity!$E100,INDEX(CalcAnnual!#REF!,,MIN(AG$2,RegDur)),0) -> 0 | AH40: =IF(AH$2<=Annuity!$E100,INDEX(CalcAnnual!#REF!,,MIN(AH$2,RegDur)),0) -> 0 | AI40: =IF(AI$2<=Annuity!$E100,INDEX(CalcAnnual!#REF!,,MIN(AI$2,RegDur)),0) -> 0
B41: TRUE | C41: =Annuity!C101 -> Spare | F41: $ / Component | K41: =IF(K$2<=Annuity!$E101,INDEX(CalcAnnual!#REF!,,MIN(K$2,RegDur)),0) -> 0 | L41: =IF(L$2<=Annuity!$E101,INDEX(CalcAnnual!#REF!,,MIN(L$2,RegDur)),0) -> 0 | M41: =IF(M$2<=Annuity!$E101,INDEX(CalcAnnual!#REF!,,MIN(M$2,RegDur)),0) -> 0 | N41: =IF(N$2<=Annuity!$E101,INDEX(CalcAnnual!#REF!,,MIN(N$2,RegDur)),0) -> 0 | O41: =IF(O$2<=Annuity!$E101,INDEX(CalcAnnual!#REF!,,MIN(O$2,RegDur)),0) -> 0 | P41: =IF(P$2<=Annuity!$E101,INDEX(CalcAnnual!#REF!,,MIN(P$2,RegDur)),0) -> 0 | Q41: =IF(Q$2<=Annuity!$E101,INDEX(CalcAnnual!#REF!,,MIN(Q$2,RegDur)),0) -> 0 | R41: =IF(R$2<=Annuity!$E101,INDEX(CalcAnnual!#REF!,,MIN(R$2,RegDur)),0) -> 0 | S41: =IF(S$2<=Annuity!$E101,INDEX(CalcAnnual!#REF!,,MIN(S$2,RegDur)),0) -> 0 | T41: =IF(T$2<=Annuity!$E101,INDEX(CalcAnnual!#REF!,,MIN(T$2,RegDur)),0) -> 0 | U41: =IF(U$2<=Annuity!$E101,INDEX(CalcAnnual!#REF!,,MIN(U$2,RegDur)),0) -> 0 | V41: =IF(V$2<=Annuity!$E101,INDEX(CalcAnnual!#REF!,,MIN(V$2,RegDur)),0) -> 0 | W41: =IF(W$2<=Annuity!$E101,INDEX(CalcAnnual!#REF!,,MIN(W$2,RegDur)),0) -> 0 | X41: =IF(X$2<=Annuity!$E101,INDEX(CalcAnnual!#REF!,,MIN(X$2,RegDur)),0) -> 0 | Y41: =IF(Y$2<=Annuity!$E101,INDEX(CalcAnnual!#REF!,,MIN(Y$2,RegDur)),0) -> 0 | Z41: =IF(Z$2<=Annuity!$E101,INDEX(CalcAnnual!#REF!,,MIN(Z$2,RegDur)),0) -> 0 | AA41: =IF(AA$2<=Annuity!$E101,INDEX(CalcAnnual!#REF!,,MIN(AA$2,RegDur)),0) -> 0 | AB41: =IF(AB$2<=Annuity!$E101,INDEX(CalcAnnual!#REF!,,MIN(AB$2,RegDur)),0) -> 0 | AC41: =IF(AC$2<=Annuity!$E101,INDEX(CalcAnnual!#REF!,,MIN(AC$2,RegDur)),0) -> 0 | AD41: =IF(AD$2<=Annuity!$E101,INDEX(CalcAnnual!#REF!,,MIN(AD$2,RegDur)),0) -> 0 | AE41: =IF(AE$2<=Annuity!$E101,INDEX(CalcAnnual!#REF!,,MIN(AE$2,RegDur)),0) -> 0 | AF41: =IF(AF$2<=Annuity!$E101,INDEX(CalcAnnual!#REF!,,MIN(AF$2,RegDur)),0) -> 0 | AG41: =IF(AG$2<=Annuity!$E101,INDEX(CalcAnnual!#REF!,,MIN(AG$2,RegDur)),0) -> 0 | AH41: =IF(AH$2<=Annuity!$E101,INDEX(CalcAnnual!#REF!,,MIN(AH$2,RegDur)),0) -> 0 | AI41: =IF(AI$2<=Annuity!$E101,INDEX(CalcAnnual!#REF!,,MIN(AI$2,RegDur)),0) -> 0
B42: TRUE | C42: =Annuity!C102 -> Spare | F42: $ / Component | K42: =IF(K$2<=Annuity!$E102,INDEX(CalcAnnual!#REF!,,MIN(K$2,RegDur)),0) -> 0 | L42: =IF(L$2<=Annuity!$E102,INDEX(CalcAnnual!#REF!,,MIN(L$2,RegDur)),0) -> 0 | M42: =IF(M$2<=Annuity!$E102,INDEX(CalcAnnual!#REF!,,MIN(M$2,RegDur)),0) -> 0 | N42: =IF(N$2<=Annuity!$E102,INDEX(CalcAnnual!#REF!,,MIN(N$2,RegDur)),0) -> 0 | O42: =IF(O$2<=Annuity!$E102,INDEX(CalcAnnual!#REF!,,MIN(O$2,RegDur)),0) -> 0 | P42: =IF(P$2<=Annuity!$E102,INDEX(CalcAnnual!#REF!,,MIN(P$2,RegDur)),0) -> 0 | Q42: =IF(Q$2<=Annuity!$E102,INDEX(CalcAnnual!#REF!,,MIN(Q$2,RegDur)),0) -> 0 | R42: =IF(R$2<=Annuity!$E102,INDEX(CalcAnnual!#REF!,,MIN(R$2,RegDur)),0) -> 0 | S42: =IF(S$2<=Annuity!$E102,INDEX(CalcAnnual!#REF!,,MIN(S$2,RegDur)),0) -> 0 | T42: =IF(T$2<=Annuity!$E102,INDEX(CalcAnnual!#REF!,,MIN(T$2,RegDur)),0) -> 0 | U42: =IF(U$2<=Annuity!$E102,INDEX(CalcAnnual!#REF!,,MIN(U$2,RegDur)),0) -> 0 | V42: =IF(V$2<=Annuity!$E102,INDEX(CalcAnnual!#REF!,,MIN(V$2,RegDur)),0) -> 0 | W42: =IF(W$2<=Annuity!$E102,INDEX(CalcAnnual!#REF!,,MIN(W$2,RegDur)),0) -> 0 | X42: =IF(X$2<=Annuity!$E102,INDEX(CalcAnnual!#REF!,,MIN(X$2,RegDur)),0) -> 0 | Y42: =IF(Y$2<=Annuity!$E102,INDEX(CalcAnnual!#REF!,,MIN(Y$2,RegDur)),0) -> 0 | Z42: =IF(Z$2<=Annuity!$E102,INDEX(CalcAnnual!#REF!,,MIN(Z$2,RegDur)),0) -> 0 | AA42: =IF(AA$2<=Annuity!$E102,INDEX(CalcAnnual!#REF!,,MIN(AA$2,RegDur)),0) -> 0 | AB42: =IF(AB$2<=Annuity!$E102,INDEX(CalcAnnual!#REF!,,MIN(AB$2,RegDur)),0) -> 0 | AC42: =IF(AC$2<=Annuity!$E102,INDEX(CalcAnnual!#REF!,,MIN(AC$2,RegDur)),0) -> 0 | AD42: =IF(AD$2<=Annuity!$E102,INDEX(CalcAnnual!#REF!,,MIN(AD$2,RegDur)),0) -> 0 | AE42: =IF(AE$2<=Annuity!$E102,INDEX(CalcAnnual!#REF!,,MIN(AE$2,RegDur)),0) -> 0 | AF42: =IF(AF$2<=Annuity!$E102,INDEX(CalcAnnual!#REF!,,MIN(AF$2,RegDur)),0) -> 0 | AG42: =IF(AG$2<=Annuity!$E102,INDEX(CalcAnnual!#REF!,,MIN(AG$2,RegDur)),0) -> 0 | AH42: =IF(AH$2<=Annuity!$E102,INDEX(CalcAnnual!#REF!,,MIN(AH$2,RegDur)),0) -> 0 | AI42: =IF(AI$2<=Annuity!$E102,INDEX(CalcAnnual!#REF!,,MIN(AI$2,RegDur)),0) -> 0
B43: TRUE | C43: =Annuity!C103 -> Spare | F43: $ / Component | K43: =IF(K$2<=Annuity!$E103,INDEX(CalcAnnual!#REF!,,MIN(K$2,RegDur)),0) -> 0 | L43: =IF(L$2<=Annuity!$E103,INDEX(CalcAnnual!#REF!,,MIN(L$2,RegDur)),0) -> 0 | M43: =IF(M$2<=Annuity!$E103,INDEX(CalcAnnual!#REF!,,MIN(M$2,RegDur)),0) -> 0 | N43: =IF(N$2<=Annuity!$E103,INDEX(CalcAnnual!#REF!,,MIN(N$2,RegDur)),0) -> 0 | O43: =IF(O$2<=Annuity!$E103,INDEX(CalcAnnual!#REF!,,MIN(O$2,RegDur)),0) -> 0 | P43: =IF(P$2<=Annuity!$E103,INDEX(CalcAnnual!#REF!,,MIN(P$2,RegDur)),0) -> 0 | Q43: =IF(Q$2<=Annuity!$E103,INDEX(CalcAnnual!#REF!,,MIN(Q$2,RegDur)),0) -> 0 | R43: =IF(R$2<=Annuity!$E103,INDEX(CalcAnnual!#REF!,,MIN(R$2,RegDur)),0) -> 0 | S43: =IF(S$2<=Annuity!$E103,INDEX(CalcAnnual!#REF!,,MIN(S$2,RegDur)),0) -> 0 | T43: =IF(T$2<=Annuity!$E103,INDEX(CalcAnnual!#REF!,,MIN(T$2,RegDur)),0) -> 0 | U43: =IF(U$2<=Annuity!$E103,INDEX(CalcAnnual!#REF!,,MIN(U$2,RegDur)),0) -> 0 | V43: =IF(V$2<=Annuity!$E103,INDEX(CalcAnnual!#REF!,,MIN(V$2,RegDur)),0) -> 0 | W43: =IF(W$2<=Annuity!$E103,INDEX(CalcAnnual!#REF!,,MIN(W$2,RegDur)),0) -> 0 | X43: =IF(X$2<=Annuity!$E103,INDEX(CalcAnnual!#REF!,,MIN(X$2,RegDur)),0) -> 0 | Y43: =IF(Y$2<=Annuity!$E103,INDEX(CalcAnnual!#REF!,,MIN(Y$2,RegDur)),0) -> 0 | Z43: =IF(Z$2<=Annuity!$E103,INDEX(CalcAnnual!#REF!,,MIN(Z$2,RegDur)),0) -> 0 | AA43: =IF(AA$2<=Annuity!$E103,INDEX(CalcAnnual!#REF!,,MIN(AA$2,RegDur)),0) -> 0 | AB43: =IF(AB$2<=Annuity!$E103,INDEX(CalcAnnual!#REF!,,MIN(AB$2,RegDur)),0) -> 0 | AC43: =IF(AC$2<=Annuity!$E103,INDEX(CalcAnnual!#REF!,,MIN(AC$2,RegDur)),0) -> 0 | AD43: =IF(AD$2<=Annuity!$E103,INDEX(CalcAnnual!#REF!,,MIN(AD$2,RegDur)),0) -> 0 | AE43: =IF(AE$2<=Annuity!$E103,INDEX(CalcAnnual!#REF!,,MIN(AE$2,RegDur)),0) -> 0 | AF43: =IF(AF$2<=Annuity!$E103,INDEX(CalcAnnual!#REF!,,MIN(AF$2,RegDur)),0) -> 0 | AG43: =IF(AG$2<=Annuity!$E103,INDEX(CalcAnnual!#REF!,,MIN(AG$2,RegDur)),0) -> 0 | AH43: =IF(AH$2<=Annuity!$E103,INDEX(CalcAnnual!#REF!,,MIN(AH$2,RegDur)),0) -> 0 | AI43: =IF(AI$2<=Annuity!$E103,INDEX(CalcAnnual!#REF!,,MIN(AI$2,RegDur)),0) -> 0
B44: TRUE | C44: =Annuity!C104 -> Spare | F44: $ / Component | K44: =IF(K$2<=Annuity!$E104,INDEX(CalcAnnual!#REF!,,MIN(K$2,RegDur)),0) -> 0 | L44: =IF(L$2<=Annuity!$E104,INDEX(CalcAnnual!#REF!,,MIN(L$2,RegDur)),0) -> 0 | M44: =IF(M$2<=Annuity!$E104,INDEX(CalcAnnual!#REF!,,MIN(M$2,RegDur)),0) -> 0 | N44: =IF(N$2<=Annuity!$E104,INDEX(CalcAnnual!#REF!,,MIN(N$2,RegDur)),0) -> 0 | O44: =IF(O$2<=Annuity!$E104,INDEX(CalcAnnual!#REF!,,MIN(O$2,RegDur)),0) -> 0 | P44: =IF(P$2<=Annuity!$E104,INDEX(CalcAnnual!#REF!,,MIN(P$2,RegDur)),0) -> 0 | Q44: =IF(Q$2<=Annuity!$E104,INDEX(CalcAnnual!#REF!,,MIN(Q$2,RegDur)),0) -> 0 | R44: =IF(R$2<=Annuity!$E104,INDEX(CalcAnnual!#REF!,,MIN(R$2,RegDur)),0) -> 0 | S44: =IF(S$2<=Annuity!$E104,INDEX(CalcAnnual!#REF!,,MIN(S$2,RegDur)),0) -> 0 | T44: =IF(T$2<=Annuity!$E104,INDEX(CalcAnnual!#REF!,,MIN(T$2,RegDur)),0) -> 0 | U44: =IF(U$2<=Annuity!$E104,INDEX(CalcAnnual!#REF!,,MIN(U$2,RegDur)),0) -> 0 | V44: =IF(V$2<=Annuity!$E104,INDEX(CalcAnnual!#REF!,,MIN(V$2,RegDur)),0) -> 0 | W44: =IF(W$2<=Annuity!$E104,INDEX(CalcAnnual!#REF!,,MIN(W$2,RegDur)),0) -> 0 | X44: =IF(X$2<=Annuity!$E104,INDEX(CalcAnnual!#REF!,,MIN(X$2,RegDur)),0) -> 0 | Y44: =IF(Y$2<=Annuity!$E104,INDEX(CalcAnnual!#REF!,,MIN(Y$2,RegDur)),0) -> 0 | Z44: =IF(Z$2<=Annuity!$E104,INDEX(CalcAnnual!#REF!,,MIN(Z$2,RegDur)),0) -> 0 | AA44: =IF(AA$2<=Annuity!$E104,INDEX(CalcAnnual!#REF!,,MIN(AA$2,RegDur)),0) -> 0 | AB44: =IF(AB$2<=Annuity!$E104,INDEX(CalcAnnual!#REF!,,MIN(AB$2,RegDur)),0) -> 0 | AC44: =IF(AC$2<=Annuity!$E104,INDEX(CalcAnnual!#REF!,,MIN(AC$2,RegDur)),0) -> 0 | AD44: =IF(AD$2<=Annuity!$E104,INDEX(CalcAnnual!#REF!,,MIN(AD$2,RegDur)),0) -> 0 | AE44: =IF(AE$2<=Annuity!$E104,INDEX(CalcAnnual!#REF!,,MIN(AE$2,RegDur)),0) -> 0 | AF44: =IF(AF$2<=Annuity!$E104,INDEX(CalcAnnual!#REF!,,MIN(AF$2,RegDur)),0) -> 0 | AG44: =IF(AG$2<=Annuity!$E104,INDEX(CalcAnnual!#REF!,,MIN(AG$2,RegDur)),0) -> 0 | AH44: =IF(AH$2<=Annuity!$E104,INDEX(CalcAnnual!#REF!,,MIN(AH$2,RegDur)),0) -> 0 | AI44: =IF(AI$2<=Annuity!$E104,INDEX(CalcAnnual!#REF!,,MIN(AI$2,RegDur)),0) -> 0
B45: TRUE | C45: =Annuity!C105 -> Spare | F45: $ / Component | K45: =IF(K$2<=Annuity!$E105,INDEX(CalcAnnual!#REF!,,MIN(K$2,RegDur)),0) -> 0 | L45: =IF(L$2<=Annuity!$E105,INDEX(CalcAnnual!#REF!,,MIN(L$2,RegDur)),0) -> 0 | M45: =IF(M$2<=Annuity!$E105,INDEX(CalcAnnual!#REF!,,MIN(M$2,RegDur)),0) -> 0 | N45: =IF(N$2<=Annuity!$E105,INDEX(CalcAnnual!#REF!,,MIN(N$2,RegDur)),0) -> 0 | O45: =IF(O$2<=Annuity!$E105,INDEX(CalcAnnual!#REF!,,MIN(O$2,RegDur)),0) -> 0 | P45: =IF(P$2<=Annuity!$E105,INDEX(CalcAnnual!#REF!,,MIN(P$2,RegDur)),0) -> 0 | Q45: =IF(Q$2<=Annuity!$E105,INDEX(CalcAnnual!#REF!,,MIN(Q$2,RegDur)),0) -> 0 | R45: =IF(R$2<=Annuity!$E105,INDEX(CalcAnnual!#REF!,,MIN(R$2,RegDur)),0) -> 0 | S45: =IF(S$2<=Annuity!$E105,INDEX(CalcAnnual!#REF!,,MIN(S$2,RegDur)),0) -> 0 | T45: =IF(T$2<=Annuity!$E105,INDEX(CalcAnnual!#REF!,,MIN(T$2,RegDur)),0) -> 0 | U45: =IF(U$2<=Annuity!$E105,INDEX(CalcAnnual!#REF!,,MIN(U$2,RegDur)),0) -> 0 | V45: =IF(V$2<=Annuity!$E105,INDEX(CalcAnnual!#REF!,,MIN(V$2,RegDur)),0) -> 0 | W45: =IF(W$2<=Annuity!$E105,INDEX(CalcAnnual!#REF!,,MIN(W$2,RegDur)),0) -> 0 | X45: =IF(X$2<=Annuity!$E105,INDEX(CalcAnnual!#REF!,,MIN(X$2,RegDur)),0) -> 0 | Y45: =IF(Y$2<=Annuity!$E105,INDEX(CalcAnnual!#REF!,,MIN(Y$2,RegDur)),0) -> 0 | Z45: =IF(Z$2<=Annuity!$E105,INDEX(CalcAnnual!#REF!,,MIN(Z$2,RegDur)),0) -> 0 | AA45: =IF(AA$2<=Annuity!$E105,INDEX(CalcAnnual!#REF!,,MIN(AA$2,RegDur)),0) -> 0 | AB45: =IF(AB$2<=Annuity!$E105,INDEX(CalcAnnual!#REF!,,MIN(AB$2,RegDur)),0) -> 0 | AC45: =IF(AC$2<=Annuity!$E105,INDEX(CalcAnnual!#REF!,,MIN(AC$2,RegDur)),0) -> 0 | AD45: =IF(AD$2<=Annuity!$E105,INDEX(CalcAnnual!#REF!,,MIN(AD$2,RegDur)),0) -> 0 | AE45: =IF(AE$2<=Annuity!$E105,INDEX(CalcAnnual!#REF!,,MIN(AE$2,RegDur)),0) -> 0 | AF45: =IF(AF$2<=Annuity!$E105,INDEX(CalcAnnual!#REF!,,MIN(AF$2,RegDur)),0) -> 0 | AG45: =IF(AG$2<=Annuity!$E105,INDEX(CalcAnnual!#REF!,,MIN(AG$2,RegDur)),0) -> 0 | AH45: =IF(AH$2<=Annuity!$E105,INDEX(CalcAnnual!#REF!,,MIN(AH$2,RegDur)),0) -> 0 | AI45: =IF(AI$2<=Annuity!$E105,INDEX(CalcAnnual!#REF!,,MIN(AI$2,RegDur)),0) -> 0
B46: TRUE | C46: =Annuity!C106 -> Spare | F46: $ / Component | K46: =IF(K$2<=Annuity!$E106,INDEX(CalcAnnual!#REF!,,MIN(K$2,RegDur)),0) -> 0 | L46: =IF(L$2<=Annuity!$E106,INDEX(CalcAnnual!#REF!,,MIN(L$2,RegDur)),0) -> 0 | M46: =IF(M$2<=Annuity!$E106,INDEX(CalcAnnual!#REF!,,MIN(M$2,RegDur)),0) -> 0 | N46: =IF(N$2<=Annuity!$E106,INDEX(CalcAnnual!#REF!,,MIN(N$2,RegDur)),0) -> 0 | O46: =IF(O$2<=Annuity!$E106,INDEX(CalcAnnual!#REF!,,MIN(O$2,RegDur)),0) -> 0 | P46: =IF(P$2<=Annuity!$E106,INDEX(CalcAnnual!#REF!,,MIN(P$2,RegDur)),0) -> 0 | Q46: =IF(Q$2<=Annuity!$E106,INDEX(CalcAnnual!#REF!,,MIN(Q$2,RegDur)),0) -> 0 | R46: =IF(R$2<=Annuity!$E106,INDEX(CalcAnnual!#REF!,,MIN(R$2,RegDur)),0) -> 0 | S46: =IF(S$2<=Annuity!$E106,INDEX(CalcAnnual!#REF!,,MIN(S$2,RegDur)),0) -> 0 | T46: =IF(T$2<=Annuity!$E106,INDEX(CalcAnnual!#REF!,,MIN(T$2,RegDur)),0) -> 0 | U46: =IF(U$2<=Annuity!$E106,INDEX(CalcAnnual!#REF!,,MIN(U$2,RegDur)),0) -> 0 | V46: =IF(V$2<=Annuity!$E106,INDEX(CalcAnnual!#REF!,,MIN(V$2,RegDur)),0) -> 0 | W46: =IF(W$2<=Annuity!$E106,INDEX(CalcAnnual!#REF!,,MIN(W$2,RegDur)),0) -> 0 | X46: =IF(X$2<=Annuity!$E106,INDEX(CalcAnnual!#REF!,,MIN(X$2,RegDur)),0) -> 0 | Y46: =IF(Y$2<=Annuity!$E106,INDEX(CalcAnnual!#REF!,,MIN(Y$2,RegDur)),0) -> 0 | Z46: =IF(Z$2<=Annuity!$E106,INDEX(CalcAnnual!#REF!,,MIN(Z$2,RegDur)),0) -> 0 | AA46: =IF(AA$2<=Annuity!$E106,INDEX(CalcAnnual!#REF!,,MIN(AA$2,RegDur)),0) -> 0 | AB46: =IF(AB$2<=Annuity!$E106,INDEX(CalcAnnual!#REF!,,MIN(AB$2,RegDur)),0) -> 0 | AC46: =IF(AC$2<=Annuity!$E106,INDEX(CalcAnnual!#REF!,,MIN(AC$2,RegDur)),0) -> 0 | AD46: =IF(AD$2<=Annuity!$E106,INDEX(CalcAnnual!#REF!,,MIN(AD$2,RegDur)),0) -> 0 | AE46: =IF(AE$2<=Annuity!$E106,INDEX(CalcAnnual!#REF!,,MIN(AE$2,RegDur)),0) -> 0 | AF46: =IF(AF$2<=Annuity!$E106,INDEX(CalcAnnual!#REF!,,MIN(AF$2,RegDur)),0) -> 0 | AG46: =IF(AG$2<=Annuity!$E106,INDEX(CalcAnnual!#REF!,,MIN(AG$2,RegDur)),0) -> 0 | AH46: =IF(AH$2<=Annuity!$E106,INDEX(CalcAnnual!#REF!,,MIN(AH$2,RegDur)),0) -> 0 | AI46: =IF(AI$2<=Annuity!$E106,INDEX(CalcAnnual!#REF!,,MIN(AI$2,RegDur)),0) -> 0
B47: TRUE | C47: =Annuity!C107 -> Spare | F47: $ / Component | K47: =IF(K$2<=Annuity!$E107,INDEX(CalcAnnual!#REF!,,MIN(K$2,RegDur)),0) -> 0 | L47: =IF(L$2<=Annuity!$E107,INDEX(CalcAnnual!#REF!,,MIN(L$2,RegDur)),0) -> 0 | M47: =IF(M$2<=Annuity!$E107,INDEX(CalcAnnual!#REF!,,MIN(M$2,RegDur)),0) -> 0 | N47: =IF(N$2<=Annuity!$E107,INDEX(CalcAnnual!#REF!,,MIN(N$2,RegDur)),0) -> 0 | O47: =IF(O$2<=Annuity!$E107,INDEX(CalcAnnual!#REF!,,MIN(O$2,RegDur)),0) -> 0 | P47: =IF(P$2<=Annuity!$E107,INDEX(CalcAnnual!#REF!,,MIN(P$2,RegDur)),0) -> 0 | Q47: =IF(Q$2<=Annuity!$E107,INDEX(CalcAnnual!#REF!,,MIN(Q$2,RegDur)),0) -> 0 | R47: =IF(R$2<=Annuity!$E107,INDEX(CalcAnnual!#REF!,,MIN(R$2,RegDur)),0) -> 0 | S47: =IF(S$2<=Annuity!$E107,INDEX(CalcAnnual!#REF!,,MIN(S$2,RegDur)),0) -> 0 | T47: =IF(T$2<=Annuity!$E107,INDEX(CalcAnnual!#REF!,,MIN(T$2,RegDur)),0) -> 0 | U47: =IF(U$2<=Annuity!$E107,INDEX(CalcAnnual!#REF!,,MIN(U$2,RegDur)),0) -> 0 | V47: =IF(V$2<=Annuity!$E107,INDEX(CalcAnnual!#REF!,,MIN(V$2,RegDur)),0) -> 0 | W47: =IF(W$2<=Annuity!$E107,INDEX(CalcAnnual!#REF!,,MIN(W$2,RegDur)),0) -> 0 | X47: =IF(X$2<=Annuity!$E107,INDEX(CalcAnnual!#REF!,,MIN(X$2,RegDur)),0) -> 0 | Y47: =IF(Y$2<=Annuity!$E107,INDEX(CalcAnnual!#REF!,,MIN(Y$2,RegDur)),0) -> 0 | Z47: =IF(Z$2<=Annuity!$E107,INDEX(CalcAnnual!#REF!,,MIN(Z$2,RegDur)),0) -> 0 | AA47: =IF(AA$2<=Annuity!$E107,INDEX(CalcAnnual!#REF!,,MIN(AA$2,RegDur)),0) -> 0 | AB47: =IF(AB$2<=Annuity!$E107,INDEX(CalcAnnual!#REF!,,MIN(AB$2,RegDur)),0) -> 0 | AC47: =IF(AC$2<=Annuity!$E107,INDEX(CalcAnnual!#REF!,,MIN(AC$2,RegDur)),0) -> 0 | AD47: =IF(AD$2<=Annuity!$E107,INDEX(CalcAnnual!#REF!,,MIN(AD$2,RegDur)),0) -> 0 | AE47: =IF(AE$2<=Annuity!$E107,INDEX(CalcAnnual!#REF!,,MIN(AE$2,RegDur)),0) -> 0 | AF47: =IF(AF$2<=Annuity!$E107,INDEX(CalcAnnual!#REF!,,MIN(AF$2,RegDur)),0) -> 0 | AG47: =IF(AG$2<=Annuity!$E107,INDEX(CalcAnnual!#REF!,,MIN(AG$2,RegDur)),0) -> 0 | AH47: =IF(AH$2<=Annuity!$E107,INDEX(CalcAnnual!#REF!,,MIN(AH$2,RegDur)),0) -> 0 | AI47: =IF(AI$2<=Annuity!$E107,INDEX(CalcAnnual!#REF!,,MIN(AI$2,RegDur)),0) -> 0
B48: TRUE | C48: =Annuity!C108 -> Spare | F48: $ / Component | K48: =IF(K$2<=Annuity!$E108,INDEX(CalcAnnual!#REF!,,MIN(K$2,RegDur)),0) -> 0 | L48: =IF(L$2<=Annuity!$E108,INDEX(CalcAnnual!#REF!,,MIN(L$2,RegDur)),0) -> 0 | M48: =IF(M$2<=Annuity!$E108,INDEX(CalcAnnual!#REF!,,MIN(M$2,RegDur)),0) -> 0 | N48: =IF(N$2<=Annuity!$E108,INDEX(CalcAnnual!#REF!,,MIN(N$2,RegDur)),0) -> 0 | O48: =IF(O$2<=Annuity!$E108,INDEX(CalcAnnual!#REF!,,MIN(O$2,RegDur)),0) -> 0 | P48: =IF(P$2<=Annuity!$E108,INDEX(CalcAnnual!#REF!,,MIN(P$2,RegDur)),0) -> 0 | Q48: =IF(Q$2<=Annuity!$E108,INDEX(CalcAnnual!#REF!,,MIN(Q$2,RegDur)),0) -> 0 | R48: =IF(R$2<=Annuity!$E108,INDEX(CalcAnnual!#REF!,,MIN(R$2,RegDur)),0) -> 0 | S48: =IF(S$2<=Annuity!$E108,INDEX(CalcAnnual!#REF!,,MIN(S$2,RegDur)),0) -> 0 | T48: =IF(T$2<=Annuity!$E108,INDEX(CalcAnnual!#REF!,,MIN(T$2,RegDur)),0) -> 0 | U48: =IF(U$2<=Annuity!$E108,INDEX(CalcAnnual!#REF!,,MIN(U$2,RegDur)),0) -> 0 | V48: =IF(V$2<=Annuity!$E108,INDEX(CalcAnnual!#REF!,,MIN(V$2,RegDur)),0) -> 0 | W48: =IF(W$2<=Annuity!$E108,INDEX(CalcAnnual!#REF!,,MIN(W$2,RegDur)),0) -> 0 | X48: =IF(X$2<=Annuity!$E108,INDEX(CalcAnnual!#REF!,,MIN(X$2,RegDur)),0) -> 0 | Y48: =IF(Y$2<=Annuity!$E108,INDEX(CalcAnnual!#REF!,,MIN(Y$2,RegDur)),0) -> 0 | Z48: =IF(Z$2<=Annuity!$E108,INDEX(CalcAnnual!#REF!,,MIN(Z$2,RegDur)),0) -> 0 | AA48: =IF(AA$2<=Annuity!$E108,INDEX(CalcAnnual!#REF!,,MIN(AA$2,RegDur)),0) -> 0 | AB48: =IF(AB$2<=Annuity!$E108,INDEX(CalcAnnual!#REF!,,MIN(AB$2,RegDur)),0) -> 0 | AC48: =IF(AC$2<=Annuity!$E108,INDEX(CalcAnnual!#REF!,,MIN(AC$2,RegDur)),0) -> 0 | AD48: =IF(AD$2<=Annuity!$E108,INDEX(CalcAnnual!#REF!,,MIN(AD$2,RegDur)),0) -> 0 | AE48: =IF(AE$2<=Annuity!$E108,INDEX(CalcAnnual!#REF!,,MIN(AE$2,RegDur)),0) -> 0 | AF48: =IF(AF$2<=Annuity!$E108,INDEX(CalcAnnual!#REF!,,MIN(AF$2,RegDur)),0) -> 0 | AG48: =IF(AG$2<=Annuity!$E108,INDEX(CalcAnnual!#REF!,,MIN(AG$2,RegDur)),0) -> 0 | AH48: =IF(AH$2<=Annuity!$E108,INDEX(CalcAnnual!#REF!,,MIN(AH$2,RegDur)),0) -> 0 | AI48: =IF(AI$2<=Annuity!$E108,INDEX(CalcAnnual!#REF!,,MIN(AI$2,RegDur)),0) -> 0
B49: TRUE | C49: =Annuity!C109 -> Spare | F49: $ / Component | K49: =IF(K$2<=Annuity!$E109,INDEX(CalcAnnual!#REF!,,MIN(K$2,RegDur)),0) -> 0 | L49: =IF(L$2<=Annuity!$E109,INDEX(CalcAnnual!#REF!,,MIN(L$2,RegDur)),0) -> 0 | M49: =IF(M$2<=Annuity!$E109,INDEX(CalcAnnual!#REF!,,MIN(M$2,RegDur)),0) -> 0 | N49: =IF(N$2<=Annuity!$E109,INDEX(CalcAnnual!#REF!,,MIN(N$2,RegDur)),0) -> 0 | O49: =IF(O$2<=Annuity!$E109,INDEX(CalcAnnual!#REF!,,MIN(O$2,RegDur)),0) -> 0 | P49: =IF(P$2<=Annuity!$E109,INDEX(CalcAnnual!#REF!,,MIN(P$2,RegDur)),0) -> 0 | Q49: =IF(Q$2<=Annuity!$E109,INDEX(CalcAnnual!#REF!,,MIN(Q$2,RegDur)),0) -> 0 | R49: =IF(R$2<=Annuity!$E109,INDEX(CalcAnnual!#REF!,,MIN(R$2,RegDur)),0) -> 0 | S49: =IF(S$2<=Annuity!$E109,INDEX(CalcAnnual!#REF!,,MIN(S$2,RegDur)),0) -> 0 | T49: =IF(T$2<=Annuity!$E109,INDEX(CalcAnnual!#REF!,,MIN(T$2,RegDur)),0) -> 0 | U49: =IF(U$2<=Annuity!$E109,INDEX(CalcAnnual!#REF!,,MIN(U$2,RegDur)),0) -> 0 | V49: =IF(V$2<=Annuity!$E109,INDEX(CalcAnnual!#REF!,,MIN(V$2,RegDur)),0) -> 0 | W49: =IF(W$2<=Annuity!$E109,INDEX(CalcAnnual!#REF!,,MIN(W$2,RegDur)),0) -> 0 | X49: =IF(X$2<=Annuity!$E109,INDEX(CalcAnnual!#REF!,,MIN(X$2,RegDur)),0) -> 0 | Y49: =IF(Y$2<=Annuity!$E109,INDEX(CalcAnnual!#REF!,,MIN(Y$2,RegDur)),0) -> 0 | Z49: =IF(Z$2<=Annuity!$E109,INDEX(CalcAnnual!#REF!,,MIN(Z$2,RegDur)),0) -> 0 | AA49: =IF(AA$2<=Annuity!$E109,INDEX(CalcAnnual!#REF!,,MIN(AA$2,RegDur)),0) -> 0 | AB49: =IF(AB$2<=Annuity!$E109,INDEX(CalcAnnual!#REF!,,MIN(AB$2,RegDur)),0) -> 0 | AC49: =IF(AC$2<=Annuity!$E109,INDEX(CalcAnnual!#REF!,,MIN(AC$2,RegDur)),0) -> 0 | AD49: =IF(AD$2<=Annuity!$E109,INDEX(CalcAnnual!#REF!,,MIN(AD$2,RegDur)),0) -> 0 | AE49: =IF(AE$2<=Annuity!$E109,INDEX(CalcAnnual!#REF!,,MIN(AE$2,RegDur)),0) -> 0 | AF49: =IF(AF$2<=Annuity!$E109,INDEX(CalcAnnual!#REF!,,MIN(AF$2,RegDur)),0) -> 0 | AG49: =IF(AG$2<=Annuity!$E109,INDEX(CalcAnnual!#REF!,,MIN(AG$2,RegDur)),0) -> 0 | AH49: =IF(AH$2<=Annuity!$E109,INDEX(CalcAnnual!#REF!,,MIN(AH$2,RegDur)),0) -> 0 | AI49: =IF(AI$2<=Annuity!$E109,INDEX(CalcAnnual!#REF!,,MIN(AI$2,RegDur)),0) -> 0
B50: TRUE | C50: =Annuity!C110 -> Spare | F50: $ / Component | K50: =IF(K$2<=Annuity!$E110,INDEX(CalcAnnual!#REF!,,MIN(K$2,RegDur)),0) -> 0 | L50: =IF(L$2<=Annuity!$E110,INDEX(CalcAnnual!#REF!,,MIN(L$2,RegDur)),0) -> 0 | M50: =IF(M$2<=Annuity!$E110,INDEX(CalcAnnual!#REF!,,MIN(M$2,RegDur)),0) -> 0 | N50: =IF(N$2<=Annuity!$E110,INDEX(CalcAnnual!#REF!,,MIN(N$2,RegDur)),0) -> 0 | O50: =IF(O$2<=Annuity!$E110,INDEX(CalcAnnual!#REF!,,MIN(O$2,RegDur)),0) -> 0 | P50: =IF(P$2<=Annuity!$E110,INDEX(CalcAnnual!#REF!,,MIN(P$2,RegDur)),0) -> 0 | Q50: =IF(Q$2<=Annuity!$E110,INDEX(CalcAnnual!#REF!,,MIN(Q$2,RegDur)),0) -> 0 | R50: =IF(R$2<=Annuity!$E110,INDEX(CalcAnnual!#REF!,,MIN(R$2,RegDur)),0) -> 0 | S50: =IF(S$2<=Annuity!$E110,INDEX(CalcAnnual!#REF!,,MIN(S$2,RegDur)),0) -> 0 | T50: =IF(T$2<=Annuity!$E110,INDEX(CalcAnnual!#REF!,,MIN(T$2,RegDur)),0) -> 0 | U50: =IF(U$2<=Annuity!$E110,INDEX(CalcAnnual!#REF!,,MIN(U$2,RegDur)),0) -> 0 | V50: =IF(V$2<=Annuity!$E110,INDEX(CalcAnnual!#REF!,,MIN(V$2,RegDur)),0) -> 0 | W50: =IF(W$2<=Annuity!$E110,INDEX(CalcAnnual!#REF!,,MIN(W$2,RegDur)),0) -> 0 | X50: =IF(X$2<=Annuity!$E110,INDEX(CalcAnnual!#REF!,,MIN(X$2,RegDur)),0) -> 0 | Y50: =IF(Y$2<=Annuity!$E110,INDEX(CalcAnnual!#REF!,,MIN(Y$2,RegDur)),0) -> 0 | Z50: =IF(Z$2<=Annuity!$E110,INDEX(CalcAnnual!#REF!,,MIN(Z$2,RegDur)),0) -> 0 | AA50: =IF(AA$2<=Annuity!$E110,INDEX(CalcAnnual!#REF!,,MIN(AA$2,RegDur)),0) -> 0 | AB50: =IF(AB$2<=Annuity!$E110,INDEX(CalcAnnual!#REF!,,MIN(AB$2,RegDur)),0) -> 0 | AC50: =IF(AC$2<=Annuity!$E110,INDEX(CalcAnnual!#REF!,,MIN(AC$2,RegDur)),0) -> 0 | AD50: =IF(AD$2<=Annuity!$E110,INDEX(CalcAnnual!#REF!,,MIN(AD$2,RegDur)),0) -> 0 | AE50: =IF(AE$2<=Annuity!$E110,INDEX(CalcAnnual!#REF!,,MIN(AE$2,RegDur)),0) -> 0 | AF50: =IF(AF$2<=Annuity!$E110,INDEX(CalcAnnual!#REF!,,MIN(AF$2,RegDur)),0) -> 0 | AG50: =IF(AG$2<=Annuity!$E110,INDEX(CalcAnnual!#REF!,,MIN(AG$2,RegDur)),0) -> 0 | AH50: =IF(AH$2<=Annuity!$E110,INDEX(CalcAnnual!#REF!,,MIN(AH$2,RegDur)),0) -> 0 | AI50: =IF(AI$2<=Annuity!$E110,INDEX(CalcAnnual!#REF!,,MIN(AI$2,RegDur)),0) -> 0
B51: TRUE | C51: =Annuity!C111 -> Spare | F51: $ / Component | K51: =IF(K$2<=Annuity!$E111,INDEX(CalcAnnual!#REF!,,MIN(K$2,RegDur)),0) -> 0 | L51: =IF(L$2<=Annuity!$E111,INDEX(CalcAnnual!#REF!,,MIN(L$2,RegDur)),0) -> 0 | M51: =IF(M$2<=Annuity!$E111,INDEX(CalcAnnual!#REF!,,MIN(M$2,RegDur)),0) -> 0 | N51: =IF(N$2<=Annuity!$E111,INDEX(CalcAnnual!#REF!,,MIN(N$2,RegDur)),0) -> 0 | O51: =IF(O$2<=Annuity!$E111,INDEX(CalcAnnual!#REF!,,MIN(O$2,RegDur)),0) -> 0 | P51: =IF(P$2<=Annuity!$E111,INDEX(CalcAnnual!#REF!,,MIN(P$2,RegDur)),0) -> 0 | Q51: =IF(Q$2<=Annuity!$E111,INDEX(CalcAnnual!#REF!,,MIN(Q$2,RegDur)),0) -> 0 | R51: =IF(R$2<=Annuity!$E111,INDEX(CalcAnnual!#REF!,,MIN(R$2,RegDur)),0) -> 0 | S51: =IF(S$2<=Annuity!$E111,INDEX(CalcAnnual!#REF!,,MIN(S$2,RegDur)),0) -> 0 | T51: =IF(T$2<=Annuity!$E111,INDEX(CalcAnnual!#REF!,,MIN(T$2,RegDur)),0) -> 0 | U51: =IF(U$2<=Annuity!$E111,INDEX(CalcAnnual!#REF!,,MIN(U$2,RegDur)),0) -> 0 | V51: =IF(V$2<=Annuity!$E111,INDEX(CalcAnnual!#REF!,,MIN(V$2,RegDur)),0) -> 0 | W51: =IF(W$2<=Annuity!$E111,INDEX(CalcAnnual!#REF!,,MIN(W$2,RegDur)),0) -> 0 | X51: =IF(X$2<=Annuity!$E111,INDEX(CalcAnnual!#REF!,,MIN(X$2,RegDur)),0) -> 0 | Y51: =IF(Y$2<=Annuity!$E111,INDEX(CalcAnnual!#REF!,,MIN(Y$2,RegDur)),0) -> 0 | Z51: =IF(Z$2<=Annuity!$E111,INDEX(CalcAnnual!#REF!,,MIN(Z$2,RegDur)),0) -> 0 | AA51: =IF(AA$2<=Annuity!$E111,INDEX(CalcAnnual!#REF!,,MIN(AA$2,RegDur)),0) -> 0 | AB51: =IF(AB$2<=Annuity!$E111,INDEX(CalcAnnual!#REF!,,MIN(AB$2,RegDur)),0) -> 0 | AC51: =IF(AC$2<=Annuity!$E111,INDEX(CalcAnnual!#REF!,,MIN(AC$2,RegDur)),0) -> 0 | AD51: =IF(AD$2<=Annuity!$E111,INDEX(CalcAnnual!#REF!,,MIN(AD$2,RegDur)),0) -> 0 | AE51: =IF(AE$2<=Annuity!$E111,INDEX(CalcAnnual!#REF!,,MIN(AE$2,RegDur)),0) -> 0 | AF51: =IF(AF$2<=Annuity!$E111,INDEX(CalcAnnual!#REF!,,MIN(AF$2,RegDur)),0) -> 0 | AG51: =IF(AG$2<=Annuity!$E111,INDEX(CalcAnnual!#REF!,,MIN(AG$2,RegDur)),0) -> 0 | AH51: =IF(AH$2<=Annuity!$E111,INDEX(CalcAnnual!#REF!,,MIN(AH$2,RegDur)),0) -> 0 | AI51: =IF(AI$2<=Annuity!$E111,INDEX(CalcAnnual!#REF!,,MIN(AI$2,RegDur)),0) -> 0
B52: TRUE | C52: =Annuity!C112 -> Spare | F52: $ / Component | K52: =IF(K$2<=Annuity!$E112,INDEX(CalcAnnual!#REF!,,MIN(K$2,RegDur)),0) -> 0 | L52: =IF(L$2<=Annuity!$E112,INDEX(CalcAnnual!#REF!,,MIN(L$2,RegDur)),0) -> 0 | M52: =IF(M$2<=Annuity!$E112,INDEX(CalcAnnual!#REF!,,MIN(M$2,RegDur)),0) -> 0 | N52: =IF(N$2<=Annuity!$E112,INDEX(CalcAnnual!#REF!,,MIN(N$2,RegDur)),0) -> 0 | O52: =IF(O$2<=Annuity!$E112,INDEX(CalcAnnual!#REF!,,MIN(O$2,RegDur)),0) -> 0 | P52: =IF(P$2<=Annuity!$E112,INDEX(CalcAnnual!#REF!,,MIN(P$2,RegDur)),0) -> 0 | Q52: =IF(Q$2<=Annuity!$E112,INDEX(CalcAnnual!#REF!,,MIN(Q$2,RegDur)),0) -> 0 | R52: =IF(R$2<=Annuity!$E112,INDEX(CalcAnnual!#REF!,,MIN(R$2,RegDur)),0) -> 0 | S52: =IF(S$2<=Annuity!$E112,INDEX(CalcAnnual!#REF!,,MIN(S$2,RegDur)),0) -> 0 | T52: =IF(T$2<=Annuity!$E112,INDEX(CalcAnnual!#REF!,,MIN(T$2,RegDur)),0) -> 0 | U52: =IF(U$2<=Annuity!$E112,INDEX(CalcAnnual!#REF!,,MIN(U$2,RegDur)),0) -> 0 | V52: =IF(V$2<=Annuity!$E112,INDEX(CalcAnnual!#REF!,,MIN(V$2,RegDur)),0) -> 0 | W52: =IF(W$2<=Annuity!$E112,INDEX(CalcAnnual!#REF!,,MIN(W$2,RegDur)),0) -> 0 | X52: =IF(X$2<=Annuity!$E112,INDEX(CalcAnnual!#REF!,,MIN(X$2,RegDur)),0) -> 0 | Y52: =IF(Y$2<=Annuity!$E112,INDEX(CalcAnnual!#REF!,,MIN(Y$2,RegDur)),0) -> 0 | Z52: =IF(Z$2<=Annuity!$E112,INDEX(CalcAnnual!#REF!,,MIN(Z$2,RegDur)),0) -> 0 | AA52: =IF(AA$2<=Annuity!$E112,INDEX(CalcAnnual!#REF!,,MIN(AA$2,RegDur)),0) -> 0 | AB52: =IF(AB$2<=Annuity!$E112,INDEX(CalcAnnual!#REF!,,MIN(AB$2,RegDur)),0) -> 0 | AC52: =IF(AC$2<=Annuity!$E112,INDEX(CalcAnnual!#REF!,,MIN(AC$2,RegDur)),0) -> 0 | AD52: =IF(AD$2<=Annuity!$E112,INDEX(CalcAnnual!#REF!,,MIN(AD$2,RegDur)),0) -> 0 | AE52: =IF(AE$2<=Annuity!$E112,INDEX(CalcAnnual!#REF!,,MIN(AE$2,RegDur)),0) -> 0 | AF52: =IF(AF$2<=Annuity!$E112,INDEX(CalcAnnual!#REF!,,MIN(AF$2,RegDur)),0) -> 0 | AG52: =IF(AG$2<=Annuity!$E112,INDEX(CalcAnnual!#REF!,,MIN(AG$2,RegDur)),0) -> 0 | AH52: =IF(AH$2<=Annuity!$E112,INDEX(CalcAnnual!#REF!,,MIN(AH$2,RegDur)),0) -> 0 | AI52: =IF(AI$2<=Annuity!$E112,INDEX(CalcAnnual!#REF!,,MIN(AI$2,RegDur)),0) -> 0
B53: TRUE | C53: =Annuity!C113 -> Spare | F53: $ / Component | K53: =IF(K$2<=Annuity!$E113,INDEX(CalcAnnual!#REF!,,MIN(K$2,RegDur)),0) -> 0 | L53: =IF(L$2<=Annuity!$E113,INDEX(CalcAnnual!#REF!,,MIN(L$2,RegDur)),0) -> 0 | M53: =IF(M$2<=Annuity!$E113,INDEX(CalcAnnual!#REF!,,MIN(M$2,RegDur)),0) -> 0 | N53: =IF(N$2<=Annuity!$E113,INDEX(CalcAnnual!#REF!,,MIN(N$2,RegDur)),0) -> 0 | O53: =IF(O$2<=Annuity!$E113,INDEX(CalcAnnual!#REF!,,MIN(O$2,RegDur)),0) -> 0 | P53: =IF(P$2<=Annuity!$E113,INDEX(CalcAnnual!#REF!,,MIN(P$2,RegDur)),0) -> 0 | Q53: =IF(Q$2<=Annuity!$E113,INDEX(CalcAnnual!#REF!,,MIN(Q$2,RegDur)),0) -> 0 | R53: =IF(R$2<=Annuity!$E113,INDEX(CalcAnnual!#REF!,,MIN(R$2,RegDur)),0) -> 0 | S53: =IF(S$2<=Annuity!$E113,INDEX(CalcAnnual!#REF!,,MIN(S$2,RegDur)),0) -> 0 | T53: =IF(T$2<=Annuity!$E113,INDEX(CalcAnnual!#REF!,,MIN(T$2,RegDur)),0) -> 0 | U53: =IF(U$2<=Annuity!$E113,INDEX(CalcAnnual!#REF!,,MIN(U$2,RegDur)),0) -> 0 | V53: =IF(V$2<=Annuity!$E113,INDEX(CalcAnnual!#REF!,,MIN(V$2,RegDur)),0) -> 0 | W53: =IF(W$2<=Annuity!$E113,INDEX(CalcAnnual!#REF!,,MIN(W$2,RegDur)),0) -> 0 | X53: =IF(X$2<=Annuity!$E113,INDEX(CalcAnnual!#REF!,,MIN(X$2,RegDur)),0) -> 0 | Y53: =IF(Y$2<=Annuity!$E113,INDEX(CalcAnnual!#REF!,,MIN(Y$2,RegDur)),0) -> 0 | Z53: =IF(Z$2<=Annuity!$E113,INDEX(CalcAnnual!#REF!,,MIN(Z$2,RegDur)),0) -> 0 | AA53: =IF(AA$2<=Annuity!$E113,INDEX(CalcAnnual!#REF!,,MIN(AA$2,RegDur)),0) -> 0 | AB53: =IF(AB$2<=Annuity!$E113,INDEX(CalcAnnual!#REF!,,MIN(AB$2,RegDur)),0) -> 0 | AC53: =IF(AC$2<=Annuity!$E113,INDEX(CalcAnnual!#REF!,,MIN(AC$2,RegDur)),0) -> 0 | AD53: =IF(AD$2<=Annuity!$E113,INDEX(CalcAnnual!#REF!,,MIN(AD$2,RegDur)),0) -> 0 | AE53: =IF(AE$2<=Annuity!$E113,INDEX(CalcAnnual!#REF!,,MIN(AE$2,RegDur)),0) -> 0 | AF53: =IF(AF$2<=Annuity!$E113,INDEX(CalcAnnual!#REF!,,MIN(AF$2,RegDur)),0) -> 0 | AG53: =IF(AG$2<=Annuity!$E113,INDEX(CalcAnnual!#REF!,,MIN(AG$2,RegDur)),0) -> 0 | AH53: =IF(AH$2<=Annuity!$E113,INDEX(CalcAnnual!#REF!,,MIN(AH$2,RegDur)),0) -> 0 | AI53: =IF(AI$2<=Annuity!$E113,INDEX(CalcAnnual!#REF!,,MIN(AI$2,RegDur)),0) -> 0
B54: TRUE | C54: =Annuity!C114 -> Spare | F54: $ / Component | K54: =IF(K$2<=Annuity!$E114,INDEX(CalcAnnual!#REF!,,MIN(K$2,RegDur)),0) -> 0 | L54: =IF(L$2<=Annuity!$E114,INDEX(CalcAnnual!#REF!,,MIN(L$2,RegDur)),0) -> 0 | M54: =IF(M$2<=Annuity!$E114,INDEX(CalcAnnual!#REF!,,MIN(M$2,RegDur)),0) -> 0 | N54: =IF(N$2<=Annuity!$E114,INDEX(CalcAnnual!#REF!,,MIN(N$2,RegDur)),0) -> 0 | O54: =IF(O$2<=Annuity!$E114,INDEX(CalcAnnual!#REF!,,MIN(O$2,RegDur)),0) -> 0 | P54: =IF(P$2<=Annuity!$E114,INDEX(CalcAnnual!#REF!,,MIN(P$2,RegDur)),0) -> 0 | Q54: =IF(Q$2<=Annuity!$E114,INDEX(CalcAnnual!#REF!,,MIN(Q$2,RegDur)),0) -> 0 | R54: =IF(R$2<=Annuity!$E114,INDEX(CalcAnnual!#REF!,,MIN(R$2,RegDur)),0) -> 0 | S54: =IF(S$2<=Annuity!$E114,INDEX(CalcAnnual!#REF!,,MIN(S$2,RegDur)),0) -> 0 | T54: =IF(T$2<=Annuity!$E114,INDEX(CalcAnnual!#REF!,,MIN(T$2,RegDur)),0) -> 0 | U54: =IF(U$2<=Annuity!$E114,INDEX(CalcAnnual!#REF!,,MIN(U$2,RegDur)),0) -> 0 | V54: =IF(V$2<=Annuity!$E114,INDEX(CalcAnnual!#REF!,,MIN(V$2,RegDur)),0) -> 0 | W54: =IF(W$2<=Annuity!$E114,INDEX(CalcAnnual!#REF!,,MIN(W$2,RegDur)),0) -> 0 | X54: =IF(X$2<=Annuity!$E114,INDEX(CalcAnnual!#REF!,,MIN(X$2,RegDur)),0) -> 0 | Y54: =IF(Y$2<=Annuity!$E114,INDEX(CalcAnnual!#REF!,,MIN(Y$2,RegDur)),0) -> 0 | Z54: =IF(Z$2<=Annuity!$E114,INDEX(CalcAnnual!#REF!,,MIN(Z$2,RegDur)),0) -> 0 | AA54: =IF(AA$2<=Annuity!$E114,INDEX(CalcAnnual!#REF!,,MIN(AA$2,RegDur)),0) -> 0 | AB54: =IF(AB$2<=Annuity!$E114,INDEX(CalcAnnual!#REF!,,MIN(AB$2,RegDur)),0) -> 0 | AC54: =IF(AC$2<=Annuity!$E114,INDEX(CalcAnnual!#REF!,,MIN(AC$2,RegDur)),0) -> 0 | AD54: =IF(AD$2<=Annuity!$E114,INDEX(CalcAnnual!#REF!,,MIN(AD$2,RegDur)),0) -> 0 | AE54: =IF(AE$2<=Annuity!$E114,INDEX(CalcAnnual!#REF!,,MIN(AE$2,RegDur)),0) -> 0 | AF54: =IF(AF$2<=Annuity!$E114,INDEX(CalcAnnual!#REF!,,MIN(AF$2,RegDur)),0) -> 0 | AG54: =IF(AG$2<=Annuity!$E114,INDEX(CalcAnnual!#REF!,,MIN(AG$2,RegDur)),0) -> 0 | AH54: =IF(AH$2<=Annuity!$E114,INDEX(CalcAnnual!#REF!,,MIN(AH$2,RegDur)),0) -> 0 | AI54: =IF(AI$2<=Annuity!$E114,INDEX(CalcAnnual!#REF!,,MIN(AI$2,RegDur)),0) -> 0
B55: TRUE | C55: =Annuity!C115 -> Spare | F55: $ / Component | K55: =IF(K$2<=Annuity!$E115,INDEX(CalcAnnual!#REF!,,MIN(K$2,RegDur)),0) -> 0 | L55: =IF(L$2<=Annuity!$E115,INDEX(CalcAnnual!#REF!,,MIN(L$2,RegDur)),0) -> 0 | M55: =IF(M$2<=Annuity!$E115,INDEX(CalcAnnual!#REF!,,MIN(M$2,RegDur)),0) -> 0 | N55: =IF(N$2<=Annuity!$E115,INDEX(CalcAnnual!#REF!,,MIN(N$2,RegDur)),0) -> 0 | O55: =IF(O$2<=Annuity!$E115,INDEX(CalcAnnual!#REF!,,MIN(O$2,RegDur)),0) -> 0 | P55: =IF(P$2<=Annuity!$E115,INDEX(CalcAnnual!#REF!,,MIN(P$2,RegDur)),0) -> 0 | Q55: =IF(Q$2<=Annuity!$E115,INDEX(CalcAnnual!#REF!,,MIN(Q$2,RegDur)),0) -> 0 | R55: =IF(R$2<=Annuity!$E115,INDEX(CalcAnnual!#REF!,,MIN(R$2,RegDur)),0) -> 0 | S55: =IF(S$2<=Annuity!$E115,INDEX(CalcAnnual!#REF!,,MIN(S$2,RegDur)),0) -> 0 | T55: =IF(T$2<=Annuity!$E115,INDEX(CalcAnnual!#REF!,,MIN(T$2,RegDur)),0) -> 0 | U55: =IF(U$2<=Annuity!$E115,INDEX(CalcAnnual!#REF!,,MIN(U$2,RegDur)),0) -> 0 | V55: =IF(V$2<=Annuity!$E115,INDEX(CalcAnnual!#REF!,,MIN(V$2,RegDur)),0) -> 0 | W55: =IF(W$2<=Annuity!$E115,INDEX(CalcAnnual!#REF!,,MIN(W$2,RegDur)),0) -> 0 | X55: =IF(X$2<=Annuity!$E115,INDEX(CalcAnnual!#REF!,,MIN(X$2,RegDur)),0) -> 0 | Y55: =IF(Y$2<=Annuity!$E115,INDEX(CalcAnnual!#REF!,,MIN(Y$2,RegDur)),0) -> 0 | Z55: =IF(Z$2<=Annuity!$E115,INDEX(CalcAnnual!#REF!,,MIN(Z$2,RegDur)),0) -> 0 | AA55: =IF(AA$2<=Annuity!$E115,INDEX(CalcAnnual!#REF!,,MIN(AA$2,RegDur)),0) -> 0 | AB55: =IF(AB$2<=Annuity!$E115,INDEX(CalcAnnual!#REF!,,MIN(AB$2,RegDur)),0) -> 0 | AC55: =IF(AC$2<=Annuity!$E115,INDEX(CalcAnnual!#REF!,,MIN(AC$2,RegDur)),0) -> 0 | AD55: =IF(AD$2<=Annuity!$E115,INDEX(CalcAnnual!#REF!,,MIN(AD$2,RegDur)),0) -> 0 | AE55: =IF(AE$2<=Annuity!$E115,INDEX(CalcAnnual!#REF!,,MIN(AE$2,RegDur)),0) -> 0 | AF55: =IF(AF$2<=Annuity!$E115,INDEX(CalcAnnual!#REF!,,MIN(AF$2,RegDur)),0) -> 0 | AG55: =IF(AG$2<=Annuity!$E115,INDEX(CalcAnnual!#REF!,,MIN(AG$2,RegDur)),0) -> 0 | AH55: =IF(AH$2<=Annuity!$E115,INDEX(CalcAnnual!#REF!,,MIN(AH$2,RegDur)),0) -> 0 | AI55: =IF(AI$2<=Annuity!$E115,INDEX(CalcAnnual!#REF!,,MIN(AI$2,RegDur)),0) -> 0
B56: TRUE | C56: =Annuity!C116 -> Spare | F56: $ / Component | K56: =IF(K$2<=Annuity!$E116,INDEX(CalcAnnual!#REF!,,MIN(K$2,RegDur)),0) -> 0 | L56: =IF(L$2<=Annuity!$E116,INDEX(CalcAnnual!#REF!,,MIN(L$2,RegDur)),0) -> 0 | M56: =IF(M$2<=Annuity!$E116,INDEX(CalcAnnual!#REF!,,MIN(M$2,RegDur)),0) -> 0 | N56: =IF(N$2<=Annuity!$E116,INDEX(CalcAnnual!#REF!,,MIN(N$2,RegDur)),0) -> 0 | O56: =IF(O$2<=Annuity!$E116,INDEX(CalcAnnual!#REF!,,MIN(O$2,RegDur)),0) -> 0 | P56: =IF(P$2<=Annuity!$E116,INDEX(CalcAnnual!#REF!,,MIN(P$2,RegDur)),0) -> 0 | Q56: =IF(Q$2<=Annuity!$E116,INDEX(CalcAnnual!#REF!,,MIN(Q$2,RegDur)),0) -> 0 | R56: =IF(R$2<=Annuity!$E116,INDEX(CalcAnnual!#REF!,,MIN(R$2,RegDur)),0) -> 0 | S56: =IF(S$2<=Annuity!$E116,INDEX(CalcAnnual!#REF!,,MIN(S$2,RegDur)),0) -> 0 | T56: =IF(T$2<=Annuity!$E116,INDEX(CalcAnnual!#REF!,,MIN(T$2,RegDur)),0) -> 0 | U56: =IF(U$2<=Annuity!$E116,INDEX(CalcAnnual!#REF!,,MIN(U$2,RegDur)),0) -> 0 | V56: =IF(V$2<=Annuity!$E116,INDEX(CalcAnnual!#REF!,,MIN(V$2,RegDur)),0) -> 0 | W56: =IF(W$2<=Annuity!$E116,INDEX(CalcAnnual!#REF!,,MIN(W$2,RegDur)),0) -> 0 | X56: =IF(X$2<=Annuity!$E116,INDEX(CalcAnnual!#REF!,,MIN(X$2,RegDur)),0) -> 0 | Y56: =IF(Y$2<=Annuity!$E116,INDEX(CalcAnnual!#REF!,,MIN(Y$2,RegDur)),0) -> 0 | Z56: =IF(Z$2<=Annuity!$E116,INDEX(CalcAnnual!#REF!,,MIN(Z$2,RegDur)),0) -> 0 | AA56: =IF(AA$2<=Annuity!$E116,INDEX(CalcAnnual!#REF!,,MIN(AA$2,RegDur)),0) -> 0 | AB56: =IF(AB$2<=Annuity!$E116,INDEX(CalcAnnual!#REF!,,MIN(AB$2,RegDur)),0) -> 0 | AC56: =IF(AC$2<=Annuity!$E116,INDEX(CalcAnnual!#REF!,,MIN(AC$2,RegDur)),0) -> 0 | AD56: =IF(AD$2<=Annuity!$E116,INDEX(CalcAnnual!#REF!,,MIN(AD$2,RegDur)),0) -> 0 | AE56: =IF(AE$2<=Annuity!$E116,INDEX(CalcAnnual!#REF!,,MIN(AE$2,RegDur)),0) -> 0 | AF56: =IF(AF$2<=Annuity!$E116,INDEX(CalcAnnual!#REF!,,MIN(AF$2,RegDur)),0) -> 0 | AG56: =IF(AG$2<=Annuity!$E116,INDEX(CalcAnnual!#REF!,,MIN(AG$2,RegDur)),0) -> 0 | AH56: =IF(AH$2<=Annuity!$E116,INDEX(CalcAnnual!#REF!,,MIN(AH$2,RegDur)),0) -> 0 | AI56: =IF(AI$2<=Annuity!$E116,INDEX(CalcAnnual!#REF!,,MIN(AI$2,RegDur)),0) -> 0
B57: TRUE | C57: =Annuity!C117 -> Spare | F57: $ / Component | K57: =IF(K$2<=Annuity!$E117,INDEX(CalcAnnual!#REF!,,MIN(K$2,RegDur)),0) -> 0 | L57: =IF(L$2<=Annuity!$E117,INDEX(CalcAnnual!#REF!,,MIN(L$2,RegDur)),0) -> 0 | M57: =IF(M$2<=Annuity!$E117,INDEX(CalcAnnual!#REF!,,MIN(M$2,RegDur)),0) -> 0 | N57: =IF(N$2<=Annuity!$E117,INDEX(CalcAnnual!#REF!,,MIN(N$2,RegDur)),0) -> 0 | O57: =IF(O$2<=Annuity!$E117,INDEX(CalcAnnual!#REF!,,MIN(O$2,RegDur)),0) -> 0 | P57: =IF(P$2<=Annuity!$E117,INDEX(CalcAnnual!#REF!,,MIN(P$2,RegDur)),0) -> 0 | Q57: =IF(Q$2<=Annuity!$E117,INDEX(CalcAnnual!#REF!,,MIN(Q$2,RegDur)),0) -> 0 | R57: =IF(R$2<=Annuity!$E117,INDEX(CalcAnnual!#REF!,,MIN(R$2,RegDur)),0) -> 0 | S57: =IF(S$2<=Annuity!$E117,INDEX(CalcAnnual!#REF!,,MIN(S$2,RegDur)),0) -> 0 | T57: =IF(T$2<=Annuity!$E117,INDEX(CalcAnnual!#REF!,,MIN(T$2,RegDur)),0) -> 0 | U57: =IF(U$2<=Annuity!$E117,INDEX(CalcAnnual!#REF!,,MIN(U$2,RegDur)),0) -> 0 | V57: =IF(V$2<=Annuity!$E117,INDEX(CalcAnnual!#REF!,,MIN(V$2,RegDur)),0) -> 0 | W57: =IF(W$2<=Annuity!$E117,INDEX(CalcAnnual!#REF!,,MIN(W$2,RegDur)),0) -> 0 | X57: =IF(X$2<=Annuity!$E117,INDEX(CalcAnnual!#REF!,,MIN(X$2,RegDur)),0) -> 0 | Y57: =IF(Y$2<=Annuity!$E117,INDEX(CalcAnnual!#REF!,,MIN(Y$2,RegDur)),0) -> 0 | Z57: =IF(Z$2<=Annuity!$E117,INDEX(CalcAnnual!#REF!,,MIN(Z$2,RegDur)),0) -> 0 | AA57: =IF(AA$2<=Annuity!$E117,INDEX(CalcAnnual!#REF!,,MIN(AA$2,RegDur)),0) -> 0 | AB57: =IF(AB$2<=Annuity!$E117,INDEX(CalcAnnual!#REF!,,MIN(AB$2,RegDur)),0) -> 0 | AC57: =IF(AC$2<=Annuity!$E117,INDEX(CalcAnnual!#REF!,,MIN(AC$2,RegDur)),0) -> 0 | AD57: =IF(AD$2<=Annuity!$E117,INDEX(CalcAnnual!#REF!,,MIN(AD$2,RegDur)),0) -> 0 | AE57: =IF(AE$2<=Annuity!$E117,INDEX(CalcAnnual!#REF!,,MIN(AE$2,RegDur)),0) -> 0 | AF57: =IF(AF$2<=Annuity!$E117,INDEX(CalcAnnual!#REF!,,MIN(AF$2,RegDur)),0) -> 0 | AG57: =IF(AG$2<=Annuity!$E117,INDEX(CalcAnnual!#REF!,,MIN(AG$2,RegDur)),0) -> 0 | AH57: =IF(AH$2<=Annuity!$E117,INDEX(CalcAnnual!#REF!,,MIN(AH$2,RegDur)),0) -> 0 | AI57: =IF(AI$2<=Annuity!$E117,INDEX(CalcAnnual!#REF!,,MIN(AI$2,RegDur)),0) -> 0
B58: TRUE | C58: =Annuity!C118 -> Spare | F58: $ / Component | K58: =IF(K$2<=Annuity!$E118,INDEX(CalcAnnual!#REF!,,MIN(K$2,RegDur)),0) -> 0 | L58: =IF(L$2<=Annuity!$E118,INDEX(CalcAnnual!#REF!,,MIN(L$2,RegDur)),0) -> 0 | M58: =IF(M$2<=Annuity!$E118,INDEX(CalcAnnual!#REF!,,MIN(M$2,RegDur)),0) -> 0 | N58: =IF(N$2<=Annuity!$E118,INDEX(CalcAnnual!#REF!,,MIN(N$2,RegDur)),0) -> 0 | O58: =IF(O$2<=Annuity!$E118,INDEX(CalcAnnual!#REF!,,MIN(O$2,RegDur)),0) -> 0 | P58: =IF(P$2<=Annuity!$E118,INDEX(CalcAnnual!#REF!,,MIN(P$2,RegDur)),0) -> 0 | Q58: =IF(Q$2<=Annuity!$E118,INDEX(CalcAnnual!#REF!,,MIN(Q$2,RegDur)),0) -> 0 | R58: =IF(R$2<=Annuity!$E118,INDEX(CalcAnnual!#REF!,,MIN(R$2,RegDur)),0) -> 0 | S58: =IF(S$2<=Annuity!$E118,INDEX(CalcAnnual!#REF!,,MIN(S$2,RegDur)),0) -> 0 | T58: =IF(T$2<=Annuity!$E118,INDEX(CalcAnnual!#REF!,,MIN(T$2,RegDur)),0) -> 0 | U58: =IF(U$2<=Annuity!$E118,INDEX(CalcAnnual!#REF!,,MIN(U$2,RegDur)),0) -> 0 | V58: =IF(V$2<=Annuity!$E118,INDEX(CalcAnnual!#REF!,,MIN(V$2,RegDur)),0) -> 0 | W58: =IF(W$2<=Annuity!$E118,INDEX(CalcAnnual!#REF!,,MIN(W$2,RegDur)),0) -> 0 | X58: =IF(X$2<=Annuity!$E118,INDEX(CalcAnnual!#REF!,,MIN(X$2,RegDur)),0) -> 0 | Y58: =IF(Y$2<=Annuity!$E118,INDEX(CalcAnnual!#REF!,,MIN(Y$2,RegDur)),0) -> 0 | Z58: =IF(Z$2<=Annuity!$E118,INDEX(CalcAnnual!#REF!,,MIN(Z$2,RegDur)),0) -> 0 | AA58: =IF(AA$2<=Annuity!$E118,INDEX(CalcAnnual!#REF!,,MIN(AA$2,RegDur)),0) -> 0 | AB58: =IF(AB$2<=Annuity!$E118,INDEX(CalcAnnual!#REF!,,MIN(AB$2,RegDur)),0) -> 0 | AC58: =IF(AC$2<=Annuity!$E118,INDEX(CalcAnnual!#REF!,,MIN(AC$2,RegDur)),0) -> 0 | AD58: =IF(AD$2<=Annuity!$E118,INDEX(CalcAnnual!#REF!,,MIN(AD$2,RegDur)),0) -> 0 | AE58: =IF(AE$2<=Annuity!$E118,INDEX(CalcAnnual!#REF!,,MIN(AE$2,RegDur)),0) -> 0 | AF58: =IF(AF$2<=Annuity!$E118,INDEX(CalcAnnual!#REF!,,MIN(AF$2,RegDur)),0) -> 0 | AG58: =IF(AG$2<=Annuity!$E118,INDEX(CalcAnnual!#REF!,,MIN(AG$2,RegDur)),0) -> 0 | AH58: =IF(AH$2<=Annuity!$E118,INDEX(CalcAnnual!#REF!,,MIN(AH$2,RegDur)),0) -> 0 | AI58: =IF(AI$2<=Annuity!$E118,INDEX(CalcAnnual!#REF!,,MIN(AI$2,RegDur)),0) -> 0
B59: TRUE | C59: =Annuity!C119 -> Spare | F59: $ / Component | K59: =IF(K$2<=Annuity!$E119,INDEX(CalcAnnual!#REF!,,MIN(K$2,RegDur)),0) -> 0 | L59: =IF(L$2<=Annuity!$E119,INDEX(CalcAnnual!#REF!,,MIN(L$2,RegDur)),0) -> 0 | M59: =IF(M$2<=Annuity!$E119,INDEX(CalcAnnual!#REF!,,MIN(M$2,RegDur)),0) -> 0 | N59: =IF(N$2<=Annuity!$E119,INDEX(CalcAnnual!#REF!,,MIN(N$2,RegDur)),0) -> 0 | O59: =IF(O$2<=Annuity!$E119,INDEX(CalcAnnual!#REF!,,MIN(O$2,RegDur)),0) -> 0 | P59: =IF(P$2<=Annuity!$E119,INDEX(CalcAnnual!#REF!,,MIN(P$2,RegDur)),0) -> 0 | Q59: =IF(Q$2<=Annuity!$E119,INDEX(CalcAnnual!#REF!,,MIN(Q$2,RegDur)),0) -> 0 | R59: =IF(R$2<=Annuity!$E119,INDEX(CalcAnnual!#REF!,,MIN(R$2,RegDur)),0) -> 0 | S59: =IF(S$2<=Annuity!$E119,INDEX(CalcAnnual!#REF!,,MIN(S$2,RegDur)),0) -> 0 | T59: =IF(T$2<=Annuity!$E119,INDEX(CalcAnnual!#REF!,,MIN(T$2,RegDur)),0) -> 0 | U59: =IF(U$2<=Annuity!$E119,INDEX(CalcAnnual!#REF!,,MIN(U$2,RegDur)),0) -> 0 | V59: =IF(V$2<=Annuity!$E119,INDEX(CalcAnnual!#REF!,,MIN(V$2,RegDur)),0) -> 0 | W59: =IF(W$2<=Annuity!$E119,INDEX(CalcAnnual!#REF!,,MIN(W$2,RegDur)),0) -> 0 | X59: =IF(X$2<=Annuity!$E119,INDEX(CalcAnnual!#REF!,,MIN(X$2,RegDur)),0) -> 0 | Y59: =IF(Y$2<=Annuity!$E119,INDEX(CalcAnnual!#REF!,,MIN(Y$2,RegDur)),0) -> 0 | Z59: =IF(Z$2<=Annuity!$E119,INDEX(CalcAnnual!#REF!,,MIN(Z$2,RegDur)),0) -> 0 | AA59: =IF(AA$2<=Annuity!$E119,INDEX(CalcAnnual!#REF!,,MIN(AA$2,RegDur)),0) -> 0 | AB59: =IF(AB$2<=Annuity!$E119,INDEX(CalcAnnual!#REF!,,MIN(AB$2,RegDur)),0) -> 0 | AC59: =IF(AC$2<=Annuity!$E119,INDEX(CalcAnnual!#REF!,,MIN(AC$2,RegDur)),0) -> 0 | AD59: =IF(AD$2<=Annuity!$E119,INDEX(CalcAnnual!#REF!,,MIN(AD$2,RegDur)),0) -> 0 | AE59: =IF(AE$2<=Annuity!$E119,INDEX(CalcAnnual!#REF!,,MIN(AE$2,RegDur)),0) -> 0 | AF59: =IF(AF$2<=Annuity!$E119,INDEX(CalcAnnual!#REF!,,MIN(AF$2,RegDur)),0) -> 0 | AG59: =IF(AG$2<=Annuity!$E119,INDEX(CalcAnnual!#REF!,,MIN(AG$2,RegDur)),0) -> 0 | AH59: =IF(AH$2<=Annuity!$E119,INDEX(CalcAnnual!#REF!,,MIN(AH$2,RegDur)),0) -> 0 | AI59: =IF(AI$2<=Annuity!$E119,INDEX(CalcAnnual!#REF!,,MIN(AI$2,RegDur)),0) -> 0
B60: TRUE | C60: =Annuity!C120 -> Spare | F60: $ / Component | K60: =IF(K$2<=Annuity!$E120,INDEX(CalcAnnual!#REF!,,MIN(K$2,RegDur)),0) -> 0 | L60: =IF(L$2<=Annuity!$E120,INDEX(CalcAnnual!#REF!,,MIN(L$2,RegDur)),0) -> 0 | M60: =IF(M$2<=Annuity!$E120,INDEX(CalcAnnual!#REF!,,MIN(M$2,RegDur)),0) -> 0 | N60: =IF(N$2<=Annuity!$E120,INDEX(CalcAnnual!#REF!,,MIN(N$2,RegDur)),0) -> 0 | O60: =IF(O$2<=Annuity!$E120,INDEX(CalcAnnual!#REF!,,MIN(O$2,RegDur)),0) -> 0 | P60: =IF(P$2<=Annuity!$E120,INDEX(CalcAnnual!#REF!,,MIN(P$2,RegDur)),0) -> 0 | Q60: =IF(Q$2<=Annuity!$E120,INDEX(CalcAnnual!#REF!,,MIN(Q$2,RegDur)),0) -> 0 | R60: =IF(R$2<=Annuity!$E120,INDEX(CalcAnnual!#REF!,,MIN(R$2,RegDur)),0) -> 0 | S60: =IF(S$2<=Annuity!$E120,INDEX(CalcAnnual!#REF!,,MIN(S$2,RegDur)),0) -> 0 | T60: =IF(T$2<=Annuity!$E120,INDEX(CalcAnnual!#REF!,,MIN(T$2,RegDur)),0) -> 0 | U60: =IF(U$2<=Annuity!$E120,INDEX(CalcAnnual!#REF!,,MIN(U$2,RegDur)),0) -> 0 | V60: =IF(V$2<=Annuity!$E120,INDEX(CalcAnnual!#REF!,,MIN(V$2,RegDur)),0) -> 0 | W60: =IF(W$2<=Annuity!$E120,INDEX(CalcAnnual!#REF!,,MIN(W$2,RegDur)),0) -> 0 | X60: =IF(X$2<=Annuity!$E120,INDEX(CalcAnnual!#REF!,,MIN(X$2,RegDur)),0) -> 0 | Y60: =IF(Y$2<=Annuity!$E120,INDEX(CalcAnnual!#REF!,,MIN(Y$2,RegDur)),0) -> 0 | Z60: =IF(Z$2<=Annuity!$E120,INDEX(CalcAnnual!#REF!,,MIN(Z$2,RegDur)),0) -> 0 | AA60: =IF(AA$2<=Annuity!$E120,INDEX(CalcAnnual!#REF!,,MIN(AA$2,RegDur)),0) -> 0 | AB60: =IF(AB$2<=Annuity!$E120,INDEX(CalcAnnual!#REF!,,MIN(AB$2,RegDur)),0) -> 0 | AC60: =IF(AC$2<=Annuity!$E120,INDEX(CalcAnnual!#REF!,,MIN(AC$2,RegDur)),0) -> 0 | AD60: =IF(AD$2<=Annuity!$E120,INDEX(CalcAnnual!#REF!,,MIN(AD$2,RegDur)),0) -> 0 | AE60: =IF(AE$2<=Annuity!$E120,INDEX(CalcAnnual!#REF!,,MIN(AE$2,RegDur)),0) -> 0 | AF60: =IF(AF$2<=Annuity!$E120,INDEX(CalcAnnual!#REF!,,MIN(AF$2,RegDur)),0) -> 0 | AG60: =IF(AG$2<=Annuity!$E120,INDEX(CalcAnnual!#REF!,,MIN(AG$2,RegDur)),0) -> 0 | AH60: =IF(AH$2<=Annuity!$E120,INDEX(CalcAnnual!#REF!,,MIN(AH$2,RegDur)),0) -> 0 | AI60: =IF(AI$2<=Annuity!$E120,INDEX(CalcAnnual!#REF!,,MIN(AI$2,RegDur)),0) -> 0
B61: TRUE | C61: =Annuity!C121 -> Spare | F61: $ / Component | K61: =IF(K$2<=Annuity!$E121,INDEX(CalcAnnual!#REF!,,MIN(K$2,RegDur)),0) -> 0 | L61: =IF(L$2<=Annuity!$E121,INDEX(CalcAnnual!#REF!,,MIN(L$2,RegDur)),0) -> 0 | M61: =IF(M$2<=Annuity!$E121,INDEX(CalcAnnual!#REF!,,MIN(M$2,RegDur)),0) -> 0 | N61: =IF(N$2<=Annuity!$E121,INDEX(CalcAnnual!#REF!,,MIN(N$2,RegDur)),0) -> 0 | O61: =IF(O$2<=Annuity!$E121,INDEX(CalcAnnual!#REF!,,MIN(O$2,RegDur)),0) -> 0 | P61: =IF(P$2<=Annuity!$E121,INDEX(CalcAnnual!#REF!,,MIN(P$2,RegDur)),0) -> 0 | Q61: =IF(Q$2<=Annuity!$E121,INDEX(CalcAnnual!#REF!,,MIN(Q$2,RegDur)),0) -> 0 | R61: =IF(R$2<=Annuity!$E121,INDEX(CalcAnnual!#REF!,,MIN(R$2,RegDur)),0) -> 0 | S61: =IF(S$2<=Annuity!$E121,INDEX(CalcAnnual!#REF!,,MIN(S$2,RegDur)),0) -> 0 | T61: =IF(T$2<=Annuity!$E121,INDEX(CalcAnnual!#REF!,,MIN(T$2,RegDur)),0) -> 0 | U61: =IF(U$2<=Annuity!$E121,INDEX(CalcAnnual!#REF!,,MIN(U$2,RegDur)),0) -> 0 | V61: =IF(V$2<=Annuity!$E121,INDEX(CalcAnnual!#REF!,,MIN(V$2,RegDur)),0) -> 0 | W61: =IF(W$2<=Annuity!$E121,INDEX(CalcAnnual!#REF!,,MIN(W$2,RegDur)),0) -> 0 | X61: =IF(X$2<=Annuity!$E121,INDEX(CalcAnnual!#REF!,,MIN(X$2,RegDur)),0) -> 0 | Y61: =IF(Y$2<=Annuity!$E121,INDEX(CalcAnnual!#REF!,,MIN(Y$2,RegDur)),0) -> 0 | Z61: =IF(Z$2<=Annuity!$E121,INDEX(CalcAnnual!#REF!,,MIN(Z$2,RegDur)),0) -> 0 | AA61: =IF(AA$2<=Annuity!$E121,INDEX(CalcAnnual!#REF!,,MIN(AA$2,RegDur)),0) -> 0 | AB61: =IF(AB$2<=Annuity!$E121,INDEX(CalcAnnual!#REF!,,MIN(AB$2,RegDur)),0) -> 0 | AC61: =IF(AC$2<=Annuity!$E121,INDEX(CalcAnnual!#REF!,,MIN(AC$2,RegDur)),0) -> 0 | AD61: =IF(AD$2<=Annuity!$E121,INDEX(CalcAnnual!#REF!,,MIN(AD$2,RegDur)),0) -> 0 | AE61: =IF(AE$2<=Annuity!$E121,INDEX(CalcAnnual!#REF!,,MIN(AE$2,RegDur)),0) -> 0 | AF61: =IF(AF$2<=Annuity!$E121,INDEX(CalcAnnual!#REF!,,MIN(AF$2,RegDur)),0) -> 0 | AG61: =IF(AG$2<=Annuity!$E121,INDEX(CalcAnnual!#REF!,,MIN(AG$2,RegDur)),0) -> 0 | AH61: =IF(AH$2<=Annuity!$E121,INDEX(CalcAnnual!#REF!,,MIN(AH$2,RegDur)),0) -> 0 | AI61: =IF(AI$2<=Annuity!$E121,INDEX(CalcAnnual!#REF!,,MIN(AI$2,RegDur)),0) -> 0
B62: TRUE | C62: =Annuity!C122 -> Spare | F62: $ / Component | K62: =IF(K$2<=Annuity!$E122,INDEX(CalcAnnual!#REF!,,MIN(K$2,RegDur)),0) -> 0 | L62: =IF(L$2<=Annuity!$E122,INDEX(CalcAnnual!#REF!,,MIN(L$2,RegDur)),0) -> 0 | M62: =IF(M$2<=Annuity!$E122,INDEX(CalcAnnual!#REF!,,MIN(M$2,RegDur)),0) -> 0 | N62: =IF(N$2<=Annuity!$E122,INDEX(CalcAnnual!#REF!,,MIN(N$2,RegDur)),0) -> 0 | O62: =IF(O$2<=Annuity!$E122,INDEX(CalcAnnual!#REF!,,MIN(O$2,RegDur)),0) -> 0 | P62: =IF(P$2<=Annuity!$E122,INDEX(CalcAnnual!#REF!,,MIN(P$2,RegDur)),0) -> 0 | Q62: =IF(Q$2<=Annuity!$E122,INDEX(CalcAnnual!#REF!,,MIN(Q$2,RegDur)),0) -> 0 | R62: =IF(R$2<=Annuity!$E122,INDEX(CalcAnnual!#REF!,,MIN(R$2,RegDur)),0) -> 0 | S62: =IF(S$2<=Annuity!$E122,INDEX(CalcAnnual!#REF!,,MIN(S$2,RegDur)),0) -> 0 | T62: =IF(T$2<=Annuity!$E122,INDEX(CalcAnnual!#REF!,,MIN(T$2,RegDur)),0) -> 0 | U62: =IF(U$2<=Annuity!$E122,INDEX(CalcAnnual!#REF!,,MIN(U$2,RegDur)),0) -> 0 | V62: =IF(V$2<=Annuity!$E122,INDEX(CalcAnnual!#REF!,,MIN(V$2,RegDur)),0) -> 0 | W62: =IF(W$2<=Annuity!$E122,INDEX(CalcAnnual!#REF!,,MIN(W$2,RegDur)),0) -> 0 | X62: =IF(X$2<=Annuity!$E122,INDEX(CalcAnnual!#REF!,,MIN(X$2,RegDur)),0) -> 0 | Y62: =IF(Y$2<=Annuity!$E122,INDEX(CalcAnnual!#REF!,,MIN(Y$2,RegDur)),0) -> 0 | Z62: =IF(Z$2<=Annuity!$E122,INDEX(CalcAnnual!#REF!,,MIN(Z$2,RegDur)),0) -> 0 | AA62: =IF(AA$2<=Annuity!$E122,INDEX(CalcAnnual!#REF!,,MIN(AA$2,RegDur)),0) -> 0 | AB62: =IF(AB$2<=Annuity!$E122,INDEX(CalcAnnual!#REF!,,MIN(AB$2,RegDur)),0) -> 0 | AC62: =IF(AC$2<=Annuity!$E122,INDEX(CalcAnnual!#REF!,,MIN(AC$2,RegDur)),0) -> 0 | AD62: =IF(AD$2<=Annuity!$E122,INDEX(CalcAnnual!#REF!,,MIN(AD$2,RegDur)),0) -> 0 | AE62: =IF(AE$2<=Annuity!$E122,INDEX(CalcAnnual!#REF!,,MIN(AE$2,RegDur)),0) -> 0 | AF62: =IF(AF$2<=Annuity!$E122,INDEX(CalcAnnual!#REF!,,MIN(AF$2,RegDur)),0) -> 0 | AG62: =IF(AG$2<=Annuity!$E122,INDEX(CalcAnnual!#REF!,,MIN(AG$2,RegDur)),0) -> 0 | AH62: =IF(AH$2<=Annuity!$E122,INDEX(CalcAnnual!#REF!,,MIN(AH$2,RegDur)),0) -> 0 | AI62: =IF(AI$2<=Annuity!$E122,INDEX(CalcAnnual!#REF!,,MIN(AI$2,RegDur)),0) -> 0
B63: TRUE | C63: =Annuity!C123 -> Spare | F63: $ / Component | K63: =IF(K$2<=Annuity!$E123,INDEX(CalcAnnual!#REF!,,MIN(K$2,RegDur)),0) -> 0 | L63: =IF(L$2<=Annuity!$E123,INDEX(CalcAnnual!#REF!,,MIN(L$2,RegDur)),0) -> 0 | M63: =IF(M$2<=Annuity!$E123,INDEX(CalcAnnual!#REF!,,MIN(M$2,RegDur)),0) -> 0 | N63: =IF(N$2<=Annuity!$E123,INDEX(CalcAnnual!#REF!,,MIN(N$2,RegDur)),0) -> 0 | O63: =IF(O$2<=Annuity!$E123,INDEX(CalcAnnual!#REF!,,MIN(O$2,RegDur)),0) -> 0 | P63: =IF(P$2<=Annuity!$E123,INDEX(CalcAnnual!#REF!,,MIN(P$2,RegDur)),0) -> 0 | Q63: =IF(Q$2<=Annuity!$E123,INDEX(CalcAnnual!#REF!,,MIN(Q$2,RegDur)),0) -> 0 | R63: =IF(R$2<=Annuity!$E123,INDEX(CalcAnnual!#REF!,,MIN(R$2,RegDur)),0) -> 0 | S63: =IF(S$2<=Annuity!$E123,INDEX(CalcAnnual!#REF!,,MIN(S$2,RegDur)),0) -> 0 | T63: =IF(T$2<=Annuity!$E123,INDEX(CalcAnnual!#REF!,,MIN(T$2,RegDur)),0) -> 0 | U63: =IF(U$2<=Annuity!$E123,INDEX(CalcAnnual!#REF!,,MIN(U$2,RegDur)),0) -> 0 | V63: =IF(V$2<=Annuity!$E123,INDEX(CalcAnnual!#REF!,,MIN(V$2,RegDur)),0) -> 0 | W63: =IF(W$2<=Annuity!$E123,INDEX(CalcAnnual!#REF!,,MIN(W$2,RegDur)),0) -> 0 | X63: =IF(X$2<=Annuity!$E123,INDEX(CalcAnnual!#REF!,,MIN(X$2,RegDur)),0) -> 0 | Y63: =IF(Y$2<=Annuity!$E123,INDEX(CalcAnnual!#REF!,,MIN(Y$2,RegDur)),0) -> 0 | Z63: =IF(Z$2<=Annuity!$E123,INDEX(CalcAnnual!#REF!,,MIN(Z$2,RegDur)),0) -> 0 | AA63: =IF(AA$2<=Annuity!$E123,INDEX(CalcAnnual!#REF!,,MIN(AA$2,RegDur)),0) -> 0 | AB63: =IF(AB$2<=Annuity!$E123,INDEX(CalcAnnual!#REF!,,MIN(AB$2,RegDur)),0) -> 0 | AC63: =IF(AC$2<=Annuity!$E123,INDEX(CalcAnnual!#REF!,,MIN(AC$2,RegDur)),0) -> 0 | AD63: =IF(AD$2<=Annuity!$E123,INDEX(CalcAnnual!#REF!,,MIN(AD$2,RegDur)),0) -> 0 | AE63: =IF(AE$2<=Annuity!$E123,INDEX(CalcAnnual!#REF!,,MIN(AE$2,RegDur)),0) -> 0 | AF63: =IF(AF$2<=Annuity!$E123,INDEX(CalcAnnual!#REF!,,MIN(AF$2,RegDur)),0) -> 0 | AG63: =IF(AG$2<=Annuity!$E123,INDEX(CalcAnnual!#REF!,,MIN(AG$2,RegDur)),0) -> 0 | AH63: =IF(AH$2<=Annuity!$E123,INDEX(CalcAnnual!#REF!,,MIN(AH$2,RegDur)),0) -> 0 | AI63: =IF(AI$2<=Annuity!$E123,INDEX(CalcAnnual!#REF!,,MIN(AI$2,RegDur)),0) -> 0
B64: TRUE | C64: =Annuity!C124 -> Spare | F64: $ / Component | K64: =IF(K$2<=Annuity!$E124,INDEX(CalcAnnual!#REF!,,MIN(K$2,RegDur)),0) -> 0 | L64: =IF(L$2<=Annuity!$E124,INDEX(CalcAnnual!#REF!,,MIN(L$2,RegDur)),0) -> 0 | M64: =IF(M$2<=Annuity!$E124,INDEX(CalcAnnual!#REF!,,MIN(M$2,RegDur)),0) -> 0 | N64: =IF(N$2<=Annuity!$E124,INDEX(CalcAnnual!#REF!,,MIN(N$2,RegDur)),0) -> 0 | O64: =IF(O$2<=Annuity!$E124,INDEX(CalcAnnual!#REF!,,MIN(O$2,RegDur)),0) -> 0 | P64: =IF(P$2<=Annuity!$E124,INDEX(CalcAnnual!#REF!,,MIN(P$2,RegDur)),0) -> 0 | Q64: =IF(Q$2<=Annuity!$E124,INDEX(CalcAnnual!#REF!,,MIN(Q$2,RegDur)),0) -> 0 | R64: =IF(R$2<=Annuity!$E124,INDEX(CalcAnnual!#REF!,,MIN(R$2,RegDur)),0) -> 0 | S64: =IF(S$2<=Annuity!$E124,INDEX(CalcAnnual!#REF!,,MIN(S$2,RegDur)),0) -> 0 | T64: =IF(T$2<=Annuity!$E124,INDEX(CalcAnnual!#REF!,,MIN(T$2,RegDur)),0) -> 0 | U64: =IF(U$2<=Annuity!$E124,INDEX(CalcAnnual!#REF!,,MIN(U$2,RegDur)),0) -> 0 | V64: =IF(V$2<=Annuity!$E124,INDEX(CalcAnnual!#REF!,,MIN(V$2,RegDur)),0) -> 0 | W64: =IF(W$2<=Annuity!$E124,INDEX(CalcAnnual!#REF!,,MIN(W$2,RegDur)),0) -> 0 | X64: =IF(X$2<=Annuity!$E124,INDEX(CalcAnnual!#REF!,,MIN(X$2,RegDur)),0) -> 0 | Y64: =IF(Y$2<=Annuity!$E124,INDEX(CalcAnnual!#REF!,,MIN(Y$2,RegDur)),0) -> 0 | Z64: =IF(Z$2<=Annuity!$E124,INDEX(CalcAnnual!#REF!,,MIN(Z$2,RegDur)),0) -> 0 | AA64: =IF(AA$2<=Annuity!$E124,INDEX(CalcAnnual!#REF!,,MIN(AA$2,RegDur)),0) -> 0 | AB64: =IF(AB$2<=Annuity!$E124,INDEX(CalcAnnual!#REF!,,MIN(AB$2,RegDur)),0) -> 0 | AC64: =IF(AC$2<=Annuity!$E124,INDEX(CalcAnnual!#REF!,,MIN(AC$2,RegDur)),0) -> 0 | AD64: =IF(AD$2<=Annuity!$E124,INDEX(CalcAnnual!#REF!,,MIN(AD$2,RegDur)),0) -> 0 | AE64: =IF(AE$2<=Annuity!$E124,INDEX(CalcAnnual!#REF!,,MIN(AE$2,RegDur)),0) -> 0 | AF64: =IF(AF$2<=Annuity!$E124,INDEX(CalcAnnual!#REF!,,MIN(AF$2,RegDur)),0) -> 0 | AG64: =IF(AG$2<=Annuity!$E124,INDEX(CalcAnnual!#REF!,,MIN(AG$2,RegDur)),0) -> 0 | AH64: =IF(AH$2<=Annuity!$E124,INDEX(CalcAnnual!#REF!,,MIN(AH$2,RegDur)),0) -> 0 | AI64: =IF(AI$2<=Annuity!$E124,INDEX(CalcAnnual!#REF!,,MIN(AI$2,RegDur)),0) -> 0
B65: TRUE | C65: =Annuity!C125 -> Spare | F65: $ / Component | K65: =IF(K$2<=Annuity!$E125,INDEX(CalcAnnual!#REF!,,MIN(K$2,RegDur)),0) -> 0 | L65: =IF(L$2<=Annuity!$E125,INDEX(CalcAnnual!#REF!,,MIN(L$2,RegDur)),0) -> 0 | M65: =IF(M$2<=Annuity!$E125,INDEX(CalcAnnual!#REF!,,MIN(M$2,RegDur)),0) -> 0 | N65: =IF(N$2<=Annuity!$E125,INDEX(CalcAnnual!#REF!,,MIN(N$2,RegDur)),0) -> 0 | O65: =IF(O$2<=Annuity!$E125,INDEX(CalcAnnual!#REF!,,MIN(O$2,RegDur)),0) -> 0 | P65: =IF(P$2<=Annuity!$E125,INDEX(CalcAnnual!#REF!,,MIN(P$2,RegDur)),0) -> 0 | Q65: =IF(Q$2<=Annuity!$E125,INDEX(CalcAnnual!#REF!,,MIN(Q$2,RegDur)),0) -> 0 | R65: =IF(R$2<=Annuity!$E125,INDEX(CalcAnnual!#REF!,,MIN(R$2,RegDur)),0) -> 0 | S65: =IF(S$2<=Annuity!$E125,INDEX(CalcAnnual!#REF!,,MIN(S$2,RegDur)),0) -> 0 | T65: =IF(T$2<=Annuity!$E125,INDEX(CalcAnnual!#REF!,,MIN(T$2,RegDur)),0) -> 0 | U65: =IF(U$2<=Annuity!$E125,INDEX(CalcAnnual!#REF!,,MIN(U$2,RegDur)),0) -> 0 | V65: =IF(V$2<=Annuity!$E125,INDEX(CalcAnnual!#REF!,,MIN(V$2,RegDur)),0) -> 0 | W65: =IF(W$2<=Annuity!$E125,INDEX(CalcAnnual!#REF!,,MIN(W$2,RegDur)),0) -> 0 | X65: =IF(X$2<=Annuity!$E125,INDEX(CalcAnnual!#REF!,,MIN(X$2,RegDur)),0) -> 0 | Y65: =IF(Y$2<=Annuity!$E125,INDEX(CalcAnnual!#REF!,,MIN(Y$2,RegDur)),0) -> 0 | Z65: =IF(Z$2<=Annuity!$E125,INDEX(CalcAnnual!#REF!,,MIN(Z$2,RegDur)),0) -> 0 | AA65: =IF(AA$2<=Annuity!$E125,INDEX(CalcAnnual!#REF!,,MIN(AA$2,RegDur)),0) -> 0 | AB65: =IF(AB$2<=Annuity!$E125,INDEX(CalcAnnual!#REF!,,MIN(AB$2,RegDur)),0) -> 0 | AC65: =IF(AC$2<=Annuity!$E125,INDEX(CalcAnnual!#REF!,,MIN(AC$2,RegDur)),0) -> 0 | AD65: =IF(AD$2<=Annuity!$E125,INDEX(CalcAnnual!#REF!,,MIN(AD$2,RegDur)),0) -> 0 | AE65: =IF(AE$2<=Annuity!$E125,INDEX(CalcAnnual!#REF!,,MIN(AE$2,RegDur)),0) -> 0 | AF65: =IF(AF$2<=Annuity!$E125,INDEX(CalcAnnual!#REF!,,MIN(AF$2,RegDur)),0) -> 0 | AG65: =IF(AG$2<=Annuity!$E125,INDEX(CalcAnnual!#REF!,,MIN(AG$2,RegDur)),0) -> 0 | AH65: =IF(AH$2<=Annuity!$E125,INDEX(CalcAnnual!#REF!,,MIN(AH$2,RegDur)),0) -> 0 | AI65: =IF(AI$2<=Annuity!$E125,INDEX(CalcAnnual!#REF!,,MIN(AI$2,RegDur)),0) -> 0
B66: TRUE | C66: =Annuity!C126 -> Spare | F66: $ / Component | K66: =IF(K$2<=Annuity!$E126,INDEX(CalcAnnual!#REF!,,MIN(K$2,RegDur)),0) -> 0 | L66: =IF(L$2<=Annuity!$E126,INDEX(CalcAnnual!#REF!,,MIN(L$2,RegDur)),0) -> 0 | M66: =IF(M$2<=Annuity!$E126,INDEX(CalcAnnual!#REF!,,MIN(M$2,RegDur)),0) -> 0 | N66: =IF(N$2<=Annuity!$E126,INDEX(CalcAnnual!#REF!,,MIN(N$2,RegDur)),0) -> 0 | O66: =IF(O$2<=Annuity!$E126,INDEX(CalcAnnual!#REF!,,MIN(O$2,RegDur)),0) -> 0 | P66: =IF(P$2<=Annuity!$E126,INDEX(CalcAnnual!#REF!,,MIN(P$2,RegDur)),0) -> 0 | Q66: =IF(Q$2<=Annuity!$E126,INDEX(CalcAnnual!#REF!,,MIN(Q$2,RegDur)),0) -> 0 | R66: =IF(R$2<=Annuity!$E126,INDEX(CalcAnnual!#REF!,,MIN(R$2,RegDur)),0) -> 0 | S66: =IF(S$2<=Annuity!$E126,INDEX(CalcAnnual!#REF!,,MIN(S$2,RegDur)),0) -> 0 | T66: =IF(T$2<=Annuity!$E126,INDEX(CalcAnnual!#REF!,,MIN(T$2,RegDur)),0) -> 0 | U66: =IF(U$2<=Annuity!$E126,INDEX(CalcAnnual!#REF!,,MIN(U$2,RegDur)),0) -> 0 | V66: =IF(V$2<=Annuity!$E126,INDEX(CalcAnnual!#REF!,,MIN(V$2,RegDur)),0) -> 0 | W66: =IF(W$2<=Annuity!$E126,INDEX(CalcAnnual!#REF!,,MIN(W$2,RegDur)),0) -> 0 | X66: =IF(X$2<=Annuity!$E126,INDEX(CalcAnnual!#REF!,,MIN(X$2,RegDur)),0) -> 0 | Y66: =IF(Y$2<=Annuity!$E126,INDEX(CalcAnnual!#REF!,,MIN(Y$2,RegDur)),0) -> 0 | Z66: =IF(Z$2<=Annuity!$E126,INDEX(CalcAnnual!#REF!,,MIN(Z$2,RegDur)),0) -> 0 | AA66: =IF(AA$2<=Annuity!$E126,INDEX(CalcAnnual!#REF!,,MIN(AA$2,RegDur)),0) -> 0 | AB66: =IF(AB$2<=Annuity!$E126,INDEX(CalcAnnual!#REF!,,MIN(AB$2,RegDur)),0) -> 0 | AC66: =IF(AC$2<=Annuity!$E126,INDEX(CalcAnnual!#REF!,,MIN(AC$2,RegDur)),0) -> 0 | AD66: =IF(AD$2<=Annuity!$E126,INDEX(CalcAnnual!#REF!,,MIN(AD$2,RegDur)),0) -> 0 | AE66: =IF(AE$2<=Annuity!$E126,INDEX(CalcAnnual!#REF!,,MIN(AE$2,RegDur)),0) -> 0 | AF66: =IF(AF$2<=Annuity!$E126,INDEX(CalcAnnual!#REF!,,MIN(AF$2,RegDur)),0) -> 0 | AG66: =IF(AG$2<=Annuity!$E126,INDEX(CalcAnnual!#REF!,,MIN(AG$2,RegDur)),0) -> 0 | AH66: =IF(AH$2<=Annuity!$E126,INDEX(CalcAnnual!#REF!,,MIN(AH$2,RegDur)),0) -> 0 | AI66: =IF(AI$2<=Annuity!$E126,INDEX(CalcAnnual!#REF!,,MIN(AI$2,RegDur)),0) -> 0
B67: TRUE | C67: =Annuity!C127 -> Spare | F67: $ / Component | K67: =IF(K$2<=Annuity!$E127,INDEX(CalcAnnual!#REF!,,MIN(K$2,RegDur)),0) -> 0 | L67: =IF(L$2<=Annuity!$E127,INDEX(CalcAnnual!#REF!,,MIN(L$2,RegDur)),0) -> 0 | M67: =IF(M$2<=Annuity!$E127,INDEX(CalcAnnual!#REF!,,MIN(M$2,RegDur)),0) -> 0 | N67: =IF(N$2<=Annuity!$E127,INDEX(CalcAnnual!#REF!,,MIN(N$2,RegDur)),0) -> 0 | O67: =IF(O$2<=Annuity!$E127,INDEX(CalcAnnual!#REF!,,MIN(O$2,RegDur)),0) -> 0 | P67: =IF(P$2<=Annuity!$E127,INDEX(CalcAnnual!#REF!,,MIN(P$2,RegDur)),0) -> 0 | Q67: =IF(Q$2<=Annuity!$E127,INDEX(CalcAnnual!#REF!,,MIN(Q$2,RegDur)),0) -> 0 | R67: =IF(R$2<=Annuity!$E127,INDEX(CalcAnnual!#REF!,,MIN(R$2,RegDur)),0) -> 0 | S67: =IF(S$2<=Annuity!$E127,INDEX(CalcAnnual!#REF!,,MIN(S$2,RegDur)),0) -> 0 | T67: =IF(T$2<=Annuity!$E127,INDEX(CalcAnnual!#REF!,,MIN(T$2,RegDur)),0) -> 0 | U67: =IF(U$2<=Annuity!$E127,INDEX(CalcAnnual!#REF!,,MIN(U$2,RegDur)),0) -> 0 | V67: =IF(V$2<=Annuity!$E127,INDEX(CalcAnnual!#REF!,,MIN(V$2,RegDur)),0) -> 0 | W67: =IF(W$2<=Annuity!$E127,INDEX(CalcAnnual!#REF!,,MIN(W$2,RegDur)),0) -> 0 | X67: =IF(X$2<=Annuity!$E127,INDEX(CalcAnnual!#REF!,,MIN(X$2,RegDur)),0) -> 0 | Y67: =IF(Y$2<=Annuity!$E127,INDEX(CalcAnnual!#REF!,,MIN(Y$2,RegDur)),0) -> 0 | Z67: =IF(Z$2<=Annuity!$E127,INDEX(CalcAnnual!#REF!,,MIN(Z$2,RegDur)),0) -> 0 | AA67: =IF(AA$2<=Annuity!$E127,INDEX(CalcAnnual!#REF!,,MIN(AA$2,RegDur)),0) -> 0 | AB67: =IF(AB$2<=Annuity!$E127,INDEX(CalcAnnual!#REF!,,MIN(AB$2,RegDur)),0) -> 0 | AC67: =IF(AC$2<=Annuity!$E127,INDEX(CalcAnnual!#REF!,,MIN(AC$2,RegDur)),0) -> 0 | AD67: =IF(AD$2<=Annuity!$E127,INDEX(CalcAnnual!#REF!,,MIN(AD$2,RegDur)),0) -> 0 | AE67: =IF(AE$2<=Annuity!$E127,INDEX(CalcAnnual!#REF!,,MIN(AE$2,RegDur)),0) -> 0 | AF67: =IF(AF$2<=Annuity!$E127,INDEX(CalcAnnual!#REF!,,MIN(AF$2,RegDur)),0) -> 0 | AG67: =IF(AG$2<=Annuity!$E127,INDEX(CalcAnnual!#REF!,,MIN(AG$2,RegDur)),0) -> 0 | AH67: =IF(AH$2<=Annuity!$E127,INDEX(CalcAnnual!#REF!,,MIN(AH$2,RegDur)),0) -> 0 | AI67: =IF(AI$2<=Annuity!$E127,INDEX(CalcAnnual!#REF!,,MIN(AI$2,RegDur)),0) -> 0
B68: TRUE | C68: =Annuity!C128 -> Spare | F68: $ / Component | K68: =IF(K$2<=Annuity!$E128,INDEX(CalcAnnual!#REF!,,MIN(K$2,RegDur)),0) -> 0 | L68: =IF(L$2<=Annuity!$E128,INDEX(CalcAnnual!#REF!,,MIN(L$2,RegDur)),0) -> 0 | M68: =IF(M$2<=Annuity!$E128,INDEX(CalcAnnual!#REF!,,MIN(M$2,RegDur)),0) -> 0 | N68: =IF(N$2<=Annuity!$E128,INDEX(CalcAnnual!#REF!,,MIN(N$2,RegDur)),0) -> 0 | O68: =IF(O$2<=Annuity!$E128,INDEX(CalcAnnual!#REF!,,MIN(O$2,RegDur)),0) -> 0 | P68: =IF(P$2<=Annuity!$E128,INDEX(CalcAnnual!#REF!,,MIN(P$2,RegDur)),0) -> 0 | Q68: =IF(Q$2<=Annuity!$E128,INDEX(CalcAnnual!#REF!,,MIN(Q$2,RegDur)),0) -> 0 | R68: =IF(R$2<=Annuity!$E128,INDEX(CalcAnnual!#REF!,,MIN(R$2,RegDur)),0) -> 0 | S68: =IF(S$2<=Annuity!$E128,INDEX(CalcAnnual!#REF!,,MIN(S$2,RegDur)),0) -> 0 | T68: =IF(T$2<=Annuity!$E128,INDEX(CalcAnnual!#REF!,,MIN(T$2,RegDur)),0) -> 0 | U68: =IF(U$2<=Annuity!$E128,INDEX(CalcAnnual!#REF!,,MIN(U$2,RegDur)),0) -> 0 | V68: =IF(V$2<=Annuity!$E128,INDEX(CalcAnnual!#REF!,,MIN(V$2,RegDur)),0) -> 0 | W68: =IF(W$2<=Annuity!$E128,INDEX(CalcAnnual!#REF!,,MIN(W$2,RegDur)),0) -> 0 | X68: =IF(X$2<=Annuity!$E128,INDEX(CalcAnnual!#REF!,,MIN(X$2,RegDur)),0) -> 0 | Y68: =IF(Y$2<=Annuity!$E128,INDEX(CalcAnnual!#REF!,,MIN(Y$2,RegDur)),0) -> 0 | Z68: =IF(Z$2<=Annuity!$E128,INDEX(CalcAnnual!#REF!,,MIN(Z$2,RegDur)),0) -> 0 | AA68: =IF(AA$2<=Annuity!$E128,INDEX(CalcAnnual!#REF!,,MIN(AA$2,RegDur)),0) -> 0 | AB68: =IF(AB$2<=Annuity!$E128,INDEX(CalcAnnual!#REF!,,MIN(AB$2,RegDur)),0) -> 0 | AC68: =IF(AC$2<=Annuity!$E128,INDEX(CalcAnnual!#REF!,,MIN(AC$2,RegDur)),0) -> 0 | AD68: =IF(AD$2<=Annuity!$E128,INDEX(CalcAnnual!#REF!,,MIN(AD$2,RegDur)),0) -> 0 | AE68: =IF(AE$2<=Annuity!$E128,INDEX(CalcAnnual!#REF!,,MIN(AE$2,RegDur)),0) -> 0 | AF68: =IF(AF$2<=Annuity!$E128,INDEX(CalcAnnual!#REF!,,MIN(AF$2,RegDur)),0) -> 0 | AG68: =IF(AG$2<=Annuity!$E128,INDEX(CalcAnnual!#REF!,,MIN(AG$2,RegDur)),0) -> 0 | AH68: =IF(AH$2<=Annuity!$E128,INDEX(CalcAnnual!#REF!,,MIN(AH$2,RegDur)),0) -> 0 | AI68: =IF(AI$2<=Annuity!$E128,INDEX(CalcAnnual!#REF!,,MIN(AI$2,RegDur)),0) -> 0
B69: TRUE | C69: =Annuity!C129 -> Spare | F69: $ / Component | K69: =IF(K$2<=Annuity!$E129,INDEX(CalcAnnual!#REF!,,MIN(K$2,RegDur)),0) -> 0 | L69: =IF(L$2<=Annuity!$E129,INDEX(CalcAnnual!#REF!,,MIN(L$2,RegDur)),0) -> 0 | M69: =IF(M$2<=Annuity!$E129,INDEX(CalcAnnual!#REF!,,MIN(M$2,RegDur)),0) -> 0 | N69: =IF(N$2<=Annuity!$E129,INDEX(CalcAnnual!#REF!,,MIN(N$2,RegDur)),0) -> 0 | O69: =IF(O$2<=Annuity!$E129,INDEX(CalcAnnual!#REF!,,MIN(O$2,RegDur)),0) -> 0 | P69: =IF(P$2<=Annuity!$E129,INDEX(CalcAnnual!#REF!,,MIN(P$2,RegDur)),0) -> 0 | Q69: =IF(Q$2<=Annuity!$E129,INDEX(CalcAnnual!#REF!,,MIN(Q$2,RegDur)),0) -> 0 | R69: =IF(R$2<=Annuity!$E129,INDEX(CalcAnnual!#REF!,,MIN(R$2,RegDur)),0) -> 0 | S69: =IF(S$2<=Annuity!$E129,INDEX(CalcAnnual!#REF!,,MIN(S$2,RegDur)),0) -> 0 | T69: =IF(T$2<=Annuity!$E129,INDEX(CalcAnnual!#REF!,,MIN(T$2,RegDur)),0) -> 0 | U69: =IF(U$2<=Annuity!$E129,INDEX(CalcAnnual!#REF!,,MIN(U$2,RegDur)),0) -> 0 | V69: =IF(V$2<=Annuity!$E129,INDEX(CalcAnnual!#REF!,,MIN(V$2,RegDur)),0) -> 0 | W69: =IF(W$2<=Annuity!$E129,INDEX(CalcAnnual!#REF!,,MIN(W$2,RegDur)),0) -> 0 | X69: =IF(X$2<=Annuity!$E129,INDEX(CalcAnnual!#REF!,,MIN(X$2,RegDur)),0) -> 0 | Y69: =IF(Y$2<=Annuity!$E129,INDEX(CalcAnnual!#REF!,,MIN(Y$2,RegDur)),0) -> 0 | Z69: =IF(Z$2<=Annuity!$E129,INDEX(CalcAnnual!#REF!,,MIN(Z$2,RegDur)),0) -> 0 | AA69: =IF(AA$2<=Annuity!$E129,INDEX(CalcAnnual!#REF!,,MIN(AA$2,RegDur)),0) -> 0 | AB69: =IF(AB$2<=Annuity!$E129,INDEX(CalcAnnual!#REF!,,MIN(AB$2,RegDur)),0) -> 0 | AC69: =IF(AC$2<=Annuity!$E129,INDEX(CalcAnnual!#REF!,,MIN(AC$2,RegDur)),0) -> 0 | AD69: =IF(AD$2<=Annuity!$E129,INDEX(CalcAnnual!#REF!,,MIN(AD$2,RegDur)),0) -> 0 | AE69: =IF(AE$2<=Annuity!$E129,INDEX(CalcAnnual!#REF!,,MIN(AE$2,RegDur)),0) -> 0 | AF69: =IF(AF$2<=Annuity!$E129,INDEX(CalcAnnual!#REF!,,MIN(AF$2,RegDur)),0) -> 0 | AG69: =IF(AG$2<=Annuity!$E129,INDEX(CalcAnnual!#REF!,,MIN(AG$2,RegDur)),0) -> 0 | AH69: =IF(AH$2<=Annuity!$E129,INDEX(CalcAnnual!#REF!,,MIN(AH$2,RegDur)),0) -> 0 | AI69: =IF(AI$2<=Annuity!$E129,INDEX(CalcAnnual!#REF!,,MIN(AI$2,RegDur)),0) -> 0
B70: TRUE | C70: =Annuity!C130 -> Spare | F70: $ / Component | K70: =IF(K$2<=Annuity!$E130,INDEX(CalcAnnual!#REF!,,MIN(K$2,RegDur)),0) -> 0 | L70: =IF(L$2<=Annuity!$E130,INDEX(CalcAnnual!#REF!,,MIN(L$2,RegDur)),0) -> 0 | M70: =IF(M$2<=Annuity!$E130,INDEX(CalcAnnual!#REF!,,MIN(M$2,RegDur)),0) -> 0 | N70: =IF(N$2<=Annuity!$E130,INDEX(CalcAnnual!#REF!,,MIN(N$2,RegDur)),0) -> 0 | O70: =IF(O$2<=Annuity!$E130,INDEX(CalcAnnual!#REF!,,MIN(O$2,RegDur)),0) -> 0 | P70: =IF(P$2<=Annuity!$E130,INDEX(CalcAnnual!#REF!,,MIN(P$2,RegDur)),0) -> 0 | Q70: =IF(Q$2<=Annuity!$E130,INDEX(CalcAnnual!#REF!,,MIN(Q$2,RegDur)),0) -> 0 | R70: =IF(R$2<=Annuity!$E130,INDEX(CalcAnnual!#REF!,,MIN(R$2,RegDur)),0) -> 0 | S70: =IF(S$2<=Annuity!$E130,INDEX(CalcAnnual!#REF!,,MIN(S$2,RegDur)),0) -> 0 | T70: =IF(T$2<=Annuity!$E130,INDEX(CalcAnnual!#REF!,,MIN(T$2,RegDur)),0) -> 0 | U70: =IF(U$2<=Annuity!$E130,INDEX(CalcAnnual!#REF!,,MIN(U$2,RegDur)),0) -> 0 | V70: =IF(V$2<=Annuity!$E130,INDEX(CalcAnnual!#REF!,,MIN(V$2,RegDur)),0) -> 0 | W70: =IF(W$2<=Annuity!$E130,INDEX(CalcAnnual!#REF!,,MIN(W$2,RegDur)),0) -> 0 | X70: =IF(X$2<=Annuity!$E130,INDEX(CalcAnnual!#REF!,,MIN(X$2,RegDur)),0) -> 0 | Y70: =IF(Y$2<=Annuity!$E130,INDEX(CalcAnnual!#REF!,,MIN(Y$2,RegDur)),0) -> 0 | Z70: =IF(Z$2<=Annuity!$E130,INDEX(CalcAnnual!#REF!,,MIN(Z$2,RegDur)),0) -> 0 | AA70: =IF(AA$2<=Annuity!$E130,INDEX(CalcAnnual!#REF!,,MIN(AA$2,RegDur)),0) -> 0 | AB70: =IF(AB$2<=Annuity!$E130,INDEX(CalcAnnual!#REF!,,MIN(AB$2,RegDur)),0) -> 0 | AC70: =IF(AC$2<=Annuity!$E130,INDEX(CalcAnnual!#REF!,,MIN(AC$2,RegDur)),0) -> 0 | AD70: =IF(AD$2<=Annuity!$E130,INDEX(CalcAnnual!#REF!,,MIN(AD$2,RegDur)),0) -> 0 | AE70: =IF(AE$2<=Annuity!$E130,INDEX(CalcAnnual!#REF!,,MIN(AE$2,RegDur)),0) -> 0 | AF70: =IF(AF$2<=Annuity!$E130,INDEX(CalcAnnual!#REF!,,MIN(AF$2,RegDur)),0) -> 0 | AG70: =IF(AG$2<=Annuity!$E130,INDEX(CalcAnnual!#REF!,,MIN(AG$2,RegDur)),0) -> 0 | AH70: =IF(AH$2<=Annuity!$E130,INDEX(CalcAnnual!#REF!,,MIN(AH$2,RegDur)),0) -> 0 | AI70: =IF(AI$2<=Annuity!$E130,INDEX(CalcAnnual!#REF!,,MIN(AI$2,RegDur)),0) -> 0
B71: TRUE | C71: =Annuity!C131 -> Spare | F71: $ / Component | K71: =IF(K$2<=Annuity!$E131,INDEX(CalcAnnual!#REF!,,MIN(K$2,RegDur)),0) -> 0 | L71: =IF(L$2<=Annuity!$E131,INDEX(CalcAnnual!#REF!,,MIN(L$2,RegDur)),0) -> 0 | M71: =IF(M$2<=Annuity!$E131,INDEX(CalcAnnual!#REF!,,MIN(M$2,RegDur)),0) -> 0 | N71: =IF(N$2<=Annuity!$E131,INDEX(CalcAnnual!#REF!,,MIN(N$2,RegDur)),0) -> 0 | O71: =IF(O$2<=Annuity!$E131,INDEX(CalcAnnual!#REF!,,MIN(O$2,RegDur)),0) -> 0 | P71: =IF(P$2<=Annuity!$E131,INDEX(CalcAnnual!#REF!,,MIN(P$2,RegDur)),0) -> 0 | Q71: =IF(Q$2<=Annuity!$E131,INDEX(CalcAnnual!#REF!,,MIN(Q$2,RegDur)),0) -> 0 | R71: =IF(R$2<=Annuity!$E131,INDEX(CalcAnnual!#REF!,,MIN(R$2,RegDur)),0) -> 0 | S71: =IF(S$2<=Annuity!$E131,INDEX(CalcAnnual!#REF!,,MIN(S$2,RegDur)),0) -> 0 | T71: =IF(T$2<=Annuity!$E131,INDEX(CalcAnnual!#REF!,,MIN(T$2,RegDur)),0) -> 0 | U71: =IF(U$2<=Annuity!$E131,INDEX(CalcAnnual!#REF!,,MIN(U$2,RegDur)),0) -> 0 | V71: =IF(V$2<=Annuity!$E131,INDEX(CalcAnnual!#REF!,,MIN(V$2,RegDur)),0) -> 0 | W71: =IF(W$2<=Annuity!$E131,INDEX(CalcAnnual!#REF!,,MIN(W$2,RegDur)),0) -> 0 | X71: =IF(X$2<=Annuity!$E131,INDEX(CalcAnnual!#REF!,,MIN(X$2,RegDur)),0) -> 0 | Y71: =IF(Y$2<=Annuity!$E131,INDEX(CalcAnnual!#REF!,,MIN(Y$2,RegDur)),0) -> 0 | Z71: =IF(Z$2<=Annuity!$E131,INDEX(CalcAnnual!#REF!,,MIN(Z$2,RegDur)),0) -> 0 | AA71: =IF(AA$2<=Annuity!$E131,INDEX(CalcAnnual!#REF!,,MIN(AA$2,RegDur)),0) -> 0 | AB71: =IF(AB$2<=Annuity!$E131,INDEX(CalcAnnual!#REF!,,MIN(AB$2,RegDur)),0) -> 0 | AC71: =IF(AC$2<=Annuity!$E131,INDEX(CalcAnnual!#REF!,,MIN(AC$2,RegDur)),0) -> 0 | AD71: =IF(AD$2<=Annuity!$E131,INDEX(CalcAnnual!#REF!,,MIN(AD$2,RegDur)),0) -> 0 | AE71: =IF(AE$2<=Annuity!$E131,INDEX(CalcAnnual!#REF!,,MIN(AE$2,RegDur)),0) -> 0 | AF71: =IF(AF$2<=Annuity!$E131,INDEX(CalcAnnual!#REF!,,MIN(AF$2,RegDur)),0) -> 0 | AG71: =IF(AG$2<=Annuity!$E131,INDEX(CalcAnnual!#REF!,,MIN(AG$2,RegDur)),0) -> 0 | AH71: =IF(AH$2<=Annuity!$E131,INDEX(CalcAnnual!#REF!,,MIN(AH$2,RegDur)),0) -> 0 | AI71: =IF(AI$2<=Annuity!$E131,INDEX(CalcAnnual!#REF!,,MIN(AI$2,RegDur)),0) -> 0
B72: TRUE | C72: =Annuity!C132 -> Spare | F72: $ / Component | K72: =IF(K$2<=Annuity!$E132,INDEX(CalcAnnual!#REF!,,MIN(K$2,RegDur)),0) -> 0 | L72: =IF(L$2<=Annuity!$E132,INDEX(CalcAnnual!#REF!,,MIN(L$2,RegDur)),0) -> 0 | M72: =IF(M$2<=Annuity!$E132,INDEX(CalcAnnual!#REF!,,MIN(M$2,RegDur)),0) -> 0 | N72: =IF(N$2<=Annuity!$E132,INDEX(CalcAnnual!#REF!,,MIN(N$2,RegDur)),0) -> 0 | O72: =IF(O$2<=Annuity!$E132,INDEX(CalcAnnual!#REF!,,MIN(O$2,RegDur)),0) -> 0 | P72: =IF(P$2<=Annuity!$E132,INDEX(CalcAnnual!#REF!,,MIN(P$2,RegDur)),0) -> 0 | Q72: =IF(Q$2<=Annuity!$E132,INDEX(CalcAnnual!#REF!,,MIN(Q$2,RegDur)),0) -> 0 | R72: =IF(R$2<=Annuity!$E132,INDEX(CalcAnnual!#REF!,,MIN(R$2,RegDur)),0) -> 0 | S72: =IF(S$2<=Annuity!$E132,INDEX(CalcAnnual!#REF!,,MIN(S$2,RegDur)),0) -> 0 | T72: =IF(T$2<=Annuity!$E132,INDEX(CalcAnnual!#REF!,,MIN(T$2,RegDur)),0) -> 0 | U72: =IF(U$2<=Annuity!$E132,INDEX(CalcAnnual!#REF!,,MIN(U$2,RegDur)),0) -> 0 | V72: =IF(V$2<=Annuity!$E132,INDEX(CalcAnnual!#REF!,,MIN(V$2,RegDur)),0) -> 0 | W72: =IF(W$2<=Annuity!$E132,INDEX(CalcAnnual!#REF!,,MIN(W$2,RegDur)),0) -> 0 | X72: =IF(X$2<=Annuity!$E132,INDEX(CalcAnnual!#REF!,,MIN(X$2,RegDur)),0) -> 0 | Y72: =IF(Y$2<=Annuity!$E132,INDEX(CalcAnnual!#REF!,,MIN(Y$2,RegDur)),0) -> 0 | Z72: =IF(Z$2<=Annuity!$E132,INDEX(CalcAnnual!#REF!,,MIN(Z$2,RegDur)),0) -> 0 | AA72: =IF(AA$2<=Annuity!$E132,INDEX(CalcAnnual!#REF!,,MIN(AA$2,RegDur)),0) -> 0 | AB72: =IF(AB$2<=Annuity!$E132,INDEX(CalcAnnual!#REF!,,MIN(AB$2,RegDur)),0) -> 0 | AC72: =IF(AC$2<=Annuity!$E132,INDEX(CalcAnnual!#REF!,,MIN(AC$2,RegDur)),0) -> 0 | AD72: =IF(AD$2<=Annuity!$E132,INDEX(CalcAnnual!#REF!,,MIN(AD$2,RegDur)),0) -> 0 | AE72: =IF(AE$2<=Annuity!$E132,INDEX(CalcAnnual!#REF!,,MIN(AE$2,RegDur)),0) -> 0 | AF72: =IF(AF$2<=Annuity!$E132,INDEX(CalcAnnual!#REF!,,MIN(AF$2,RegDur)),0) -> 0 | AG72: =IF(AG$2<=Annuity!$E132,INDEX(CalcAnnual!#REF!,,MIN(AG$2,RegDur)),0) -> 0 | AH72: =IF(AH$2<=Annuity!$E132,INDEX(CalcAnnual!#REF!,,MIN(AH$2,RegDur)),0) -> 0 | AI72: =IF(AI$2<=Annuity!$E132,INDEX(CalcAnnual!#REF!,,MIN(AI$2,RegDur)),0) -> 0
B73: TRUE | C73: =Annuity!C133 -> Spare | F73: $ / Component | K73: =IF(K$2<=Annuity!$E133,INDEX(CalcAnnual!#REF!,,MIN(K$2,RegDur)),0) -> 0 | L73: =IF(L$2<=Annuity!$E133,INDEX(CalcAnnual!#REF!,,MIN(L$2,RegDur)),0) -> 0 | M73: =IF(M$2<=Annuity!$E133,INDEX(CalcAnnual!#REF!,,MIN(M$2,RegDur)),0) -> 0 | N73: =IF(N$2<=Annuity!$E133,INDEX(CalcAnnual!#REF!,,MIN(N$2,RegDur)),0) -> 0 | O73: =IF(O$2<=Annuity!$E133,INDEX(CalcAnnual!#REF!,,MIN(O$2,RegDur)),0) -> 0 | P73: =IF(P$2<=Annuity!$E133,INDEX(CalcAnnual!#REF!,,MIN(P$2,RegDur)),0) -> 0 | Q73: =IF(Q$2<=Annuity!$E133,INDEX(CalcAnnual!#REF!,,MIN(Q$2,RegDur)),0) -> 0 | R73: =IF(R$2<=Annuity!$E133,INDEX(CalcAnnual!#REF!,,MIN(R$2,RegDur)),0) -> 0 | S73: =IF(S$2<=Annuity!$E133,INDEX(CalcAnnual!#REF!,,MIN(S$2,RegDur)),0) -> 0 | T73: =IF(T$2<=Annuity!$E133,INDEX(CalcAnnual!#REF!,,MIN(T$2,RegDur)),0) -> 0 | U73: =IF(U$2<=Annuity!$E133,INDEX(CalcAnnual!#REF!,,MIN(U$2,RegDur)),0) -> 0 | V73: =IF(V$2<=Annuity!$E133,INDEX(CalcAnnual!#REF!,,MIN(V$2,RegDur)),0) -> 0 | W73: =IF(W$2<=Annuity!$E133,INDEX(CalcAnnual!#REF!,,MIN(W$2,RegDur)),0) -> 0 | X73: =IF(X$2<=Annuity!$E133,INDEX(CalcAnnual!#REF!,,MIN(X$2,RegDur)),0) -> 0 | Y73: =IF(Y$2<=Annuity!$E133,INDEX(CalcAnnual!#REF!,,MIN(Y$2,RegDur)),0) -> 0 | Z73: =IF(Z$2<=Annuity!$E133,INDEX(CalcAnnual!#REF!,,MIN(Z$2,RegDur)),0) -> 0 | AA73: =IF(AA$2<=Annuity!$E133,INDEX(CalcAnnual!#REF!,,MIN(AA$2,RegDur)),0) -> 0 | AB73: =IF(AB$2<=Annuity!$E133,INDEX(CalcAnnual!#REF!,,MIN(AB$2,RegDur)),0) -> 0 | AC73: =IF(AC$2<=Annuity!$E133,INDEX(CalcAnnual!#REF!,,MIN(AC$2,RegDur)),0) -> 0 | AD73: =IF(AD$2<=Annuity!$E133,INDEX(CalcAnnual!#REF!,,MIN(AD$2,RegDur)),0) -> 0 | AE73: =IF(AE$2<=Annuity!$E133,INDEX(CalcAnnual!#REF!,,MIN(AE$2,RegDur)),0) -> 0 | AF73: =IF(AF$2<=Annuity!$E133,INDEX(CalcAnnual!#REF!,,MIN(AF$2,RegDur)),0) -> 0 | AG73: =IF(AG$2<=Annuity!$E133,INDEX(CalcAnnual!#REF!,,MIN(AG$2,RegDur)),0) -> 0 | AH73: =IF(AH$2<=Annuity!$E133,INDEX(CalcAnnual!#REF!,,MIN(AH$2,RegDur)),0) -> 0 | AI73: =IF(AI$2<=Annuity!$E133,INDEX(CalcAnnual!#REF!,,MIN(AI$2,RegDur)),0) -> 0
B74: TRUE | C74: =Annuity!C134 -> Spare | F74: $ / Component | K74: =IF(K$2<=Annuity!$E134,INDEX(CalcAnnual!#REF!,,MIN(K$2,RegDur)),0) -> 0 | L74: =IF(L$2<=Annuity!$E134,INDEX(CalcAnnual!#REF!,,MIN(L$2,RegDur)),0) -> 0 | M74: =IF(M$2<=Annuity!$E134,INDEX(CalcAnnual!#REF!,,MIN(M$2,RegDur)),0) -> 0 | N74: =IF(N$2<=Annuity!$E134,INDEX(CalcAnnual!#REF!,,MIN(N$2,RegDur)),0) -> 0 | O74: =IF(O$2<=Annuity!$E134,INDEX(CalcAnnual!#REF!,,MIN(O$2,RegDur)),0) -> 0 | P74: =IF(P$2<=Annuity!$E134,INDEX(CalcAnnual!#REF!,,MIN(P$2,RegDur)),0) -> 0 | Q74: =IF(Q$2<=Annuity!$E134,INDEX(CalcAnnual!#REF!,,MIN(Q$2,RegDur)),0) -> 0 | R74: =IF(R$2<=Annuity!$E134,INDEX(CalcAnnual!#REF!,,MIN(R$2,RegDur)),0) -> 0 | S74: =IF(S$2<=Annuity!$E134,INDEX(CalcAnnual!#REF!,,MIN(S$2,RegDur)),0) -> 0 | T74: =IF(T$2<=Annuity!$E134,INDEX(CalcAnnual!#REF!,,MIN(T$2,RegDur)),0) -> 0 | U74: =IF(U$2<=Annuity!$E134,INDEX(CalcAnnual!#REF!,,MIN(U$2,RegDur)),0) -> 0 | V74: =IF(V$2<=Annuity!$E134,INDEX(CalcAnnual!#REF!,,MIN(V$2,RegDur)),0) -> 0 | W74: =IF(W$2<=Annuity!$E134,INDEX(CalcAnnual!#REF!,,MIN(W$2,RegDur)),0) -> 0 | X74: =IF(X$2<=Annuity!$E134,INDEX(CalcAnnual!#REF!,,MIN(X$2,RegDur)),0) -> 0 | Y74: =IF(Y$2<=Annuity!$E134,INDEX(CalcAnnual!#REF!,,MIN(Y$2,RegDur)),0) -> 0 | Z74: =IF(Z$2<=Annuity!$E134,INDEX(CalcAnnual!#REF!,,MIN(Z$2,RegDur)),0) -> 0 | AA74: =IF(AA$2<=Annuity!$E134,INDEX(CalcAnnual!#REF!,,MIN(AA$2,RegDur)),0) -> 0 | AB74: =IF(AB$2<=Annuity!$E134,INDEX(CalcAnnual!#REF!,,MIN(AB$2,RegDur)),0) -> 0 | AC74: =IF(AC$2<=Annuity!$E134,INDEX(CalcAnnual!#REF!,,MIN(AC$2,RegDur)),0) -> 0 | AD74: =IF(AD$2<=Annuity!$E134,INDEX(CalcAnnual!#REF!,,MIN(AD$2,RegDur)),0) -> 0 | AE74: =IF(AE$2<=Annuity!$E134,INDEX(CalcAnnual!#REF!,,MIN(AE$2,RegDur)),0) -> 0 | AF74: =IF(AF$2<=Annuity!$E134,INDEX(CalcAnnual!#REF!,,MIN(AF$2,RegDur)),0) -> 0 | AG74: =IF(AG$2<=Annuity!$E134,INDEX(CalcAnnual!#REF!,,MIN(AG$2,RegDur)),0) -> 0 | AH74: =IF(AH$2<=Annuity!$E134,INDEX(CalcAnnual!#REF!,,MIN(AH$2,RegDur)),0) -> 0 | AI74: =IF(AI$2<=Annuity!$E134,INDEX(CalcAnnual!#REF!,,MIN(AI$2,RegDur)),0) -> 0
B75: TRUE | C75: =Annuity!C135 -> Spare | F75: $ / Component | K75: =IF(K$2<=Annuity!$E135,INDEX(CalcAnnual!#REF!,,MIN(K$2,RegDur)),0) -> 0 | L75: =IF(L$2<=Annuity!$E135,INDEX(CalcAnnual!#REF!,,MIN(L$2,RegDur)),0) -> 0 | M75: =IF(M$2<=Annuity!$E135,INDEX(CalcAnnual!#REF!,,MIN(M$2,RegDur)),0) -> 0 | N75: =IF(N$2<=Annuity!$E135,INDEX(CalcAnnual!#REF!,,MIN(N$2,RegDur)),0) -> 0 | O75: =IF(O$2<=Annuity!$E135,INDEX(CalcAnnual!#REF!,,MIN(O$2,RegDur)),0) -> 0 | P75: =IF(P$2<=Annuity!$E135,INDEX(CalcAnnual!#REF!,,MIN(P$2,RegDur)),0) -> 0 | Q75: =IF(Q$2<=Annuity!$E135,INDEX(CalcAnnual!#REF!,,MIN(Q$2,RegDur)),0) -> 0 | R75: =IF(R$2<=Annuity!$E135,INDEX(CalcAnnual!#REF!,,MIN(R$2,RegDur)),0) -> 0 | S75: =IF(S$2<=Annuity!$E135,INDEX(CalcAnnual!#REF!,,MIN(S$2,RegDur)),0) -> 0 | T75: =IF(T$2<=Annuity!$E135,INDEX(CalcAnnual!#REF!,,MIN(T$2,RegDur)),0) -> 0 | U75: =IF(U$2<=Annuity!$E135,INDEX(CalcAnnual!#REF!,,MIN(U$2,RegDur)),0) -> 0 | V75: =IF(V$2<=Annuity!$E135,INDEX(CalcAnnual!#REF!,,MIN(V$2,RegDur)),0) -> 0 | W75: =IF(W$2<=Annuity!$E135,INDEX(CalcAnnual!#REF!,,MIN(W$2,RegDur)),0) -> 0 | X75: =IF(X$2<=Annuity!$E135,INDEX(CalcAnnual!#REF!,,MIN(X$2,RegDur)),0) -> 0 | Y75: =IF(Y$2<=Annuity!$E135,INDEX(CalcAnnual!#REF!,,MIN(Y$2,RegDur)),0) -> 0 | Z75: =IF(Z$2<=Annuity!$E135,INDEX(CalcAnnual!#REF!,,MIN(Z$2,RegDur)),0) -> 0 | AA75: =IF(AA$2<=Annuity!$E135,INDEX(CalcAnnual!#REF!,,MIN(AA$2,RegDur)),0) -> 0 | AB75: =IF(AB$2<=Annuity!$E135,INDEX(CalcAnnual!#REF!,,MIN(AB$2,RegDur)),0) -> 0 | AC75: =IF(AC$2<=Annuity!$E135,INDEX(CalcAnnual!#REF!,,MIN(AC$2,RegDur)),0) -> 0 | AD75: =IF(AD$2<=Annuity!$E135,INDEX(CalcAnnual!#REF!,,MIN(AD$2,RegDur)),0) -> 0 | AE75: =IF(AE$2<=Annuity!$E135,INDEX(CalcAnnual!#REF!,,MIN(AE$2,RegDur)),0) -> 0 | AF75: =IF(AF$2<=Annuity!$E135,INDEX(CalcAnnual!#REF!,,MIN(AF$2,RegDur)),0) -> 0 | AG75: =IF(AG$2<=Annuity!$E135,INDEX(CalcAnnual!#REF!,,MIN(AG$2,RegDur)),0) -> 0 | AH75: =IF(AH$2<=Annuity!$E135,INDEX(CalcAnnual!#REF!,,MIN(AH$2,RegDur)),0) -> 0 | AI75: =IF(AI$2<=Annuity!$E135,INDEX(CalcAnnual!#REF!,,MIN(AI$2,RegDur)),0) -> 0
C77: NPV of future annuities
B79: =IF(C79="Spare",TRUE,0) -> 0 | C79: =Annuity!C142 -> NIGHTWATCH MINOR (F42) - FF1A | D79: =Annuity!D142 -> FF1A | F79: $ / Component | K79: 607.7395532 | L79: 448.6187711 | M79: 294.3026135 | N79: 144.7923816 | O79: 0 | P79: 0 | Q79: 0 | R79: 0 | S79: 0 | T79: 0 | U79: 0 | V79: 0 | W79: 0 | X79: 0 | Y79: 0 | Z79: 0 | AA79: 0 | AB79: 0 | AC79: 0 | AD79: 0 | AE79: 0 | AF79: 0 | AG79: 0 | AH79: 0 | AI79: 0
B80: 0 | C80: =Annuity!C143 -> NIGHTWATCH MINOR (F2X14) - FF2A | D80: =Annuity!D143 -> FF2A | F80: $ / Component | K80: 675.6693633 | L80: 498.7457162 | M80: 327.1765414 | N80: 160.9596155 | O80: 0 | P80: 0 | Q80: 0 | R80: 0 | S80: 0 | T80: 0 | U80: 0 | V80: 0 | W80: 0 | X80: 0 | Y80: 0 | Z80: 0 | AA80: 0 | AB80: 0 | AC80: 0 | AD80: 0 | AE80: 0 | AF80: 0 | AG80: 0 | AH80: 0 | AI80: 0
B81: 0 | C81: =Annuity!C144 -> NIGHTWATCH SMALL (MH150) - FH1A | D81: =Annuity!D144 -> FH1A | F81: $ / Component | K81: 932.233114 | L81: 688.0699176 | M81: 451.3379111 | N81: 222.0215579 | O81: 0 | P81: 0 | Q81: 0 | R81: 0 | S81: 0 | T81: 0 | U81: 0 | V81: 0 | W81: 0 | X81: 0 | Y81: 0 | Z81: 0 | AA81: 0 | AB81: 0 | AC81: 0 | AD81: 0 | AE81: 0 | AF81: 0 | AG81: 0 | AH81: 0 | AI81: 0
B82: 0 | C82: =Annuity!C145 -> NIGHTWATCH MEDIUM (MH250) - FH2A | D82: =Annuity!D145 -> FH2A | F82: $ / Component | K82: 917.285234 | L82: 677.0395385 | M82: 444.1040394 | N82: 218.4639759 | O82: 0 | P82: 0 | Q82: 0 | R82: 0 | S82: 0 | T82: 0 | U82: 0 | V82: 0 | W82: 0 | X82: 0 | Y82: 0 | Z82: 0 | AA82: 0 | AB82: 0 | AC82: 0 | AD82: 0 | AE82: 0 | AF82: 0 | AG82: 0 | AH82: 0 | AI82: 0
B83: 0 | C83: =Annuity!C146 -> NIGHTWATCH LARGE (MH400) - FH3A | D83: =Annuity!D146 -> FH3A | F83: $ / Component | K83: 938.2205703 | L83: 692.4881972 | M83: 454.2354786 | N83: 223.4465671 | O83: 0 | P83: 0 | Q83: 0 | R83: 0 | S83: 0 | T83: 0 | U83: 0 | V83: 0 | W83: 0 | X83: 0 | Y83: 0 | Z83: 0 | AA83: 0 | AB83: 0 | AC83: 0 | AD83: 0 | AE83: 0 | AF83: 0 | AG83: 0 | AH83: 0 | AI83: 0
B84: 0 | C84: =Annuity!C147 -> NIGHTWATCH X-LARGE (MH1000) - FH4A | D84: =Annuity!D147 -> FH4A | F84: $ / Component | K84: 1115.510731 | L84: 823.3146214 | M84: 540.0332155 | N84: 265.6414663 | O84: 0 | P84: 0 | Q84: 0 | R84: 0 | S84: 0 | T84: 0 | U84: 0 | V84: 0 | W84: 0 | X84: 0 | Y84: 0 | Z84: 0 | AA84: 0 | AB84: 0 | AC84: 0 | AD84: 0 | AE84: 0 | AF84: 0 | AG84: 0 | AH84: 0 | AI84: 0
B85: 0 | C85: =Annuity!C148 -> NIGHTWATCH MINOR (L17) - FL1A | D85: =Annuity!D148 -> FL1A | F85: $ / Component | K85: 619.2162033 | L85: 457.0876511 | M85: 299.8566194 | N85: 147.5238141 | O85: 0 | P85: 0 | Q85: 0 | R85: 0 | S85: 0 | T85: 0 | U85: 0 | V85: 0 | W85: 0 | X85: 0 | Y85: 0 | Z85: 0 | AA85: 0 | AB85: 0 | AC85: 0 | AD85: 0 | AE85: 0 | AF85: 0 | AG85: 0 | AH85: 0 | AI85: 0
B86: 0 | C86: =Annuity!C149 -> NIGHTWATCH MINOR (L18) - FL1B | D86: =Annuity!D149 -> FL1B | F86: $ / Component | K86: 619.2162033 | L86: 457.0876511 | M86: 299.8566194 | N86: 147.5238141 | O86: 0 | P86: 0 | Q86: 0 | R86: 0 | S86: 0 | T86: 0 | U86: 0 | V86: 0 | W86: 0 | X86: 0 | Y86: 0 | Z86: 0 | AA86: 0 | AB86: 0 | AC86: 0 | AD86: 0 | AE86: 0 | AF86: 0 | AG86: 0 | AH86: 0 | AI86: 0
B87: 0 | C87: =Annuity!C150 -> NIGHTWATCH SMALL (L75+) - FL2A | D87: =Annuity!D150 -> FL2A | F87: $ / Component | K87: 791.1085184 | L87: 583.9308828 | M87: 383.0421248 | N87: 188.4340308 | O87: 0 | P87: 0 | Q87: 0 | R87: 0 | S87: 0 | T87: 0 | U87: 0 | V87: 0 | W87: 0 | X87: 0 | Y87: 0 | Z87: 0 | AA87: 0 | AB87: 0 | AC87: 0 | AD87: 0 | AE87: 0 | AF87: 0 | AG87: 0 | AH87: 0 | AI87: 0
B88: 0 | C88: =Annuity!C151 -> NIGHTWATCH MEDIUM (L100+) - FL3A | D88: =Annuity!D151 -> FL3A | F88: $ / Component | K88: 846.9886763 | L88: 625.1661167 | M88: 410.0847485 | N88: 201.7334582 | O88: 0 | P88: 0 | Q88: 0 | R88: 0 | S88: 0 | T88: 0 | U88: 0 | V88: 0 | W88: 0 | X88: 0 | Y88: 0 | Z88: 0 | AA88: 0 | AB88: 0 | AC88: 0 | AD88: 0 | AE88: 0 | AF88: 0 | AG88: 0 | AH88: 0 | AI88: 0
B89: 0 | C89: =Annuity!C152 -> NIGHTWATCH MEDIUM (L150) - FL3B | D89: =Annuity!D152 -> FL3B | F89: $ / Component | K89: 811.8694628 | L89: 599.2508538 | M89: 393.0891688 | N89: 193.3751169 | O89: 0 | P89: 0 | Q89: 0 | R89: 0 | S89: 0 | T89: 0 | U89: 0 | V89: 0 | W89: 0 | X89: 0 | Y89: 0 | Z89: 0 | AA89: 0 | AB89: 0 | AC89: 0 | AD89: 0 | AE89: 0 | AF89: 0 | AG89: 0 | AH89: 0 | AI89: 0
B90: 0 | C90: =Annuity!C153 -> NIGHTWATCH LARGE (L150+) - FL4A | D90: =Annuity!D153 -> FL4A | F90: $ / Component | K90: 853.3913516 | L90: 629.8907958 | M90: 413.1832568 | N90: 203.2572892 | O90: 0 | P90: 0 | Q90: 0 | R90: 0 | S90: 0 | T90: 0 | U90: 0 | V90: 0 | W90: 0 | X90: 0 | Y90: 0 | Z90: 0 | AA90: 0 | AB90: 0 | AC90: 0 | AD90: 0 | AE90: 0 | AF90: 0 | AG90: 0 | AH90: 0 | AI90: 0
B91: 0 | C91: =Annuity!C154 -> NIGHTWATCH LARGE (L200) - FL4B | D91: =Annuity!D154 -> FL4B | F91: $ / Component | K91: 853.3913516 | L91: 629.8907958 | M91: 413.1832568 | N91: 203.2572892 | O91: 0 | P91: 0 | Q91: 0 | R91: 0 | S91: 0 | T91: 0 | U91: 0 | V91: 0 | W91: 0 | X91: 0 | Y91: 0 | Z91: 0 | AA91: 0 | AB91: 0 | AC91: 0 | AD91: 0 | AE91: 0 | AF91: 0 | AG91: 0 | AH91: 0 | AI91: 0
B92: 0 | C92: =Annuity!C155 -> NIGHTWATCH X-LARGE (L300+) - FL5A | D92: =Annuity!D155 -> FL5A | F92: $ / Component | K92: 1120.601315 | L92: 827.0710783 | M92: 542.4967507 | N92: 266.8530206 | O92: 0 | P92: 0 | Q92: 0 | R92: 0 | S92: 0 | T92: 0 | U92: 0 | V92: 0 | W92: 0 | X92: 0 | Y92: 0 | Z92: 0 | AA92: 0 | AB92: 0 | AC92: 0 | AD92: 0 | AE92: 0 | AF92: 0 | AG92: 0 | AH92: 0 | AI92: 0
B93: 0 | C93: =Annuity!C156 -> NIGHTWATCH MINOR (M80) - FM1A | D93: =Annuity!D156 -> FM1A | F93: $ / Component | K93: 551.8261778 | L93: 407.3590253 | M93: 267.2439146 | N93: 131.4850485 | O93: 0 | P93: 0 | Q93: 0 | R93: 0 | S93: 0 | T93: 0 | U93: 0 | V93: 0 | W93: 0 | X93: 0 | Y93: 0 | Z93: 0 | AA93: 0 | AB93: 0 | AC93: 0 | AD93: 0 | AE93: 0 | AF93: 0 | AG93: 0 | AH93: 0 | AI93: 0
B94: 0 | C94: =Annuity!C157 -> NIGHTWATCH SMALL (S150) - FS1A | D94: =Annuity!D157 -> FS1A | F94: $ / Component | K94: 902.2543103 | L94: 665.9478795 | M94: 436.8299796 | N94: 214.8866295 | O94: 0 | P94: 0 | Q94: 0 | R94: 0 | S94: 0 | T94: 0 | U94: 0 | V94: 0 | W94: 0 | X94: 0 | Y94: 0 | Z94: 0 | AA94: 0 | AB94: 0 | AC94: 0 | AD94: 0 | AE94: 0 | AF94: 0 | AG94: 0 | AH94: 0 | AI94: 0
B95: 0 | C95: =Annuity!C158 -> NIGHTWATCH MEDIUM (S250) - FS2A | D95: =Annuity!D158 -> FS2A | F95: $ / Component | K95: 907.3947201 | L95: 669.7411043 | M95: 439.3176277 | N95: 216.1100424 | O95: 0 | P95: 0 | Q95: 0 | R95: 0 | S95: 0 | T95: 0 | U95: 0 | V95: 0 | W95: 0 | X95: 0 | Y95: 0 | Z95: 0 | AA95: 0 | AB95: 0 | AC95: 0 | AD95: 0 | AE95: 0 | AF95: 0 | AG95: 0 | AH95: 0 | AI95: 0
B96: 0 | C96: =Annuity!C159 -> NIGHTWATCH LARGE (S400) - FS3A | D96: =Annuity!D159 -> FS3A | F96: $ / Component | K96: 930.1985414 | L96: 686.5685604 | M96: 450.3533008 | N96: 221.5373315 | O96: 0 | P96: 0 | Q96: 0 | R96: 0 | S96: 0 | T96: 0 | U96: 0 | V96: 0 | W96: 0 | X96: 0 | Y96: 0 | Z96: 0 | AA96: 0 | AB96: 0 | AC96: 0 | AD96: 0 | AE96: 0 | AF96: 0 | AG96: 0 | AH96: 0 | AI96: 0
B97: 0 | C97: =Annuity!C160 -> NIGHTWATCH MINOR (S100) - FS4A | D97: =Annuity!D160 -> FS4A | F97: $ / Component | K97: 706.8190842 | L97: 521.7318006 | M97: 342.2511262 | N97: 168.3732211 | O97: 0 | P97: 0 | Q97: 0 | R97: 0 | S97: 0 | T97: 0 | U97: 0 | V97: 0 | W97: 0 | X97: 0 | Y97: 0 | Z97: 0 | AA97: 0 | AB97: 0 | AC97: 0 | AD97: 0 | AE97: 0 | AF97: 0 | AG97: 0 | AH97: 0 | AI97: 0
B98: 0 | C98: =Annuity!C161 -> NIGHTWATCH MINOR (S70) - FS5A | D98: =Annuity!D161 -> FS5A | F98: $ / Component | K98: 609.8322564 | L98: 450.1630242 | M98: 295.3153555 | N98: 145.2904431 | O98: 0 | P98: 0 | Q98: 0 | R98: 0 | S98: 0 | T98: 0 | U98: 0 | V98: 0 | W98: 0 | X98: 0 | Y98: 0 | Z98: 0 | AA98: 0 | AB98: 0 | AC98: 0 | AD98: 0 | AE98: 0 | AF98: 0 | AG98: 0 | AH98: 0 | AI98: 0
B99: TRUE | C99: =Annuity!C164 -> Spare | D99: =Annuity!D165 -> $ p.a. / Component | F99: $ / Component | K99: 0 | L99: 0 | M99: 0 | N99: 0 | O99: 0 | P99: 0 | Q99: 0 | R99: 0 | S99: 0 | T99: 0 | U99: 0 | V99: 0 | W99: 0 | X99: 0 | Y99: 0 | Z99: 0 | AA99: 0 | AB99: 0 | AC99: 0 | AD99: 0 | AE99: 0 | AF99: 0 | AG99: 0 | AH99: 0 | AI99: 0
B100: TRUE | C100: =Annuity!C165 -> Spare | D100: =Annuity!D166 -> $ p.a. / Component | F100: $ / Component | K100: 0 | L100: 0 | M100: 0 | N100: 0 | O100: 0 | P100: 0 | Q100: 0 | R100: 0 | S100: 0 | T100: 0 | U100: 0 | V100: 0 | W100: 0 | X100: 0 | Y100: 0 | Z100: 0 | AA100: 0 | AB100: 0 | AC100: 0 | AD100: 0 | AE100: 0 | AF100: 0 | AG100: 0 | AH100: 0 | AI100: 0
B101: TRUE | C101: =Annuity!C166 -> Spare | D101: =Annuity!D167 -> $ p.a. / Component | F101: $ / Component | K101: 0 | L101: 0 | M101: 0 | N101: 0 | O101: 0 | P101: 0 | Q101: 0 | R101: 0 | S101: 0 | T101: 0 | U101: 0 | V101: 0 | W101: 0 | X101: 0 | Y101: 0 | Z101: 0 | AA101: 0 | AB101: 0 | AC101: 0 | AD101: 0 | AE101: 0 | AF101: 0 | AG101: 0 | AH101: 0 | AI101: 0
B102: TRUE | C102: =Annuity!C167 -> Spare | D102: =Annuity!D168 -> $ p.a. / Component | F102: $ / Component | K102: 0 | L102: 0 | M102: 0 | N102: 0 | O102: 0 | P102: 0 | Q102: 0 | R102: 0 | S102: 0 | T102: 0 | U102: 0 | V102: 0 | W102: 0 | X102: 0 | Y102: 0 | Z102: 0 | AA102: 0 | AB102: 0 | AC102: 0 | AD102: 0 | AE102: 0 | AF102: 0 | AG102: 0 | AH102: 0 | AI102: 0
B103: =IF(C103="Spare",TRUE,0) -> TRUE | C103: =Annuity!C168 -> Spare | D103: =Annuity!D169 -> $ p.a. / Component | F103: $ / Component | K103: 0 | L103: 0 | M103: 0 | N103: 0 | O103: 0 | P103: 0 | Q103: 0 | R103: 0 | S103: 0 | T103: 0 | U103: 0 | V103: 0 | W103: 0 | X103: 0 | Y103: 0 | Z103: 0 | AA103: 0 | AB103: 0 | AC103: 0 | AD103: 0 | AE103: 0 | AF103: 0 | AG103: 0 | AH103: 0 | AI103: 0
B104: TRUE | C104: =Annuity!C169 -> Spare | D104: =Annuity!D170 -> $ p.a. / Component | F104: $ / Component | K104: 0 | L104: 0 | M104: 0 | N104: 0 | O104: 0 | P104: 0 | Q104: 0 | R104: 0 | S104: 0 | T104: 0 | U104: 0 | V104: 0 | W104: 0 | X104: 0 | Y104: 0 | Z104: 0 | AA104: 0 | AB104: 0 | AC104: 0 | AD104: 0 | AE104: 0 | AF104: 0 | AG104: 0 | AH104: 0 | AI104: 0
B105: TRUE | C105: =Annuity!C170 -> Spare | D105: =Annuity!D171 -> $ p.a. / Component | F105: $ / Component | K105: 0 | L105: 0 | M105: 0 | N105: 0 | O105: 0 | P105: 0 | Q105: 0 | R105: 0 | S105: 0 | T105: 0 | U105: 0 | V105: 0 | W105: 0 | X105: 0 | Y105: 0 | Z105: 0 | AA105: 0 | AB105: 0 | AC105: 0 | AD105: 0 | AE105: 0 | AF105: 0 | AG105: 0 | AH105: 0 | AI105: 0
B106: TRUE | C106: =Annuity!C171 -> Spare | D106: =Annuity!D172 -> $ p.a. / Component | F106: $ / Component | K106: 0 | L106: 0 | M106: 0 | N106: 0 | O106: 0 | P106: 0 | Q106: 0 | R106: 0 | S106: 0 | T106: 0 | U106: 0 | V106: 0 | W106: 0 | X106: 0 | Y106: 0 | Z106: 0 | AA106: 0 | AB106: 0 | AC106: 0 | AD106: 0 | AE106: 0 | AF106: 0 | AG106: 0 | AH106: 0 | AI106: 0
B107: TRUE | C107: =Annuity!C172 -> Spare | D107: =Annuity!D173 -> $ p.a. / Component | F107: $ / Component | K107: 0 | L107: 0 | M107: 0 | N107: 0 | O107: 0 | P107: 0 | Q107: 0 | R107: 0 | S107: 0 | T107: 0 | U107: 0 | V107: 0 | W107: 0 | X107: 0 | Y107: 0 | Z107: 0 | AA107: 0 | AB107: 0 | AC107: 0 | AD107: 0 | AE107: 0 | AF107: 0 | AG107: 0 | AH107: 0 | AI107: 0
B108: TRUE | C108: =Annuity!C173 -> Spare | D108: =Annuity!D174 -> $ p.a. / Component | F108: $ / Component | K108: 0 | L108: 0 | M108: 0 | N108: 0 | O108: 0 | P108: 0 | Q108: 0 | R108: 0 | S108: 0 | T108: 0 | U108: 0 | V108: 0 | W108: 0 | X108: 0 | Y108: 0 | Z108: 0 | AA108: 0 | AB108: 0 | AC108: 0 | AD108: 0 | AE108: 0 | AF108: 0 | AG108: 0 | AH108: 0 | AI108: 0
B109: TRUE | C109: =Annuity!C174 -> Spare | D109: =Annuity!D175 -> $ p.a. / Component | F109: $ / Component | K109: 0 | L109: 0 | M109: 0 | N109: 0 | O109: 0 | P109: 0 | Q109: 0 | R109: 0 | S109: 0 | T109: 0 | U109: 0 | V109: 0 | W109: 0 | X109: 0 | Y109: 0 | Z109: 0 | AA109: 0 | AB109: 0 | AC109: 0 | AD109: 0 | AE109: 0 | AF109: 0 | AG109: 0 | AH109: 0 | AI109: 0
B110: TRUE | C110: =Annuity!C175 -> Spare | D110: =Annuity!D176 -> $ p.a. / Component | F110: $ / Component | K110: 0 | L110: 0 | M110: 0 | N110: 0 | O110: 0 | P110: 0 | Q110: 0 | R110: 0 | S110: 0 | T110: 0 | U110: 0 | V110: 0 | W110: 0 | X110: 0 | Y110: 0 | Z110: 0 | AA110: 0 | AB110: 0 | AC110: 0 | AD110: 0 | AE110: 0 | AF110: 0 | AG110: 0 | AH110: 0 | AI110: 0
B111: TRUE | C111: =Annuity!C176 -> Spare | D111: =Annuity!D177 -> $ p.a. / Component | F111: $ / Component | K111: 0 | L111: 0 | M111: 0 | N111: 0 | O111: 0 | P111: 0 | Q111: 0 | R111: 0 | S111: 0 | T111: 0 | U111: 0 | V111: 0 | W111: 0 | X111: 0 | Y111: 0 | Z111: 0 | AA111: 0 | AB111: 0 | AC111: 0 | AD111: 0 | AE111: 0 | AF111: 0 | AG111: 0 | AH111: 0 | AI111: 0
B112: TRUE | C112: =Annuity!C227 -> Spare | D112: =Annuity!D178 -> $ p.a. / Component | F112: $ / Component | K112: 0 | L112: 0 | M112: 0 | N112: 0 | O112: 0 | P112: 0 | Q112: 0 | R112: 0 | S112: 0 | T112: 0 | U112: 0 | V112: 0 | W112: 0 | X112: 0 | Y112: 0 | Z112: 0 | AA112: 0 | AB112: 0 | AC112: 0 | AD112: 0 | AE112: 0 | AF112: 0 | AG112: 0 | AH112: 0 | AI112: 0
B113: TRUE | C113: =Annuity!C228 -> Spare | D113: =Annuity!D179 -> $ p.a. / Component | F113: $ / Component | K113: 0 | L113: 0 | M113: 0 | N113: 0 | O113: 0 | P113: 0 | Q113: 0 | R113: 0 | S113: 0 | T113: 0 | U113: 0 | V113: 0 | W113: 0 | X113: 0 | Y113: 0 | Z113: 0 | AA113: 0 | AB113: 0 | AC113: 0 | AD113: 0 | AE113: 0 | AF113: 0 | AG113: 0 | AH113: 0 | AI113: 0
B114: TRUE | C114: =Annuity!C229 -> Spare | D114: =Annuity!D180 -> $ p.a. / Component | F114: $ / Component | K114: 0 | L114: 0 | M114: 0 | N114: 0 | O114: 0 | P114: 0 | Q114: 0 | R114: 0 | S114: 0 | T114: 0 | U114: 0 | V114: 0 | W114: 0 | X114: 0 | Y114: 0 | Z114: 0 | AA114: 0 | AB114: 0 | AC114: 0 | AD114: 0 | AE114: 0 | AF114: 0 | AG114: 0 | AH114: 0 | AI114: 0
B115: TRUE | C115: =Annuity!C230 -> Spare | D115: =Annuity!D181 -> $ p.a. / Component | F115: $ / Component | K115: 0 | L115: 0 | M115: 0 | N115: 0 | O115: 0 | P115: 0 | Q115: 0 | R115: 0 | S115: 0 | T115: 0 | U115: 0 | V115: 0 | W115: 0 | X115: 0 | Y115: 0 | Z115: 0 | AA115: 0 | AB115: 0 | AC115: 0 | AD115: 0 | AE115: 0 | AF115: 0 | AG115: 0 | AH115: 0 | AI115: 0
B116: TRUE | C116: =Annuity!C231 -> Spare | D116: =Annuity!D182 -> $ p.a. / Component | F116: $ / Component | K116: 0 | L116: 0 | M116: 0 | N116: 0 | O116: 0 | P116: 0 | Q116: 0 | R116: 0 | S116: 0 | T116: 0 | U116: 0 | V116: 0 | W116: 0 | X116: 0 | Y116: 0 | Z116: 0 | AA116: 0 | AB116: 0 | AC116: 0 | AD116: 0 | AE116: 0 | AF116: 0 | AG116: 0 | AH116: 0 | AI116: 0
B117: TRUE | C117: =Annuity!C232 -> Spare | D117: =Annuity!D183 -> $ p.a. / Component | F117: $ / Component | K117: 0 | L117: 0 | M117: 0 | N117: 0 | O117: 0 | P117: 0 | Q117: 0 | R117: 0 | S117: 0 | T117: 0 | U117: 0 | V117: 0 | W117: 0 | X117: 0 | Y117: 0 | Z117: 0 | AA117: 0 | AB117: 0 | AC117: 0 | AD117: 0 | AE117: 0 | AF117: 0 | AG117: 0 | AH117: 0 | AI117: 0
B118: TRUE | C118: =Annuity!C233 -> Spare | D118: =Annuity!D184 -> $ p.a. / Component | F118: $ / Component | K118: 0 | L118: 0 | M118: 0 | N118: 0 | O118: 0 | P118: 0 | Q118: 0 | R118: 0 | S118: 0 | T118: 0 | U118: 0 | V118: 0 | W118: 0 | X118: 0 | Y118: 0 | Z118: 0 | AA118: 0 | AB118: 0 | AC118: 0 | AD118: 0 | AE118: 0 | AF118: 0 | AG118: 0 | AH118: 0 | AI118: 0
B119: TRUE | C119: =Annuity!C234 -> Spare | D119: =Annuity!D185 -> $ p.a. / Component | F119: $ / Component | K119: 0 | L119: 0 | M119: 0 | N119: 0 | O119: 0 | P119: 0 | Q119: 0 | R119: 0 | S119: 0 | T119: 0 | U119: 0 | V119: 0 | W119: 0 | X119: 0 | Y119: 0 | Z119: 0 | AA119: 0 | AB119: 0 | AC119: 0 | AD119: 0 | AE119: 0 | AF119: 0 | AG119: 0 | AH119: 0 | AI119: 0
B120: TRUE | C120: =Annuity!C235 -> Spare | D120: =Annuity!D186 -> $ p.a. / Component | F120: $ / Component | K120: 0 | L120: 0 | M120: 0 | N120: 0 | O120: 0 | P120: 0 | Q120: 0 | R120: 0 | S120: 0 | T120: 0 | U120: 0 | V120: 0 | W120: 0 | X120: 0 | Y120: 0 | Z120: 0 | AA120: 0 | AB120: 0 | AC120: 0 | AD120: 0 | AE120: 0 | AF120: 0 | AG120: 0 | AH120: 0 | AI120: 0
B121: TRUE | C121: =Annuity!C236 -> Spare | D121: =Annuity!D187 -> $ p.a. / Component | F121: $ / Component | K121: 0 | L121: 0 | M121: 0 | N121: 0 | O121: 0 | P121: 0 | Q121: 0 | R121: 0 | S121: 0 | T121: 0 | U121: 0 | V121: 0 | W121: 0 | X121: 0 | Y121: 0 | Z121: 0 | AA121: 0 | AB121: 0 | AC121: 0 | AD121: 0 | AE121: 0 | AF121: 0 | AG121: 0 | AH121: 0 | AI121: 0
B122: TRUE | C122: =Annuity!C237 -> Spare | D122: =Annuity!D188 -> $ p.a. / Component | F122: $ / Component | K122: 0 | L122: 0 | M122: 0 | N122: 0 | O122: 0 | P122: 0 | Q122: 0 | R122: 0 | S122: 0 | T122: 0 | U122: 0 | V122: 0 | W122: 0 | X122: 0 | Y122: 0 | Z122: 0 | AA122: 0 | AB122: 0 | AC122: 0 | AD122: 0 | AE122: 0 | AF122: 0 | AG122: 0 | AH122: 0 | AI122: 0
B123: TRUE | C123: =Annuity!C238 -> Spare | D123: =Annuity!D189 -> $ p.a. / Component | F123: $ / Component | K123: 0 | L123: 0 | M123: 0 | N123: 0 | O123: 0 | P123: 0 | Q123: 0 | R123: 0 | S123: 0 | T123: 0 | U123: 0 | V123: 0 | W123: 0 | X123: 0 | Y123: 0 | Z123: 0 | AA123: 0 | AB123: 0 | AC123: 0 | AD123: 0 | AE123: 0 | AF123: 0 | AG123: 0 | AH123: 0 | AI123: 0
B124: TRUE | C124: =Annuity!C239 -> Spare | D124: =Annuity!D190 -> $ p.a. / Component | F124: $ / Component | K124: 0 | L124: 0 | M124: 0 | N124: 0 | O124: 0 | P124: 0 | Q124: 0 | R124: 0 | S124: 0 | T124: 0 | U124: 0 | V124: 0 | W124: 0 | X124: 0 | Y124: 0 | Z124: 0 | AA124: 0 | AB124: 0 | AC124: 0 | AD124: 0 | AE124: 0 | AF124: 0 | AG124: 0 | AH124: 0 | AI124: 0
B125: TRUE | C125: =Annuity!C240 -> Spare | D125: =Annuity!D191 -> $ p.a. / Component | F125: $ / Component | K125: 0 | L125: 0 | M125: 0 | N125: 0 | O125: 0 | P125: 0 | Q125: 0 | R125: 0 | S125: 0 | T125: 0 | U125: 0 | V125: 0 | W125: 0 | X125: 0 | Y125: 0 | Z125: 0 | AA125: 0 | AB125: 0 | AC125: 0 | AD125: 0 | AE125: 0 | AF125: 0 | AG125: 0 | AH125: 0 | AI125: 0
B126: TRUE | C126: =Annuity!C241 -> Spare | D126: =Annuity!D192 -> $ p.a. / Component | F126: $ / Component | K126: 0 | L126: 0 | M126: 0 | N126: 0 | O126: 0 | P126: 0 | Q126: 0 | R126: 0 | S126: 0 | T126: 0 | U126: 0 | V126: 0 | W126: 0 | X126: 0 | Y126: 0 | Z126: 0 | AA126: 0 | AB126: 0 | AC126: 0 | AD126: 0 | AE126: 0 | AF126: 0 | AG126: 0 | AH126: 0 | AI126: 0
B127: TRUE | C127: =Annuity!C242 -> Spare | D127: =Annuity!D193 -> $ p.a. / Component | F127: $ / Component | K127: 0 | L127: 0 | M127: 0 | N127: 0 | O127: 0 | P127: 0 | Q127: 0 | R127: 0 | S127: 0 | T127: 0 | U127: 0 | V127: 0 | W127: 0 | X127: 0 | Y127: 0 | Z127: 0 | AA127: 0 | AB127: 0 | AC127: 0 | AD127: 0 | AE127: 0 | AF127: 0 | AG127: 0 | AH127: 0 | AI127: 0
B128: TRUE | C128: =Annuity!C243 -> Spare | D128: =Annuity!D194 -> $ p.a. / Component | F128: $ / Component | K128: 0 | L128: 0 | M128: 0 | N128: 0 | O128: 0 | P128: 0 | Q128: 0 | R128: 0 | S128: 0 | T128: 0 | U128: 0 | V128: 0 | W128: 0 | X128: 0 | Y128: 0 | Z128: 0 | AA128: 0 | AB128: 0 | AC128: 0 | AD128: 0 | AE128: 0 | AF128: 0 | AG128: 0 | AH128: 0 | AI128: 0
B129: TRUE | C129: =Annuity!C244 -> Spare | D129: =Annuity!D195 -> $ p.a. / Component | F129: $ / Component | K129: 0 | L129: 0 | M129: 0 | N129: 0 | O129: 0 | P129: 0 | Q129: 0 | R129: 0 | S129: 0 | T129: 0 | U129: 0 | V129: 0 | W129: 0 | X129: 0 | Y129: 0 | Z129: 0 | AA129: 0 | AB129: 0 | AC129: 0 | AD129: 0 | AE129: 0 | AF129: 0 | AG129: 0 | AH129: 0 | AI129: 0
B130: TRUE | C130: =Annuity!C245 -> Spare | D130: =Annuity!D196 -> $ p.a. / Component | F130: $ / Component | K130: 0 | L130: 0 | M130: 0 | N130: 0 | O130: 0 | P130: 0 | Q130: 0 | R130: 0 | S130: 0 | T130: 0 | U130: 0 | V130: 0 | W130: 0 | X130: 0 | Y130: 0 | Z130: 0 | AA130: 0 | AB130: 0 | AC130: 0 | AD130: 0 | AE130: 0 | AF130: 0 | AG130: 0 | AH130: 0 | AI130: 0
B131: TRUE | C131: =Annuity!C246 -> Spare | D131: =Annuity!D197 -> $ p.a. / Component | F131: $ / Component | K131: 0 | L131: 0 | M131: 0 | N131: 0 | O131: 0 | P131: 0 | Q131: 0 | R131: 0 | S131: 0 | T131: 0 | U131: 0 | V131: 0 | W131: 0 | X131: 0 | Y131: 0 | Z131: 0 | AA131: 0 | AB131: 0 | AC131: 0 | AD131: 0 | AE131: 0 | AF131: 0 | AG131: 0 | AH131: 0 | AI131: 0
B132: TRUE | C132: =Annuity!C247 -> Spare | D132: =Annuity!D198 -> $ p.a. / Component | F132: $ / Component | K132: 0 | L132: 0 | M132: 0 | N132: 0 | O132: 0 | P132: 0 | Q132: 0 | R132: 0 | S132: 0 | T132: 0 | U132: 0 | V132: 0 | W132: 0 | X132: 0 | Y132: 0 | Z132: 0 | AA132: 0 | AB132: 0 | AC132: 0 | AD132: 0 | AE132: 0 | AF132: 0 | AG132: 0 | AH132: 0 | AI132: 0
B133: TRUE | C133: =Annuity!C248 -> Spare | D133: =Annuity!D199 -> $ p.a. / Component | F133: $ / Component | K133: 0 | L133: 0 | M133: 0 | N133: 0 | O133: 0 | P133: 0 | Q133: 0 | R133: 0 | S133: 0 | T133: 0 | U133: 0 | V133: 0 | W133: 0 | X133: 0 | Y133: 0 | Z133: 0 | AA133: 0 | AB133: 0 | AC133: 0 | AD133: 0 | AE133: 0 | AF133: 0 | AG133: 0 | AH133: 0 | AI133: 0
B134: TRUE | C134: =Annuity!C249 -> Spare | D134: =Annuity!D200 -> $ p.a. / Component | F134: $ / Component | K134: 0 | L134: 0 | M134: 0 | N134: 0 | O134: 0 | P134: 0 | Q134: 0 | R134: 0 | S134: 0 | T134: 0 | U134: 0 | V134: 0 | W134: 0 | X134: 0 | Y134: 0 | Z134: 0 | AA134: 0 | AB134: 0 | AC134: 0 | AD134: 0 | AE134: 0 | AF134: 0 | AG134: 0 | AH134: 0 | AI134: 0
B135: TRUE | C135: =Annuity!C250 -> Spare | D135: =Annuity!D201 -> $ p.a. / Component | F135: $ / Component | K135: 0 | L135: 0 | M135: 0 | N135: 0 | O135: 0 | P135: 0 | Q135: 0 | R135: 0 | S135: 0 | T135: 0 | U135: 0 | V135: 0 | W135: 0 | X135: 0 | Y135: 0 | Z135: 0 | AA135: 0 | AB135: 0 | AC135: 0 | AD135: 0 | AE135: 0 | AF135: 0 | AG135: 0 | AH135: 0 | AI135: 0
B136: TRUE | C136: =Annuity!C251 -> Spare | D136: =Annuity!D202 -> $ p.a. / Component | F136: $ / Component | K136: 0 | L136: 0 | M136: 0 | N136: 0 | O136: 0 | P136: 0 | Q136: 0 | R136: 0 | S136: 0 | T136: 0 | U136: 0 | V136: 0 | W136: 0 | X136: 0 | Y136: 0 | Z136: 0 | AA136: 0 | AB136: 0 | AC136: 0 | AD136: 0 | AE136: 0 | AF136: 0 | AG136: 0 | AH136: 0 | AI136: 0
B137: TRUE | C137: =Annuity!C252 -> Spare | D137: =Annuity!D203 -> $ p.a. / Component | F137: $ / Component | K137: 0 | L137: 0 | M137: 0 | N137: 0 | O137: 0 | P137: 0 | Q137: 0 | R137: 0 | S137: 0 | T137: 0 | U137: 0 | V137: 0 | W137: 0 | X137: 0 | Y137: 0 | Z137: 0 | AA137: 0 | AB137: 0 | AC137: 0 | AD137: 0 | AE137: 0 | AF137: 0 | AG137: 0 | AH137: 0 | AI137: 0
B138: TRUE | C138: =Annuity!C253 -> Spare | D138: =Annuity!D204 -> $ p.a. / Component | F138: $ / Component | K138: 0 | L138: 0 | M138: 0 | N138: 0 | O138: 0 | P138: 0 | Q138: 0 | R138: 0 | S138: 0 | T138: 0 | U138: 0 | V138: 0 | W138: 0 | X138: 0 | Y138: 0 | Z138: 0 | AA138: 0 | AB138: 0 | AC138: 0 | AD138: 0 | AE138: 0 | AF138: 0 | AG138: 0 | AH138: 0 | AI138: 0

Sheet Tax Recovery Rate (hidden)
C1: Tariff Charge 4
K2: 1 | L2: 2 | M2: 3 | N2: 4 | O2: 5 | P2: 6 | Q2: 7 | R2: 8 | S2: 9 | T2: 10 | U2: 11 | V2: 12 | W2: 13 | X2: 14 | Y2: 15 | Z2: 16 | AA2: 17 | AB2: 18 | AC2: 19 | AD2: 20 | AE2: 21 | AF2: 22 | AG2: 23 | AH2: 24 | AI2: 25 | AJ2: 26 | AK2: 27 | AL2: 28 | AM2: 29 | AN2: 30 | AO2: 31 | AP2: 32 | AQ2: 33 | AR2: 34 | AS2: 35 | AT2: 36 | AU2: 37 | AV2: 38 | AW2: 39 | AX2: 40 | AY2: 41 | AZ2: 42 | BA2: 43 | BB2: 44 | BC2: 45 | BD2: 46 | BE2: 47 | BF2: 48 | BG2: 49 | BH2: 50
C4: Tax Recovery on Customer Contributions
C6: =Global!C72 -> Nominal vanilla WACC | K6: =INDEX(Global!$F$72:$J$72,,MIN(K2,RegDur)) -> 0.05844362232 | L6: =INDEX(Global!$F$72:$J$72,,MIN(L2,RegDur)) -> 0.05902538856 | M6: =INDEX(Global!$F$72:$J$72,,MIN(M2,RegDur)) -> 0.05986924946 | N6: =INDEX(Global!$F$72:$J$72,,MIN(N2,RegDur)) -> 0.06074010434 | O6: =INDEX(Global!$F$72:$J$72,,MIN(O2,RegDur)) -> 0.06174560835 | P6: =INDEX(Global!$F$72:$J$72,,MIN(P2,RegDur)) -> 0.06174560835 | Q6: =INDEX(Global!$F$72:$J$72,,MIN(Q2,RegDur)) -> 0.06174560835 | R6: =INDEX(Global!$F$72:$J$72,,MIN(R2,RegDur)) -> 0.06174560835 | S6: =INDEX(Global!$F$72:$J$72,,MIN(S2,RegDur)) -> 0.06174560835 | T6: =INDEX(Global!$F$72:$J$72,,MIN(T2,RegDur)) -> 0.06174560835 | U6: =INDEX(Global!$F$72:$J$72,,MIN(U2,RegDur)) -> 0.06174560835 | V6: =INDEX(Global!$F$72:$J$72,,MIN(V2,RegDur)) -> 0.06174560835 | W6: =INDEX(Global!$F$72:$J$72,,MIN(W2,RegDur)) -> 0.06174560835 | X6: =INDEX(Global!$F$72:$J$72,,MIN(X2,RegDur)) -> 0.06174560835 | Y6: =INDEX(Global!$F$72:$J$72,,MIN(Y2,RegDur)) -> 0.06174560835 | Z6: =INDEX(Global!$F$72:$J$72,,MIN(Z2,RegDur)) -> 0.06174560835 | AA6: =INDEX(Global!$F$72:$J$72,,MIN(AA2,RegDur)) -> 0.06174560835 | AB6: =INDEX(Global!$F$72:$J$72,,MIN(AB2,RegDur)) -> 0.06174560835 | AC6: =INDEX(Global!$F$72:$J$72,,MIN(AC2,RegDur)) -> 0.06174560835 | AD6: =INDEX(Global!$F$72:$J$72,,MIN(AD2,RegDur)) -> 0.06174560835 | AE6: =INDEX(Global!$F$72:$J$72,,MIN(AE2,RegDur)) -> 0.06174560835 | AF6: =INDEX(Global!$F$72:$J$72,,MIN(AF2,RegDur)) -> 0.06174560835 | AG6: =INDEX(Global!$F$72:$J$72,,MIN(AG2,RegDur)) -> 0.06174560835 | AH6: =INDEX(Global!$F$72:$J$72,,MIN(AH2,RegDur)) -> 0.06174560835 | AI6: =INDEX(Global!$F$72:$J$72,,MIN(AI2,RegDur)) -> 0.06174560835 | AJ6: =INDEX(Global!$F$72:$J$72,,MIN(AJ2,RegDur)) -> 0.06174560835 | AK6: =INDEX(Global!$F$72:$J$72,,MIN(AK2,RegDur)) -> 0.06174560835 | AL6: =INDEX(Global!$F$72:$J$72,,MIN(AL2,RegDur)) -> 0.06174560835 | AM6: =INDEX(Global!$F$72:$J$72,,MIN(AM2,RegDur)) -> 0.06174560835 | AN6: =INDEX(Global!$F$72:$J$72,,MIN(AN2,RegDur)) -> 0.06174560835 | AO6: =INDEX(Global!$F$72:$J$72,,MIN(AO2,RegDur)) -> 0.06174560835 | AP6: =INDEX(Global!$F$72:$J$72,,MIN(AP2,RegDur)) -> 0.06174560835 | AQ6: =INDEX(Global!$F$72:$J$72,,MIN(AQ2,RegDur)) -> 0.06174560835 | AR6: =INDEX(Global!$F$72:$J$72,,MIN(AR2,RegDur)) -> 0.06174560835 | AS6: =INDEX(Global!$F$72:$J$72,,MIN(AS2,RegDur)) -> 0.06174560835 | AT6: =INDEX(Global!$F$72:$J$72,,MIN(AT2,RegDur)) -> 0.06174560835 | AU6: =INDEX(Global!$F$72:$J$72,,MIN(AU2,RegDur)) -> 0.06174560835 | AV6: =INDEX(Global!$F$72:$J$72,,MIN(AV2,RegDur)) -> 0.06174560835 | AW6: =INDEX(Global!$F$72:$J$72,,MIN(AW2,RegDur)) -> 0.06174560835 | AX6: =INDEX(Global!$F$72:$J$72,,MIN(AX2,RegDur)) -> 0.06174560835 | AY6: =INDEX(Global!$F$72:$J$72,,MIN(AY2,RegDur)) -> 0.06174560835 | AZ6: =INDEX(Global!$F$72:$J$72,,MIN(AZ2,RegDur)) -> 0.06174560835 | BA6: =INDEX(Global!$F$72:$J$72,,MIN(BA2,RegDur)) -> 0.06174560835 | BB6: =INDEX(Global!$F$72:$J$72,,MIN(BB2,RegDur)) -> 0.06174560835 | BC6: =INDEX(Global!$F$72:$J$72,,MIN(BC2,RegDur)) -> 0.06174560835 | BD6: =INDEX(Global!$F$72:$J$72,,MIN(BD2,RegDur)) -> 0.06174560835 | BE6: =INDEX(Global!$F$72:$J$72,,MIN(BE2,RegDur)) -> 0.06174560835 | BF6: =INDEX(Global!$F$72:$J$72,,MIN(BF2,RegDur)) -> 0.06174560835 | BG6: =INDEX(Global!$F$72:$J$72,,MIN(BG2,RegDur)) -> 0.06174560835 | BH6: =INDEX(Global!$F$72:$J$72,,MIN(BH2,RegDur)) -> 0.06174560835
C7: Discount factor | J7: 1 | K7: =J7*(1+K6) -> 1.058443622 | L7: =K7*(1+L6) -> 1.120918668 | M7: 1.188027228 | N7: 1.260188126 | O7: 1.337999208 | P7: 1.420614783 | Q7: 1.508331507 | R7: 1.601464354 | S7: 1.700347744 | T7: 1.80533675 | U7: 1.916808366 | V7: 2.035162865 | W7: 2.160825234 | X7: 2.294246703 | Y7: 2.435906361 | Z7: 2.586312881 | AA7: 2.746006343 | AB7: 2.915560175 | AC7: 3.095583212 | AD7: 3.286721881 | AE7: 3.489662523 | AF7: 3.705133858 | AG7: 3.933909602 | AH7: 4.176811244 | AI7: 4.434710995 | AJ7: 4.708534923 | AK7: 4.999266276 | AL7: 5.307949014 | AM7: 5.635691555 | AN7: 5.983670758 | AO7: 6.353136149 | AP7: 6.745414406 | AQ7: 7.161914122 | AR7: 7.604130866 | AS7: 8.073652553 | AT7: 8.572165141 | AU7: 9.101458693 | AV7: 9.663433796 | AW7: 10.26010839 | AX7: 10.89362503 | AY7: 11.56625853 | AZ7: 12.2804242 | BA7: 13.03868647 | BB7: 13.84376809 | BC7: 14.69855998 | BD7: 15.6061315 | BE7: 16.56974159 | BF7: 17.59285036 | BG7: 18.67913161 | BH7: 19.83248596
C9: Tax recovery
C11: Remaining life flag | D11: [1,0] | E11: 0 | K11: =IF($E11>=K$2,1,0) -> 0 | L11: =IF($E11>=L$2,1,0) -> 0 | M11: 0 | N11: 0 | O11: 0 | P11: 0 | Q11: 0 | R11: 0 | S11: 0 | T11: 0 | U11: 0 | V11: 0 | W11: 0 | X11: 0 | Y11: 0 | Z11: 0 | AA11: 0 | AB11: 0 | AC11: 0 | AD11: 0 | AE11: 0 | AF11: 0 | AG11: 0 | AH11: 0 | AI11: 0 | AJ11: 0 | AK11: 0 | AL11: 0 | AM11: 0 | AN11: 0 | AO11: 0 | AP11: 0 | AQ11: 0 | AR11: 0 | AS11: 0 | AT11: 0 | AU11: 0 | AV11: 0 | AW11: 0 | AX11: 0 | AY11: 0 | AZ11: 0 | BA11: 0 | BB11: 0 | BC11: 0 | BD11: 0 | BE11: 0 | BF11: 0 | BG11: 0 | BH11: 0
C12: Remaining periods | D12: # | K12: =SUM(K11:$BH11)*K11 -> 0 | L12: =SUM(L11:$BH11)*L11 -> 0 | M12: =SUM(M11:$BH11)*M11 -> 0 | N12: =SUM(N11:$BH11)*N11 -> 0 | O12: =SUM(O11:$BH11)*O11 -> 0 | P12: =SUM(P11:$BH11)*P11 -> 0 | Q12: =SUM(Q11:$BH11)*Q11 -> 0 | R12: =SUM(R11:$BH11)*R11 -> 0 | S12: =SUM(S11:$BH11)*S11 -> 0 | T12: =SUM(T11:$BH11)*T11 -> 0 | U12: =SUM(U11:$BH11)*U11 -> 0 | V12: =SUM(V11:$BH11)*V11 -> 0 | W12: =SUM(W11:$BH11)*W11 -> 0 | X12: =SUM(X11:$BH11)*X11 -> 0 | Y12: =SUM(Y11:$BH11)*Y11 -> 0 | Z12: =SUM(Z11:$BH11)*Z11 -> 0 | AA12: =SUM(AA11:$BH11)*AA11 -> 0 | AB12: =SUM(AB11:$BH11)*AB11 -> 0 | AC12: =SUM(AC11:$BH11)*AC11 -> 0 | AD12: =SUM(AD11:$BH11)*AD11 -> 0 | AE12: =SUM(AE11:$BH11)*AE11 -> 0 | AF12: =SUM(AF11:$BH11)*AF11 -> 0 | AG12: =SUM(AG11:$BH11)*AG11 -> 0 | AH12: =SUM(AH11:$BH11)*AH11 -> 0 | AI12: =SUM(AI11:$BH11)*AI11 -> 0 | AJ12: =SUM(AJ11:$BH11)*AJ11 -> 0 | AK12: =SUM(AK11:$BH11)*AK11 -> 0 | AL12: =SUM(AL11:$BH11)*AL11 -> 0 | AM12: =SUM(AM11:$BH11)*AM11 -> 0 | AN12: =SUM(AN11:$BH11)*AN11 -> 0 | AO12: =SUM(AO11:$BH11)*AO11 -> 0 | AP12: =SUM(AP11:$BH11)*AP11 -> 0 | AQ12: =SUM(AQ11:$BH11)*AQ11 -> 0 | AR12: =SUM(AR11:$BH11)*AR11 -> 0 | AS12: =SUM(AS11:$BH11)*AS11 -> 0 | AT12: =SUM(AT11:$BH11)*AT11 -> 0 | AU12: =SUM(AU11:$BH11)*AU11 -> 0 | AV12: =SUM(AV11:$BH11)*AV11 -> 0 | AW12: =SUM(AW11:$BH11)*AW11 -> 0 | AX12: =SUM(AX11:$BH11)*AX11 -> 0 | AY12: =SUM(AY11:$BH11)*AY11 -> 0 | AZ12: =SUM(AZ11:$BH11)*AZ11 -> 0 | BA12: =SUM(BA11:$BH11)*BA11 -> 0 | BB12: =SUM(BB11:$BH11)*BB11 -> 0 | BC12: =SUM(BC11:$BH11)*BC11 -> 0 | BD12: =SUM(BD11:$BH11)*BD11 -> 0 | BE12: =SUM(BE11:$BH11)*BE11 -> 0 | BF12: =SUM(BF11:$BH11)*BF11 -> 0 | BG12: =SUM(BG11:$BH11)*BG11 -> 0 | BH12: =SUM(BH11:$BH11)*BH11 -> 0
C13: Depreciation rate | D13: % p.a. | E13: =IF(E11=0,0,1/E11) -> 0
C14: Tax rate | D14: % | E14: =Global!F99 -> 0.3
C16: Present value of tax shield | D16: % p.a. | E16: =E13*E14 -> 0 | J16: =SUM(K16:BH16) -> 0 | K16: =IF(K$2>$E$11,0,$E$16/K7) -> 0 | L16: 0 | M16: 0 | N16: 0 | O16: 0 | P16: 0 | Q16: 0 | R16: 0 | S16: 0 | T16: 0 | U16: 0 | V16: 0 | W16: 0 | X16: 0 | Y16: 0 | Z16: 0 | AA16: 0 | AB16: 0 | AC16: 0 | AD16: 0 | AE16: 0 | AF16: 0 | AG16: 0 | AH16: 0 | AI16: 0 | AJ16: 0 | AK16: 0 | AL16: 0 | AM16: 0 | AN16: 0 | AO16: 0 | AP16: 0 | AQ16: =IF(AQ$2>$E$11,0,$E$16/AQ7) -> 0 | AR16: 0 | AS16: 0 | AT16: 0 | AU16: 0 | AV16: 0 | AW16: 0 | AX16: 0 | AY16: 0 | AZ16: 0 | BA16: 0 | BB16: 0 | BC16: 0 | BD16: 0 | BE16: 0 | BF16: 0 | BG16: 0 | BH16: 0
C18: Recoverable tax losses
C19: Opening balance | D19: % | E19: Interest Rate | K19: =J21 -> 0.3 | L19: =K21 -> 0.3 | M19: 0.3 | N19: 0.3 | O19: 0.3 | P19: 0.3 | Q19: 0.3 | R19: 0.3 | S19: 0.3 | T19: 0.3 | U19: 0.3 | V19: 0.3 | W19: 0.3 | X19: 0.3 | Y19: 0.3 | Z19: 0.3 | AA19: 0.3 | AB19: 0.3 | AC19: 0.3 | AD19: 0.3 | AE19: 0.3 | AF19: 0.3 | AG19: 0.3 | AH19: 0.3 | AI19: 0.3 | AJ19: 0.3 | AK19: 0.3 | AL19: 0.3 | AM19: 0.3 | AN19: 0.3 | AO19: 0.3 | AP19: 0.3 | AQ19: 0.3 | AR19: 0.3 | AS19: 0.3 | AT19: 0.3 | AU19: 0.3 | AV19: 0.3 | AW19: 0.3 | AX19: 0.3 | AY19: 0.3 | AZ19: 0.3 | BA19: 0.3 | BB19: 0.3 | BC19: 0.3 | BD19: 0.3 | BE19: 0.3 | BF19: 0.3 | BG19: 0.3 | BH19: 0.3
C20: Recovered | D20: % | E20: =INDEX(Global!F77:J77,,MATCH(Global!F8,List_RegYear,0)) -> 0.03525915455 | J20: =SUM(K20:BH20) -> 0 | K20: =IF(K11=0,0,PPMT($E$20,K12,K12,K$19)) -> 0 | L20: =IF(L11=0,0,PPMT($E$20,L12,L12,L$19)) -> 0 | M20: 0 | N20: 0 | O20: 0 | P20: 0 | Q20: 0 | R20: 0 | S20: 0 | T20: 0 | U20: 0 | V20: 0 | W20: 0 | X20: 0 | Y20: 0 | Z20: 0 | AA20: 0 | AB20: 0 | AC20: 0 | AD20: 0 | AE20: 0 | AF20: 0 | AG20: 0 | AH20: 0 | AI20: 0 | AJ20: 0 | AK20: 0 | AL20: 0 | AM20: 0 | AN20: 0 | AO20: 0 | AP20: 0 | AQ20: 0 | AR20: 0 | AS20: 0 | AT20: 0 | AU20: 0 | AV20: 0 | AW20: 0 | AX20: 0 | AY20: 0 | AZ20: 0 | BA20: 0 | BB20: 0 | BC20: 0 | BD20: 0 | BE20: 0 | BF20: 0 | BG20: 0 | BH20: 0
C21: Closing balance | D21: % | J21: =E14-J16 -> 0.3 | K21: =SUM(K19:K20) -> 0.3 | L21: =SUM(L19:L20) -> 0.3 | M21: 0.3 | N21: 0.3 | O21: 0.3 | P21: 0.3 | Q21: 0.3 | R21: 0.3 | S21: 0.3 | T21: 0.3 | U21: 0.3 | V21: 0.3 | W21: 0.3 | X21: 0.3 | Y21: 0.3 | Z21: 0.3 | AA21: 0.3 | AB21: 0.3 | AC21: 0.3 | AD21: 0.3 | AE21: 0.3 | AF21: 0.3 | AG21: 0.3 | AH21: 0.3 | AI21: 0.3 | AJ21: 0.3 | AK21: 0.3 | AL21: 0.3 | AM21: 0.3 | AN21: 0.3 | AO21: 0.3 | AP21: 0.3 | AQ21: 0.3 | AR21: 0.3 | AS21: 0.3 | AT21: 0.3 | AU21: 0.3 | AV21: 0.3 | AW21: 0.3 | AX21: 0.3 | AY21: 0.3 | AZ21: 0.3 | BA21: 0.3 | BB21: 0.3 | BC21: 0.3 | BD21: 0.3 | BE21: 0.3 | BF21: 0.3 | BG21: 0.3 | BH21: 0.3
C22: Check | D22: Ok/Fail | J22: =IF(E11=0,0,ROUND(SUM(J20:J21),Rounding)) -> 0
C24: Annuity | D24: % | K24: =-K20*(1+$E$20)^K2 -> 0 | L24: 0 | M24: 0 | N24: 0 | O24: 0 | P24: 0 | Q24: 0 | R24: 0 | S24: 0 | T24: 0 | U24: 0 | V24: 0 | W24: 0 | X24: 0 | Y24: 0 | Z24: 0 | AA24: 0 | AB24: 0 | AC24: 0 | AD24: 0 | AE24: 0 | AF24: 0 | AG24: 0 | AH24: 0 | AI24: 0 | AJ24: 0 | AK24: 0 | AL24: 0 | AM24: 0 | AN24: 0 | AO24: 0 | AP24: 0 | AQ24: =-AQ20*(1+$E$20)^AQ2 -> 0 | AR24: 0 | AS24: 0 | AT24: 0 | AU24: 0 | AV24: 0 | AW24: 0 | AX24: 0 | AY24: 0 | AZ24: 0 | BA24: 0 | BB24: 0 | BC24: 0 | BD24: 0 | BE24: 0 | BF24: 0 | BG24: 0 | BH24: 0
C25: Check | D25: Ok/Fail | J25: =ROUND(MAX(K24:BH24)-MIN(IF(K24:BH24<>0,K24:BH24)),Rounding) -> 0
C27: Data table of results
C28: Asset remaining life | D28: Annuity (% p.a.)
C29: Annuity | D29: =K24 -> 0
C30: 1 | D30: 0.01714903669
C31: 2 | D31: 0.01288250074
C32: 3 | D32: 0.01147610239
C33: 4 | D33: 0.01078425043
C34: 5 | D34: 0.01037882467
C35: 6 | D35: 0.01011004959
C36: 7 | D36: 0.00991714163
C37: 8 | D37: 0.009770820701
C38: 9 | D38: 0.009655254727
C39: 10 | D39: 0.009561136471
C40: 11 | D40: 0.009482635466
C41: 12 | D41: 0.009415911735
C42: 13 | D42: 0.009358331562
C43: 14 | D43: 0.009308026838
C44: 15 | D44: 0.009263634372
C45: 16 | D45: 0.009224134929
C46: 17 | D46: 0.009188750155
C47: 18 | D47: 0.009156874492
C48: 19 | D48: 0.009128028961
C49: 20 | D49: 0.009101829048
C50: 21 | D50: 0.009077961903
C51: 22 | D51: 0.00905616986
C52: 23 | D52: 0.009036238315
C53: 24 | D53: 0.009017986675
C54: 25 | D54: 0.009001261516
C55: 26 | D55: 0.008985931331
C56: 27 | D56: 0.008971882468
C57: 28 | D57: 0.00895901594
C58: 29 | D58: 0.008947244912
C59: 30 | D59: 0.008936492687
C60: 31 | D60: 0.008926691093
C61: 32 | D61: 0.008917779169
C62: 33 | D62: 0.008909702098
C63: 34 | D63: 0.008902410324
C64: 35 | D64: 0.008895858827
C65: 36 | D65: 0.008890006516
C66: 37 | D66: 0.008884815721
C67: 38 | D67: 0.008880251768
C68: 39 | D68: 0.008876282618
C69: 40 | D69: 0.00887287856
C70: 41 | D70: 0.008870011948
C71: 42 | D71: 0.008867656979
C72: 43 | D72: 0.008865789501
C73: 44 | D73: 0.008864386842
C74: 45 | D74: 0.008863427668
C75: 46 | D75: 0.008862891857
C76: 47 | D76: 0.008862760389
C77: 48 | D77: 0.008863015248
C78: 49 | D78: 0.008863639337
C79: 50 | D79: 0.008864616405

Sheet REG_Timing
C1: Regulatory Period Timing
J2: 2024 | K2: =J2+1 -> 2025 | L2: =K2+1 -> 2026 | M2: =L2+1 -> 2027 | N2: =M2+1 -> 2028 | O2: =N2+1 -> 2029
C4: Flags
C6: Year | D6: # | K6: =J6+1 -> 1 | L6: =K6+1 -> 2 | M6: =L6+1 -> 3 | N6: =M6+1 -> 4 | O6: =N6+1 -> 5
C8: Escalation
C10: Escalation Rate
C11: =Global!C83 -> CPI | D11: % p.a. | K11: =Global!F83 -> 0.04051987768 | L11: =Global!G83 -> 0.02799781128 | M11: =Global!H83 -> 0.02799781128 | N11: =Global!I83 -> 0.02799781128 | O11: =Global!J83 -> 0.02799781128
C12: =Global!C84 -> LPI | D12: % p.a. | K12: =Global!F84 -> 0.01652827985 | L12: =Global!G84 -> 0.01495766389 | M12: =Global!H84 -> 0.006634271053 | N12: =Global!I84 -> 0.005015929052 | O12: =Global!J84 -> 0.007061266653
C13: =Global!C85 -> Real capex | D13: % p.a. | K13: =Global!F85 -> 0 | L13: =Global!G85 -> 0 | M13: =Global!H85 -> 0 | N13: =Global!I85 -> 0 | O13: =Global!J85 -> 0
C14: =Global!C86 -> Real labour (capex) | D14: % p.a. | K14: =Global!F86 -> 0.003305655969 | L14: =Global!G86 -> 0.002991532779 | M14: =Global!H86 -> 0.001326854211 | N14: =Global!I86 -> 0.00100318581 | O14: =Global!J86 -> 0.001412253331
C15: =Global!C87 -> Real opex | D15: % p.a. | K15: =Global!F87 -> 0.004859314275 | L15: =Global!G87 -> 0.004397553185 | M15: =Global!H87 -> 0.001950475689 | N15: =Global!I87 -> 0.001474683141 | O15: =Global!J87 -> 0.002076012396
C17: Escalation Index
C18: =C11 -> CPI | D18: index | J18: =Global!F90 -> 1 | K18: 1 | L18: =K18*(1+L11) -> 1.027997811 | M18: 1.0567795 | N18: 1.086367013 | O18: 1.116782912
C19: =C12 -> LPI | D19: index | J19: =Global!F91 -> 1 | K19: 1 | L19: 1.014957664 | M19: 1.021691168 | N19: 1.026815899 | O19: 1.034066519
C20: =C13 -> Real capex | D20: index | J20: =Global!F92 -> 1 | K20: 1 | L20: 1 | M20: 1 | N20: 1 | O20: 1
C21: =C14 -> Real labour (capex) | D21: index | J21: =Global!F93 -> 1 | K21: 1 | L21: 1.002991533 | M21: 1.004322356 | N21: 1.005329878 | O21: 1.006749659
C22: =C15 -> Real opex | D22: index | J22: =Global!F94 -> 1 | K22: 1 | L22: 1.004397553 | M22: 1.006356606 | N22: 1.007840663 | O22: 1.009932953

Sheet Outputs >>

Sheet Output
B2: Staging of calculated component capital recovery and overheads
B4: Real
B6: Tariff Class 3 - $ / Component
D9: Capital Recovery | J9: Maintenance | P9: Total Tariff
D10: =REG_Timing!$K$2 -> 2025 | E10: =REG_Timing!$L$2 -> 2026 | F10: =REG_Timing!$M$2 -> 2027 | G10: =REG_Timing!$N$2 -> 2028 | H10: =REG_Timing!$O$2 -> 2029 | J10: =REG_Timing!$K$2 -> 2025 | K10: =REG_Timing!$L$2 -> 2026 | L10: =REG_Timing!$M$2 -> 2027 | M10: =REG_Timing!$N$2 -> 2028 | N10: =REG_Timing!$O$2 -> 2029 | P10: =REG_Timing!$K$2 -> 2025 | Q10: =REG_Timing!$L$2 -> 2026 | R10: =REG_Timing!$M$2 -> 2027 | S10: =REG_Timing!$N$2 -> 2028 | T10: =REG_Timing!$O$2 -> 2029 | X10: Capital Recovery | Y10: =CalcRecovery!K2 -> 1 | Z10: =CalcRecovery!L2 -> 2 | AA10: =CalcRecovery!M2 -> 3 | AB10: =CalcRecovery!N2 -> 4 | AC10: =CalcRecovery!O2 -> 5 | AD10: =CalcRecovery!P2 -> 6 | AE10: =CalcRecovery!Q2 -> 7 | AF10: =CalcRecovery!R2 -> 8 | AG10: =CalcRecovery!S2 -> 9 | AH10: =CalcRecovery!T2 -> 10 | AI10: =CalcRecovery!U2 -> 11 | AJ10: =CalcRecovery!V2 -> 12 | AK10: =CalcRecovery!W2 -> 13 | AL10: =CalcRecovery!X2 -> 14 | AM10: =CalcRecovery!Y2 -> 15 | AN10: =CalcRecovery!Z2 -> 16 | AO10: =CalcRecovery!AA2 -> 17 | AP10: =CalcRecovery!AB2 -> 18 | AQ10: =CalcRecovery!AC2 -> 19 | AR10: =CalcRecovery!AD2 -> 20 | AS10: =CalcRecovery!AE2 -> 21 | AT10: =CalcRecovery!AF2 -> 22 | AU10: =CalcRecovery!AG2 -> 23 | AV10: =CalcRecovery!AH2 -> 24 | AW10: =CalcRecovery!AI2 -> 25
B11: =Annuity!C23 -> NIGHTWATCH MINOR (F42) - FF1A | C11: =Annuity!D23 -> FF1A | D11: 169.2843145 | E11: 169.8291797 | F11: 170.347214 | G11: 170.8494014 | H11: 171.4538069 | J11: =CalcAnnual!K257 -> 341.3176646 | K11: =CalcAnnual!L257 -> 342.8186272 | L11: =CalcAnnual!M257 -> 343.4872866 | M11: =CalcAnnual!N257 -> 343.9938215 | N11: =CalcAnnual!O257 -> 344.7079569 | P11: =D11+J11 -> 510.6019791 | Q11: =E11+K11 -> 512.6478069 | R11: =F11+L11 -> 513.8345006 | S11: =G11+M11 -> 514.8432229 | T11: =H11+N11 -> 516.1617638 | X11: =C11 -> FF1A | Y11: =CalcRecovery!K79 -> 607.7395532 | Z11: =CalcRecovery!L79 -> 448.6187711 | AA11: =CalcRecovery!M79 -> 294.3026135 | AB11: =CalcRecovery!N79 -> 144.7923816 | AC11: =CalcRecovery!O79 -> 0 | AD11: =CalcRecovery!P79 -> 0 | AE11: =CalcRecovery!Q79 -> 0 | AF11: =CalcRecovery!R79 -> 0 | AG11: =CalcRecovery!S79 -> 0 | AH11: =CalcRecovery!T79 -> 0 | AI11: =CalcRecovery!U79 -> 0 | AJ11: =CalcRecovery!V79 -> 0 | AK11: =CalcRecovery!W79 -> 0 | AL11: =CalcRecovery!X79 -> 0 | AM11: =CalcRecovery!Y79 -> 0 | AN11: =CalcRecovery!Z79 -> 0 | AO11: =CalcRecovery!AA79 -> 0 | AP11: =CalcRecovery!AB79 -> 0 | AQ11: =CalcRecovery!AC79 -> 0 | AR11: =CalcRecovery!AD79 -> 0 | AS11: =CalcRecovery!AE79 -> 0 | AT11: =CalcRecovery!AF79 -> 0 | AU11: =CalcRecovery!AG79 -> 0 | AV11: =CalcRecovery!AH79 -> 0 | AW11: =CalcRecovery!AI79 -> 0
B12: =Annuity!C24 -> NIGHTWATCH MINOR (F2X14) - FF2A | C12: =Annuity!D24 -> FF2A | D12: 188.254688 | E12: 188.8301292 | F12: 189.3925521 | G12: 189.9405944 | H12: 190.5980032 | J12: =CalcAnnual!K258 -> 319.0888853 | K12: =CalcAnnual!L258 -> 320.4920956 | L12: =CalcAnnual!M258 -> 321.1172077 | M12: =CalcAnnual!N258 -> 321.5907538 | N12: =CalcAnnual!O258 -> 322.2583802 | P12: 507.3435733 | Q12: 509.3222249 | R12: 510.5097597 | S12: 511.5313482 | T12: 512.8563834 | X12: FF2A | Y12: =CalcRecovery!K80 -> 675.6693633 | Z12: =CalcRecovery!L80 -> 498.7457162 | AA12: =CalcRecovery!M80 -> 327.1765414 | AB12: =CalcRecovery!N80 -> 160.9596155 | AC12: =CalcRecovery!O80 -> 0 | AD12: =CalcRecovery!P80 -> 0 | AE12: =CalcRecovery!Q80 -> 0 | AF12: =CalcRecovery!R80 -> 0 | AG12: =CalcRecovery!S80 -> 0 | AH12: =CalcRecovery!T80 -> 0 | AI12: =CalcRecovery!U80 -> 0 | AJ12: =CalcRecovery!V80 -> 0 | AK12: =CalcRecovery!W80 -> 0 | AL12: =CalcRecovery!X80 -> 0 | AM12: =CalcRecovery!Y80 -> 0 | AN12: =CalcRecovery!Z80 -> 0 | AO12: =CalcRecovery!AA80 -> 0 | AP12: =CalcRecovery!AB80 -> 0 | AQ12: =CalcRecovery!AC80 -> 0 | AR12: =CalcRecovery!AD80 -> 0 | AS12: =CalcRecovery!AE80 -> 0 | AT12: =CalcRecovery!AF80 -> 0 | AU12: =CalcRecovery!AG80 -> 0 | AV12: =CalcRecovery!AH80 -> 0 | AW12: =CalcRecovery!AI80 -> 0
B13: =Annuity!C25 -> NIGHTWATCH SMALL (MH150) - FH1A | C13: =Annuity!D25 -> FH1A | D13: 259.9037941 | E13: 260.5947181 | F13: 261.3247918 | G13: 262.0460231 | H13: 262.9036202 | J13: =CalcAnnual!K259 -> 510.812107 | K13: =CalcAnnual!L259 -> 513.0584304 | L13: =CalcAnnual!M259 -> 514.0591384 | M13: =CalcAnnual!N259 -> 514.8172127 | N13: =CalcAnnual!O259 -> 515.8859797 | P13: 770.7159011 | Q13: 773.6531484 | R13: 775.3839302 | S13: 776.8632359 | T13: 778.7895999 | X13: FH1A | Y13: =CalcRecovery!K81 -> 932.233114 | Z13: =CalcRecovery!L81 -> 688.0699176 | AA13: =CalcRecovery!M81 -> 451.3379111 | AB13: =CalcRecovery!N81 -> 222.0215579 | AC13: =CalcRecovery!O81 -> 0 | AD13: =CalcRecovery!P81 -> 0 | AE13: =CalcRecovery!Q81 -> 0 | AF13: =CalcRecovery!R81 -> 0 | AG13: =CalcRecovery!S81 -> 0 | AH13: =CalcRecovery!T81 -> 0 | AI13: =CalcRecovery!U81 -> 0 | AJ13: =CalcRecovery!V81 -> 0 | AK13: =CalcRecovery!W81 -> 0 | AL13: =CalcRecovery!X81 -> 0 | AM13: =CalcRecovery!Y81 -> 0 | AN13: =CalcRecovery!Z81 -> 0 | AO13: =CalcRecovery!AA81 -> 0 | AP13: =CalcRecovery!AB81 -> 0 | AQ13: =CalcRecovery!AC81 -> 0 | AR13: =CalcRecovery!AD81 -> 0 | AS13: =CalcRecovery!AE81 -> 0 | AT13: =CalcRecovery!AF81 -> 0 | AU13: =CalcRecovery!AG81 -> 0 | AV13: =CalcRecovery!AH81 -> 0 | AW13: =CalcRecovery!AI81 -> 0
B14: =Annuity!C26 -> NIGHTWATCH MEDIUM (MH250) - FH2A | C14: =Annuity!D26 -> FH2A | D14: 255.7293843 | E14: 256.41358 | F14: 257.1338861 | G14: 257.8450271 | H14: 258.6909609 | J14: =CalcAnnual!K260 -> 704.4501803 | K14: =CalcAnnual!L260 -> 707.5480374 | L14: =CalcAnnual!M260 -> 708.9280927 | M14: =CalcAnnual!N260 -> 709.973537 | N14: =CalcAnnual!O260 -> 711.4474508 | P14: 960.1795645 | Q14: 963.9616174 | R14: 966.0619787 | S14: 967.8185641 | T14: 970.1384117 | X14: FH2A | Y14: =CalcRecovery!K82 -> 917.285234 | Z14: =CalcRecovery!L82 -> 677.0395385 | AA14: =CalcRecovery!M82 -> 444.1040394 | AB14: =CalcRecovery!N82 -> 218.4639759 | AC14: =CalcRecovery!O82 -> 0 | AD14: =CalcRecovery!P82 -> 0 | AE14: =CalcRecovery!Q82 -> 0 | AF14: =CalcRecovery!R82 -> 0 | AG14: =CalcRecovery!S82 -> 0 | AH14: =CalcRecovery!T82 -> 0 | AI14: =CalcRecovery!U82 -> 0 | AJ14: =CalcRecovery!V82 -> 0 | AK14: =CalcRecovery!W82 -> 0 | AL14: =CalcRecovery!X82 -> 0 | AM14: =CalcRecovery!Y82 -> 0 | AN14: =CalcRecovery!Z82 -> 0 | AO14: =CalcRecovery!AA82 -> 0 | AP14: =CalcRecovery!AB82 -> 0 | AQ14: =CalcRecovery!AC82 -> 0 | AR14: =CalcRecovery!AD82 -> 0 | AS14: =CalcRecovery!AE82 -> 0 | AT14: =CalcRecovery!AF82 -> 0 | AU14: =CalcRecovery!AG82 -> 0 | AV14: =CalcRecovery!AH82 -> 0 | AW14: =CalcRecovery!AI82 -> 0
B15: =Annuity!C27 -> NIGHTWATCH LARGE (MH400) - FH3A | C15: =Annuity!D27 -> FH3A | D15: 261.5758771 | E15: 262.2694961 | F15: 263.0034823 | G15: 263.7287554 | H15: 264.5910243 | J15: =CalcAnnual!K261 -> 1031.986482 | K15: =CalcAnnual!L261 -> 1036.524698 | L15: =CalcAnnual!M261 -> 1038.546414 | M15: =CalcAnnual!N261 -> 1040.077941 | N15: =CalcAnnual!O261 -> 1042.237156 | P15: 1293.56236 | Q15: 1298.794194 | R15: 1301.549896 | S15: 1303.806696 | T15: 1306.82818 | X15: FH3A | Y15: =CalcRecovery!K83 -> 938.2205703 | Z15: =CalcRecovery!L83 -> 692.4881972 | AA15: =CalcRecovery!M83 -> 454.2354786 | AB15: =CalcRecovery!N83 -> 223.4465671 | AC15: =CalcRecovery!O83 -> 0 | AD15: =CalcRecovery!P83 -> 0 | AE15: =CalcRecovery!Q83 -> 0 | AF15: =CalcRecovery!R83 -> 0 | AG15: =CalcRecovery!S83 -> 0 | AH15: =CalcRecovery!T83 -> 0 | AI15: =CalcRecovery!U83 -> 0 | AJ15: =CalcRecovery!V83 -> 0 | AK15: =CalcRecovery!W83 -> 0 | AL15: =CalcRecovery!X83 -> 0 | AM15: =CalcRecovery!Y83 -> 0 | AN15: =CalcRecovery!Z83 -> 0 | AO15: =CalcRecovery!AA83 -> 0 | AP15: =CalcRecovery!AB83 -> 0 | AQ15: =CalcRecovery!AC83 -> 0 | AR15: =CalcRecovery!AD83 -> 0 | AS15: =CalcRecovery!AE83 -> 0 | AT15: =CalcRecovery!AF83 -> 0 | AU15: =CalcRecovery!AG83 -> 0 | AV15: =CalcRecovery!AH83 -> 0 | AW15: =CalcRecovery!AI83 -> 0
B16: =Annuity!C28 -> NIGHTWATCH X-LARGE (MH1000) - FH4A | C16: =Annuity!D28 -> FH4A | D16: 311.0866965 | E16: 311.8601162 | F16: 312.7099522 | G16: 313.554902 | H16: 314.5555045 | J16: =CalcAnnual!K262 -> 1886.405188 | K16: =CalcAnnual!L262 -> 1894.700755 | L16: =CalcAnnual!M262 -> 1898.396323 | M16: =CalcAnnual!N262 -> 1901.195856 | N16: =CalcAnnual!O262 -> 1905.142762 | P16: 2197.491884 | Q16: 2206.560871 | R16: 2211.106275 | S16: 2214.750758 | T16: 2219.698266 | X16: FH4A | Y16: =CalcRecovery!K84 -> 1115.510731 | Z16: =CalcRecovery!L84 -> 823.3146214 | AA16: =CalcRecovery!M84 -> 540.0332155 | AB16: =CalcRecovery!N84 -> 265.6414663 | AC16: =CalcRecovery!O84 -> 0 | AD16: =CalcRecovery!P84 -> 0 | AE16: =CalcRecovery!Q84 -> 0 | AF16: =CalcRecovery!R84 -> 0 | AG16: =CalcRecovery!S84 -> 0 | AH16: =CalcRecovery!T84 -> 0 | AI16: =CalcRecovery!U84 -> 0 | AJ16: =CalcRecovery!V84 -> 0 | AK16: =CalcRecovery!W84 -> 0 | AL16: =CalcRecovery!X84 -> 0 | AM16: =CalcRecovery!Y84 -> 0 | AN16: =CalcRecovery!Z84 -> 0 | AO16: =CalcRecovery!AA84 -> 0 | AP16: =CalcRecovery!AB84 -> 0 | AQ16: =CalcRecovery!AC84 -> 0 | AR16: =CalcRecovery!AD84 -> 0 | AS16: =CalcRecovery!AE84 -> 0 | AT16: =CalcRecovery!AF84 -> 0 | AU16: =CalcRecovery!AG84 -> 0 | AV16: =CalcRecovery!AH84 -> 0 | AW16: =CalcRecovery!AI84 -> 0
B17: =Annuity!C29 -> NIGHTWATCH MINOR (L17) - FL1A | C17: =Annuity!D29 -> FL1A | D17: 172.4893336 | E17: 173.0393645 | F17: 173.5648982 | G17: 174.0748328 | H17: 174.6881931 | J17: =CalcAnnual!K263 -> 301.0280021 | K17: =CalcAnnual!L263 -> 302.3517887 | L17: =CalcAnnual!M263 -> 302.9415185 | M17: =CalcAnnual!N263 -> 303.3882613 | N17: =CalcAnnual!O263 -> 304.0180991 | P17: 473.5173357 | Q17: 475.3911533 | R17: 476.5064168 | S17: 477.463094 | T17: 478.7062922 | X17: FL1A | Y17: =CalcRecovery!K85 -> 619.2162033 | Z17: =CalcRecovery!L85 -> 457.0876511 | AA17: =CalcRecovery!M85 -> 299.8566194 | AB17: =CalcRecovery!N85 -> 147.5238141 | AC17: =CalcRecovery!O85 -> 0 | AD17: =CalcRecovery!P85 -> 0 | AE17: =CalcRecovery!Q85 -> 0 | AF17: =CalcRecovery!R85 -> 0 | AG17: =CalcRecovery!S85 -> 0 | AH17: =CalcRecovery!T85 -> 0 | AI17: =CalcRecovery!U85 -> 0 | AJ17: =CalcRecovery!V85 -> 0 | AK17: =CalcRecovery!W85 -> 0 | AL17: =CalcRecovery!X85 -> 0 | AM17: =CalcRecovery!Y85 -> 0 | AN17: =CalcRecovery!Z85 -> 0 | AO17: =CalcRecovery!AA85 -> 0 | AP17: =CalcRecovery!AB85 -> 0 | AQ17: =CalcRecovery!AC85 -> 0 | AR17: =CalcRecovery!AD85 -> 0 | AS17: =CalcRecovery!AE85 -> 0 | AT17: =CalcRecovery!AF85 -> 0 | AU17: =CalcRecovery!AG85 -> 0 | AV17: =CalcRecovery!AH85 -> 0 | AW17: =CalcRecovery!AI85 -> 0
B18: =Annuity!C30 -> NIGHTWATCH MINOR (L18) - FL1B | C18: =Annuity!D30 -> FL1B | D18: 172.4893336 | E18: 173.0393645 | F18: 173.5648982 | G18: 174.0748328 | H18: 174.6881931 | J18: =CalcAnnual!K264 -> 307.9744956 | K18: =CalcAnnual!L264 -> 309.3288298 | L18: =CalcAnnual!M264 -> 309.9321682 | M18: =CalcAnnual!N264 -> 310.38922 | N18: =CalcAnnual!O264 -> 311.0335918 | P18: 480.4638292 | Q18: 482.3681944 | R18: 483.4970664 | S18: 484.4640527 | T18: 485.7217849 | X18: FL1B | Y18: =CalcRecovery!K86 -> 619.2162033 | Z18: =CalcRecovery!L86 -> 457.0876511 | AA18: =CalcRecovery!M86 -> 299.8566194 | AB18: =CalcRecovery!N86 -> 147.5238141 | AC18: =CalcRecovery!O86 -> 0 | AD18: =CalcRecovery!P86 -> 0 | AE18: =CalcRecovery!Q86 -> 0 | AF18: =CalcRecovery!R86 -> 0 | AG18: =CalcRecovery!S86 -> 0 | AH18: =CalcRecovery!T86 -> 0 | AI18: =CalcRecovery!U86 -> 0 | AJ18: =CalcRecovery!V86 -> 0 | AK18: =CalcRecovery!W86 -> 0 | AL18: =CalcRecovery!X86 -> 0 | AM18: =CalcRecovery!Y86 -> 0 | AN18: =CalcRecovery!Z86 -> 0 | AO18: =CalcRecovery!AA86 -> 0 | AP18: =CalcRecovery!AB86 -> 0 | AQ18: =CalcRecovery!AC86 -> 0 | AR18: =CalcRecovery!AD86 -> 0 | AS18: =CalcRecovery!AE86 -> 0 | AT18: =CalcRecovery!AF86 -> 0 | AU18: =CalcRecovery!AG86 -> 0 | AV18: =CalcRecovery!AH86 -> 0 | AW18: =CalcRecovery!AI86 -> 0
B19: =Annuity!C31 -> NIGHTWATCH SMALL (L75+) - FL2A | C19: =Annuity!D31 -> FL2A | D19: 220.4927273 | E19: 221.1201292 | F19: 221.7579854 | G19: 222.383953 | H19: 223.1314352 | J19: =CalcAnnual!K265 -> 387.164522 | K19: =CalcAnnual!L265 -> 388.8670986 | L19: =CalcAnnual!M265 -> 389.6255744 | M19: =CalcAnnual!N265 -> 390.2001486 | N19: =CalcAnnual!O265 -> 391.010209 | P19: 607.6572492 | Q19: 609.9872278 | R19: 611.3835598 | S19: 612.5841016 | T19: 614.1416442 | X19: FL2A | Y19: =CalcRecovery!K87 -> 791.1085184 | Z19: =CalcRecovery!L87 -> 583.9308828 | AA19: =CalcRecovery!M87 -> 383.0421248 | AB19: =CalcRecovery!N87 -> 188.4340308 | AC19: =CalcRecovery!O87 -> 0 | AD19: =CalcRecovery!P87 -> 0 | AE19: =CalcRecovery!Q87 -> 0 | AF19: =CalcRecovery!R87 -> 0 | AG19: =CalcRecovery!S87 -> 0 | AH19: =CalcRecovery!T87 -> 0 | AI19: =CalcRecovery!U87 -> 0 | AJ19: =CalcRecovery!V87 -> 0 | AK19: =CalcRecovery!W87 -> 0 | AL19: =CalcRecovery!X87 -> 0 | AM19: =CalcRecovery!Y87 -> 0 | AN19: =CalcRecovery!Z87 -> 0 | AO19: =CalcRecovery!AA87 -> 0 | AP19: =CalcRecovery!AB87 -> 0 | AQ19: =CalcRecovery!AC87 -> 0 | AR19: =CalcRecovery!AD87 -> 0 | AS19: =CalcRecovery!AE87 -> 0 | AT19: =CalcRecovery!AF87 -> 0 | AU19: =CalcRecovery!AG87 -> 0 | AV19: =CalcRecovery!AH87 -> 0 | AW19: =CalcRecovery!AI87 -> 0
B20: =Annuity!C32 -> NIGHTWATCH MEDIUM (L100+) - FL3A | C20: =Annuity!D32 -> FL3A | D20: 236.0980626 | E20: 236.7506169 | F20: 237.4249879 | G20: 238.0886764 | H20: 238.8797601 | J20: =CalcAnnual!K266 -> 479.3837896 | K20: =CalcAnnual!L266 -> 481.4919053 | L20: =CalcAnnual!M266 -> 482.4310436 | M20: =CalcAnnual!N266 -> 483.1424765 | N20: =CalcAnnual!O266 -> 484.1454862 | P20: 715.4818522 | Q20: 718.2425222 | R20: 719.8560315 | S20: 721.2311529 | T20: 723.0252463 | X20: =C20 -> FL3A | Y20: =CalcRecovery!K88 -> 846.9886763 | Z20: =CalcRecovery!L88 -> 625.1661167 | AA20: =CalcRecovery!M88 -> 410.0847485 | AB20: =CalcRecovery!N88 -> 201.7334582 | AC20: =CalcRecovery!O88 -> 0 | AD20: =CalcRecovery!P88 -> 0 | AE20: =CalcRecovery!Q88 -> 0 | AF20: =CalcRecovery!R88 -> 0 | AG20: =CalcRecovery!S88 -> 0 | AH20: =CalcRecovery!T88 -> 0 | AI20: =CalcRecovery!U88 -> 0 | AJ20: =CalcRecovery!V88 -> 0 | AK20: =CalcRecovery!W88 -> 0 | AL20: =CalcRecovery!X88 -> 0 | AM20: =CalcRecovery!Y88 -> 0 | AN20: =CalcRecovery!Z88 -> 0 | AO20: =CalcRecovery!AA88 -> 0 | AP20: =CalcRecovery!AB88 -> 0 | AQ20: =CalcRecovery!AC88 -> 0 | AR20: =CalcRecovery!AD88 -> 0 | AS20: =CalcRecovery!AE88 -> 0 | AT20: =CalcRecovery!AF88 -> 0 | AU20: =CalcRecovery!AG88 -> 0 | AV20: =CalcRecovery!AH88 -> 0 | AW20: =CalcRecovery!AI88 -> 0
B21: =Annuity!C33 -> NIGHTWATCH MEDIUM (L150) - FL3B | C21: =Annuity!D33 -> FL3B | D21: 226.2905187 | E21: 226.9272654 | F21: 227.5786878 | G21: 228.2186697 | H21: 228.982351 | J21: =CalcAnnual!K267 -> 551.6273224 | K21: =CalcAnnual!L267 -> 554.0531329 | L21: =CalcAnnual!M267 -> 555.1338001 | M21: =CalcAnnual!N267 -> 555.9524465 | N21: =CalcAnnual!O267 -> 557.1066107 | P21: 777.9178411 | Q21: 780.9803983 | R21: 782.7124879 | S21: 784.1711162 | T21: 786.0889617 | X21: =C21 -> FL3B | Y21: =CalcRecovery!K89 -> 811.8694628 | Z21: =CalcRecovery!L89 -> 599.2508538 | AA21: =CalcRecovery!M89 -> 393.0891688 | AB21: =CalcRecovery!N89 -> 193.3751169 | AC21: =CalcRecovery!O89 -> 0 | AD21: =CalcRecovery!P89 -> 0 | AE21: =CalcRecovery!Q89 -> 0 | AF21: =CalcRecovery!R89 -> 0 | AG21: =CalcRecovery!S89 -> 0 | AH21: =CalcRecovery!T89 -> 0 | AI21: =CalcRecovery!U89 -> 0 | AJ21: =CalcRecovery!V89 -> 0 | AK21: =CalcRecovery!W89 -> 0 | AL21: =CalcRecovery!X89 -> 0 | AM21: =CalcRecovery!Y89 -> 0 | AN21: =CalcRecovery!Z89 -> 0 | AO21: =CalcRecovery!AA89 -> 0 | AP21: =CalcRecovery!AB89 -> 0 | AQ21: =CalcRecovery!AC89 -> 0 | AR21: =CalcRecovery!AD89 -> 0 | AS21: =CalcRecovery!AE89 -> 0 | AT21: =CalcRecovery!AF89 -> 0 | AU21: =CalcRecovery!AG89 -> 0 | AV21: =CalcRecovery!AH89 -> 0 | AW21: =CalcRecovery!AI89 -> 0
B22: =Annuity!C34 -> NIGHTWATCH LARGE (L150+) - FL4A | C22: =Annuity!D34 -> FL4A | D22: 237.8861015 | E22: 238.5415377 | F22: 239.2200925 | G22: 239.888103 | H22: 240.6841825 | J22: =CalcAnnual!K268 -> 661.0437274 | K22: =CalcAnnual!L268 -> 663.9507023 | L22: =CalcAnnual!M268 -> 665.245722 | M22: =CalcAnnual!N268 -> 666.2267487 | N22: =CalcAnnual!O268 -> 667.6098437 | P22: =D22+J22 -> 898.9298288 | Q22: =E22+K22 -> 902.49224 | R22: =F22+L22 -> 904.4658145 | S22: =G22+M22 -> 906.1148517 | T22: =H22+N22 -> 908.2940262 | X22: FL4A | Y22: =CalcRecovery!K90 -> 853.3913516 | Z22: =CalcRecovery!L90 -> 629.8907958 | AA22: =CalcRecovery!M90 -> 413.1832568 | AB22: =CalcRecovery!N90 -> 203.2572892 | AC22: =CalcRecovery!O90 -> 0 | AD22: =CalcRecovery!P90 -> 0 | AE22: =CalcRecovery!Q90 -> 0 | AF22: =CalcRecovery!R90 -> 0 | AG22: =CalcRecovery!S90 -> 0 | AH22: =CalcRecovery!T90 -> 0 | AI22: =CalcRecovery!U90 -> 0 | AJ22: =CalcRecovery!V90 -> 0 | AK22: =CalcRecovery!W90 -> 0 | AL22: =CalcRecovery!X90 -> 0 | AM22: =CalcRecovery!Y90 -> 0 | AN22: =CalcRecovery!Z90 -> 0 | AO22: =CalcRecovery!AA90 -> 0 | AP22: =CalcRecovery!AB90 -> 0 | AQ22: =CalcRecovery!AC90 -> 0 | AR22: =CalcRecovery!AD90 -> 0 | AS22: =CalcRecovery!AE90 -> 0 | AT22: =CalcRecovery!AF90 -> 0 | AU22: =CalcRecovery!AG90 -> 0 | AV22: =CalcRecovery!AH90 -> 0 | AW22: =CalcRecovery!AI90 -> 0
B23: =Annuity!C35 -> NIGHTWATCH LARGE (L200) - FL4B | C23: =Annuity!D35 -> FL4B | D23: 237.8861015 | E23: 238.5415377 | F23: 239.2200925 | G23: 239.888103 | H23: 240.6841825 | J23: =CalcAnnual!K269 -> 747.1802473 | K23: =CalcAnnual!L269 -> 750.4660121 | L23: =CalcAnnual!M269 -> 751.9297779 | M23: =CalcAnnual!N269 -> 753.038636 | N23: =CalcAnnual!O269 -> 754.6019536 | P23: 985.0663487 | Q23: 989.0075499 | R23: 991.1498704 | S23: 992.9267391 | T23: 995.2861361 | X23: FL4B | Y23: =CalcRecovery!K91 -> 853.3913516 | Z23: =CalcRecovery!L91 -> 629.8907958 | AA23: =CalcRecovery!M91 -> 413.1832568 | AB23: =CalcRecovery!N91 -> 203.2572892 | AC23: =CalcRecovery!O91 -> 0 | AD23: =CalcRecovery!P91 -> 0 | AE23: =CalcRecovery!Q91 -> 0 | AF23: =CalcRecovery!R91 -> 0 | AG23: =CalcRecovery!S91 -> 0 | AH23: =CalcRecovery!T91 -> 0 | AI23: =CalcRecovery!U91 -> 0 | AJ23: =CalcRecovery!V91 -> 0 | AK23: =CalcRecovery!W91 -> 0 | AL23: =CalcRecovery!X91 -> 0 | AM23: =CalcRecovery!Y91 -> 0 | AN23: =CalcRecovery!Z91 -> 0 | AO23: =CalcRecovery!AA91 -> 0 | AP23: =CalcRecovery!AB91 -> 0 | AQ23: =CalcRecovery!AC91 -> 0 | AR23: =CalcRecovery!AD91 -> 0 | AS23: =CalcRecovery!AE91 -> 0 | AT23: =CalcRecovery!AF91 -> 0 | AU23: =CalcRecovery!AG91 -> 0 | AV23: =CalcRecovery!AH91 -> 0 | AW23: =CalcRecovery!AI91 -> 0
B24: =Annuity!C36 -> NIGHTWATCH X-LARGE (L300+) - FL5A | C24: =Annuity!D36 -> FL5A | D24: 312.508315 | E24: 313.284026 | F24: 314.1371884 | G24: 314.9855745 | H24: 315.9901491 | J24: =CalcAnnual!K270 -> 880.5529232 | K24: =CalcAnnual!L270 -> 884.4252016 | L24: =CalcAnnual!M270 -> 886.1502514 | M24: =CalcAnnual!N270 -> 887.4570422 | N24: =CalcAnnual!O270 -> 889.2994141 | P24: 1193.061238 | Q24: 1197.709228 | R24: 1200.28744 | S24: 1202.442617 | T24: 1205.289563 | X24: FL5A | Y24: =CalcRecovery!K92 -> 1120.601315 | Z24: =CalcRecovery!L92 -> 827.0710783 | AA24: =CalcRecovery!M92 -> 542.4967507 | AB24: =CalcRecovery!N92 -> 266.8530206 | AC24: =CalcRecovery!O92 -> 0 | AD24: =CalcRecovery!P92 -> 0 | AE24: =CalcRecovery!Q92 -> 0 | AF24: =CalcRecovery!R92 -> 0 | AG24: =CalcRecovery!S92 -> 0 | AH24: =CalcRecovery!T92 -> 0 | AI24: =CalcRecovery!U92 -> 0 | AJ24: =CalcRecovery!V92 -> 0 | AK24: =CalcRecovery!W92 -> 0 | AL24: =CalcRecovery!X92 -> 0 | AM24: =CalcRecovery!Y92 -> 0 | AN24: =CalcRecovery!Z92 -> 0 | AO24: =CalcRecovery!AA92 -> 0 | AP24: =CalcRecovery!AB92 -> 0 | AQ24: =CalcRecovery!AC92 -> 0 | AR24: =CalcRecovery!AD92 -> 0 | AS24: =CalcRecovery!AE92 -> 0 | AT24: =CalcRecovery!AF92 -> 0 | AU24: =CalcRecovery!AG92 -> 0 | AV24: =CalcRecovery!AH92 -> 0 | AW24: =CalcRecovery!AI92 -> 0
B25: =Annuity!C37 -> NIGHTWATCH MINOR (M80) - FM1A | C25: =Annuity!D37 -> FM1A | D25: 153.6697027 | E25: 154.1894005 | F25: 154.6708984 | G25: 155.1353424 | H25: 155.6961206 | J25: =CalcAnnual!K271 -> 410.7826 | K25: =CalcAnnual!L271 -> 412.5890383 | L25: =CalcAnnual!M271 -> 413.3937832 | M25: =CalcAnnual!N271 -> 414.0034081 | N25: =CalcAnnual!O271 -> 414.8628843 | P25: 564.4523028 | Q25: 566.7784389 | R25: 568.0646816 | S25: 569.1387505 | T25: 570.5590048 | X25: FM1A | Y25: =CalcRecovery!K93 -> 551.8261778 | Z25: =CalcRecovery!L93 -> 407.3590253 | AA25: =CalcRecovery!M93 -> 267.2439146 | AB25: =CalcRecovery!N93 -> 131.4850485 | AC25: =CalcRecovery!O93 -> 0 | AD25: =CalcRecovery!P93 -> 0 | AE25: =CalcRecovery!Q93 -> 0 | AF25: =CalcRecovery!R93 -> 0 | AG25: =CalcRecovery!S93 -> 0 | AH25: =CalcRecovery!T93 -> 0 | AI25: =CalcRecovery!U93 -> 0 | AJ25: =CalcRecovery!V93 -> 0 | AK25: =CalcRecovery!W93 -> 0 | AL25: =CalcRecovery!X93 -> 0 | AM25: =CalcRecovery!Y93 -> 0 | AN25: =CalcRecovery!Z93 -> 0 | AO25: =CalcRecovery!AA93 -> 0 | AP25: =CalcRecovery!AB93 -> 0 | AQ25: =CalcRecovery!AC93 -> 0 | AR25: =CalcRecovery!AD93 -> 0 | AS25: =CalcRecovery!AE93 -> 0 | AT25: =CalcRecovery!AF93 -> 0 | AU25: =CalcRecovery!AG93 -> 0 | AV25: =CalcRecovery!AH93 -> 0 | AW25: =CalcRecovery!AI93 -> 0
B26: =Annuity!C38 -> NIGHTWATCH SMALL (S150) - FS1A | C26: =Annuity!D38 -> FS1A | D26: 251.5317833 | E26: 252.2092134 | F26: 252.9196976 | G26: 253.6206922 | H26: 254.4548978 | J26: =CalcAnnual!K272 -> 517.7586005 | K26: =CalcAnnual!L272 -> 520.0354715 | L26: =CalcAnnual!M272 -> 521.0497881 | M26: =CalcAnnual!N272 -> 521.8181714 | N26: =CalcAnnual!O272 -> 522.9014724 | P26: 769.2903838 | Q26: 772.2446849 | R26: 773.9694856 | S26: 775.4388636 | T26: 777.3563702 | X26: FS1A | Y26: =CalcRecovery!K94 -> 902.2543103 | Z26: =CalcRecovery!L94 -> 665.9478795 | AA26: =CalcRecovery!M94 -> 436.8299796 | AB26: =CalcRecovery!N94 -> 214.8866295 | AC26: =CalcRecovery!O94 -> 0 | AD26: =CalcRecovery!P94 -> 0 | AE26: =CalcRecovery!Q94 -> 0 | AF26: =CalcRecovery!R94 -> 0 | AG26: =CalcRecovery!S94 -> 0 | AH26: =CalcRecovery!T94 -> 0 | AI26: =CalcRecovery!U94 -> 0 | AJ26: =CalcRecovery!V94 -> 0 | AK26: =CalcRecovery!W94 -> 0 | AL26: =CalcRecovery!X94 -> 0 | AM26: =CalcRecovery!Y94 -> 0 | AN26: =CalcRecovery!Z94 -> 0 | AO26: =CalcRecovery!AA94 -> 0 | AP26: =CalcRecovery!AB94 -> 0 | AQ26: =CalcRecovery!AC94 -> 0 | AR26: =CalcRecovery!AD94 -> 0 | AS26: =CalcRecovery!AE94 -> 0 | AT26: =CalcRecovery!AF94 -> 0 | AU26: =CalcRecovery!AG94 -> 0 | AV26: =CalcRecovery!AH94 -> 0 | AW26: =CalcRecovery!AI94 -> 0
B27: =Annuity!C39 -> NIGHTWATCH MEDIUM (S250) - FS2A | C27: =Annuity!D39 -> FS2A | D27: 252.9673164 | E27: 253.6470603 | F27: 254.3609035 | G27: 255.0653681 | H27: 255.9035846 | J27: =CalcAnnual!K273 -> 711.3966738 | K27: =CalcAnnual!L273 -> 714.5250785 | L27: =CalcAnnual!M273 -> 715.9187423 | M27: =CalcAnnual!N273 -> 716.9744956 | N27: =CalcAnnual!O273 -> 718.4629436 | P27: 964.3639903 | Q27: 968.1721389 | R27: 970.2796458 | S27: 972.0398637 | T27: 974.3665282 | X27: FS2A | Y27: =CalcRecovery!K95 -> 907.3947201 | Z27: =CalcRecovery!L95 -> 669.7411043 | AA27: =CalcRecovery!M95 -> 439.3176277 | AB27: =CalcRecovery!N95 -> 216.1100424 | AC27: =CalcRecovery!O95 -> 0 | AD27: =CalcRecovery!P95 -> 0 | AE27: =CalcRecovery!Q95 -> 0 | AF27: =CalcRecovery!R95 -> 0 | AG27: =CalcRecovery!S95 -> 0 | AH27: =CalcRecovery!T95 -> 0 | AI27: =CalcRecovery!U95 -> 0 | AJ27: =CalcRecovery!V95 -> 0 | AK27: =CalcRecovery!W95 -> 0 | AL27: =CalcRecovery!X95 -> 0 | AM27: =CalcRecovery!Y95 -> 0 | AN27: =CalcRecovery!Z95 -> 0 | AO27: =CalcRecovery!AA95 -> 0 | AP27: =CalcRecovery!AB95 -> 0 | AQ27: =CalcRecovery!AC95 -> 0 | AR27: =CalcRecovery!AD95 -> 0 | AS27: =CalcRecovery!AE95 -> 0 | AT27: =CalcRecovery!AF95 -> 0 | AU27: =CalcRecovery!AG95 -> 0 | AV27: =CalcRecovery!AH95 -> 0 | AW27: =CalcRecovery!AI95 -> 0
B28: =Annuity!C40 -> NIGHTWATCH LARGE (S400) - FS3A | C28: =Annuity!D40 -> FS3A | D28: 259.3356105 | E28: 260.0256187 | F28: 260.7543629 | G28: 261.4742209 | H28: 262.3302305 | J28: =CalcAnnual!K274 -> 1052.825963 | K28: =CalcAnnual!L274 -> 1057.455821 | L28: =CalcAnnual!M274 -> 1059.518363 | M28: =CalcAnnual!N274 -> 1061.080817 | N28: =CalcAnnual!O274 -> 1063.283634 | P28: 1312.161574 | Q28: 1317.48144 | R28: 1320.272726 | S28: 1322.555038 | T28: 1325.613864 | X28: FS3A | Y28: =CalcRecovery!K96 -> 930.1985414 | Z28: =CalcRecovery!L96 -> 686.5685604 | AA28: =CalcRecovery!M96 -> 450.3533008 | AB28: =CalcRecovery!N96 -> 221.5373315 | AC28: =CalcRecovery!O96 -> 0 | AD28: =CalcRecovery!P96 -> 0 | AE28: =CalcRecovery!Q96 -> 0 | AF28: =CalcRecovery!R96 -> 0 | AG28: =CalcRecovery!S96 -> 0 | AH28: =CalcRecovery!T96 -> 0 | AI28: =CalcRecovery!U96 -> 0 | AJ28: =CalcRecovery!V96 -> 0 | AK28: =CalcRecovery!W96 -> 0 | AL28: =CalcRecovery!X96 -> 0 | AM28: =CalcRecovery!Y96 -> 0 | AN28: =CalcRecovery!Z96 -> 0 | AO28: =CalcRecovery!AA96 -> 0 | AP28: =CalcRecovery!AB96 -> 0 | AQ28: =CalcRecovery!AC96 -> 0 | AR28: =CalcRecovery!AD96 -> 0 | AS28: =CalcRecovery!AE96 -> 0 | AT28: =CalcRecovery!AF96 -> 0 | AU28: =CalcRecovery!AG96 -> 0 | AV28: =CalcRecovery!AH96 -> 0 | AW28: =CalcRecovery!AI96 -> 0
B29: =Annuity!C41 -> NIGHTWATCH MINOR (S100) - FS4A | C29: =Annuity!D41 -> FS4A | D29: 196.9536942 | E29: 197.5431563 | F29: 198.1259339 | G29: 198.6950033 | H29: 199.3767173 | J29: =CalcAnnual!K275 -> 444.125769 | K29: =CalcAnnual!L275 -> 446.0788357 | L29: =CalcAnnual!M275 -> 446.9489016 | M29: =CalcAnnual!N275 -> 447.6080096 | N29: =CalcAnnual!O275 -> 448.5372494 | P29: =D29+J29 -> 641.0794632 | Q29: =E29+K29 -> 643.621992 | R29: =F29+L29 -> 645.0748355 | S29: =G29+M29 -> 646.3030129 | T29: =H29+N29 -> 647.9139667 | X29: =C29 -> FS4A | Y29: =CalcRecovery!K97 -> 706.8190842 | Z29: =CalcRecovery!L97 -> 521.7318006 | AA29: =CalcRecovery!M97 -> 342.2511262 | AB29: =CalcRecovery!N97 -> 168.3732211 | AC29: =CalcRecovery!O97 -> 0 | AD29: =CalcRecovery!P97 -> 0 | AE29: =CalcRecovery!Q97 -> 0 | AF29: =CalcRecovery!R97 -> 0 | AG29: =CalcRecovery!S97 -> 0 | AH29: =CalcRecovery!T97 -> 0 | AI29: =CalcRecovery!U97 -> 0 | AJ29: =CalcRecovery!V97 -> 0 | AK29: =CalcRecovery!W97 -> 0 | AL29: =CalcRecovery!X97 -> 0 | AM29: =CalcRecovery!Y97 -> 0 | AN29: =CalcRecovery!Z97 -> 0 | AO29: =CalcRecovery!AA97 -> 0 | AP29: =CalcRecovery!AB97 -> 0 | AQ29: =CalcRecovery!AC97 -> 0 | AR29: =CalcRecovery!AD97 -> 0 | AS29: =CalcRecovery!AE97 -> 0 | AT29: =CalcRecovery!AF97 -> 0 | AU29: =CalcRecovery!AG97 -> 0 | AV29: =CalcRecovery!AH97 -> 0 | AW29: =CalcRecovery!AI97 -> 0
B30: =Annuity!C42 -> NIGHTWATCH MINOR (S70) - FS5A | C30: =Annuity!D42 -> FS5A | D30: 169.8687319 | E30: 170.414539 | F30: 170.9339408 | G30: 171.4375408 | H30: 172.0435792 | J30: =CalcAnnual!K276 -> 396.8896129 | K30: =CalcAnnual!L276 -> 398.6349561 | L30: =CalcAnnual!M276 -> 399.4124839 | M30: =CalcAnnual!N276 -> 400.0014908 | N30: =CalcAnnual!O276 -> 400.8318988 | P30: 566.7583448 | Q30: 569.0494951 | R30: 570.3464247 | S30: 571.4390316 | T30: 572.875478 | X30: FS5A | Y30: =CalcRecovery!K98 -> 609.8322564 | Z30: =CalcRecovery!L98 -> 450.1630242 | AA30: =CalcRecovery!M98 -> 295.3153555 | AB30: =CalcRecovery!N98 -> 145.2904431 | AC30: =CalcRecovery!O98 -> 0 | AD30: =CalcRecovery!P98 -> 0 | AE30: =CalcRecovery!Q98 -> 0 | AF30: =CalcRecovery!R98 -> 0 | AG30: =CalcRecovery!S98 -> 0 | AH30: =CalcRecovery!T98 -> 0 | AI30: =CalcRecovery!U98 -> 0 | AJ30: =CalcRecovery!V98 -> 0 | AK30: =CalcRecovery!W98 -> 0 | AL30: =CalcRecovery!X98 -> 0 | AM30: =CalcRecovery!Y98 -> 0 | AN30: =CalcRecovery!Z98 -> 0 | AO30: =CalcRecovery!AA98 -> 0 | AP30: =CalcRecovery!AB98 -> 0 | AQ30: =CalcRecovery!AC98 -> 0 | AR30: =CalcRecovery!AD98 -> 0 | AS30: =CalcRecovery!AE98 -> 0 | AT30: =CalcRecovery!AF98 -> 0 | AU30: =CalcRecovery!AG98 -> 0 | AV30: =CalcRecovery!AH98 -> 0 | AW30: =CalcRecovery!AI98 -> 0
B31: =Annuity!C46 -> Spare | D31: =CalcAnnual!K40 -> 0 | E31: =CalcAnnual!L40 -> 0 | F31: =CalcAnnual!M40 -> 0 | G31: =CalcAnnual!N40 -> 0 | H31: =CalcAnnual!O40 -> 0 | J31: =CalcAnnual!K159+CalcAnnual!K277 -> 0 | K31: =CalcAnnual!L159+CalcAnnual!L277 -> 0 | L31: =CalcAnnual!M159+CalcAnnual!M277 -> 0 | M31: =CalcAnnual!N159+CalcAnnual!N277 -> 0 | N31: =CalcAnnual!O159+CalcAnnual!O277 -> 0 | P31: =D31+J31 -> 0 | Q31: =E31+K31 -> 0 | R31: =F31+L31 -> 0 | S31: =G31+M31 -> 0 | T31: =H31+N31 -> 0 | X31: =Output!#REF! ->  | Y31: =CalcRecovery!K99 -> 0 | Z31: =CalcRecovery!L99 -> 0 | AA31: =CalcRecovery!M99 -> 0 | AB31: =CalcRecovery!N99 -> 0 | AC31: =CalcRecovery!O99 -> 0 | AD31: =CalcRecovery!P99 -> 0 | AE31: =CalcRecovery!Q99 -> 0 | AF31: =CalcRecovery!R99 -> 0 | AG31: =CalcRecovery!S99 -> 0 | AH31: =CalcRecovery!T99 -> 0 | AI31: =CalcRecovery!U99 -> 0 | AJ31: =CalcRecovery!V99 -> 0 | AK31: =CalcRecovery!W99 -> 0 | AL31: =CalcRecovery!X99 -> 0 | AM31: =CalcRecovery!Y99 -> 0 | AN31: =CalcRecovery!Z99 -> 0 | AO31: =CalcRecovery!AA99 -> 0 | AP31: =CalcRecovery!AB99 -> 0 | AQ31: =CalcRecovery!AC99 -> 0 | AR31: =CalcRecovery!AD99 -> 0 | AS31: =CalcRecovery!AE99 -> 0 | AT31: =CalcRecovery!AF99 -> 0 | AU31: =CalcRecovery!AG99 -> 0 | AV31: =CalcRecovery!AH99 -> 0 | AW31: =CalcRecovery!AI99 -> 0
B32: =Annuity!C47 -> Spare | D32: =CalcAnnual!K41 -> 0 | E32: =CalcAnnual!L41 -> 0 | F32: =CalcAnnual!M41 -> 0 | G32: =CalcAnnual!N41 -> 0 | H32: =CalcAnnual!O41 -> 0 | J32: =CalcAnnual!K160+CalcAnnual!K278 -> 0 | K32: =CalcAnnual!L160+CalcAnnual!L278 -> 0 | L32: =CalcAnnual!M160+CalcAnnual!M278 -> 0 | M32: =CalcAnnual!N160+CalcAnnual!N278 -> 0 | N32: =CalcAnnual!O160+CalcAnnual!O278 -> 0 | P32: 0 | Q32: 0 | R32: 0 | S32: 0 | T32: 0 | X32: =Output!#REF! ->  | Y32: =CalcRecovery!K100 -> 0 | Z32: =CalcRecovery!L100 -> 0 | AA32: =CalcRecovery!M100 -> 0 | AB32: =CalcRecovery!N100 -> 0 | AC32: =CalcRecovery!O100 -> 0 | AD32: =CalcRecovery!P100 -> 0 | AE32: =CalcRecovery!Q100 -> 0 | AF32: =CalcRecovery!R100 -> 0 | AG32: =CalcRecovery!S100 -> 0 | AH32: =CalcRecovery!T100 -> 0 | AI32: =CalcRecovery!U100 -> 0 | AJ32: =CalcRecovery!V100 -> 0 | AK32: =CalcRecovery!W100 -> 0 | AL32: =CalcRecovery!X100 -> 0 | AM32: =CalcRecovery!Y100 -> 0 | AN32: =CalcRecovery!Z100 -> 0 | AO32: =CalcRecovery!AA100 -> 0 | AP32: =CalcRecovery!AB100 -> 0 | AQ32: =CalcRecovery!AC100 -> 0 | AR32: =CalcRecovery!AD100 -> 0 | AS32: =CalcRecovery!AE100 -> 0 | AT32: =CalcRecovery!AF100 -> 0 | AU32: =CalcRecovery!AG100 -> 0 | AV32: =CalcRecovery!AH100 -> 0 | AW32: =CalcRecovery!AI100 -> 0
B33: =Annuity!C48 -> Spare | D33: =CalcAnnual!K42 -> 0 | E33: =CalcAnnual!L42 -> 0 | F33: =CalcAnnual!M42 -> 0 | G33: =CalcAnnual!N42 -> 0 | H33: =CalcAnnual!O42 -> 0 | J33: =CalcAnnual!K161+CalcAnnual!K279 -> 0 | K33: =CalcAnnual!L161+CalcAnnual!L279 -> 0 | L33: =CalcAnnual!M161+CalcAnnual!M279 -> 0 | M33: =CalcAnnual!N161+CalcAnnual!N279 -> 0 | N33: =CalcAnnual!O161+CalcAnnual!O279 -> 0 | P33: 0 | Q33: 0 | R33: 0 | S33: 0 | T33: 0 | X33: =Output!#REF! ->  | Y33: =CalcRecovery!K101 -> 0 | Z33: =CalcRecovery!L101 -> 0 | AA33: =CalcRecovery!M101 -> 0 | AB33: =CalcRecovery!N101 -> 0 | AC33: =CalcRecovery!O101 -> 0 | AD33: =CalcRecovery!P101 -> 0 | AE33: =CalcRecovery!Q101 -> 0 | AF33: =CalcRecovery!R101 -> 0 | AG33: =CalcRecovery!S101 -> 0 | AH33: =CalcRecovery!T101 -> 0 | AI33: =CalcRecovery!U101 -> 0 | AJ33: =CalcRecovery!V101 -> 0 | AK33: =CalcRecovery!W101 -> 0 | AL33: =CalcRecovery!X101 -> 0 | AM33: =CalcRecovery!Y101 -> 0 | AN33: =CalcRecovery!Z101 -> 0 | AO33: =CalcRecovery!AA101 -> 0 | AP33: =CalcRecovery!AB101 -> 0 | AQ33: =CalcRecovery!AC101 -> 0 | AR33: =CalcRecovery!AD101 -> 0 | AS33: =CalcRecovery!AE101 -> 0 | AT33: =CalcRecovery!AF101 -> 0 | AU33: =CalcRecovery!AG101 -> 0 | AV33: =CalcRecovery!AH101 -> 0 | AW33: =CalcRecovery!AI101 -> 0
B34: =Annuity!C49 -> Spare | D34: =CalcAnnual!K43 -> 0 | E34: =CalcAnnual!L43 -> 0 | F34: =CalcAnnual!M43 -> 0 | G34: =CalcAnnual!N43 -> 0 | H34: =CalcAnnual!O43 -> 0 | J34: =CalcAnnual!K162+CalcAnnual!K280 -> 0 | K34: =CalcAnnual!L162+CalcAnnual!L280 -> 0 | L34: =CalcAnnual!M162+CalcAnnual!M280 -> 0 | M34: =CalcAnnual!N162+CalcAnnual!N280 -> 0 | N34: =CalcAnnual!O162+CalcAnnual!O280 -> 0 | P34: 0 | Q34: 0 | R34: 0 | S34: 0 | T34: 0 | X34: =Output!#REF! ->  | Y34: =CalcRecovery!K102 -> 0 | Z34: =CalcRecovery!L102 -> 0 | AA34: =CalcRecovery!M102 -> 0 | AB34: =CalcRecovery!N102 -> 0 | AC34: =CalcRecovery!O102 -> 0 | AD34: =CalcRecovery!P102 -> 0 | AE34: =CalcRecovery!Q102 -> 0 | AF34: =CalcRecovery!R102 -> 0 | AG34: =CalcRecovery!S102 -> 0 | AH34: =CalcRecovery!T102 -> 0 | AI34: =CalcRecovery!U102 -> 0 | AJ34: =CalcRecovery!V102 -> 0 | AK34: =CalcRecovery!W102 -> 0 | AL34: =CalcRecovery!X102 -> 0 | AM34: =CalcRecovery!Y102 -> 0 | AN34: =CalcRecovery!Z102 -> 0 | AO34: =CalcRecovery!AA102 -> 0 | AP34: =CalcRecovery!AB102 -> 0 | AQ34: =CalcRecovery!AC102 -> 0 | AR34: =CalcRecovery!AD102 -> 0 | AS34: =CalcRecovery!AE102 -> 0 | AT34: =CalcRecovery!AF102 -> 0 | AU34: =CalcRecovery!AG102 -> 0 | AV34: =CalcRecovery!AH102 -> 0 | AW34: =CalcRecovery!AI102 -> 0
B35: =Annuity!C50 -> Spare | D35: =CalcAnnual!K44 -> 0 | E35: =CalcAnnual!L44 -> 0 | F35: =CalcAnnual!M44 -> 0 | G35: =CalcAnnual!N44 -> 0 | H35: =CalcAnnual!O44 -> 0 | J35: =CalcAnnual!K163+CalcAnnual!K281 -> 0 | K35: =CalcAnnual!L163+CalcAnnual!L281 -> 0 | L35: =CalcAnnual!M163+CalcAnnual!M281 -> 0 | M35: =CalcAnnual!N163+CalcAnnual!N281 -> 0 | N35: =CalcAnnual!O163+CalcAnnual!O281 -> 0 | P35: =D35+J35 -> 0 | Q35: =E35+K35 -> 0 | R35: =F35+L35 -> 0 | S35: =G35+M35 -> 0 | T35: =H35+N35 -> 0 | X35: =Output!#REF! ->  | Y35: =CalcRecovery!K103 -> 0 | Z35: =CalcRecovery!L103 -> 0 | AA35: =CalcRecovery!M103 -> 0 | AB35: =CalcRecovery!N103 -> 0 | AC35: =CalcRecovery!O103 -> 0 | AD35: =CalcRecovery!P103 -> 0 | AE35: =CalcRecovery!Q103 -> 0 | AF35: =CalcRecovery!R103 -> 0 | AG35: =CalcRecovery!S103 -> 0 | AH35: =CalcRecovery!T103 -> 0 | AI35: =CalcRecovery!U103 -> 0 | AJ35: =CalcRecovery!V103 -> 0 | AK35: =CalcRecovery!W103 -> 0 | AL35: =CalcRecovery!X103 -> 0 | AM35: =CalcRecovery!Y103 -> 0 | AN35: =CalcRecovery!Z103 -> 0 | AO35: =CalcRecovery!AA103 -> 0 | AP35: =CalcRecovery!AB103 -> 0 | AQ35: =CalcRecovery!AC103 -> 0 | AR35: =CalcRecovery!AD103 -> 0 | AS35: =CalcRecovery!AE103 -> 0 | AT35: =CalcRecovery!AF103 -> 0 | AU35: =CalcRecovery!AG103 -> 0 | AV35: =CalcRecovery!AH103 -> 0 | AW35: =CalcRecovery!AI103 -> 0
B36: =Annuity!C51 -> Spare | D36: =CalcAnnual!K45 -> 0 | E36: =CalcAnnual!L45 -> 0 | F36: =CalcAnnual!M45 -> 0 | G36: =CalcAnnual!N45 -> 0 | H36: =CalcAnnual!O45 -> 0 | J36: =CalcAnnual!K164+CalcAnnual!K282 -> 0 | K36: =CalcAnnual!L164+CalcAnnual!L282 -> 0 | L36: =CalcAnnual!M164+CalcAnnual!M282 -> 0 | M36: =CalcAnnual!N164+CalcAnnual!N282 -> 0 | N36: =CalcAnnual!O164+CalcAnnual!O282 -> 0 | P36: 0 | Q36: 0 | R36: 0 | S36: 0 | T36: 0 | X36: =Output!#REF! ->  | Y36: =CalcRecovery!K104 -> 0 | Z36: =CalcRecovery!L104 -> 0 | AA36: =CalcRecovery!M104 -> 0 | AB36: =CalcRecovery!N104 -> 0 | AC36: =CalcRecovery!O104 -> 0 | AD36: =CalcRecovery!P104 -> 0 | AE36: =CalcRecovery!Q104 -> 0 | AF36: =CalcRecovery!R104 -> 0 | AG36: =CalcRecovery!S104 -> 0 | AH36: =CalcRecovery!T104 -> 0 | AI36: =CalcRecovery!U104 -> 0 | AJ36: =CalcRecovery!V104 -> 0 | AK36: =CalcRecovery!W104 -> 0 | AL36: =CalcRecovery!X104 -> 0 | AM36: =CalcRecovery!Y104 -> 0 | AN36: =CalcRecovery!Z104 -> 0 | AO36: =CalcRecovery!AA104 -> 0 | AP36: =CalcRecovery!AB104 -> 0 | AQ36: =CalcRecovery!AC104 -> 0 | AR36: =CalcRecovery!AD104 -> 0 | AS36: =CalcRecovery!AE104 -> 0 | AT36: =CalcRecovery!AF104 -> 0 | AU36: =CalcRecovery!AG104 -> 0 | AV36: =CalcRecovery!AH104 -> 0 | AW36: =CalcRecovery!AI104 -> 0
B37: =Annuity!C52 -> Spare | D37: =CalcAnnual!K46 -> 0 | E37: =CalcAnnual!L46 -> 0 | F37: =CalcAnnual!M46 -> 0 | G37: =CalcAnnual!N46 -> 0 | H37: =CalcAnnual!O46 -> 0 | J37: =CalcAnnual!K165+CalcAnnual!K283 -> 0 | K37: =CalcAnnual!L165+CalcAnnual!L283 -> 0 | L37: =CalcAnnual!M165+CalcAnnual!M283 -> 0 | M37: =CalcAnnual!N165+CalcAnnual!N283 -> 0 | N37: =CalcAnnual!O165+CalcAnnual!O283 -> 0 | P37: 0 | Q37: 0 | R37: 0 | S37: 0 | T37: 0 | X37: =Output!#REF! ->  | Y37: =CalcRecovery!K105 -> 0 | Z37: =CalcRecovery!L105 -> 0 | AA37: =CalcRecovery!M105 -> 0 | AB37: =CalcRecovery!N105 -> 0 | AC37: =CalcRecovery!O105 -> 0 | AD37: =CalcRecovery!P105 -> 0 | AE37: =CalcRecovery!Q105 -> 0 | AF37: =CalcRecovery!R105 -> 0 | AG37: =CalcRecovery!S105 -> 0 | AH37: =CalcRecovery!T105 -> 0 | AI37: =CalcRecovery!U105 -> 0 | AJ37: =CalcRecovery!V105 -> 0 | AK37: =CalcRecovery!W105 -> 0 | AL37: =CalcRecovery!X105 -> 0 | AM37: =CalcRecovery!Y105 -> 0 | AN37: =CalcRecovery!Z105 -> 0 | AO37: =CalcRecovery!AA105 -> 0 | AP37: =CalcRecovery!AB105 -> 0 | AQ37: =CalcRecovery!AC105 -> 0 | AR37: =CalcRecovery!AD105 -> 0 | AS37: =CalcRecovery!AE105 -> 0 | AT37: =CalcRecovery!AF105 -> 0 | AU37: =CalcRecovery!AG105 -> 0 | AV37: =CalcRecovery!AH105 -> 0 | AW37: =CalcRecovery!AI105 -> 0
B38: =Annuity!C53 -> Spare | D38: =CalcAnnual!K47 -> 0 | E38: =CalcAnnual!L47 -> 0 | F38: =CalcAnnual!M47 -> 0 | G38: =CalcAnnual!N47 -> 0 | H38: =CalcAnnual!O47 -> 0 | J38: =CalcAnnual!K166+CalcAnnual!K284 -> 0 | K38: =CalcAnnual!L166+CalcAnnual!L284 -> 0 | L38: =CalcAnnual!M166+CalcAnnual!M284 -> 0 | M38: =CalcAnnual!N166+CalcAnnual!N284 -> 0 | N38: =CalcAnnual!O166+CalcAnnual!O284 -> 0 | P38: 0 | Q38: 0 | R38: 0 | S38: 0 | T38: 0 | X38: =Output!#REF! ->  | Y38: =CalcRecovery!K106 -> 0 | Z38: =CalcRecovery!L106 -> 0 | AA38: =CalcRecovery!M106 -> 0 | AB38: =CalcRecovery!N106 -> 0 | AC38: =CalcRecovery!O106 -> 0 | AD38: =CalcRecovery!P106 -> 0 | AE38: =CalcRecovery!Q106 -> 0 | AF38: =CalcRecovery!R106 -> 0 | AG38: =CalcRecovery!S106 -> 0 | AH38: =CalcRecovery!T106 -> 0 | AI38: =CalcRecovery!U106 -> 0 | AJ38: =CalcRecovery!V106 -> 0 | AK38: =CalcRecovery!W106 -> 0 | AL38: =CalcRecovery!X106 -> 0 | AM38: =CalcRecovery!Y106 -> 0 | AN38: =CalcRecovery!Z106 -> 0 | AO38: =CalcRecovery!AA106 -> 0 | AP38: =CalcRecovery!AB106 -> 0 | AQ38: =CalcRecovery!AC106 -> 0 | AR38: =CalcRecovery!AD106 -> 0 | AS38: =CalcRecovery!AE106 -> 0 | AT38: =CalcRecovery!AF106 -> 0 | AU38: =CalcRecovery!AG106 -> 0 | AV38: =CalcRecovery!AH106 -> 0 | AW38: =CalcRecovery!AI106 -> 0
B39: =Annuity!C54 -> Spare | D39: =CalcAnnual!K48 -> 0 | E39: =CalcAnnual!L48 -> 0 | F39: =CalcAnnual!M48 -> 0 | G39: =CalcAnnual!N48 -> 0 | H39: =CalcAnnual!O48 -> 0 | J39: =CalcAnnual!K167+CalcAnnual!K285 -> 0 | K39: =CalcAnnual!L167+CalcAnnual!L285 -> 0 | L39: =CalcAnnual!M167+CalcAnnual!M285 -> 0 | M39: =CalcAnnual!N167+CalcAnnual!N285 -> 0 | N39: =CalcAnnual!O167+CalcAnnual!O285 -> 0 | P39: 0 | Q39: 0 | R39: 0 | S39: 0 | T39: 0 | X39: =Output!#REF! ->  | Y39: =CalcRecovery!K107 -> 0 | Z39: =CalcRecovery!L107 -> 0 | AA39: =CalcRecovery!M107 -> 0 | AB39: =CalcRecovery!N107 -> 0 | AC39: =CalcRecovery!O107 -> 0 | AD39: =CalcRecovery!P107 -> 0 | AE39: =CalcRecovery!Q107 -> 0 | AF39: =CalcRecovery!R107 -> 0 | AG39: =CalcRecovery!S107 -> 0 | AH39: =CalcRecovery!T107 -> 0 | AI39: =CalcRecovery!U107 -> 0 | AJ39: =CalcRecovery!V107 -> 0 | AK39: =CalcRecovery!W107 -> 0 | AL39: =CalcRecovery!X107 -> 0 | AM39: =CalcRecovery!Y107 -> 0 | AN39: =CalcRecovery!Z107 -> 0 | AO39: =CalcRecovery!AA107 -> 0 | AP39: =CalcRecovery!AB107 -> 0 | AQ39: =CalcRecovery!AC107 -> 0 | AR39: =CalcRecovery!AD107 -> 0 | AS39: =CalcRecovery!AE107 -> 0 | AT39: =CalcRecovery!AF107 -> 0 | AU39: =CalcRecovery!AG107 -> 0 | AV39: =CalcRecovery!AH107 -> 0 | AW39: =CalcRecovery!AI107 -> 0
B40: =Annuity!C55 -> Spare | D40: =CalcAnnual!K49 -> 0 | E40: =CalcAnnual!L49 -> 0 | F40: =CalcAnnual!M49 -> 0 | G40: =CalcAnnual!N49 -> 0 | H40: =CalcAnnual!O49 -> 0 | J40: =CalcAnnual!K168+CalcAnnual!K286 -> 0 | K40: =CalcAnnual!L168+CalcAnnual!L286 -> 0 | L40: =CalcAnnual!M168+CalcAnnual!M286 -> 0 | M40: =CalcAnnual!N168+CalcAnnual!N286 -> 0 | N40: =CalcAnnual!O168+CalcAnnual!O286 -> 0 | P40: 0 | Q40: 0 | R40: 0 | S40: 0 | T40: 0 | X40: =Output!#REF! ->  | Y40: =CalcRecovery!K108 -> 0 | Z40: =CalcRecovery!L108 -> 0 | AA40: =CalcRecovery!M108 -> 0 | AB40: =CalcRecovery!N108 -> 0 | AC40: =CalcRecovery!O108 -> 0 | AD40: =CalcRecovery!P108 -> 0 | AE40: =CalcRecovery!Q108 -> 0 | AF40: =CalcRecovery!R108 -> 0 | AG40: =CalcRecovery!S108 -> 0 | AH40: =CalcRecovery!T108 -> 0 | AI40: =CalcRecovery!U108 -> 0 | AJ40: =CalcRecovery!V108 -> 0 | AK40: =CalcRecovery!W108 -> 0 | AL40: =CalcRecovery!X108 -> 0 | AM40: =CalcRecovery!Y108 -> 0 | AN40: =CalcRecovery!Z108 -> 0 | AO40: =CalcRecovery!AA108 -> 0 | AP40: =CalcRecovery!AB108 -> 0 | AQ40: =CalcRecovery!AC108 -> 0 | AR40: =CalcRecovery!AD108 -> 0 | AS40: =CalcRecovery!AE108 -> 0 | AT40: =CalcRecovery!AF108 -> 0 | AU40: =CalcRecovery!AG108 -> 0 | AV40: =CalcRecovery!AH108 -> 0 | AW40: =CalcRecovery!AI108 -> 0
B41: =Annuity!C56 -> Spare | D41: =CalcAnnual!K50 -> 0 | E41: =CalcAnnual!L50 -> 0 | F41: =CalcAnnual!M50 -> 0 | G41: =CalcAnnual!N50 -> 0 | H41: =CalcAnnual!O50 -> 0 | J41: =CalcAnnual!K169+CalcAnnual!K287 -> 0 | K41: =CalcAnnual!L169+CalcAnnual!L287 -> 0 | L41: =CalcAnnual!M169+CalcAnnual!M287 -> 0 | M41: =CalcAnnual!N169+CalcAnnual!N287 -> 0 | N41: =CalcAnnual!O169+CalcAnnual!O287 -> 0 | P41: 0 | Q41: 0 | R41: 0 | S41: 0 | T41: 0 | X41: =Output!#REF! ->  | Y41: =CalcRecovery!K109 -> 0 | Z41: =CalcRecovery!L109 -> 0 | AA41: =CalcRecovery!M109 -> 0 | AB41: =CalcRecovery!N109 -> 0 | AC41: =CalcRecovery!O109 -> 0 | AD41: =CalcRecovery!P109 -> 0 | AE41: =CalcRecovery!Q109 -> 0 | AF41: =CalcRecovery!R109 -> 0 | AG41: =CalcRecovery!S109 -> 0 | AH41: =CalcRecovery!T109 -> 0 | AI41: =CalcRecovery!U109 -> 0 | AJ41: =CalcRecovery!V109 -> 0 | AK41: =CalcRecovery!W109 -> 0 | AL41: =CalcRecovery!X109 -> 0 | AM41: =CalcRecovery!Y109 -> 0 | AN41: =CalcRecovery!Z109 -> 0 | AO41: =CalcRecovery!AA109 -> 0 | AP41: =CalcRecovery!AB109 -> 0 | AQ41: =CalcRecovery!AC109 -> 0 | AR41: =CalcRecovery!AD109 -> 0 | AS41: =CalcRecovery!AE109 -> 0 | AT41: =CalcRecovery!AF109 -> 0 | AU41: =CalcRecovery!AG109 -> 0 | AV41: =CalcRecovery!AH109 -> 0 | AW41: =CalcRecovery!AI109 -> 0
B42: =Annuity!C57 -> Spare | D42: =CalcAnnual!K51 -> 0 | E42: =CalcAnnual!L51 -> 0 | F42: =CalcAnnual!M51 -> 0 | G42: =CalcAnnual!N51 -> 0 | H42: =CalcAnnual!O51 -> 0 | J42: =CalcAnnual!K170+CalcAnnual!K288 -> 0 | K42: =CalcAnnual!L170+CalcAnnual!L288 -> 0 | L42: =CalcAnnual!M170+CalcAnnual!M288 -> 0 | M42: =CalcAnnual!N170+CalcAnnual!N288 -> 0 | N42: =CalcAnnual!O170+CalcAnnual!O288 -> 0 | P42: 0 | Q42: 0 | R42: 0 | S42: 0 | T42: 0 | X42: =Output!#REF! ->  | Y42: =CalcRecovery!K110 -> 0 | Z42: =CalcRecovery!L110 -> 0 | AA42: =CalcRecovery!M110 -> 0 | AB42: =CalcRecovery!N110 -> 0 | AC42: =CalcRecovery!O110 -> 0 | AD42: =CalcRecovery!P110 -> 0 | AE42: =CalcRecovery!Q110 -> 0 | AF42: =CalcRecovery!R110 -> 0 | AG42: =CalcRecovery!S110 -> 0 | AH42: =CalcRecovery!T110 -> 0 | AI42: =CalcRecovery!U110 -> 0 | AJ42: =CalcRecovery!V110 -> 0 | AK42: =CalcRecovery!W110 -> 0 | AL42: =CalcRecovery!X110 -> 0 | AM42: =CalcRecovery!Y110 -> 0 | AN42: =CalcRecovery!Z110 -> 0 | AO42: =CalcRecovery!AA110 -> 0 | AP42: =CalcRecovery!AB110 -> 0 | AQ42: =CalcRecovery!AC110 -> 0 | AR42: =CalcRecovery!AD110 -> 0 | AS42: =CalcRecovery!AE110 -> 0 | AT42: =CalcRecovery!AF110 -> 0 | AU42: =CalcRecovery!AG110 -> 0 | AV42: =CalcRecovery!AH110 -> 0 | AW42: =CalcRecovery!AI110 -> 0
B43: =Annuity!C58 -> Spare | D43: =CalcAnnual!K52 -> 0 | E43: =CalcAnnual!L52 -> 0 | F43: =CalcAnnual!M52 -> 0 | G43: =CalcAnnual!N52 -> 0 | H43: =CalcAnnual!O52 -> 0 | J43: =CalcAnnual!K171+CalcAnnual!K289 -> 0 | K43: =CalcAnnual!L171+CalcAnnual!L289 -> 0 | L43: =CalcAnnual!M171+CalcAnnual!M289 -> 0 | M43: =CalcAnnual!N171+CalcAnnual!N289 -> 0 | N43: =CalcAnnual!O171+CalcAnnual!O289 -> 0 | P43: 0 | Q43: 0 | R43: 0 | S43: 0 | T43: 0 | X43: =Output!#REF! ->  | Y43: =CalcRecovery!K111 -> 0 | Z43: =CalcRecovery!L111 -> 0 | AA43: =CalcRecovery!M111 -> 0 | AB43: =CalcRecovery!N111 -> 0 | AC43: =CalcRecovery!O111 -> 0 | AD43: =CalcRecovery!P111 -> 0 | AE43: =CalcRecovery!Q111 -> 0 | AF43: =CalcRecovery!R111 -> 0 | AG43: =CalcRecovery!S111 -> 0 | AH43: =CalcRecovery!T111 -> 0 | AI43: =CalcRecovery!U111 -> 0 | AJ43: =CalcRecovery!V111 -> 0 | AK43: =CalcRecovery!W111 -> 0 | AL43: =CalcRecovery!X111 -> 0 | AM43: =CalcRecovery!Y111 -> 0 | AN43: =CalcRecovery!Z111 -> 0 | AO43: =CalcRecovery!AA111 -> 0 | AP43: =CalcRecovery!AB111 -> 0 | AQ43: =CalcRecovery!AC111 -> 0 | AR43: =CalcRecovery!AD111 -> 0 | AS43: =CalcRecovery!AE111 -> 0 | AT43: =CalcRecovery!AF111 -> 0 | AU43: =CalcRecovery!AG111 -> 0 | AV43: =CalcRecovery!AH111 -> 0 | AW43: =CalcRecovery!AI111 -> 0
B44: =Annuity!C59 -> Spare | D44: =CalcAnnual!K53 -> 0 | E44: =CalcAnnual!L53 -> 0 | F44: =CalcAnnual!M53 -> 0 | G44: =CalcAnnual!N53 -> 0 | H44: =CalcAnnual!O53 -> 0 | J44: =CalcAnnual!K172+CalcAnnual!K290 -> 0 | K44: =CalcAnnual!L172+CalcAnnual!L290 -> 0 | L44: =CalcAnnual!M172+CalcAnnual!M290 -> 0 | M44: =CalcAnnual!N172+CalcAnnual!N290 -> 0 | N44: =CalcAnnual!O172+CalcAnnual!O290 -> 0 | P44: 0 | Q44: 0 | R44: 0 | S44: 0 | T44: 0 | X44: =Output!#REF! ->  | Y44: =CalcRecovery!K112 -> 0 | Z44: =CalcRecovery!L112 -> 0 | AA44: =CalcRecovery!M112 -> 0 | AB44: =CalcRecovery!N112 -> 0 | AC44: =CalcRecovery!O112 -> 0 | AD44: =CalcRecovery!P112 -> 0 | AE44: =CalcRecovery!Q112 -> 0 | AF44: =CalcRecovery!R112 -> 0 | AG44: =CalcRecovery!S112 -> 0 | AH44: =CalcRecovery!T112 -> 0 | AI44: =CalcRecovery!U112 -> 0 | AJ44: =CalcRecovery!V112 -> 0 | AK44: =CalcRecovery!W112 -> 0 | AL44: =CalcRecovery!X112 -> 0 | AM44: =CalcRecovery!Y112 -> 0 | AN44: =CalcRecovery!Z112 -> 0 | AO44: =CalcRecovery!AA112 -> 0 | AP44: =CalcRecovery!AB112 -> 0 | AQ44: =CalcRecovery!AC112 -> 0 | AR44: =CalcRecovery!AD112 -> 0 | AS44: =CalcRecovery!AE112 -> 0 | AT44: =CalcRecovery!AF112 -> 0 | AU44: =CalcRecovery!AG112 -> 0 | AV44: =CalcRecovery!AH112 -> 0 | AW44: =CalcRecovery!AI112 -> 0
B45: =Annuity!C60 -> Spare | D45: =CalcAnnual!K54 -> 0 | E45: =CalcAnnual!L54 -> 0 | F45: =CalcAnnual!M54 -> 0 | G45: =CalcAnnual!N54 -> 0 | H45: =CalcAnnual!O54 -> 0 | J45: =CalcAnnual!K173+CalcAnnual!K291 -> 0 | K45: =CalcAnnual!L173+CalcAnnual!L291 -> 0 | L45: =CalcAnnual!M173+CalcAnnual!M291 -> 0 | M45: =CalcAnnual!N173+CalcAnnual!N291 -> 0 | N45: =CalcAnnual!O173+CalcAnnual!O291 -> 0 | P45: 0 | Q45: 0 | R45: 0 | S45: 0 | T45: 0 | X45: =Output!#REF! ->  | Y45: =CalcRecovery!K113 -> 0 | Z45: =CalcRecovery!L113 -> 0 | AA45: =CalcRecovery!M113 -> 0 | AB45: =CalcRecovery!N113 -> 0 | AC45: =CalcRecovery!O113 -> 0 | AD45: =CalcRecovery!P113 -> 0 | AE45: =CalcRecovery!Q113 -> 0 | AF45: =CalcRecovery!R113 -> 0 | AG45: =CalcRecovery!S113 -> 0 | AH45: =CalcRecovery!T113 -> 0 | AI45: =CalcRecovery!U113 -> 0 | AJ45: =CalcRecovery!V113 -> 0 | AK45: =CalcRecovery!W113 -> 0 | AL45: =CalcRecovery!X113 -> 0 | AM45: =CalcRecovery!Y113 -> 0 | AN45: =CalcRecovery!Z113 -> 0 | AO45: =CalcRecovery!AA113 -> 0 | AP45: =CalcRecovery!AB113 -> 0 | AQ45: =CalcRecovery!AC113 -> 0 | AR45: =CalcRecovery!AD113 -> 0 | AS45: =CalcRecovery!AE113 -> 0 | AT45: =CalcRecovery!AF113 -> 0 | AU45: =CalcRecovery!AG113 -> 0 | AV45: =CalcRecovery!AH113 -> 0 | AW45: =CalcRecovery!AI113 -> 0
B46: =Annuity!C61 -> Spare | D46: =CalcAnnual!K55 -> 0 | E46: =CalcAnnual!L55 -> 0 | F46: =CalcAnnual!M55 -> 0 | G46: =CalcAnnual!N55 -> 0 | H46: =CalcAnnual!O55 -> 0 | J46: =CalcAnnual!K174+CalcAnnual!K292 -> 0 | K46: =CalcAnnual!L174+CalcAnnual!L292 -> 0 | L46: =CalcAnnual!M174+CalcAnnual!M292 -> 0 | M46: =CalcAnnual!N174+CalcAnnual!N292 -> 0 | N46: =CalcAnnual!O174+CalcAnnual!O292 -> 0 | P46: 0 | Q46: 0 | R46: 0 | S46: 0 | T46: 0 | X46: =Output!#REF! ->  | Y46: =CalcRecovery!K114 -> 0 | Z46: =CalcRecovery!L114 -> 0 | AA46: =CalcRecovery!M114 -> 0 | AB46: =CalcRecovery!N114 -> 0 | AC46: =CalcRecovery!O114 -> 0 | AD46: =CalcRecovery!P114 -> 0 | AE46: =CalcRecovery!Q114 -> 0 | AF46: =CalcRecovery!R114 -> 0 | AG46: =CalcRecovery!S114 -> 0 | AH46: =CalcRecovery!T114 -> 0 | AI46: =CalcRecovery!U114 -> 0 | AJ46: =CalcRecovery!V114 -> 0 | AK46: =CalcRecovery!W114 -> 0 | AL46: =CalcRecovery!X114 -> 0 | AM46: =CalcRecovery!Y114 -> 0 | AN46: =CalcRecovery!Z114 -> 0 | AO46: =CalcRecovery!AA114 -> 0 | AP46: =CalcRecovery!AB114 -> 0 | AQ46: =CalcRecovery!AC114 -> 0 | AR46: =CalcRecovery!AD114 -> 0 | AS46: =CalcRecovery!AE114 -> 0 | AT46: =CalcRecovery!AF114 -> 0 | AU46: =CalcRecovery!AG114 -> 0 | AV46: =CalcRecovery!AH114 -> 0 | AW46: =CalcRecovery!AI114 -> 0
B47: =Annuity!C62 -> Spare | D47: =CalcAnnual!K56 -> 0 | E47: =CalcAnnual!L56 -> 0 | F47: =CalcAnnual!M56 -> 0 | G47: =CalcAnnual!N56 -> 0 | H47: =CalcAnnual!O56 -> 0 | J47: =CalcAnnual!K175+CalcAnnual!K293 -> 0 | K47: =CalcAnnual!L175+CalcAnnual!L293 -> 0 | L47: =CalcAnnual!M175+CalcAnnual!M293 -> 0 | M47: =CalcAnnual!N175+CalcAnnual!N293 -> 0 | N47: =CalcAnnual!O175+CalcAnnual!O293 -> 0 | P47: 0 | Q47: 0 | R47: 0 | S47: 0 | T47: 0 | X47: =Output!#REF! ->  | Y47: =CalcRecovery!K115 -> 0 | Z47: =CalcRecovery!L115 -> 0 | AA47: =CalcRecovery!M115 -> 0 | AB47: =CalcRecovery!N115 -> 0 | AC47: =CalcRecovery!O115 -> 0 | AD47: =CalcRecovery!P115 -> 0 | AE47: =CalcRecovery!Q115 -> 0 | AF47: =CalcRecovery!R115 -> 0 | AG47: =CalcRecovery!S115 -> 0 | AH47: =CalcRecovery!T115 -> 0 | AI47: =CalcRecovery!U115 -> 0 | AJ47: =CalcRecovery!V115 -> 0 | AK47: =CalcRecovery!W115 -> 0 | AL47: =CalcRecovery!X115 -> 0 | AM47: =CalcRecovery!Y115 -> 0 | AN47: =CalcRecovery!Z115 -> 0 | AO47: =CalcRecovery!AA115 -> 0 | AP47: =CalcRecovery!AB115 -> 0 | AQ47: =CalcRecovery!AC115 -> 0 | AR47: =CalcRecovery!AD115 -> 0 | AS47: =CalcRecovery!AE115 -> 0 | AT47: =CalcRecovery!AF115 -> 0 | AU47: =CalcRecovery!AG115 -> 0 | AV47: =CalcRecovery!AH115 -> 0 | AW47: =CalcRecovery!AI115 -> 0
B48: =Annuity!C63 -> Spare | D48: =CalcAnnual!K57 -> 0 | E48: =CalcAnnual!L57 -> 0 | F48: =CalcAnnual!M57 -> 0 | G48: =CalcAnnual!N57 -> 0 | H48: =CalcAnnual!O57 -> 0 | J48: =CalcAnnual!K176+CalcAnnual!K294 -> 0 | K48: =CalcAnnual!L176+CalcAnnual!L294 -> 0 | L48: =CalcAnnual!M176+CalcAnnual!M294 -> 0 | M48: =CalcAnnual!N176+CalcAnnual!N294 -> 0 | N48: =CalcAnnual!O176+CalcAnnual!O294 -> 0 | P48: 0 | Q48: 0 | R48: 0 | S48: 0 | T48: 0 | X48: =Output!#REF! ->  | Y48: =CalcRecovery!K116 -> 0 | Z48: =CalcRecovery!L116 -> 0 | AA48: =CalcRecovery!M116 -> 0 | AB48: =CalcRecovery!N116 -> 0 | AC48: =CalcRecovery!O116 -> 0 | AD48: =CalcRecovery!P116 -> 0 | AE48: =CalcRecovery!Q116 -> 0 | AF48: =CalcRecovery!R116 -> 0 | AG48: =CalcRecovery!S116 -> 0 | AH48: =CalcRecovery!T116 -> 0 | AI48: =CalcRecovery!U116 -> 0 | AJ48: =CalcRecovery!V116 -> 0 | AK48: =CalcRecovery!W116 -> 0 | AL48: =CalcRecovery!X116 -> 0 | AM48: =CalcRecovery!Y116 -> 0 | AN48: =CalcRecovery!Z116 -> 0 | AO48: =CalcRecovery!AA116 -> 0 | AP48: =CalcRecovery!AB116 -> 0 | AQ48: =CalcRecovery!AC116 -> 0 | AR48: =CalcRecovery!AD116 -> 0 | AS48: =CalcRecovery!AE116 -> 0 | AT48: =CalcRecovery!AF116 -> 0 | AU48: =CalcRecovery!AG116 -> 0 | AV48: =CalcRecovery!AH116 -> 0 | AW48: =CalcRecovery!AI116 -> 0
B49: =Annuity!C64 -> Spare | D49: =CalcAnnual!K58 -> 0 | E49: =CalcAnnual!L58 -> 0 | F49: =CalcAnnual!M58 -> 0 | G49: =CalcAnnual!N58 -> 0 | H49: =CalcAnnual!O58 -> 0 | J49: =CalcAnnual!K177+CalcAnnual!K295 -> 0 | K49: =CalcAnnual!L177+CalcAnnual!L295 -> 0 | L49: =CalcAnnual!M177+CalcAnnual!M295 -> 0 | M49: =CalcAnnual!N177+CalcAnnual!N295 -> 0 | N49: =CalcAnnual!O177+CalcAnnual!O295 -> 0 | P49: 0 | Q49: 0 | R49: 0 | S49: 0 | T49: 0 | X49: =Output!#REF! ->  | Y49: =CalcRecovery!K117 -> 0 | Z49: =CalcRecovery!L117 -> 0 | AA49: =CalcRecovery!M117 -> 0 | AB49: =CalcRecovery!N117 -> 0 | AC49: =CalcRecovery!O117 -> 0 | AD49: =CalcRecovery!P117 -> 0 | AE49: =CalcRecovery!Q117 -> 0 | AF49: =CalcRecovery!R117 -> 0 | AG49: =CalcRecovery!S117 -> 0 | AH49: =CalcRecovery!T117 -> 0 | AI49: =CalcRecovery!U117 -> 0 | AJ49: =CalcRecovery!V117 -> 0 | AK49: =CalcRecovery!W117 -> 0 | AL49: =CalcRecovery!X117 -> 0 | AM49: =CalcRecovery!Y117 -> 0 | AN49: =CalcRecovery!Z117 -> 0 | AO49: =CalcRecovery!AA117 -> 0 | AP49: =CalcRecovery!AB117 -> 0 | AQ49: =CalcRecovery!AC117 -> 0 | AR49: =CalcRecovery!AD117 -> 0 | AS49: =CalcRecovery!AE117 -> 0 | AT49: =CalcRecovery!AF117 -> 0 | AU49: =CalcRecovery!AG117 -> 0 | AV49: =CalcRecovery!AH117 -> 0 | AW49: =CalcRecovery!AI117 -> 0
B50: =Annuity!C65 -> Spare | D50: =CalcAnnual!K59 -> 0 | E50: =CalcAnnual!L59 -> 0 | F50: =CalcAnnual!M59 -> 0 | G50: =CalcAnnual!N59 -> 0 | H50: =CalcAnnual!O59 -> 0 | J50: =CalcAnnual!K178+CalcAnnual!K296 -> 0 | K50: =CalcAnnual!L178+CalcAnnual!L296 -> 0 | L50: =CalcAnnual!M178+CalcAnnual!M296 -> 0 | M50: =CalcAnnual!N178+CalcAnnual!N296 -> 0 | N50: =CalcAnnual!O178+CalcAnnual!O296 -> 0 | P50: 0 | Q50: 0 | R50: 0 | S50: 0 | T50: 0 | X50: =Output!#REF! ->  | Y50: =CalcRecovery!K118 -> 0 | Z50: =CalcRecovery!L118 -> 0 | AA50: =CalcRecovery!M118 -> 0 | AB50: =CalcRecovery!N118 -> 0 | AC50: =CalcRecovery!O118 -> 0 | AD50: =CalcRecovery!P118 -> 0 | AE50: =CalcRecovery!Q118 -> 0 | AF50: =CalcRecovery!R118 -> 0 | AG50: =CalcRecovery!S118 -> 0 | AH50: =CalcRecovery!T118 -> 0 | AI50: =CalcRecovery!U118 -> 0 | AJ50: =CalcRecovery!V118 -> 0 | AK50: =CalcRecovery!W118 -> 0 | AL50: =CalcRecovery!X118 -> 0 | AM50: =CalcRecovery!Y118 -> 0 | AN50: =CalcRecovery!Z118 -> 0 | AO50: =CalcRecovery!AA118 -> 0 | AP50: =CalcRecovery!AB118 -> 0 | AQ50: =CalcRecovery!AC118 -> 0 | AR50: =CalcRecovery!AD118 -> 0 | AS50: =CalcRecovery!AE118 -> 0 | AT50: =CalcRecovery!AF118 -> 0 | AU50: =CalcRecovery!AG118 -> 0 | AV50: =CalcRecovery!AH118 -> 0 | AW50: =CalcRecovery!AI118 -> 0
B51: =Annuity!C66 -> Spare | D51: =CalcAnnual!K60 -> 0 | E51: =CalcAnnual!L60 -> 0 | F51: =CalcAnnual!M60 -> 0 | G51: =CalcAnnual!N60 -> 0 | H51: =CalcAnnual!O60 -> 0 | J51: =CalcAnnual!K179+CalcAnnual!K297 -> 0 | K51: =CalcAnnual!L179+CalcAnnual!L297 -> 0 | L51: =CalcAnnual!M179+CalcAnnual!M297 -> 0 | M51: =CalcAnnual!N179+CalcAnnual!N297 -> 0 | N51: =CalcAnnual!O179+CalcAnnual!O297 -> 0 | P51: 0 | Q51: 0 | R51: 0 | S51: 0 | T51: 0 | X51: =Output!#REF! ->  | Y51: =CalcRecovery!K119 -> 0 | Z51: =CalcRecovery!L119 -> 0 | AA51: =CalcRecovery!M119 -> 0 | AB51: =CalcRecovery!N119 -> 0 | AC51: =CalcRecovery!O119 -> 0 | AD51: =CalcRecovery!P119 -> 0 | AE51: =CalcRecovery!Q119 -> 0 | AF51: =CalcRecovery!R119 -> 0 | AG51: =CalcRecovery!S119 -> 0 | AH51: =CalcRecovery!T119 -> 0 | AI51: =CalcRecovery!U119 -> 0 | AJ51: =CalcRecovery!V119 -> 0 | AK51: =CalcRecovery!W119 -> 0 | AL51: =CalcRecovery!X119 -> 0 | AM51: =CalcRecovery!Y119 -> 0 | AN51: =CalcRecovery!Z119 -> 0 | AO51: =CalcRecovery!AA119 -> 0 | AP51: =CalcRecovery!AB119 -> 0 | AQ51: =CalcRecovery!AC119 -> 0 | AR51: =CalcRecovery!AD119 -> 0 | AS51: =CalcRecovery!AE119 -> 0 | AT51: =CalcRecovery!AF119 -> 0 | AU51: =CalcRecovery!AG119 -> 0 | AV51: =CalcRecovery!AH119 -> 0 | AW51: =CalcRecovery!AI119 -> 0
B52: =Annuity!C67 -> Spare | D52: =CalcAnnual!K61 -> 0 | E52: =CalcAnnual!L61 -> 0 | F52: =CalcAnnual!M61 -> 0 | G52: =CalcAnnual!N61 -> 0 | H52: =CalcAnnual!O61 -> 0 | J52: =CalcAnnual!K180+CalcAnnual!K298 -> 0 | K52: =CalcAnnual!L180+CalcAnnual!L298 -> 0 | L52: =CalcAnnual!M180+CalcAnnual!M298 -> 0 | M52: =CalcAnnual!N180+CalcAnnual!N298 -> 0 | N52: =CalcAnnual!O180+CalcAnnual!O298 -> 0 | P52: 0 | Q52: 0 | R52: 0 | S52: 0 | T52: 0 | X52: =Output!#REF! ->  | Y52: =CalcRecovery!K120 -> 0 | Z52: =CalcRecovery!L120 -> 0 | AA52: =CalcRecovery!M120 -> 0 | AB52: =CalcRecovery!N120 -> 0 | AC52: =CalcRecovery!O120 -> 0 | AD52: =CalcRecovery!P120 -> 0 | AE52: =CalcRecovery!Q120 -> 0 | AF52: =CalcRecovery!R120 -> 0 | AG52: =CalcRecovery!S120 -> 0 | AH52: =CalcRecovery!T120 -> 0 | AI52: =CalcRecovery!U120 -> 0 | AJ52: =CalcRecovery!V120 -> 0 | AK52: =CalcRecovery!W120 -> 0 | AL52: =CalcRecovery!X120 -> 0 | AM52: =CalcRecovery!Y120 -> 0 | AN52: =CalcRecovery!Z120 -> 0 | AO52: =CalcRecovery!AA120 -> 0 | AP52: =CalcRecovery!AB120 -> 0 | AQ52: =CalcRecovery!AC120 -> 0 | AR52: =CalcRecovery!AD120 -> 0 | AS52: =CalcRecovery!AE120 -> 0 | AT52: =CalcRecovery!AF120 -> 0 | AU52: =CalcRecovery!AG120 -> 0 | AV52: =CalcRecovery!AH120 -> 0 | AW52: =CalcRecovery!AI120 -> 0
B53: =Annuity!C68 -> Spare | D53: =CalcAnnual!K62 -> 0 | E53: =CalcAnnual!L62 -> 0 | F53: =CalcAnnual!M62 -> 0 | G53: =CalcAnnual!N62 -> 0 | H53: =CalcAnnual!O62 -> 0 | J53: =CalcAnnual!K181+CalcAnnual!K299 -> 0 | K53: =CalcAnnual!L181+CalcAnnual!L299 -> 0 | L53: =CalcAnnual!M181+CalcAnnual!M299 -> 0 | M53: =CalcAnnual!N181+CalcAnnual!N299 -> 0 | N53: =CalcAnnual!O181+CalcAnnual!O299 -> 0 | P53: 0 | Q53: 0 | R53: 0 | S53: 0 | T53: 0 | X53: =Output!#REF! ->  | Y53: =CalcRecovery!K121 -> 0 | Z53: =CalcRecovery!L121 -> 0 | AA53: =CalcRecovery!M121 -> 0 | AB53: =CalcRecovery!N121 -> 0 | AC53: =CalcRecovery!O121 -> 0 | AD53: =CalcRecovery!P121 -> 0 | AE53: =CalcRecovery!Q121 -> 0 | AF53: =CalcRecovery!R121 -> 0 | AG53: =CalcRecovery!S121 -> 0 | AH53: =CalcRecovery!T121 -> 0 | AI53: =CalcRecovery!U121 -> 0 | AJ53: =CalcRecovery!V121 -> 0 | AK53: =CalcRecovery!W121 -> 0 | AL53: =CalcRecovery!X121 -> 0 | AM53: =CalcRecovery!Y121 -> 0 | AN53: =CalcRecovery!Z121 -> 0 | AO53: =CalcRecovery!AA121 -> 0 | AP53: =CalcRecovery!AB121 -> 0 | AQ53: =CalcRecovery!AC121 -> 0 | AR53: =CalcRecovery!AD121 -> 0 | AS53: =CalcRecovery!AE121 -> 0 | AT53: =CalcRecovery!AF121 -> 0 | AU53: =CalcRecovery!AG121 -> 0 | AV53: =CalcRecovery!AH121 -> 0 | AW53: =CalcRecovery!AI121 -> 0
B54: =Annuity!C69 -> Spare | D54: =CalcAnnual!K63 -> 0 | E54: =CalcAnnual!L63 -> 0 | F54: =CalcAnnual!M63 -> 0 | G54: =CalcAnnual!N63 -> 0 | H54: =CalcAnnual!O63 -> 0 | J54: =CalcAnnual!K182+CalcAnnual!K300 -> 0 | K54: =CalcAnnual!L182+CalcAnnual!L300 -> 0 | L54: =CalcAnnual!M182+CalcAnnual!M300 -> 0 | M54: =CalcAnnual!N182+CalcAnnual!N300 -> 0 | N54: =CalcAnnual!O182+CalcAnnual!O300 -> 0 | P54: 0 | Q54: 0 | R54: 0 | S54: 0 | T54: 0 | X54: =Output!#REF! ->  | Y54: =CalcRecovery!K122 -> 0 | Z54: =CalcRecovery!L122 -> 0 | AA54: =CalcRecovery!M122 -> 0 | AB54: =CalcRecovery!N122 -> 0 | AC54: =CalcRecovery!O122 -> 0 | AD54: =CalcRecovery!P122 -> 0 | AE54: =CalcRecovery!Q122 -> 0 | AF54: =CalcRecovery!R122 -> 0 | AG54: =CalcRecovery!S122 -> 0 | AH54: =CalcRecovery!T122 -> 0 | AI54: =CalcRecovery!U122 -> 0 | AJ54: =CalcRecovery!V122 -> 0 | AK54: =CalcRecovery!W122 -> 0 | AL54: =CalcRecovery!X122 -> 0 | AM54: =CalcRecovery!Y122 -> 0 | AN54: =CalcRecovery!Z122 -> 0 | AO54: =CalcRecovery!AA122 -> 0 | AP54: =CalcRecovery!AB122 -> 0 | AQ54: =CalcRecovery!AC122 -> 0 | AR54: =CalcRecovery!AD122 -> 0 | AS54: =CalcRecovery!AE122 -> 0 | AT54: =CalcRecovery!AF122 -> 0 | AU54: =CalcRecovery!AG122 -> 0 | AV54: =CalcRecovery!AH122 -> 0 | AW54: =CalcRecovery!AI122 -> 0
B55: =Annuity!C70 -> Spare | D55: =CalcAnnual!K64 -> 0 | E55: =CalcAnnual!L64 -> 0 | F55: =CalcAnnual!M64 -> 0 | G55: =CalcAnnual!N64 -> 0 | H55: =CalcAnnual!O64 -> 0 | J55: =CalcAnnual!K183+CalcAnnual!K301 -> 0 | K55: =CalcAnnual!L183+CalcAnnual!L301 -> 0 | L55: =CalcAnnual!M183+CalcAnnual!M301 -> 0 | M55: =CalcAnnual!N183+CalcAnnual!N301 -> 0 | N55: =CalcAnnual!O183+CalcAnnual!O301 -> 0 | P55: 0 | Q55: 0 | R55: 0 | S55: 0 | T55: 0 | X55: =Output!#REF! ->  | Y55: =CalcRecovery!K123 -> 0 | Z55: =CalcRecovery!L123 -> 0 | AA55: =CalcRecovery!M123 -> 0 | AB55: =CalcRecovery!N123 -> 0 | AC55: =CalcRecovery!O123 -> 0 | AD55: =CalcRecovery!P123 -> 0 | AE55: =CalcRecovery!Q123 -> 0 | AF55: =CalcRecovery!R123 -> 0 | AG55: =CalcRecovery!S123 -> 0 | AH55: =CalcRecovery!T123 -> 0 | AI55: =CalcRecovery!U123 -> 0 | AJ55: =CalcRecovery!V123 -> 0 | AK55: =CalcRecovery!W123 -> 0 | AL55: =CalcRecovery!X123 -> 0 | AM55: =CalcRecovery!Y123 -> 0 | AN55: =CalcRecovery!Z123 -> 0 | AO55: =CalcRecovery!AA123 -> 0 | AP55: =CalcRecovery!AB123 -> 0 | AQ55: =CalcRecovery!AC123 -> 0 | AR55: =CalcRecovery!AD123 -> 0 | AS55: =CalcRecovery!AE123 -> 0 | AT55: =CalcRecovery!AF123 -> 0 | AU55: =CalcRecovery!AG123 -> 0 | AV55: =CalcRecovery!AH123 -> 0 | AW55: =CalcRecovery!AI123 -> 0
B56: =Annuity!C71 -> Spare | D56: =CalcAnnual!K65 -> 0 | E56: =CalcAnnual!L65 -> 0 | F56: =CalcAnnual!M65 -> 0 | G56: =CalcAnnual!N65 -> 0 | H56: =CalcAnnual!O65 -> 0 | J56: =CalcAnnual!K184+CalcAnnual!K302 -> 0 | K56: =CalcAnnual!L184+CalcAnnual!L302 -> 0 | L56: =CalcAnnual!M184+CalcAnnual!M302 -> 0 | M56: =CalcAnnual!N184+CalcAnnual!N302 -> 0 | N56: =CalcAnnual!O184+CalcAnnual!O302 -> 0 | P56: 0 | Q56: 0 | R56: 0 | S56: 0 | T56: 0 | X56: =Output!#REF! ->  | Y56: =CalcRecovery!K124 -> 0 | Z56: =CalcRecovery!L124 -> 0 | AA56: =CalcRecovery!M124 -> 0 | AB56: =CalcRecovery!N124 -> 0 | AC56: =CalcRecovery!O124 -> 0 | AD56: =CalcRecovery!P124 -> 0 | AE56: =CalcRecovery!Q124 -> 0 | AF56: =CalcRecovery!R124 -> 0 | AG56: =CalcRecovery!S124 -> 0 | AH56: =CalcRecovery!T124 -> 0 | AI56: =CalcRecovery!U124 -> 0 | AJ56: =CalcRecovery!V124 -> 0 | AK56: =CalcRecovery!W124 -> 0 | AL56: =CalcRecovery!X124 -> 0 | AM56: =CalcRecovery!Y124 -> 0 | AN56: =CalcRecovery!Z124 -> 0 | AO56: =CalcRecovery!AA124 -> 0 | AP56: =CalcRecovery!AB124 -> 0 | AQ56: =CalcRecovery!AC124 -> 0 | AR56: =CalcRecovery!AD124 -> 0 | AS56: =CalcRecovery!AE124 -> 0 | AT56: =CalcRecovery!AF124 -> 0 | AU56: =CalcRecovery!AG124 -> 0 | AV56: =CalcRecovery!AH124 -> 0 | AW56: =CalcRecovery!AI124 -> 0
B57: =Annuity!C72 -> Spare | D57: =CalcAnnual!K66 -> 0 | E57: =CalcAnnual!L66 -> 0 | F57: =CalcAnnual!M66 -> 0 | G57: =CalcAnnual!N66 -> 0 | H57: =CalcAnnual!O66 -> 0 | J57: =CalcAnnual!K185+CalcAnnual!K303 -> 0 | K57: =CalcAnnual!L185+CalcAnnual!L303 -> 0 | L57: =CalcAnnual!M185+CalcAnnual!M303 -> 0 | M57: =CalcAnnual!N185+CalcAnnual!N303 -> 0 | N57: =CalcAnnual!O185+CalcAnnual!O303 -> 0 | P57: 0 | Q57: 0 | R57: 0 | S57: 0 | T57: 0 | X57: =Output!#REF! ->  | Y57: =CalcRecovery!K125 -> 0 | Z57: =CalcRecovery!L125 -> 0 | AA57: =CalcRecovery!M125 -> 0 | AB57: =CalcRecovery!N125 -> 0 | AC57: =CalcRecovery!O125 -> 0 | AD57: =CalcRecovery!P125 -> 0 | AE57: =CalcRecovery!Q125 -> 0 | AF57: =CalcRecovery!R125 -> 0 | AG57: =CalcRecovery!S125 -> 0 | AH57: =CalcRecovery!T125 -> 0 | AI57: =CalcRecovery!U125 -> 0 | AJ57: =CalcRecovery!V125 -> 0 | AK57: =CalcRecovery!W125 -> 0 | AL57: =CalcRecovery!X125 -> 0 | AM57: =CalcRecovery!Y125 -> 0 | AN57: =CalcRecovery!Z125 -> 0 | AO57: =CalcRecovery!AA125 -> 0 | AP57: =CalcRecovery!AB125 -> 0 | AQ57: =CalcRecovery!AC125 -> 0 | AR57: =CalcRecovery!AD125 -> 0 | AS57: =CalcRecovery!AE125 -> 0 | AT57: =CalcRecovery!AF125 -> 0 | AU57: =CalcRecovery!AG125 -> 0 | AV57: =CalcRecovery!AH125 -> 0 | AW57: =CalcRecovery!AI125 -> 0
B58: =Annuity!C73 -> Spare | D58: =CalcAnnual!K67 -> 0 | E58: =CalcAnnual!L67 -> 0 | F58: =CalcAnnual!M67 -> 0 | G58: =CalcAnnual!N67 -> 0 | H58: =CalcAnnual!O67 -> 0 | J58: =CalcAnnual!K186+CalcAnnual!K304 -> 0 | K58: =CalcAnnual!L186+CalcAnnual!L304 -> 0 | L58: =CalcAnnual!M186+CalcAnnual!M304 -> 0 | M58: =CalcAnnual!N186+CalcAnnual!N304 -> 0 | N58: =CalcAnnual!O186+CalcAnnual!O304 -> 0 | P58: 0 | Q58: 0 | R58: 0 | S58: 0 | T58: 0 | X58: =Output!#REF! ->  | Y58: =CalcRecovery!K126 -> 0 | Z58: =CalcRecovery!L126 -> 0 | AA58: =CalcRecovery!M126 -> 0 | AB58: =CalcRecovery!N126 -> 0 | AC58: =CalcRecovery!O126 -> 0 | AD58: =CalcRecovery!P126 -> 0 | AE58: =CalcRecovery!Q126 -> 0 | AF58: =CalcRecovery!R126 -> 0 | AG58: =CalcRecovery!S126 -> 0 | AH58: =CalcRecovery!T126 -> 0 | AI58: =CalcRecovery!U126 -> 0 | AJ58: =CalcRecovery!V126 -> 0 | AK58: =CalcRecovery!W126 -> 0 | AL58: =CalcRecovery!X126 -> 0 | AM58: =CalcRecovery!Y126 -> 0 | AN58: =CalcRecovery!Z126 -> 0 | AO58: =CalcRecovery!AA126 -> 0 | AP58: =CalcRecovery!AB126 -> 0 | AQ58: =CalcRecovery!AC126 -> 0 | AR58: =CalcRecovery!AD126 -> 0 | AS58: =CalcRecovery!AE126 -> 0 | AT58: =CalcRecovery!AF126 -> 0 | AU58: =CalcRecovery!AG126 -> 0 | AV58: =CalcRecovery!AH126 -> 0 | AW58: =CalcRecovery!AI126 -> 0
B59: =Annuity!C74 -> Spare | D59: =CalcAnnual!K68 -> 0 | E59: =CalcAnnual!L68 -> 0 | F59: =CalcAnnual!M68 -> 0 | G59: =CalcAnnual!N68 -> 0 | H59: =CalcAnnual!O68 -> 0 | J59: =CalcAnnual!K187+CalcAnnual!K305 -> 0 | K59: =CalcAnnual!L187+CalcAnnual!L305 -> 0 | L59: =CalcAnnual!M187+CalcAnnual!M305 -> 0 | M59: =CalcAnnual!N187+CalcAnnual!N305 -> 0 | N59: =CalcAnnual!O187+CalcAnnual!O305 -> 0 | P59: 0 | Q59: 0 | R59: 0 | S59: 0 | T59: 0 | X59: =Output!#REF! ->  | Y59: =CalcRecovery!K127 -> 0 | Z59: =CalcRecovery!L127 -> 0 | AA59: =CalcRecovery!M127 -> 0 | AB59: =CalcRecovery!N127 -> 0 | AC59: =CalcRecovery!O127 -> 0 | AD59: =CalcRecovery!P127 -> 0 | AE59: =CalcRecovery!Q127 -> 0 | AF59: =CalcRecovery!R127 -> 0 | AG59: =CalcRecovery!S127 -> 0 | AH59: =CalcRecovery!T127 -> 0 | AI59: =CalcRecovery!U127 -> 0 | AJ59: =CalcRecovery!V127 -> 0 | AK59: =CalcRecovery!W127 -> 0 | AL59: =CalcRecovery!X127 -> 0 | AM59: =CalcRecovery!Y127 -> 0 | AN59: =CalcRecovery!Z127 -> 0 | AO59: =CalcRecovery!AA127 -> 0 | AP59: =CalcRecovery!AB127 -> 0 | AQ59: =CalcRecovery!AC127 -> 0 | AR59: =CalcRecovery!AD127 -> 0 | AS59: =CalcRecovery!AE127 -> 0 | AT59: =CalcRecovery!AF127 -> 0 | AU59: =CalcRecovery!AG127 -> 0 | AV59: =CalcRecovery!AH127 -> 0 | AW59: =CalcRecovery!AI127 -> 0
B60: =Annuity!C75 -> Spare | D60: =CalcAnnual!K69 -> 0 | E60: =CalcAnnual!L69 -> 0 | F60: =CalcAnnual!M69 -> 0 | G60: =CalcAnnual!N69 -> 0 | H60: =CalcAnnual!O69 -> 0 | J60: =CalcAnnual!K188+CalcAnnual!K306 -> 0 | K60: =CalcAnnual!L188+CalcAnnual!L306 -> 0 | L60: =CalcAnnual!M188+CalcAnnual!M306 -> 0 | M60: =CalcAnnual!N188+CalcAnnual!N306 -> 0 | N60: =CalcAnnual!O188+CalcAnnual!O306 -> 0 | P60: 0 | Q60: 0 | R60: 0 | S60: 0 | T60: 0 | X60: =Output!#REF! ->  | Y60: =CalcRecovery!K128 -> 0 | Z60: =CalcRecovery!L128 -> 0 | AA60: =CalcRecovery!M128 -> 0 | AB60: =CalcRecovery!N128 -> 0 | AC60: =CalcRecovery!O128 -> 0 | AD60: =CalcRecovery!P128 -> 0 | AE60: =CalcRecovery!Q128 -> 0 | AF60: =CalcRecovery!R128 -> 0 | AG60: =CalcRecovery!S128 -> 0 | AH60: =CalcRecovery!T128 -> 0 | AI60: =CalcRecovery!U128 -> 0 | AJ60: =CalcRecovery!V128 -> 0 | AK60: =CalcRecovery!W128 -> 0 | AL60: =CalcRecovery!X128 -> 0 | AM60: =CalcRecovery!Y128 -> 0 | AN60: =CalcRecovery!Z128 -> 0 | AO60: =CalcRecovery!AA128 -> 0 | AP60: =CalcRecovery!AB128 -> 0 | AQ60: =CalcRecovery!AC128 -> 0 | AR60: =CalcRecovery!AD128 -> 0 | AS60: =CalcRecovery!AE128 -> 0 | AT60: =CalcRecovery!AF128 -> 0 | AU60: =CalcRecovery!AG128 -> 0 | AV60: =CalcRecovery!AH128 -> 0 | AW60: =CalcRecovery!AI128 -> 0
B61: =Annuity!C76 -> Spare | D61: =CalcAnnual!K70 -> 0 | E61: =CalcAnnual!L70 -> 0 | F61: =CalcAnnual!M70 -> 0 | G61: =CalcAnnual!N70 -> 0 | H61: =CalcAnnual!O70 -> 0 | J61: =CalcAnnual!K189+CalcAnnual!K307 -> 0 | K61: =CalcAnnual!L189+CalcAnnual!L307 -> 0 | L61: =CalcAnnual!M189+CalcAnnual!M307 -> 0 | M61: =CalcAnnual!N189+CalcAnnual!N307 -> 0 | N61: =CalcAnnual!O189+CalcAnnual!O307 -> 0 | P61: 0 | Q61: 0 | R61: 0 | S61: 0 | T61: 0 | X61: =Output!#REF! ->  | Y61: =CalcRecovery!K129 -> 0 | Z61: =CalcRecovery!L129 -> 0 | AA61: =CalcRecovery!M129 -> 0 | AB61: =CalcRecovery!N129 -> 0 | AC61: =CalcRecovery!O129 -> 0 | AD61: =CalcRecovery!P129 -> 0 | AE61: =CalcRecovery!Q129 -> 0 | AF61: =CalcRecovery!R129 -> 0 | AG61: =CalcRecovery!S129 -> 0 | AH61: =CalcRecovery!T129 -> 0 | AI61: =CalcRecovery!U129 -> 0 | AJ61: =CalcRecovery!V129 -> 0 | AK61: =CalcRecovery!W129 -> 0 | AL61: =CalcRecovery!X129 -> 0 | AM61: =CalcRecovery!Y129 -> 0 | AN61: =CalcRecovery!Z129 -> 0 | AO61: =CalcRecovery!AA129 -> 0 | AP61: =CalcRecovery!AB129 -> 0 | AQ61: =CalcRecovery!AC129 -> 0 | AR61: =CalcRecovery!AD129 -> 0 | AS61: =CalcRecovery!AE129 -> 0 | AT61: =CalcRecovery!AF129 -> 0 | AU61: =CalcRecovery!AG129 -> 0 | AV61: =CalcRecovery!AH129 -> 0 | AW61: =CalcRecovery!AI129 -> 0
B62: =Annuity!C77 -> Spare | D62: =CalcAnnual!K71 -> 0 | E62: =CalcAnnual!L71 -> 0 | F62: =CalcAnnual!M71 -> 0 | G62: =CalcAnnual!N71 -> 0 | H62: =CalcAnnual!O71 -> 0 | J62: =CalcAnnual!K190+CalcAnnual!K308 -> 0 | K62: =CalcAnnual!L190+CalcAnnual!L308 -> 0 | L62: =CalcAnnual!M190+CalcAnnual!M308 -> 0 | M62: =CalcAnnual!N190+CalcAnnual!N308 -> 0 | N62: =CalcAnnual!O190+CalcAnnual!O308 -> 0 | P62: 0 | Q62: 0 | R62: 0 | S62: 0 | T62: 0 | X62: =Output!#REF! ->  | Y62: =CalcRecovery!K130 -> 0 | Z62: =CalcRecovery!L130 -> 0 | AA62: =CalcRecovery!M130 -> 0 | AB62: =CalcRecovery!N130 -> 0 | AC62: =CalcRecovery!O130 -> 0 | AD62: =CalcRecovery!P130 -> 0 | AE62: =CalcRecovery!Q130 -> 0 | AF62: =CalcRecovery!R130 -> 0 | AG62: =CalcRecovery!S130 -> 0 | AH62: =CalcRecovery!T130 -> 0 | AI62: =CalcRecovery!U130 -> 0 | AJ62: =CalcRecovery!V130 -> 0 | AK62: =CalcRecovery!W130 -> 0 | AL62: =CalcRecovery!X130 -> 0 | AM62: =CalcRecovery!Y130 -> 0 | AN62: =CalcRecovery!Z130 -> 0 | AO62: =CalcRecovery!AA130 -> 0 | AP62: =CalcRecovery!AB130 -> 0 | AQ62: =CalcRecovery!AC130 -> 0 | AR62: =CalcRecovery!AD130 -> 0 | AS62: =CalcRecovery!AE130 -> 0 | AT62: =CalcRecovery!AF130 -> 0 | AU62: =CalcRecovery!AG130 -> 0 | AV62: =CalcRecovery!AH130 -> 0 | AW62: =CalcRecovery!AI130 -> 0
B63: =Annuity!C78 -> Spare | D63: =CalcAnnual!K72 -> 0 | E63: =CalcAnnual!L72 -> 0 | F63: =CalcAnnual!M72 -> 0 | G63: =CalcAnnual!N72 -> 0 | H63: =CalcAnnual!O72 -> 0 | J63: =CalcAnnual!K191+CalcAnnual!K309 -> 0 | K63: =CalcAnnual!L191+CalcAnnual!L309 -> 0 | L63: =CalcAnnual!M191+CalcAnnual!M309 -> 0 | M63: =CalcAnnual!N191+CalcAnnual!N309 -> 0 | N63: =CalcAnnual!O191+CalcAnnual!O309 -> 0 | P63: 0 | Q63: 0 | R63: 0 | S63: 0 | T63: 0 | X63: =Output!#REF! ->  | Y63: =CalcRecovery!K131 -> 0 | Z63: =CalcRecovery!L131 -> 0 | AA63: =CalcRecovery!M131 -> 0 | AB63: =CalcRecovery!N131 -> 0 | AC63: =CalcRecovery!O131 -> 0 | AD63: =CalcRecovery!P131 -> 0 | AE63: =CalcRecovery!Q131 -> 0 | AF63: =CalcRecovery!R131 -> 0 | AG63: =CalcRecovery!S131 -> 0 | AH63: =CalcRecovery!T131 -> 0 | AI63: =CalcRecovery!U131 -> 0 | AJ63: =CalcRecovery!V131 -> 0 | AK63: =CalcRecovery!W131 -> 0 | AL63: =CalcRecovery!X131 -> 0 | AM63: =CalcRecovery!Y131 -> 0 | AN63: =CalcRecovery!Z131 -> 0 | AO63: =CalcRecovery!AA131 -> 0 | AP63: =CalcRecovery!AB131 -> 0 | AQ63: =CalcRecovery!AC131 -> 0 | AR63: =CalcRecovery!AD131 -> 0 | AS63: =CalcRecovery!AE131 -> 0 | AT63: =CalcRecovery!AF131 -> 0 | AU63: =CalcRecovery!AG131 -> 0 | AV63: =CalcRecovery!AH131 -> 0 | AW63: =CalcRecovery!AI131 -> 0
B64: =Annuity!C79 -> Spare | D64: =CalcAnnual!K73 -> 0 | E64: =CalcAnnual!L73 -> 0 | F64: =CalcAnnual!M73 -> 0 | G64: =CalcAnnual!N73 -> 0 | H64: =CalcAnnual!O73 -> 0 | J64: =CalcAnnual!K192+CalcAnnual!K310 -> 0 | K64: =CalcAnnual!L192+CalcAnnual!L310 -> 0 | L64: =CalcAnnual!M192+CalcAnnual!M310 -> 0 | M64: =CalcAnnual!N192+CalcAnnual!N310 -> 0 | N64: =CalcAnnual!O192+CalcAnnual!O310 -> 0 | P64: 0 | Q64: 0 | R64: 0 | S64: 0 | T64: 0 | X64: =Output!#REF! ->  | Y64: =CalcRecovery!K132 -> 0 | Z64: =CalcRecovery!L132 -> 0 | AA64: =CalcRecovery!M132 -> 0 | AB64: =CalcRecovery!N132 -> 0 | AC64: =CalcRecovery!O132 -> 0 | AD64: =CalcRecovery!P132 -> 0 | AE64: =CalcRecovery!Q132 -> 0 | AF64: =CalcRecovery!R132 -> 0 | AG64: =CalcRecovery!S132 -> 0 | AH64: =CalcRecovery!T132 -> 0 | AI64: =CalcRecovery!U132 -> 0 | AJ64: =CalcRecovery!V132 -> 0 | AK64: =CalcRecovery!W132 -> 0 | AL64: =CalcRecovery!X132 -> 0 | AM64: =CalcRecovery!Y132 -> 0 | AN64: =CalcRecovery!Z132 -> 0 | AO64: =CalcRecovery!AA132 -> 0 | AP64: =CalcRecovery!AB132 -> 0 | AQ64: =CalcRecovery!AC132 -> 0 | AR64: =CalcRecovery!AD132 -> 0 | AS64: =CalcRecovery!AE132 -> 0 | AT64: =CalcRecovery!AF132 -> 0 | AU64: =CalcRecovery!AG132 -> 0 | AV64: =CalcRecovery!AH132 -> 0 | AW64: =CalcRecovery!AI132 -> 0
B65: =Annuity!C80 -> Spare | D65: =CalcAnnual!K74 -> 0 | E65: =CalcAnnual!L74 -> 0 | F65: =CalcAnnual!M74 -> 0 | G65: =CalcAnnual!N74 -> 0 | H65: =CalcAnnual!O74 -> 0 | J65: =CalcAnnual!K193+CalcAnnual!K311 -> 0 | K65: =CalcAnnual!L193+CalcAnnual!L311 -> 0 | L65: =CalcAnnual!M193+CalcAnnual!M311 -> 0 | M65: =CalcAnnual!N193+CalcAnnual!N311 -> 0 | N65: =CalcAnnual!O193+CalcAnnual!O311 -> 0 | P65: 0 | Q65: 0 | R65: 0 | S65: 0 | T65: 0 | X65: =Output!#REF! ->  | Y65: =CalcRecovery!K133 -> 0 | Z65: =CalcRecovery!L133 -> 0 | AA65: =CalcRecovery!M133 -> 0 | AB65: =CalcRecovery!N133 -> 0 | AC65: =CalcRecovery!O133 -> 0 | AD65: =CalcRecovery!P133 -> 0 | AE65: =CalcRecovery!Q133 -> 0 | AF65: =CalcRecovery!R133 -> 0 | AG65: =CalcRecovery!S133 -> 0 | AH65: =CalcRecovery!T133 -> 0 | AI65: =CalcRecovery!U133 -> 0 | AJ65: =CalcRecovery!V133 -> 0 | AK65: =CalcRecovery!W133 -> 0 | AL65: =CalcRecovery!X133 -> 0 | AM65: =CalcRecovery!Y133 -> 0 | AN65: =CalcRecovery!Z133 -> 0 | AO65: =CalcRecovery!AA133 -> 0 | AP65: =CalcRecovery!AB133 -> 0 | AQ65: =CalcRecovery!AC133 -> 0 | AR65: =CalcRecovery!AD133 -> 0 | AS65: =CalcRecovery!AE133 -> 0 | AT65: =CalcRecovery!AF133 -> 0 | AU65: =CalcRecovery!AG133 -> 0 | AV65: =CalcRecovery!AH133 -> 0 | AW65: =CalcRecovery!AI133 -> 0
B66: =Annuity!C81 -> Spare | D66: =CalcAnnual!K75 -> 0 | E66: =CalcAnnual!L75 -> 0 | F66: =CalcAnnual!M75 -> 0 | G66: =CalcAnnual!N75 -> 0 | H66: =CalcAnnual!O75 -> 0 | J66: =CalcAnnual!K194+CalcAnnual!K312 -> 0 | K66: =CalcAnnual!L194+CalcAnnual!L312 -> 0 | L66: =CalcAnnual!M194+CalcAnnual!M312 -> 0 | M66: =CalcAnnual!N194+CalcAnnual!N312 -> 0 | N66: =CalcAnnual!O194+CalcAnnual!O312 -> 0 | P66: 0 | Q66: 0 | R66: 0 | S66: 0 | T66: 0 | X66: =Output!#REF! ->  | Y66: =CalcRecovery!K134 -> 0 | Z66: =CalcRecovery!L134 -> 0 | AA66: =CalcRecovery!M134 -> 0 | AB66: =CalcRecovery!N134 -> 0 | AC66: =CalcRecovery!O134 -> 0 | AD66: =CalcRecovery!P134 -> 0 | AE66: =CalcRecovery!Q134 -> 0 | AF66: =CalcRecovery!R134 -> 0 | AG66: =CalcRecovery!S134 -> 0 | AH66: =CalcRecovery!T134 -> 0 | AI66: =CalcRecovery!U134 -> 0 | AJ66: =CalcRecovery!V134 -> 0 | AK66: =CalcRecovery!W134 -> 0 | AL66: =CalcRecovery!X134 -> 0 | AM66: =CalcRecovery!Y134 -> 0 | AN66: =CalcRecovery!Z134 -> 0 | AO66: =CalcRecovery!AA134 -> 0 | AP66: =CalcRecovery!AB134 -> 0 | AQ66: =CalcRecovery!AC134 -> 0 | AR66: =CalcRecovery!AD134 -> 0 | AS66: =CalcRecovery!AE134 -> 0 | AT66: =CalcRecovery!AF134 -> 0 | AU66: =CalcRecovery!AG134 -> 0 | AV66: =CalcRecovery!AH134 -> 0 | AW66: =CalcRecovery!AI134 -> 0
B67: =Annuity!C82 -> Spare | D67: =CalcAnnual!K76 -> 0 | E67: =CalcAnnual!L76 -> 0 | F67: =CalcAnnual!M76 -> 0 | G67: =CalcAnnual!N76 -> 0 | H67: =CalcAnnual!O76 -> 0 | J67: =CalcAnnual!K195+CalcAnnual!K313 -> 0 | K67: =CalcAnnual!L195+CalcAnnual!L313 -> 0 | L67: =CalcAnnual!M195+CalcAnnual!M313 -> 0 | M67: =CalcAnnual!N195+CalcAnnual!N313 -> 0 | N67: =CalcAnnual!O195+CalcAnnual!O313 -> 0 | P67: =D67+J67 -> 0 | Q67: =E67+K67 -> 0 | R67: =F67+L67 -> 0 | S67: =G67+M67 -> 0 | T67: =H67+N67 -> 0 | X67: =Output!#REF! ->  | Y67: =CalcRecovery!K135 -> 0 | Z67: =CalcRecovery!L135 -> 0 | AA67: =CalcRecovery!M135 -> 0 | AB67: =CalcRecovery!N135 -> 0 | AC67: =CalcRecovery!O135 -> 0 | AD67: =CalcRecovery!P135 -> 0 | AE67: =CalcRecovery!Q135 -> 0 | AF67: =CalcRecovery!R135 -> 0 | AG67: =CalcRecovery!S135 -> 0 | AH67: =CalcRecovery!T135 -> 0 | AI67: =CalcRecovery!U135 -> 0 | AJ67: =CalcRecovery!V135 -> 0 | AK67: =CalcRecovery!W135 -> 0 | AL67: =CalcRecovery!X135 -> 0 | AM67: =CalcRecovery!Y135 -> 0 | AN67: =CalcRecovery!Z135 -> 0 | AO67: =CalcRecovery!AA135 -> 0 | AP67: =CalcRecovery!AB135 -> 0 | AQ67: =CalcRecovery!AC135 -> 0 | AR67: =CalcRecovery!AD135 -> 0 | AS67: =CalcRecovery!AE135 -> 0 | AT67: =CalcRecovery!AF135 -> 0 | AU67: =CalcRecovery!AG135 -> 0 | AV67: =CalcRecovery!AH135 -> 0 | AW67: =CalcRecovery!AI135 -> 0
B68: =Annuity!C83 -> Spare | D68: =CalcAnnual!K77 -> 0 | E68: =CalcAnnual!L77 -> 0 | F68: =CalcAnnual!M77 -> 0 | G68: =CalcAnnual!N77 -> 0 | H68: =CalcAnnual!O77 -> 0 | J68: =CalcAnnual!K196+CalcAnnual!K314 -> 0 | K68: =CalcAnnual!L196+CalcAnnual!L314 -> 0 | L68: =CalcAnnual!M196+CalcAnnual!M314 -> 0 | M68: =CalcAnnual!N196+CalcAnnual!N314 -> 0 | N68: =CalcAnnual!O196+CalcAnnual!O314 -> 0 | P68: 0 | Q68: 0 | R68: 0 | S68: 0 | T68: 0 | X68: =Output!#REF! ->  | Y68: =CalcRecovery!K136 -> 0 | Z68: =CalcRecovery!L136 -> 0 | AA68: =CalcRecovery!M136 -> 0 | AB68: =CalcRecovery!N136 -> 0 | AC68: =CalcRecovery!O136 -> 0 | AD68: =CalcRecovery!P136 -> 0 | AE68: =CalcRecovery!Q136 -> 0 | AF68: =CalcRecovery!R136 -> 0 | AG68: =CalcRecovery!S136 -> 0 | AH68: =CalcRecovery!T136 -> 0 | AI68: =CalcRecovery!U136 -> 0 | AJ68: =CalcRecovery!V136 -> 0 | AK68: =CalcRecovery!W136 -> 0 | AL68: =CalcRecovery!X136 -> 0 | AM68: =CalcRecovery!Y136 -> 0 | AN68: =CalcRecovery!Z136 -> 0 | AO68: =CalcRecovery!AA136 -> 0 | AP68: =CalcRecovery!AB136 -> 0 | AQ68: =CalcRecovery!AC136 -> 0 | AR68: =CalcRecovery!AD136 -> 0 | AS68: =CalcRecovery!AE136 -> 0 | AT68: =CalcRecovery!AF136 -> 0 | AU68: =CalcRecovery!AG136 -> 0 | AV68: =CalcRecovery!AH136 -> 0 | AW68: =CalcRecovery!AI136 -> 0
B69: =Annuity!C84 -> Spare | D69: =CalcAnnual!K78 -> 0 | E69: =CalcAnnual!L78 -> 0 | F69: =CalcAnnual!M78 -> 0 | G69: =CalcAnnual!N78 -> 0 | H69: =CalcAnnual!O78 -> 0 | J69: =CalcAnnual!K197+CalcAnnual!K315 -> 0 | K69: =CalcAnnual!L197+CalcAnnual!L315 -> 0 | L69: =CalcAnnual!M197+CalcAnnual!M315 -> 0 | M69: =CalcAnnual!N197+CalcAnnual!N315 -> 0 | N69: =CalcAnnual!O197+CalcAnnual!O315 -> 0 | P69: 0 | Q69: 0 | R69: 0 | S69: 0 | T69: 0 | X69: =Output!#REF! ->  | Y69: =CalcRecovery!K137 -> 0 | Z69: =CalcRecovery!L137 -> 0 | AA69: =CalcRecovery!M137 -> 0 | AB69: =CalcRecovery!N137 -> 0 | AC69: =CalcRecovery!O137 -> 0 | AD69: =CalcRecovery!P137 -> 0 | AE69: =CalcRecovery!Q137 -> 0 | AF69: =CalcRecovery!R137 -> 0 | AG69: =CalcRecovery!S137 -> 0 | AH69: =CalcRecovery!T137 -> 0 | AI69: =CalcRecovery!U137 -> 0 | AJ69: =CalcRecovery!V137 -> 0 | AK69: =CalcRecovery!W137 -> 0 | AL69: =CalcRecovery!X137 -> 0 | AM69: =CalcRecovery!Y137 -> 0 | AN69: =CalcRecovery!Z137 -> 0 | AO69: =CalcRecovery!AA137 -> 0 | AP69: =CalcRecovery!AB137 -> 0 | AQ69: =CalcRecovery!AC137 -> 0 | AR69: =CalcRecovery!AD137 -> 0 | AS69: =CalcRecovery!AE137 -> 0 | AT69: =CalcRecovery!AF137 -> 0 | AU69: =CalcRecovery!AG137 -> 0 | AV69: =CalcRecovery!AH137 -> 0 | AW69: =CalcRecovery!AI137 -> 0
B70: =Annuity!C85 -> Spare | D70: =CalcAnnual!K79 -> 0 | E70: =CalcAnnual!L79 -> 0 | F70: =CalcAnnual!M79 -> 0 | G70: =CalcAnnual!N79 -> 0 | H70: =CalcAnnual!O79 -> 0 | J70: =CalcAnnual!K198+CalcAnnual!K316 -> 0 | K70: =CalcAnnual!L198+CalcAnnual!L316 -> 0 | L70: =CalcAnnual!M198+CalcAnnual!M316 -> 0 | M70: =CalcAnnual!N198+CalcAnnual!N316 -> 0 | N70: =CalcAnnual!O198+CalcAnnual!O316 -> 0 | P70: 0 | Q70: 0 | R70: 0 | S70: 0 | T70: 0 | X70: =Output!#REF! ->  | Y70: =CalcRecovery!K138 -> 0 | Z70: =CalcRecovery!L138 -> 0 | AA70: =CalcRecovery!M138 -> 0 | AB70: =CalcRecovery!N138 -> 0 | AC70: =CalcRecovery!O138 -> 0 | AD70: =CalcRecovery!P138 -> 0 | AE70: =CalcRecovery!Q138 -> 0 | AF70: =CalcRecovery!R138 -> 0 | AG70: =CalcRecovery!S138 -> 0 | AH70: =CalcRecovery!T138 -> 0 | AI70: =CalcRecovery!U138 -> 0 | AJ70: =CalcRecovery!V138 -> 0 | AK70: =CalcRecovery!W138 -> 0 | AL70: =CalcRecovery!X138 -> 0 | AM70: =CalcRecovery!Y138 -> 0 | AN70: =CalcRecovery!Z138 -> 0 | AO70: =CalcRecovery!AA138 -> 0 | AP70: =CalcRecovery!AB138 -> 0 | AQ70: =CalcRecovery!AC138 -> 0 | AR70: =CalcRecovery!AD138 -> 0 | AS70: =CalcRecovery!AE138 -> 0 | AT70: =CalcRecovery!AF138 -> 0 | AU70: =CalcRecovery!AG138 -> 0 | AV70: =CalcRecovery!AH138 -> 0 | AW70: =CalcRecovery!AI138 -> 0
B71: =Annuity!C86 -> Spare | D71: =CalcAnnual!K80 -> 0 | E71: =CalcAnnual!L80 -> 0 | F71: =CalcAnnual!M80 -> 0 | G71: =CalcAnnual!N80 -> 0 | H71: =CalcAnnual!O80 -> 0 | J71: =CalcAnnual!K199+CalcAnnual!K317 -> 0 | K71: =CalcAnnual!L199+CalcAnnual!L317 -> 0 | L71: =CalcAnnual!M199+CalcAnnual!M317 -> 0 | M71: =CalcAnnual!N199+CalcAnnual!N317 -> 0 | N71: =CalcAnnual!O199+CalcAnnual!O317 -> 0 | P71: 0 | Q71: 0 | R71: 0 | S71: 0 | T71: 0 | X71: =Output!#REF! ->  | Y71: =CalcRecovery!K139 -> 0 | Z71: =CalcRecovery!L139 -> 0 | AA71: =CalcRecovery!M139 -> 0 | AB71: =CalcRecovery!N139 -> 0 | AC71: =CalcRecovery!O139 -> 0 | AD71: =CalcRecovery!P139 -> 0 | AE71: =CalcRecovery!Q139 -> 0 | AF71: =CalcRecovery!R139 -> 0 | AG71: =CalcRecovery!S139 -> 0 | AH71: =CalcRecovery!T139 -> 0 | AI71: =CalcRecovery!U139 -> 0 | AJ71: =CalcRecovery!V139 -> 0 | AK71: =CalcRecovery!W139 -> 0 | AL71: =CalcRecovery!X139 -> 0 | AM71: =CalcRecovery!Y139 -> 0 | AN71: =CalcRecovery!Z139 -> 0 | AO71: =CalcRecovery!AA139 -> 0 | AP71: =CalcRecovery!AB139 -> 0 | AQ71: =CalcRecovery!AC139 -> 0 | AR71: =CalcRecovery!AD139 -> 0 | AS71: =CalcRecovery!AE139 -> 0 | AT71: =CalcRecovery!AF139 -> 0 | AU71: =CalcRecovery!AG139 -> 0 | AV71: =CalcRecovery!AH139 -> 0 | AW71: =CalcRecovery!AI139 -> 0
B72: =Annuity!C87 -> Spare | D72: =CalcAnnual!K81 -> 0 | E72: =CalcAnnual!L81 -> 0 | F72: =CalcAnnual!M81 -> 0 | G72: =CalcAnnual!N81 -> 0 | H72: =CalcAnnual!O81 -> 0 | J72: =CalcAnnual!K200+CalcAnnual!K318 -> 0 | K72: =CalcAnnual!L200+CalcAnnual!L318 -> 0 | L72: =CalcAnnual!M200+CalcAnnual!M318 -> 0 | M72: =CalcAnnual!N200+CalcAnnual!N318 -> 0 | N72: =CalcAnnual!O200+CalcAnnual!O318 -> 0 | P72: 0 | Q72: 0 | R72: 0 | S72: 0 | T72: 0 | X72: =Output!#REF! ->  | Y72: =CalcRecovery!#REF! ->  | Z72: =CalcRecovery!#REF! ->  | AA72: =CalcRecovery!#REF! ->  | AB72: =CalcRecovery!#REF! ->  | AC72: =CalcRecovery!#REF! ->  | AD72: =CalcRecovery!#REF! ->  | AE72: =CalcRecovery!#REF! ->  | AF72: =CalcRecovery!#REF! ->  | AG72: =CalcRecovery!#REF! ->  | AH72: =CalcRecovery!#REF! ->  | AI72: =CalcRecovery!#REF! ->  | AJ72: =CalcRecovery!#REF! ->  | AK72: =CalcRecovery!#REF! ->  | AL72: =CalcRecovery!#REF! ->  | AM72: =CalcRecovery!#REF! ->  | AN72: =CalcRecovery!#REF! ->  | AO72: =CalcRecovery!#REF! ->  | AP72: =CalcRecovery!#REF! ->  | AQ72: =CalcRecovery!#REF! ->  | AR72: =CalcRecovery!#REF! ->  | AS72: =CalcRecovery!#REF! ->  | AT72: =CalcRecovery!#REF! ->  | AU72: =CalcRecovery!#REF! ->  | AV72: =CalcRecovery!#REF! ->  | AW72: =CalcRecovery!#REF! -> 
B73: =Annuity!C88 -> Spare | D73: =CalcAnnual!K82 -> 0 | E73: =CalcAnnual!L82 -> 0 | F73: =CalcAnnual!M82 -> 0 | G73: =CalcAnnual!N82 -> 0 | H73: =CalcAnnual!O82 -> 0 | J73: =CalcAnnual!K201+CalcAnnual!K319 -> 0 | K73: =CalcAnnual!L201+CalcAnnual!L319 -> 0 | L73: =CalcAnnual!M201+CalcAnnual!M319 -> 0 | M73: =CalcAnnual!N201+CalcAnnual!N319 -> 0 | N73: =CalcAnnual!O201+CalcAnnual!O319 -> 0 | P73: 0 | Q73: 0 | R73: 0 | S73: 0 | T73: 0 | X73: =Output!#REF! ->  | Y73: =CalcRecovery!#REF! ->  | Z73: =CalcRecovery!#REF! ->  | AA73: =CalcRecovery!#REF! ->  | AB73: =CalcRecovery!#REF! ->  | AC73: =CalcRecovery!#REF! ->  | AD73: =CalcRecovery!#REF! ->  | AE73: =CalcRecovery!#REF! ->  | AF73: =CalcRecovery!#REF! ->  | AG73: =CalcRecovery!#REF! ->  | AH73: =CalcRecovery!#REF! ->  | AI73: =CalcRecovery!#REF! ->  | AJ73: =CalcRecovery!#REF! ->  | AK73: =CalcRecovery!#REF! ->  | AL73: =CalcRecovery!#REF! ->  | AM73: =CalcRecovery!#REF! ->  | AN73: =CalcRecovery!#REF! ->  | AO73: =CalcRecovery!#REF! ->  | AP73: =CalcRecovery!#REF! ->  | AQ73: =CalcRecovery!#REF! ->  | AR73: =CalcRecovery!#REF! ->  | AS73: =CalcRecovery!#REF! ->  | AT73: =CalcRecovery!#REF! ->  | AU73: =CalcRecovery!#REF! ->  | AV73: =CalcRecovery!#REF! ->  | AW73: =CalcRecovery!#REF! -> 
B74: =Annuity!C89 -> Spare | D74: =CalcAnnual!K83 -> 0 | E74: =CalcAnnual!L83 -> 0 | F74: =CalcAnnual!M83 -> 0 | G74: =CalcAnnual!N83 -> 0 | H74: =CalcAnnual!O83 -> 0 | J74: =CalcAnnual!K202+CalcAnnual!K320 -> 0 | K74: =CalcAnnual!L202+CalcAnnual!L320 -> 0 | L74: =CalcAnnual!M202+CalcAnnual!M320 -> 0 | M74: =CalcAnnual!N202+CalcAnnual!N320 -> 0 | N74: =CalcAnnual!O202+CalcAnnual!O320 -> 0 | P74: 0 | Q74: 0 | R74: 0 | S74: 0 | T74: 0 | X74: =Output!#REF! ->  | Y74: =CalcRecovery!#REF! ->  | Z74: =CalcRecovery!#REF! ->  | AA74: =CalcRecovery!#REF! ->  | AB74: =CalcRecovery!#REF! ->  | AC74: =CalcRecovery!#REF! ->  | AD74: =CalcRecovery!#REF! ->  | AE74: =CalcRecovery!#REF! ->  | AF74: =CalcRecovery!#REF! ->  | AG74: =CalcRecovery!#REF! ->  | AH74: =CalcRecovery!#REF! ->  | AI74: =CalcRecovery!#REF! ->  | AJ74: =CalcRecovery!#REF! ->  | AK74: =CalcRecovery!#REF! ->  | AL74: =CalcRecovery!#REF! ->  | AM74: =CalcRecovery!#REF! ->  | AN74: =CalcRecovery!#REF! ->  | AO74: =CalcRecovery!#REF! ->  | AP74: =CalcRecovery!#REF! ->  | AQ74: =CalcRecovery!#REF! ->  | AR74: =CalcRecovery!#REF! ->  | AS74: =CalcRecovery!#REF! ->  | AT74: =CalcRecovery!#REF! ->  | AU74: =CalcRecovery!#REF! ->  | AV74: =CalcRecovery!#REF! ->  | AW74: =CalcRecovery!#REF! -> 
B75: =Annuity!C90 -> Spare | D75: =CalcAnnual!K84 -> 0 | E75: =CalcAnnual!L84 -> 0 | F75: =CalcAnnual!M84 -> 0 | G75: =CalcAnnual!N84 -> 0 | H75: =CalcAnnual!O84 -> 0 | J75: =CalcAnnual!K203+CalcAnnual!K321 -> 0 | K75: =CalcAnnual!L203+CalcAnnual!L321 -> 0 | L75: =CalcAnnual!M203+CalcAnnual!M321 -> 0 | M75: =CalcAnnual!N203+CalcAnnual!N321 -> 0 | N75: =CalcAnnual!O203+CalcAnnual!O321 -> 0 | P75: 0 | Q75: 0 | R75: 0 | S75: 0 | T75: 0 | X75: =Output!#REF! ->  | Y75: =CalcRecovery!#REF! ->  | Z75: =CalcRecovery!#REF! ->  | AA75: =CalcRecovery!#REF! ->  | AB75: =CalcRecovery!#REF! ->  | AC75: =CalcRecovery!#REF! ->  | AD75: =CalcRecovery!#REF! ->  | AE75: =CalcRecovery!#REF! ->  | AF75: =CalcRecovery!#REF! ->  | AG75: =CalcRecovery!#REF! ->  | AH75: =CalcRecovery!#REF! ->  | AI75: =CalcRecovery!#REF! ->  | AJ75: =CalcRecovery!#REF! ->  | AK75: =CalcRecovery!#REF! ->  | AL75: =CalcRecovery!#REF! ->  | AM75: =CalcRecovery!#REF! ->  | AN75: =CalcRecovery!#REF! ->  | AO75: =CalcRecovery!#REF! ->  | AP75: =CalcRecovery!#REF! ->  | AQ75: =CalcRecovery!#REF! ->  | AR75: =CalcRecovery!#REF! ->  | AS75: =CalcRecovery!#REF! ->  | AT75: =CalcRecovery!#REF! ->  | AU75: =CalcRecovery!#REF! ->  | AV75: =CalcRecovery!#REF! ->  | AW75: =CalcRecovery!#REF! -> 
B76: =Annuity!C91 -> Spare | D76: =CalcAnnual!K85 -> 0 | E76: =CalcAnnual!L85 -> 0 | F76: =CalcAnnual!M85 -> 0 | G76: =CalcAnnual!N85 -> 0 | H76: =CalcAnnual!O85 -> 0 | J76: =CalcAnnual!K204+CalcAnnual!K322 -> 0 | K76: =CalcAnnual!L204+CalcAnnual!L322 -> 0 | L76: =CalcAnnual!M204+CalcAnnual!M322 -> 0 | M76: =CalcAnnual!N204+CalcAnnual!N322 -> 0 | N76: =CalcAnnual!O204+CalcAnnual!O322 -> 0 | P76: 0 | Q76: 0 | R76: 0 | S76: 0 | T76: 0 | X76: =Output!#REF! ->  | Y76: =CalcRecovery!#REF! ->  | Z76: =CalcRecovery!#REF! ->  | AA76: =CalcRecovery!#REF! ->  | AB76: =CalcRecovery!#REF! ->  | AC76: =CalcRecovery!#REF! ->  | AD76: =CalcRecovery!#REF! ->  | AE76: =CalcRecovery!#REF! ->  | AF76: =CalcRecovery!#REF! ->  | AG76: =CalcRecovery!#REF! ->  | AH76: =CalcRecovery!#REF! ->  | AI76: =CalcRecovery!#REF! ->  | AJ76: =CalcRecovery!#REF! ->  | AK76: =CalcRecovery!#REF! ->  | AL76: =CalcRecovery!#REF! ->  | AM76: =CalcRecovery!#REF! ->  | AN76: =CalcRecovery!#REF! ->  | AO76: =CalcRecovery!#REF! ->  | AP76: =CalcRecovery!#REF! ->  | AQ76: =CalcRecovery!#REF! ->  | AR76: =CalcRecovery!#REF! ->  | AS76: =CalcRecovery!#REF! ->  | AT76: =CalcRecovery!#REF! ->  | AU76: =CalcRecovery!#REF! ->  | AV76: =CalcRecovery!#REF! ->  | AW76: =CalcRecovery!#REF! -> 
